Workbook

Sheet Jan22
A1: %,LACTUALS | B1: %,ATT,FDESCR,UDESCR | C1: %,AFT,FACCOUNT | D1: %,LACTUALS,UPOSTED_TRAN_AMT,SBAL,FBOOK_CODE,VR | F1: %,LACTUALS,UPOSTED_TRAN_AMT,SPER,FBOOK_CODE,VR | H1: %,LACTUALS,UPOSTED_TRAN_AMT,SYTD,FBOOK_CODE,VR
B3: Columbia Gas of Kentucky Inc
B4: Balance Sheet-FERC
B5: Regulatory View - FERC Account
B6: As of January 31, 2022
F8: Change from | H8: Change from
D9: Current Month | F9: Prior Month | H9: Prior Year-End
B10: Assets and Other Debits
B13: Utility Plant
A15: %,V10100000 | B15: Plant In Service-Beg Bal | C15: 10100000 | D15: 623970195.9 | F15: 0 | H15: 0
A16: %,V10100001 | B16: Plant In Service-Additions | C16: 10100001 | D16: 3295492.56 | F16: 3295492.56 | H16: 3295492.56
A17: %,V10100002 | B17: Plant In Service-Retirements | C17: 10100002 | D17: -533566.33 | F17: -533566.33 | H17: -533566.33
A18: %,V10140000 | B18: Cloud Plant In Svc-Beg Bal | C18: 10140000 | D18: 1654282.04 | F18: 0 | H18: 0
A19: %,V10140001 | B19: Cloud Plant in Svc-Additions | C19: 10140001 | D19: -28139.06 | F19: -28139.06 | H19: -28139.06
A20: %,FACCOUNT,TNI_ACCOUNT_FERC,XBYYYYY01,NPLANT_IN_SERV_FERC | B20: Plant in Service | D20: 628358265.1 | F20: 2733787.17 | H20: 2733787.17
A21: %,V10110000 | B21: Capital Leases-Beg Bal | C21: 10110000 | D21: 400000 | F21: 0 | H21: 0
A22: %,V10112000 | B22: Right of Use Asset-Beg Bal | C22: 10112000 | D22: 316999.8 | F22: 0 | H22: 0
A23: %,V10112002 | B23: Right of Use Asset-Retirements | C23: 10112002 | D23: -24762.45 | F23: -24762.45 | H23: -24762.45
A24: %,V10112004 | B24: Right of Use Asset-Amort | C24: 10112004 | D24: -2915.31 | F24: -2915.31 | H24: -2915.31
A25: %,FACCOUNT,TNI_ACCOUNT_FERC,XBYYYYY01,NPLANT_CAP_LEASE | B25: Property Under Capital Lease | D25: 689322.04 | F25: -27677.76 | H25: -27677.76
A26: %,FACCOUNT,TNI_ACCOUNT_FERC,XBYYYYY01,NPLANT_PURCH_SOLD | B26: Plant Purchased or Sold | D26: 0 | F26: 0 | H26: 0
A27: %,FACCOUNT,TNI_ACCOUNT_FERC,XBYYYYY01,NPLANT_EXPERIMENT | B27: Experimental Plant Unclass | D27: 0 | F27: 0 | H27: 0
A28: %,FACCOUNT,TNI_ACCOUNT_FERC,XBYYYYY01,NPLANT_GAS_LEASE_OTH | B28: Gas Plant Leased to Others | D28: 0 | F28: 0 | H28: 0
A29: %,FACCOUNT,TNI_ACCOUNT_FERC,XBYYYYY01,NPLANT_FUTURE_USE | B29: Plant Held for Future Use | D29: 0 | F29: 0 | H29: 0
A30: %,V10600000 | B30: Comp Constr Not Class Beg Bal | C30: 10600000 | D30: 29697192.39 | F30: 0 | H30: 0
A31: %,V10600003 | B31: Comp Const not Class Other | C31: 10600003 | D31: 830781.37 | F31: 830781.37 | H31: 830781.37
A32: %,FACCOUNT,TNI_ACCOUNT_FERC,XBYYYYY01,NPLANT_CONST_UNCLASS | B32: Completed Const Not Classified | D32: 30527973.76 | F32: 830781.37 | H32: 830781.37
A33: %,V11401000 | B33: Tang Plant Acq Adj-BegBal | C33: 11401000 | D33: -777092 | F33: 0 | H33: 0
A34: %,FACCOUNT,TNI_ACCOUNT_FERC,XBYYYYY01,NPLANT_ACQ_ADJ_FERC | B34: Plant Acquisitions_Adjustments | D34: -777092 | F34: 0 | H34: 0
A35: %,V10700000 | B35: CWIP-Beg Balance | C35: 10700000 | D35: 18115095.37 | F35: 0 | H35: 0
A36: %,V10700001 | B36: CWIP-Additions | C36: 10700001 | D36: 5093251.32 | F36: 5093251.32 | H36: 5093251.32
A37: %,V10700003 | B37: CWIP-Other Changes | C37: 10700003 | D37: -4126273.93 | F37: -4126273.93 | H37: -4126273.93
A38: %,V10740000 | B38: Cloud CWIP-Beg Balance | C38: 10740000 | D38: 43514.5 | F38: 0 | H38: 0
A39: %,V10740001 | B39: Cloud CWIP-Additions | C39: 10740001 | D39: -24546.6 | F39: -24546.6 | H39: -24546.6
A40: %,V10740003 | B40: Cloud CWIP-Oth Changes | C40: 10740003 | D40: 28139.06 | F40: 28139.06 | H40: 28139.06
A41: %,FACCOUNT,TNI_ACCOUNT_FERC,XBYYYYY01,NCWIP_FERC | B41: CWIP | D41: 19129179.72 | F41: 970569.85 | H41: 970569.85
B43: Total Utility Plant | D43: =D20+D25+D26+D27+D28+D29+D32+D34+D41 -> 677927648.6 | F43: =F20+F25+F26+F27+F28+F29+F32+F34+F41 -> 4507460.63 | H43: =H20+H25+H26+H27+H28+H29+H32+H34+H41 -> 4507460.63
A45: %,V10800000 | B45: Accum Deprec Plant -Beg Bal | C45: 10800000 | D45: -167156914.3 | F45: 0 | H45: 0
A46: %,V10800001 | B46: Accum Deprec Plant-Additions | C46: 10800001 | D46: -1358535.25 | F46: -1358535.25 | H46: -1358535.25
A47: %,V10800002 | B47: Accum Deprec Plant-Retiremnt | C47: 10800002 | D47: 394674.48 | F47: 394674.48 | H47: 394674.48
A48: %,V10800003 | B48: Accum Deprec Plant-Other Chg | C48: 10800003 | D48: 687460.39 | F48: 687460.39 | H48: 687460.39
A49: %,V10800010 | B49: Retirement WIP-Beg Bal | C49: 10800010 | D49: 711717.34 | F49: 0 | H49: 0
A50: %,V10800011 | B50: Retirement WIP-Additions | C50: 10800011 | D50: 566200.02 | F50: 566200.02 | H50: 566200.02
A51: %,V10800013 | B51: Retirement WIP-Other Changes | C51: 10800013 | D51: -693981.39 | F51: -693981.39 | H51: -693981.39
A52: %,V10800100 | B52: Accum Deprec Cap Lease-Beg Bal | C52: 10800100 | D52: -185123.97 | F52: 0 | H52: 0
A53: %,V10800101 | B53: Accum Deprec Cap Lease-Add | C53: 10800101 | D53: -3305.79 | F53: -3305.79 | H53: -3305.79
A54: %,FACCOUNT,TNI_ACCOUNT_FERC,XBYYYYY01,NACCUM_DEPR_PLANT | B54: Accum Prov - Depreciation | D54: -167037808.4 | F54: -407487.54 | H54: -407487.54
A55: %,V11100000 | B55: Accum Amortization-Beg Bal | C55: 11100000 | D55: -6439440.05 | F55: 0 | H55: 0
A56: %,V11100001 | B56: Accum Amortization-Additions | C56: 11100001 | D56: -179731.7 | F56: -179731.7 | H56: -179731.7
A57: %,V11100002 | B57: Accum Amortization-Retiremnt | C57: 11100002 | D57: 138891.85 | F57: 138891.85 | H57: 138891.85
A58: %,V11140000 | B58: Cloud Accum Amortiz-BegBal | C58: 11140000 | D58: -297630.53 | F58: 0 | H58: 0
A59: %,V11140001 | B59: Cloud Accum Amortiz-Additions | C59: 11140001 | D59: -28331.29 | F59: -28331.29 | H59: -28331.29
A60: %,FACCOUNT,TNI_ACCOUNT_FERC,XBYYYYY01,NACCUM_AMORT_PLANT | B60: Accum_Amort_Plant | D60: -6806241.72 | F60: -69171.14 | H60: -69171.14
A61: %,V11501000 | B61: Tang Acc Amort Plnt Acq Adj-BB | C61: 11501000 | D61: 157398.63 | F61: 0 | H61: 0
A62: %,V11501010 | B62: Tang Acc Amor Plnt Acq Adj-ADD | C62: 11501010 | D62: 2158.59 | F62: 2158.59 | H62: 2158.59
A63: %,FACCOUNT,TNI_ACCOUNT_FERC,XBYYYYY01,NACCUM_ACQ_ADJ_FERC | B63: Accum Amort Plant Acq_Adj | D63: 159557.22 | F63: 2158.59 | H63: 2158.59
B65: Accum Prov - Amort and Depr | D65: =D54+D60+D63 -> -173684492.9 | F65: =F54+F60+F63 -> -474500.09 | H65: =H54+H60+H63 -> -474500.09
A66: xx | B66: Net Utility Plant | D66: =D43+D65 -> 504243155.7 | F66: =F43+F65 -> 4032960.54 | H66: =H43+H65 -> 4032960.54
A67: %,FACCOUNT,TNI_ACCOUNT_FERC,XBYYYYY01,NUTIL_PLANT_ADJ | B67: Other Plant Adjustments | D67: 0 | F67: 0 | H67: 0
A69: %,FACCOUNT,TNI_ACCOUNT_FERC,XBYYYYY01,NGAS_STORED_BASE | B69: Gas Store Underground | D69: 0 | F69: 0 | H69: 0
A70: %,FACCOUNT,TNI_ACCOUNT_FERC,XBYYYYY01,NGAS_SYS_BAL | B70: System Balancing Gas | D70: 0 | F70: 0 | H70: 0
A72: xx | B72: Gas Store Undergrd_SysBal | D72: =D69+D70 -> 0 | F72: =F69+F70 -> 0 | H72: =H69+H70 -> 0
A73: xx | B73: Total Utility Plant | D73: =D66+D67+D72 -> 504243155.7 | F73: =F66+F67+F72 -> 4032960.54 | H73: =H66+H67+H72 -> 4032960.54
B75: Other Property and Investments
A76: %,FACCOUNT,TNI_ACCOUNT_FERC,XBYYYYY01,NNONUTILITY_PROPERTY | B76: Non Utility Other Property | D76: 0 | F76: 0 | H76: 0
A77: %,FACCOUNT,TNI_ACCOUNT_FERC,XBYYYYY01,NACC_DEPR_OTH_PLANT | B77: Accum Prov - Deprec Oth Plant | D77: 0 | F77: 0 | H77: 0
A78: %,FACCOUNT,TNI_ACCOUNT_FERC,XBYYYYY01,NUNCONSOL_AFFIL_FERC | B78: Investments in Associated Cos | D78: 0 | F78: 0 | H78: 0
A79: %,V12310000 | B79: Inv Sub Co-Common Stock | C79: 12310000 | D79: 174261 | F79: 0 | H79: 0
A80: %,V12310001 | B80: Inv Sub Co-PL | C80: 12310001 | D80: 566280.36 | F80: 107.25 | H80: 107.25
A81: %,FACCOUNT,TNI_ACCOUNT_FERC,XBYYYYY01,NCONSOL_AFFIL_FERC | B81: Investments in Subsidiary Cos | D81: 740541.36 | F81: 107.25 | H81: 107.25
A82: %,FACCOUNT,TNI_ACCOUNT_FERC,XBYYYYY01,NOTHER_INVESTMENTS | B82: Other Investments | D82: 0 | F82: 0 | H82: 0
A83: %,FACCOUNT,TNI_ACCOUNT_FERC,XBYYYYY01,NSINK_FUND | B83: Sinking Fund | D83: 0 | F83: 0 | H83: 0
A84: %,V12800000 | B84: Funds Held in Trust | C84: 12800000 | D84: 2498308.47 | F84: 28794.67 | H84: 28794.67
A85: %,FACCOUNT,TNI_ACCOUNT_FERC,XBYYYYY01,NOTHER_FUND_SPEC | B85: Other Special Funds | D85: 2498308.47 | F85: 28794.67 | H85: 28794.67
A86: xx | B86: Total Other Property and Investments | D86: =D76+D77+D78+D81+D82+D83+D85 -> 3238849.83 | F86: =F76+F77+F78+F81+F82+F83+F85 -> 28901.92 | H86: =H76+H77+H78+H81+H82+H83+H85 -> 28901.92
B88: Current and Accrued Assets
A89: %,V13100000 | B89: Cash | C89: 13100000 | D89: 640294.61 | F89: 350845.2 | H89: 350845.2
A90: %,FACCOUNT,TNI_ACCOUNT_FERC,XBYYYYY01,NCASH_FERC | B90: Cash | D90: 640294.61 | F90: 350845.2 | H90: 350845.2
A91: %,FACCOUNT,TNI_ACCOUNT_FERC,XBYYYYY01,NSPECIAL_DEPOSITS | B91: Special Deposits | D91: 0 | F91: 0 | H91: 0
A92: %,V13500000 | B92: Working Funds | C92: 13500000 | D92: 212.64 | F92: 0 | H92: 0
A93: %,FACCOUNT,TNI_ACCOUNT_FERC,XBYYYYY01,NWORKING_FUNDS | B93: Working Funds | D93: 212.64 | F93: 0 | H93: 0
A94: %,FACCOUNT,TNI_ACCOUNT_FERC,XBYYYYY01,NTEMP_CASH_FERC | B94: Temp Cash Investments | D94: 0 | F94: 0 | H94: 0
A95: %,FACCOUNT,TNI_ACCOUNT_FERC,XBYYYYY01,NNOTE_RECEIVABLE | B95: Notes Receivable | D95: 0 | F95: 0 | H95: 0
A96: %,V14200160 | B96: Cust AR-Credit Balances | C96: 14200160 | D96: 5843989.47 | F96: -2763634.39 | H96: -2763634.39
A97: %,V14200220 | B97: Cust AR-CAB | C97: 14200220 | D97: 8121779.14 | F97: 5539111.75 | H97: 5539111.75
A98: %,V14200250 | B98: Cust AR-GMB | C98: 14200250 | D98: 378405.65 | F98: 85750.82 | H98: 85750.82
A99: %,V14200260 | B99: Cust AR-Cust Premise Work | C99: 14200260 | D99: 140810.79 | F99: -7671.83 | H99: -7671.83
A100: %,FACCOUNT,TNI_ACCOUNT_FERC,XBYYYYY01,NCUSTOMER_AR_FERC | B100: Customer Accounts Receivable | D100: 14484985.05 | F100: 2853556.35 | H100: 2853556.35
A101: %,V14300001 | B101: Misc Accts Rec-Other | C101: 14300001 | D101: 1729313.4 | F101: 61.47 | H101: 61.47
A102: %,V14300018 | B102: Other AR-Billed OSS | C102: 14300018 | D102: 574414.99 | F102: 516940 | H102: 516940
A103: %,V14300220 | B103: Other AR-GMB Estimate | C103: 14300220 | D103: 13155.99 | F103: 2756.95 | H103: 2756.95
A104: %,V14300240 | B104: Other AR-GTS | C104: 14300240 | D104: 1579479.16 | F104: 264893.42 | H104: 264893.42
A105: %,V14300270 | B105: Other AR-Retail Service | C105: 14300270 | D105: 17072.24 | F105: 3201.34 | H105: 3201.34
A106: %,V14300290 | B106: Other AR-CNR | C106: 14300290 | D106: 560162.46 | F106: 57098.33 | H106: 57098.33
A107: %,V14300330 | B107: Other AR Choice Trans-Columbia | C107: 14300330 | D107: -998711.59 | F107: 820342.63 | H107: 820342.63
A108: %,V14300350 | B108: Other AR Choice Trans-Purchase | C108: 14300350 | D108: 1725522.38 | F108: 441534.57 | H108: 441534.57
A109: %,V14300395 | B109: Other AR-CPG Non-Transit Srvcs | C109: 14300395 | D109: 51861.36 | F109: 1497.34 | H109: 1497.34
A110: %,V14311111 | B110: Other AR-Curr-MA Project | C110: 14311111 | D110: 4686.29 | F110: 0 | H110: 0
A111: %,FACCOUNT,TNI_ACCOUNT_FERC,XBYYYYY01,NOTHER_AR_UNAFFIL | B111: Other Accounts Receivable | D111: 5256956.68 | F111: 2108326.05 | H111: 2108326.05
A112: %,V14400000 | B112: Acc Prov for Uncol-Beg Bal | C112: 14400000 | D112: -407748.76 | F112: 0 | H112: 0
A113: %,V14400100 | B113: Acc Prov for Uncol-Reserve | C113: 14400100 | D113: -46686.63 | F113: -46686.63 | H113: -46686.63
A114: %,V14400150 | B114: Acc Prov for Uncol-Charge-Offs | C114: 14400150 | D114: 33814.97 | F114: 33814.97 | H114: 33814.97
A115: %,V14400200 | B115: Acc Prov for Uncol-Recoveries | C115: 14400200 | D115: -44395.6 | F115: -44395.6 | H115: -44395.6
A116: %,V14400600 | B116: Accm Prov Uncoll-Unbilled | C116: 14400600 | D116: -169663.57 | F116: -28134.8 | H116: -28134.8
A117: %,V14400700 | B117: Accm Prov Uncoll-Misc | C117: 14400700 | D117: -401312.87 | F117: 0 | H117: 0
A118: %,FACCOUNT,TNI_ACCOUNT_FERC,XBYYYYY01,NRESERVE_AR | B118: Accum Prov Uncollectible - Cr | D118: -1035992.46 | F118: -85402.06 | H118: -85402.06
A119: %,FACCOUNT,TNI_ACCOUNT_FERC,XBYYYYY01,NNOTE_REC_AFFIL | B119: NR from Associated Cos | D119: 0 | F119: 0 | H119: 0
A120: %,V14600000 | B120: AR Assoc Co-Mech | C120: 14600000 | D120: 7985.74 | F120: -33298.13 | H120: -33298.13
A121: %,V14600002 | B121: AR Assoc Co-Misc | C121: 14600002 | D121: 18930 | F121: 0 | H121: 0
A122: %,V14620000 | B122: Foreign Cash | C122: 14620000 | D122: -604229.32 | F122: -9042.35 | H122: -9042.35
A123: %,FACCOUNT,TNI_ACCOUNT_FERC,XBYYYYY01,NAR_AFFILIATE | B123: AR from Associated Cos | D123: -577313.58 | F123: -42340.48 | H123: -42340.48
A124: %,FACCOUNT,TNI_ACCOUNT_FERC,XBYYYYY01,NFUEL_STOCK | B124: Fuel Stock | D124: 0 | F124: 0 | H124: 0
A125: %,FACCOUNT,TNI_ACCOUNT_FERC,XBYYYYY01,NFUEL_STK_EXP_UNDISTR | B125: Fuel Stock Expenses Undistrib | D125: 0 | F125: 0 | H125: 0
A126: %,FACCOUNT,TNI_ACCOUNT_FERC,XBYYYYY01,NRESIDUALS | B126: Residuals & Extracted Products | D126: 0 | F126: 0 | H126: 0
A127: %,V15400000 | B127: Plant Materials-Oth Supplies | C127: 15400000 | D127: 311668.85 | F127: 352.19 | H127: 352.19
A128: %,FACCOUNT,TNI_ACCOUNT_FERC,XBYYYYY01,NMATERIALS_AND_SUPPLY | B128: Plant Materials & Supplies | D128: 311668.85 | F128: 352.19 | H128: 352.19
A129: %,FACCOUNT,TNI_ACCOUNT_FERC,XBYYYYY01,NMERCHANDISE | B129: Merchandise | D129: 0 | F129: 0 | H129: 0
A130: %,FACCOUNT,TNI_ACCOUNT_FERC,XBYYYYY01,NALLOWANCES | B130: Allowances | D130: 0 | F130: 0 | H130: 0
A131: %,FACCOUNT,TNI_ACCOUNT_FERC,XBYYYYY01,NSTORES_EXP | B131: Stores Exp Undistributed | D131: 0 | F131: 0 | H131: 0
A132: %,V16411000 | B132: Gas Stored-Current-LIFO | C132: 16411000 | D132: 12834966.14 | F132: -29111303.36 | H132: -29111303.36
A133: %,FACCOUNT,TNI_ACCOUNT_FERC,XBYYYYY01,NGAS_STORED_UNDRGRND | B133: Gas Stored Underground - Curr | D133: 12834966.14 | F133: -29111303.36 | H133: -29111303.36
A134: %,FACCOUNT,TNI_ACCOUNT_FERC,XBYYYYY01,NLNG_STORED_HELD | B134: LNG Stored & Held for Process | D134: 0 | F134: 0 | H134: 0
A135: %,V16500000 | B135: Other Misc Prepayments | C135: 16500000 | D135: -56323.38 | F135: -1776.12 | H135: -1776.12
A136: %,V16500010 | B136: Prepaid-Medical LTD | C136: 16500010 | D136: 2346.44 | F136: -799.2 | H136: -799.2
A137: %,V16500030 | B137: Prepaid Payroll | C137: 16500030 | D137: 0 | F137: -44940.59 | H137: -44940.59
A138: %,V16503600 | B138: Prepaid Taxes - Other | C138: 16503600 | D138: 102541.66 | F138: -22634.77 | H138: -22634.77
A139: %,V16520000 | B139: Prepaid-Insurance Affiliate | C139: 16520000 | D139: 439166.99 | F139: 104456.27 | H139: 104456.27
A140: %,V16521000 | B140: Prepaid-Insurance NonAffil | C140: 16521000 | D140: 916858.42 | F140: 24888.88 | H140: 24888.88
A141: %,V16591000 | B141: Prepaid-NC Cloud Cost Incurred | C141: 16591000 | D141: 0.09 | F141: -0.02 | H141: -0.02
A142: %,FACCOUNT,TNI_ACCOUNT_FERC,XBYYYYY01,NPREPAYMENTS_FERC | B142: Prepayments | D142: 1404590.22 | F142: 59194.45 | H142: 59194.45
A143: %,FACCOUNT,TNI_ACCOUNT_FERC,XBYYYYY01,NINT_DIV_REC | B143: Interest & Dividends Rec | D143: 0 | F143: 0 | H143: 0
A144: %,FACCOUNT,TNI_ACCOUNT_FERC,XBYYYYY01,NRENT_REC | B144: Rent Receivable | D144: 0 | F144: 0 | H144: 0
A145: %,V17300000 | B145: AR Accrued Revenues | C145: 17300000 | D145: 21777107.68 | F145: 6860342.22 | H145: 6860342.22
A146: %,V17302000 | B146: AR Accrd Rev Unbill Exch Gas | C146: 17302000 | D146: 96925.5 | F146: 3347.44 | H146: 3347.44
A147: %,FACCOUNT,TNI_ACCOUNT_FERC,XBYYYYY01,NACCRUED_REVENUES | B147: Accrued Utility Revenues | D147: 21874033.18 | F147: 6863689.66 | H147: 6863689.66
A148: %,V17401000 | B148: Misc Assets-Exch Gas Receiv | C148: 17401000 | D148: 4733882.44 | F148: 763312.76 | H148: 763312.76
A149: %,V17403200 | B149: Misc Assets-Property Tax | C149: 17403200 | D149: 6387375 | F149: -565670.42 | H149: -565670.42
A150: %,V17406000 | B150: Misc Assets-Storage | C150: 17406000 | D150: 18139424.14 | F150: 18139424.14 | H150: 18139424.14
A151: %,FACCOUNT,TNI_ACCOUNT_FERC,XBYYYYY01,NOTHER_CURRENT_ASSETS | B151: Misc Current & Accrued Assets | D151: 29260681.58 | F151: 18337066.48 | H151: 18337066.48
A152: %,FACCOUNT,TNI_ACCOUNT_FERC,XBYYYYY01,NDERIV_ASSET | B152: Derivative Instrument Assets | D152: 0 | F152: 0 | H152: 0
A153: %,FACCOUNT,TNI_ACCOUNT_FERC,XBYYYYY01,NDERIV_HEDGE | B153: Derivative Assets - Hedging | D153: 0 | F153: 0 | H153: 0
A154: xx | B154: Total Current and Accrued Assets | D154: =D90+D91+D93+D94+D95+D100+D111+D118+D119+D123+D124+D125+D126+D128+D129+D130+D131+D133+D134+D142+D143+D144+D147+D151+D152+D153 -> 84455082.91 | F154: =F90+F91+F93+F94+F95+F100+F111+F118+F119+F123+F124+F125+F126+F128+F129+F130+F131+F133+F134+F142+F143+F144+F147+F151+F152+F153 -> 1333984.48 | H154: =H90+H91+H93+H94+H95+H100+H111+H118+H119+H123+H124+H125+H126+H128+H129+H130+H131+H133+H134+H142+H143+H144+H147+H151+H152+H153 -> 1333984.48
B156: Deferred Debits
A157: %,FACCOUNT,TNI_ACCOUNT_FERC,XBYYYYY01,NUNAMORTIZED_DEBT_EXP | B157: Unamortized Debt Expense | D157: 0 | F157: 0 | H157: 0
A158: %,FACCOUNT,TNI_ACCOUNT_FERC,XBYYYYY01,NEXTRAORD_PROP_LOSS | B158: Extraordinary Property Loss | D158: 0 | F158: 0 | H158: 0
A159: %,V18230200 | B159: Reg Asset Cr Bal Transf | C159: 18230200 | D159: 470921.24 | F159: 470921.24 | H159: 470921.24
A160: %,V18230250 | B160: Reg Asset Rate Case Current | C160: 18230250 | D160: 185185.44 | F160: 0 | H160: 0
A161: %,V18230350 | B161: Reg Asset DSM Expenses-GAS | C161: 18230350 | D161: -6590 | F161: -13180 | H161: -13180
A162: %,V18230440 | B162: Reg Asset GTI Funding | C162: 18230440 | D162: 85803.85 | F162: -36578.22 | H162: -36578.22
A163: %,V18230450 | B163: Reg Asset EAP | C163: 18230450 | D163: -464331.24 | F163: -502444.71 | H163: -502444.71
A164: %,V18233420 | B164: Reg Asset-Prf Base Rt Adj PBRA | C164: 18233420 | D164: 1345161.27 | F164: -251807.26 | H164: -251807.26
A165: %,V18233560 | B165: Reg Asset COVID Costs CURRENT | C165: 18233560 | D165: 11318.04 | F165: 0 | H165: 0
A166: %,V18235114 | B166: NC Reg Asset FAS 158 OPEB | C166: 18235114 | D166: 977385.59 | F166: -10769.41 | H166: -10769.41
A167: %,V18235115 | B167: NC Reg Asset FAS158 Pension | C167: 18235115 | D167: 3072150.75 | F167: -10386.25 | H167: -10386.25
A168: %,V18235440 | B168: NC Reg Asset Rate Case Non-Cur | C168: 18235440 | D168: 357997.96 | F168: -12372.82 | H168: -12372.82
A169: %,V18235450 | B169: NC Reg Asset Pen NQulfd FAS158 | C169: 18235450 | D169: 7927 | F169: 0 | H169: 0
A170: %,V18235506 | B170: NC Reg Asset Def Depr Cap Lse | C170: 18235506 | D170: 19907.05 | F170: 46.48 | H170: 46.48
A171: %,V18235530 | B171: NC Reg Asset COVID Costs | C171: 18235530 | D171: 21692.9 | F171: -943.05 | H171: -943.05
A172: %,FACCOUNT,TNI_ACCOUNT_FERC,XBYYYYY01,NOTHER_REG_ASSET | B172: Other Regulatory Asset | D172: 6084529.85 | F172: -367514 | H172: -367514
A174: %,V18320000 | B174: Oth Prelim Survey B Bal | C174: 18320000 | D174: 1232417.64 | F174: 0 | H174: 0
A175: %,V18320001 | B175: Oth Prelim Survey Additions | C175: 18320001 | D175: -18602.84 | F175: -18602.84 | H175: -18602.84
A176: %,NPRELIM_SURVEY_OTH | B176: Preliminary Survey Other | D176: 1213814.8 | F176: -18602.84 | H176: -18602.84
A177: %,FACCOUNT,TNI_ACCOUNT_FERC,XBYYYYY01,NPRELIM_SURVEY | B177: Preliminary Surveys | D177: 1213814.8 | F177: -18602.84 | H177: -18602.84
A179: %,V18400200 | B179: Car Clearing | C179: 18400200 | D179: 0.21 | F179: 0.21 | H179: 0.21
A180: %,V18400250 | B180: Truck Clearing | C180: 18400250 | D180: 0.4 | F180: 0.4 | H180: 0.4
A181: %,V18400400 | B181: General Tool Clearing | C181: 18400400 | D181: 0.02 | F181: 0.02 | H181: 0.02
A182: %,NCLEARING_OTHER | B182: Clearing Accounts Other | D182: 0.63 | F182: 0.63 | H182: 0.63
A183: %,NCLEARING_FLEET | B183: Clearing Fleet | D183: 0 | F183: 0 | H183: 0
A184: %,NCLEARING_GENERAL | B184: Clearing Accounts General | D184: 0 | F184: 0 | H184: 0
A185: %,FACCOUNT,TNI_ACCOUNT_FERC,XBYYYYY01,NCLEARING_ACCOUNTS | B185: Clearing Accounts | D185: 0.63 | F185: 0.63 | H185: 0.63
A187: %,V18600400 | B187: DefDebitCusAdv_DEPPST12-31-99 | C187: 18600400 | D187: 2655255.35 | F187: -54223.39 | H187: -54223.39
A188: %,NDEF_DEB_MISC_OTH | B188: Def Deb Miscellaneous Other | D188: 2655255.35 | F188: -54223.39 | H188: -54223.39
A189: %,V18600200 | B189: Def Debit-Maint and Jobng WIP | C189: 18600200 | D189: 12900.33 | F189: 1950 | H189: 1950
A190: %,NDEF_DEB_MNT_JOB_WIP | B190: Maintenance and Jobbing WIP | D190: 12900.33 | F190: 1950 | H190: 1950
A191: %,FACCOUNT,TNI_ACCOUNT_FERC,XBYYYYY01,NDEFERRED_DEBITS_MISC | B191: Miscellaneous Deferred Debits | D191: 2668155.68 | F191: -52273.39 | H191: -52273.39
A192: %,FACCOUNT,TNI_ACCOUNT_FERC,XBYYYYY01,NRESEARCH_&_DEV_EXP | B192: Research & Development Expense | D192: 0 | F192: 0 | H192: 0
A193: %,FACCOUNT,TNI_ACCOUNT_FERC,XBYYYYY01,NREACQ_DEBT_LOSS | B193: Unamort Loss Reacquired Debt | D193: 0 | F193: 0 | H193: 0
A194: %,V19005000 | B194: ADIT-Other-Noncurr-Fed | C194: 19005000 | D194: 7439209 | F194: 9125 | H194: 9125
A195: %,V19005100 | B195: ADIT Reg Liability NC - Fed | C195: 19005100 | D195: 15662 | F195: -550 | H195: -550
A196: %,V19005400 | B196: ADIT FIT Gross Up | C196: 19005400 | D196: 6614133 | F196: -24540 | H196: -24540
A197: %,V19006000 | B197: ADIT-Other-Noncurr-State | C197: 19006000 | D197: 761288 | F197: -105791 | H197: -105791
A198: %,V19006100 | B198: ADIT Reg Liability NC - State | C198: 19006100 | D198: 3554 | F198: 0 | H198: 0
A199: %,V19006400 | B199: ADIT SIT Gross Up | C199: 19006400 | D199: 2240482 | F199: -2443 | H199: -2443
A200: %,FACCOUNT,TNI_ACCOUNT_FERC,XBYYYYY01,NACCUM_DEFD_INC_TAX | B200: Accum Deferred Income Taxes | D200: 17074328 | F200: -124199 | H200: -124199
A201: %,V19100100 | B201: Unrecov Purchs Gas Costs-Com | C201: 19100100 | D201: 6679112.72 | F201: -484457.31 | H201: -484457.31
A202: %,V19100400 | B202: End User Exchange | C202: 19100400 | D202: 122031.27 | F202: -1926350.95 | H202: -1926350.95
A203: %,V19100800 | B203: Unrecov Purch Gas Cst-Unbill | C203: 19100800 | D203: -10692207.89 | F203: -4703496.16 | H203: -4703496.16
A204: %,FACCOUNT,TNI_ACCOUNT_FERC,XBYYYYY01,NPURCH_GAS_COST_UNREC | B204: Unrecovered Purchase Gas Costs | D204: -3891063.9 | F204: -7114304.42 | H204: -7114304.42
A205: xx | B205: Total Deferred Debits | D205: =D157+D158+D172+D177+D185+D191+D192+D193+D200+D204 -> 23149765.06 | F205: =F157+F158+F172+F177+F185+F191+F192+F193+F200+F204 -> -7676893.02 | H205: =H157+H158+H172+H177+H185+H191+H192+H193+H200+H204 -> -7676893.02
B207: Total Assets and Other Debits | D207: =D73+D86+D154+D205 -> 615086853.5 | F207: =F73+F86+F154+F205 -> -2281046.08 | H207: =H73+H86+H154+H205 -> -2281046.08
B210: CAPITALIZATION and LIABILITIES
B212: Proprietary Capital
A213: %,V20100000 | B213: Common Stock-Beg Balance | C213: 20100000 | D213: 23806200 | F213: 0 | H213: 0
A214: %,R,FACCOUNT,TNI_ACCOUNT_FERC,XBYYYYY01,NCOMMON_STOCK_FERC | B214: Common Stock FERC | D214: 23806200 | F214: 0 | H214: 0
A215: %,R,FACCOUNT,TNI_ACCOUNT_FERC,XBYYYYY01,NPREFERRED_STOCK_FERC | B215: Preferred Stock Issued | D215: 0 | F215: 0 | H215: 0
A217: %,R,FACCOUNT,TNI_ACCOUNT_FERC,XBYYYYY01,NCOMMON_STOCK_SUBSCR | B217: Common Stock Subscribed | D217: 0 | F217: 0 | H217: 0
A218: %,R,FACCOUNT,TNI_ACCOUNT_FERC,XBYYYYY01,NPREF_STOCK_SUBSCR | B218: Preferred Stock Subscribed | D218: 0 | F218: 0 | H218: 0
A220: xx | B220: Capital Stock Subscribed | D220: =D217+D218 -> 0 | F220: =F217+F218 -> 0 | H220: =H217+H218 -> 0
A221: %,R,FACCOUNT,TNI_ACCOUNT_FERC,XBYYYYY01,NCAPITAL_STOCK_PREM | B221: Premium on Capital Stock | D221: 0 | F221: 0 | H221: 0
A223: %,R,FACCOUNT,TNI_ACCOUNT_FERC,XBYYYYY01,NAPIC_DONATIONS | B223: Donations from Stockholders | D223: 0 | F223: 0 | H223: 0
... 157 more rows

Sheet Feb22
A1: %,LACTUALS | B1: %,ATT,FDESCR,UDESCR | C1: %,AFT,FACCOUNT | D1: %,LACTUALS,UPOSTED_TRAN_AMT,SBAL,FBOOK_CODE,VR | F1: %,LACTUALS,UPOSTED_TRAN_AMT,SPER,FBOOK_CODE,VR | H1: %,LACTUALS,UPOSTED_TRAN_AMT,SYTD,FBOOK_CODE,VR
B3: Columbia Gas of Kentucky Inc
B4: Balance Sheet-FERC
B5: Regulatory View - FERC Account
B6: As of February 28, 2022
F8: Change from | H8: Change from
D9: Current Month | F9: Prior Month | H9: Prior Year-End
B10: Assets and Other Debits
B13: Utility Plant
A15: %,V10100000 | B15: Plant In Service-Beg Bal | C15: 10100000 | D15: 623970195.9 | F15: 0 | H15: 0
A16: %,V10100001 | B16: Plant In Service-Additions | C16: 10100001 | D16: 5103587.97 | F16: 1808095.41 | H16: 5103587.97
A17: %,V10100002 | B17: Plant In Service-Retirements | C17: 10100002 | D17: -1034600.94 | F17: -501034.61 | H17: -1034600.94
A18: %,V10140000 | B18: Cloud Plant In Svc-Beg Bal | C18: 10140000 | D18: 1654282.04 | F18: 0 | H18: 0
A19: %,V10140001 | B19: Cloud Plant in Svc-Additions | C19: 10140001 | D19: -17848.24 | F19: 10290.82 | H19: -17848.24
A20: %,FACCOUNT,TNI_ACCOUNT_FERC,XBYYYYY01,NPLANT_IN_SERV_FERC | B20: Plant in Service | D20: 629675616.7 | F20: 1317351.62 | H20: 4051138.79
A21: %,V10110000 | B21: Capital Leases-Beg Bal | C21: 10110000 | D21: 400000 | F21: 0 | H21: 0
A22: %,V10112000 | B22: Right of Use Asset-Beg Bal | C22: 10112000 | D22: 316999.8 | F22: 0 | H22: 0
A23: %,V10112001 | B23: Right of Use Asset-Additions | C23: 10112001 | D23: 14738.62 | F23: 14738.62 | H23: 14738.62
A24: %,V10112002 | B24: Right of Use Asset-Retirements | C24: 10112002 | D24: -66288.01 | F24: -41525.56 | H24: -66288.01
A25: %,V10112004 | B25: Right of Use Asset-Amort | C25: 10112004 | D25: 10173.8 | F25: 13089.11 | H25: 10173.8
A26: %,FACCOUNT,TNI_ACCOUNT_FERC,XBYYYYY01,NPLANT_CAP_LEASE | B26: Property Under Capital Lease | D26: 675624.21 | F26: -13697.83 | H26: -41375.59
A27: %,FACCOUNT,TNI_ACCOUNT_FERC,XBYYYYY01,NPLANT_PURCH_SOLD | B27: Plant Purchased or Sold | D27: 0 | F27: 0 | H27: 0
A28: %,FACCOUNT,TNI_ACCOUNT_FERC,XBYYYYY01,NPLANT_EXPERIMENT | B28: Experimental Plant Unclass | D28: 0 | F28: 0 | H28: 0
A29: %,FACCOUNT,TNI_ACCOUNT_FERC,XBYYYYY01,NPLANT_GAS_LEASE_OTH | B29: Gas Plant Leased to Others | D29: 0 | F29: 0 | H29: 0
A30: %,FACCOUNT,TNI_ACCOUNT_FERC,XBYYYYY01,NPLANT_FUTURE_USE | B30: Plant Held for Future Use | D30: 0 | F30: 0 | H30: 0
A31: %,V10600000 | B31: Comp Constr Not Class Beg Bal | C31: 10600000 | D31: 29697192.39 | F31: 0 | H31: 0
A32: %,V10600003 | B32: Comp Const not Class Other | C32: 10600003 | D32: 1681827.92 | F32: 851046.55 | H32: 1681827.92
A33: %,FACCOUNT,TNI_ACCOUNT_FERC,XBYYYYY01,NPLANT_CONST_UNCLASS | B33: Completed Const Not Classified | D33: 31379020.31 | F33: 851046.55 | H33: 1681827.92
A34: %,V11401000 | B34: Tang Plant Acq Adj-BegBal | C34: 11401000 | D34: -777092 | F34: 0 | H34: 0
A35: %,FACCOUNT,TNI_ACCOUNT_FERC,XBYYYYY01,NPLANT_ACQ_ADJ_FERC | B35: Plant Acquisitions_Adjustments | D35: -777092 | F35: 0 | H35: 0
A36: %,V10700000 | B36: CWIP-Beg Balance | C36: 10700000 | D36: 18115095.37 | F36: 0 | H36: 0
A37: %,V10700001 | B37: CWIP-Additions | C37: 10700001 | D37: 10812244.92 | F37: 5718993.6 | H37: 10812244.92
A38: %,V10700003 | B38: CWIP-Other Changes | C38: 10700003 | D38: -6785415.89 | F38: -2659141.96 | H38: -6785415.89
A39: %,V10740000 | B39: Cloud CWIP-Beg Balance | C39: 10740000 | D39: 43514.5 | F39: 0 | H39: 0
A40: %,V10740001 | B40: Cloud CWIP-Additions | C40: 10740001 | D40: -12365.78 | F40: 12180.82 | H40: -12365.78
A41: %,V10740003 | B41: Cloud CWIP-Oth Changes | C41: 10740003 | D41: 17848.24 | F41: -10290.82 | H41: 17848.24
A42: %,FACCOUNT,TNI_ACCOUNT_FERC,XBYYYYY01,NCWIP_FERC | B42: CWIP | D42: 22190921.36 | F42: 3061741.64 | H42: 4032311.49
B44: Total Utility Plant | D44: =D20+D26+D27+D28+D29+D30+D33+D35+D42 -> 683144090.6 | F44: =F20+F26+F27+F28+F29+F30+F33+F35+F42 -> 5216441.98 | H44: =H20+H26+H27+H28+H29+H30+H33+H35+H42 -> 9723902.61
A46: %,V10800000 | B46: Accum Deprec Plant -Beg Bal | C46: 10800000 | D46: -167156914.3 | F46: 0 | H46: 0
A47: %,V10800001 | B47: Accum Deprec Plant-Additions | C47: 10800001 | D47: -2740047.02 | F47: -1381511.77 | H47: -2740047.02
A48: %,V10800002 | B48: Accum Deprec Plant-Retiremnt | C48: 10800002 | D48: 854162.31 | F48: 459487.83 | H48: 854162.31
A49: %,V10800003 | B49: Accum Deprec Plant-Other Chg | C49: 10800003 | D49: 1281504.62 | F49: 594044.23 | H49: 1281504.62
A50: %,V10800010 | B50: Retirement WIP-Beg Bal | C50: 10800010 | D50: 711717.34 | F50: 0 | H50: 0
A51: %,V10800011 | B51: Retirement WIP-Additions | C51: 10800011 | D51: 1239864.08 | F51: 673664.06 | H51: 1239864.08
A52: %,V10800013 | B52: Retirement WIP-Other Changes | C52: 10800013 | D52: -1288586.42 | F52: -594605.03 | H52: -1288586.42
A53: %,V10800100 | B53: Accum Deprec Cap Lease-Beg Bal | C53: 10800100 | D53: -185123.97 | F53: 0 | H53: 0
A54: %,V10800101 | B54: Accum Deprec Cap Lease-Add | C54: 10800101 | D54: -6611.58 | F54: -3305.79 | H54: -6611.58
A55: %,FACCOUNT,TNI_ACCOUNT_FERC,XBYYYYY01,NACCUM_DEPR_PLANT | B55: Accum Prov - Depreciation | D55: -167290034.9 | F55: -252226.47 | H55: -659714.01
A56: %,V11100000 | B56: Accum Amortization-Beg Bal | C56: 11100000 | D56: -6439440.05 | F56: 0 | H56: 0
A57: %,V11100001 | B57: Accum Amortization-Additions | C57: 11100001 | D57: -364043.58 | F57: -184311.88 | H57: -364043.58
A58: %,V11100002 | B58: Accum Amortization-Retiremnt | C58: 11100002 | D58: 180438.63 | F58: 41546.78 | H58: 180438.63
A59: %,V11140000 | B59: Cloud Accum Amortiz-BegBal | C59: 11140000 | D59: -297630.53 | F59: 0 | H59: 0
A60: %,V11140001 | B60: Cloud Accum Amortiz-Additions | C60: 11140001 | D60: -56482.38 | F60: -28151.09 | H60: -56482.38
A61: %,FACCOUNT,TNI_ACCOUNT_FERC,XBYYYYY01,NACCUM_AMORT_PLANT | B61: Accum_Amort_Plant | D61: -6977157.91 | F61: -170916.19 | H61: -240087.33
A62: %,V11501000 | B62: Tang Acc Amort Plnt Acq Adj-BB | C62: 11501000 | D62: 157398.63 | F62: 0 | H62: 0
A63: %,V11501010 | B63: Tang Acc Amor Plnt Acq Adj-ADD | C63: 11501010 | D63: 4317.18 | F63: 2158.59 | H63: 4317.18
A64: %,FACCOUNT,TNI_ACCOUNT_FERC,XBYYYYY01,NACCUM_ACQ_ADJ_FERC | B64: Accum Amort Plant Acq_Adj | D64: 161715.81 | F64: 2158.59 | H64: 4317.18
B66: Accum Prov - Amort and Depr | D66: =D55+D61+D64 -> -174105477 | F66: =F55+F61+F64 -> -420984.07 | H66: =H55+H61+H64 -> -895484.16
A67: xx | B67: Net Utility Plant | D67: =D44+D66 -> 509038613.6 | F67: =F44+F66 -> 4795457.91 | H67: =H44+H66 -> 8828418.45
A68: %,FACCOUNT,TNI_ACCOUNT_FERC,XBYYYYY01,NUTIL_PLANT_ADJ | B68: Other Plant Adjustments | D68: 0 | F68: 0 | H68: 0
A70: %,FACCOUNT,TNI_ACCOUNT_FERC,XBYYYYY01,NGAS_STORED_BASE | B70: Gas Store Underground | D70: 0 | F70: 0 | H70: 0
A71: %,FACCOUNT,TNI_ACCOUNT_FERC,XBYYYYY01,NGAS_SYS_BAL | B71: System Balancing Gas | D71: 0 | F71: 0 | H71: 0
A73: xx | B73: Gas Store Undergrd_SysBal | D73: =D70+D71 -> 0 | F73: =F70+F71 -> 0 | H73: =H70+H71 -> 0
A74: xx | B74: Total Utility Plant | D74: =D67+D68+D73 -> 509038613.6 | F74: =F67+F68+F73 -> 4795457.91 | H74: =H67+H68+H73 -> 8828418.45
B76: Other Property and Investments
A77: %,FACCOUNT,TNI_ACCOUNT_FERC,XBYYYYY01,NNONUTILITY_PROPERTY | B77: Non Utility Other Property | D77: 0 | F77: 0 | H77: 0
A78: %,FACCOUNT,TNI_ACCOUNT_FERC,XBYYYYY01,NACC_DEPR_OTH_PLANT | B78: Accum Prov - Deprec Oth Plant | D78: 0 | F78: 0 | H78: 0
A79: %,FACCOUNT,TNI_ACCOUNT_FERC,XBYYYYY01,NUNCONSOL_AFFIL_FERC | B79: Investments in Associated Cos | D79: 0 | F79: 0 | H79: 0
A80: %,V12310000 | B80: Inv Sub Co-Common Stock | C80: 12310000 | D80: 174261 | F80: 0 | H80: 0
A81: %,V12310001 | B81: Inv Sub Co-PL | C81: 12310001 | D81: 566382.62 | F81: 102.26 | H81: 209.51
A82: %,FACCOUNT,TNI_ACCOUNT_FERC,XBYYYYY01,NCONSOL_AFFIL_FERC | B82: Investments in Subsidiary Cos | D82: 740643.62 | F82: 102.26 | H82: 209.51
A83: %,FACCOUNT,TNI_ACCOUNT_FERC,XBYYYYY01,NOTHER_INVESTMENTS | B83: Other Investments | D83: 0 | F83: 0 | H83: 0
A84: %,FACCOUNT,TNI_ACCOUNT_FERC,XBYYYYY01,NSINK_FUND | B84: Sinking Fund | D84: 0 | F84: 0 | H84: 0
A85: %,V12800000 | B85: Funds Held in Trust | C85: 12800000 | D85: 2527103.14 | F85: 28794.67 | H85: 57589.34
A86: %,FACCOUNT,TNI_ACCOUNT_FERC,XBYYYYY01,NOTHER_FUND_SPEC | B86: Other Special Funds | D86: 2527103.14 | F86: 28794.67 | H86: 57589.34
A87: xx | B87: Total Other Property and Investments | D87: =D77+D78+D79+D82+D83+D84+D86 -> 3267746.76 | F87: =F77+F78+F79+F82+F83+F84+F86 -> 28896.93 | H87: =H77+H78+H79+H82+H83+H84+H86 -> 57798.85
B89: Current and Accrued Assets
A90: %,V13100000 | B90: Cash | C90: 13100000 | D90: 870931.49 | F90: 230636.88 | H90: 581482.08
A91: %,FACCOUNT,TNI_ACCOUNT_FERC,XBYYYYY01,NCASH_FERC | B91: Cash | D91: 870931.49 | F91: 230636.88 | H91: 581482.08
A92: %,FACCOUNT,TNI_ACCOUNT_FERC,XBYYYYY01,NSPECIAL_DEPOSITS | B92: Special Deposits | D92: 0 | F92: 0 | H92: 0
A93: %,V13500000 | B93: Working Funds | C93: 13500000 | D93: 212.64 | F93: 0 | H93: 0
A94: %,FACCOUNT,TNI_ACCOUNT_FERC,XBYYYYY01,NWORKING_FUNDS | B94: Working Funds | D94: 212.64 | F94: 0 | H94: 0
A95: %,FACCOUNT,TNI_ACCOUNT_FERC,XBYYYYY01,NTEMP_CASH_FERC | B95: Temp Cash Investments | D95: 0 | F95: 0 | H95: 0
A96: %,FACCOUNT,TNI_ACCOUNT_FERC,XBYYYYY01,NNOTE_RECEIVABLE | B96: Notes Receivable | D96: 0 | F96: 0 | H96: 0
A97: %,V14200160 | B97: Cust AR-Credit Balances | C97: 14200160 | D97: 2461247.79 | F97: -3382741.68 | H97: -6146376.07
A98: %,V14200220 | B98: Cust AR-CAB | C98: 14200220 | D98: 14832224.76 | F98: 6710445.62 | H98: 12249557.37
A99: %,V14200250 | B99: Cust AR-GMB | C99: 14200250 | D99: 448003.83 | F99: 69598.18 | H99: 155349
A100: %,V14200260 | B100: Cust AR-Cust Premise Work | C100: 14200260 | D100: 144610.07 | F100: 3799.28 | H100: -3872.55
A101: %,FACCOUNT,TNI_ACCOUNT_FERC,XBYYYYY01,NCUSTOMER_AR_FERC | B101: Customer Accounts Receivable | D101: 17886086.45 | F101: 3401101.4 | H101: 6254657.75
A102: %,V14300001 | B102: Misc Accts Rec-Other | C102: 14300001 | D102: 1731337.03 | F102: 2023.63 | H102: 2085.1
A103: %,V14300018 | B103: Other AR-Billed OSS | C103: 14300018 | D103: 285796.24 | F103: -288618.75 | H103: 228321.25
A104: %,V14300220 | B104: Other AR-GMB Estimate | C104: 14300220 | D104: 10520.87 | F104: -2635.12 | H104: 121.83
A105: %,V14300240 | B105: Other AR-GTS | C105: 14300240 | D105: 1746062.78 | F105: 166583.62 | H105: 431477.04
A106: %,V14300270 | B106: Other AR-Retail Service | C106: 14300270 | D106: 18607.44 | F106: 1535.2 | H106: 4736.54
A107: %,V14300290 | B107: Other AR-CNR | C107: 14300290 | D107: 550539.82 | F107: -9622.64 | H107: 47475.69
A108: %,V14300330 | B108: Other AR Choice Trans-Columbia | C108: 14300330 | D108: -63607.52 | F108: 935104.07 | H108: 1755446.7
A109: %,V14300350 | B109: Other AR Choice Trans-Purchase | C109: 14300350 | D109: 2251811.72 | F109: 526289.34 | H109: 967823.91
A110: %,V14300395 | B110: Other AR-CPG Non-Transit Srvcs | C110: 14300395 | D110: 51861.36 | F110: 0 | H110: 1497.34
A111: %,V14311111 | B111: Other AR-Curr-MA Project | C111: 14311111 | D111: 4686.29 | F111: 0 | H111: 0
A112: %,FACCOUNT,TNI_ACCOUNT_FERC,XBYYYYY01,NOTHER_AR_UNAFFIL | B112: Other Accounts Receivable | D112: 6587616.03 | F112: 1330659.35 | H112: 3438985.4
A113: %,V14400000 | B113: Acc Prov for Uncol-Beg Bal | C113: 14400000 | D113: -407748.76 | F113: 0 | H113: 0
A114: %,V14400100 | B114: Acc Prov for Uncol-Reserve | C114: 14400100 | D114: -239437.1 | F114: -192750.47 | H114: -239437.1
A115: %,V14400150 | B115: Acc Prov for Uncol-Charge-Offs | C115: 14400150 | D115: 92536.54 | F115: 58721.57 | H115: 92536.54
A116: %,V14400200 | B116: Acc Prov for Uncol-Recoveries | C116: 14400200 | D116: -67443.12 | F116: -23047.52 | H116: -67443.12
A117: %,V14400600 | B117: Accm Prov Uncoll-Unbilled | C117: 14400600 | D117: -121036.27 | F117: 48627.3 | H117: 20492.5
A118: %,V14400700 | B118: Accm Prov Uncoll-Misc | C118: 14400700 | D118: -401312.87 | F118: 0 | H118: 0
A119: %,FACCOUNT,TNI_ACCOUNT_FERC,XBYYYYY01,NRESERVE_AR | B119: Accum Prov Uncollectible - Cr | D119: -1144441.58 | F119: -108449.12 | H119: -193851.18
A120: %,FACCOUNT,TNI_ACCOUNT_FERC,XBYYYYY01,NNOTE_REC_AFFIL | B120: NR from Associated Cos | D120: 0 | F120: 0 | H120: 0
A121: %,V14600000 | B121: AR Assoc Co-Mech | C121: 14600000 | D121: 6729.73 | F121: -1256.01 | H121: -34554.14
A122: %,V14600002 | B122: AR Assoc Co-Misc | C122: 14600002 | D122: 119519.61 | F122: 100589.61 | H122: 100589.61
A123: %,V14620000 | B123: Foreign Cash | C123: 14620000 | D123: -577470.02 | F123: 26759.3 | H123: 17716.95
A124: %,FACCOUNT,TNI_ACCOUNT_FERC,XBYYYYY01,NAR_AFFILIATE | B124: AR from Associated Cos | D124: -451220.68 | F124: 126092.9 | H124: 83752.42
A125: %,FACCOUNT,TNI_ACCOUNT_FERC,XBYYYYY01,NFUEL_STOCK | B125: Fuel Stock | D125: 0 | F125: 0 | H125: 0
A126: %,FACCOUNT,TNI_ACCOUNT_FERC,XBYYYYY01,NFUEL_STK_EXP_UNDISTR | B126: Fuel Stock Expenses Undistrib | D126: 0 | F126: 0 | H126: 0
A127: %,FACCOUNT,TNI_ACCOUNT_FERC,XBYYYYY01,NRESIDUALS | B127: Residuals & Extracted Products | D127: 0 | F127: 0 | H127: 0
A128: %,V15400000 | B128: Plant Materials-Oth Supplies | C128: 15400000 | D128: 311668.85 | F128: 0 | H128: 352.19
A129: %,FACCOUNT,TNI_ACCOUNT_FERC,XBYYYYY01,NMATERIALS_AND_SUPPLY | B129: Plant Materials & Supplies | D129: 311668.85 | F129: 0 | H129: 352.19
A130: %,FACCOUNT,TNI_ACCOUNT_FERC,XBYYYYY01,NMERCHANDISE | B130: Merchandise | D130: 0 | F130: 0 | H130: 0
A131: %,FACCOUNT,TNI_ACCOUNT_FERC,XBYYYYY01,NALLOWANCES | B131: Allowances | D131: 0 | F131: 0 | H131: 0
A132: %,FACCOUNT,TNI_ACCOUNT_FERC,XBYYYYY01,NSTORES_EXP | B132: Stores Exp Undistributed | D132: 0 | F132: 0 | H132: 0
A133: %,V16411000 | B133: Gas Stored-Current-LIFO | C133: 16411000 | D133: 6004480.02 | F133: -6830486.12 | H133: -35941789.48
A134: %,FACCOUNT,TNI_ACCOUNT_FERC,XBYYYYY01,NGAS_STORED_UNDRGRND | B134: Gas Stored Underground - Curr | D134: 6004480.02 | F134: -6830486.12 | H134: -35941789.48
A135: %,FACCOUNT,TNI_ACCOUNT_FERC,XBYYYYY01,NLNG_STORED_HELD | B135: LNG Stored & Held for Process | D135: 0 | F135: 0 | H135: 0
A136: %,V16500000 | B136: Other Misc Prepayments | C136: 16500000 | D136: -56920.63 | F136: -597.25 | H136: -2373.37
A137: %,V16500010 | B137: Prepaid-Medical LTD | C137: 16500010 | D137: 2346.44 | F137: 0 | H137: -799.2
A138: %,V16500030 | B138: Prepaid Payroll | C138: 16500030 | D138: 0 | F138: 0 | H138: -44940.59
A139: %,V16503600 | B139: Prepaid Taxes - Other | C139: 16503600 | D139: 79906.89 | F139: -22634.77 | H139: -45269.54
A140: %,V16520000 | B140: Prepaid-Insurance Affiliate | C140: 16520000 | D140: 405560.9 | F140: -33606.09 | H140: 70850.18
A141: %,V16521000 | B141: Prepaid-Insurance NonAffil | C141: 16521000 | D141: 715818.88 | F141: -201039.54 | H141: -176150.66
A142: %,V16591000 | B142: Prepaid-NC Cloud Cost Incurred | C142: 16591000 | D142: 0.13 | F142: 0.04 | H142: 0.02
A143: %,FACCOUNT,TNI_ACCOUNT_FERC,XBYYYYY01,NPREPAYMENTS_FERC | B143: Prepayments | D143: 1146712.61 | F143: -257877.61 | H143: -198683.16
A144: %,FACCOUNT,TNI_ACCOUNT_FERC,XBYYYYY01,NINT_DIV_REC | B144: Interest & Dividends Rec | D144: 0 | F144: 0 | H144: 0
A145: %,FACCOUNT,TNI_ACCOUNT_FERC,XBYYYYY01,NRENT_REC | B145: Rent Receivable | D145: 0 | F145: 0 | H145: 0
A146: %,V17300000 | B146: AR Accrued Revenues | C146: 17300000 | D146: 15755385.43 | F146: -6021722.25 | H146: 838619.97
A147: %,V17302000 | B147: AR Accrd Rev Unbill Exch Gas | C147: 17302000 | D147: 131400.83 | F147: 34475.33 | H147: 37822.77
A148: %,FACCOUNT,TNI_ACCOUNT_FERC,XBYYYYY01,NACCRUED_REVENUES | B148: Accrued Utility Revenues | D148: 15886786.26 | F148: -5987246.92 | H148: 876442.74
A149: %,V17401000 | B149: Misc Assets-Exch Gas Receiv | C149: 17401000 | D149: 6206054.46 | F149: 1472172.02 | H149: 2235484.78
A150: %,V17403200 | B150: Misc Assets-Property Tax | C150: 17403200 | D150: 5821704.58 | F150: -565670.42 | H150: -1131340.84
A151: %,V17406000 | B151: Misc Assets-Storage | C151: 17406000 | D151: 14570312.06 | F151: -3569112.08 | H151: 14570312.06
A152: %,FACCOUNT,TNI_ACCOUNT_FERC,XBYYYYY01,NOTHER_CURRENT_ASSETS | B152: Misc Current & Accrued Assets | D152: 26598071.1 | F152: -2662610.48 | H152: 15674456
A153: %,FACCOUNT,TNI_ACCOUNT_FERC,XBYYYYY01,NDERIV_ASSET | B153: Derivative Instrument Assets | D153: 0 | F153: 0 | H153: 0
A154: %,FACCOUNT,TNI_ACCOUNT_FERC,XBYYYYY01,NDERIV_HEDGE | B154: Derivative Assets - Hedging | D154: 0 | F154: 0 | H154: 0
A155: xx | B155: Total Current and Accrued Assets | D155: =D91+D92+D94+D95+D96+D101+D112+D119+D120+D124+D125+D126+D127+D129+D130+D131+D132+D134+D135+D143+D144+D145+D148+D152+D153+D154 -> 73696903.19 | F155: =F91+F92+F94+F95+F96+F101+F112+F119+F120+F124+F125+F126+F127+F129+F130+F131+F132+F134+F135+F143+F144+F145+F148+F152+F153+F154 -> -10758179.72 | H155: =H91+H92+H94+H95+H96+H101+H112+H119+H120+H124+H125+H126+H127+H129+H130+H131+H132+H134+H135+H143+H144+H145+H148+H152+H153+H154 -> -9424195.24
B157: Deferred Debits
A158: %,FACCOUNT,TNI_ACCOUNT_FERC,XBYYYYY01,NUNAMORTIZED_DEBT_EXP | B158: Unamortized Debt Expense | D158: 0 | F158: 0 | H158: 0
A159: %,FACCOUNT,TNI_ACCOUNT_FERC,XBYYYYY01,NEXTRAORD_PROP_LOSS | B159: Extraordinary Property Loss | D159: 0 | F159: 0 | H159: 0
A160: %,V18230200 | B160: Reg Asset Cr Bal Transf | C160: 18230200 | D160: 262394.27 | F160: -208526.97 | H160: 262394.27
A161: %,V18230250 | B161: Reg Asset Rate Case Current | C161: 18230250 | D161: 185185.44 | F161: 0 | H161: 0
A162: %,V18230350 | B162: Reg Asset DSM Expenses-GAS | C162: 18230350 | D162: 0 | F162: 6590 | H162: -6590
A163: %,V18230440 | B163: Reg Asset GTI Funding | C163: 18230440 | D163: 63437.26 | F163: -22366.59 | H163: -58944.81
A164: %,V18230450 | B164: Reg Asset EAP | C164: 18230450 | D164: -262394.27 | F164: 201936.97 | H164: -300507.74
A165: %,V18233420 | B165: Reg Asset-Prf Base Rt Adj PBRA | C165: 18233420 | D165: 1190092.65 | F165: -155068.62 | H165: -406875.88
A166: %,V18233560 | B166: Reg Asset COVID Costs CURRENT | C166: 18233560 | D166: 11318.04 | F166: 0 | H166: 0
A167: %,V18235114 | B167: NC Reg Asset FAS 158 OPEB | C167: 18235114 | D167: 966616.18 | F167: -10769.41 | H167: -21538.82
A168: %,V18235115 | B168: NC Reg Asset FAS158 Pension | C168: 18235115 | D168: 3061764.5 | F168: -10386.25 | H168: -20772.5
A169: %,V18235440 | B169: NC Reg Asset Rate Case Non-Cur | C169: 18235440 | D169: 343264.34 | F169: -14733.62 | H169: -27106.44
A170: %,V18235450 | B170: NC Reg Asset Pen NQulfd FAS158 | C170: 18235450 | D170: 7927 | F170: 0 | H170: 0
A171: %,V18235506 | B171: NC Reg Asset Def Depr Cap Lse | C171: 18235506 | D171: 19943.24 | F171: 36.19 | H171: 82.67
A172: %,V18235530 | B172: NC Reg Asset COVID Costs | C172: 18235530 | D172: 20749.73 | F172: -943.17 | H172: -1886.22
A173: %,FACCOUNT,TNI_ACCOUNT_FERC,XBYYYYY01,NOTHER_REG_ASSET | B173: Other Regulatory Asset | D173: 5870298.38 | F173: -214231.47 | H173: -581745.47
A175: %,V18320000 | B175: Oth Prelim Survey B Bal | C175: 18320000 | D175: 1232417.64 | F175: 0 | H175: 0
A176: %,V18320001 | B176: Oth Prelim Survey Additions | C176: 18320001 | D176: 38378.7 | F176: 56981.54 | H176: 38378.7
A177: %,NPRELIM_SURVEY_OTH | B177: Preliminary Survey Other | D177: 1270796.34 | F177: 56981.54 | H177: 38378.7
A178: %,FACCOUNT,TNI_ACCOUNT_FERC,XBYYYYY01,NPRELIM_SURVEY | B178: Preliminary Surveys | D178: 1270796.34 | F178: 56981.54 | H178: 38378.7
A180: %,V18400200 | B180: Car Clearing | C180: 18400200 | D180: 21.44 | F180: 21.23 | H180: 21.44
A181: %,V18400250 | B181: Truck Clearing | C181: 18400250 | D181: 4.24 | F181: 3.84 | H181: 4.24
A182: %,V18400400 | B182: General Tool Clearing | C182: 18400400 | D182: -0.08 | F182: -0.1 | H182: -0.08
A183: %,NCLEARING_OTHER | B183: Clearing Accounts Other | D183: 25.6 | F183: 24.97 | H183: 25.6
A184: %,V18400275 | B184: Clearing-Fleet | C184: 18400275 | D184: 383.09 | F184: 383.09 | H184: 383.09
A185: %,NCLEARING_FLEET | B185: Clearing Fleet | D185: 383.09 | F185: 383.09 | H185: 383.09
A186: %,NCLEARING_GENERAL | B186: Clearing Accounts General | D186: 0 | F186: 0 | H186: 0
A187: %,FACCOUNT,TNI_ACCOUNT_FERC,XBYYYYY01,NCLEARING_ACCOUNTS | B187: Clearing Accounts | D187: 408.69 | F187: 408.06 | H187: 408.69
A189: %,V18600400 | B189: DefDebitCusAdv_DEPPST12-31-99 | C189: 18600400 | D189: 2655219.42 | F189: -35.93 | H189: -54259.32
A190: %,NDEF_DEB_MISC_OTH | B190: Def Deb Miscellaneous Other | D190: 2655219.42 | F190: -35.93 | H190: -54259.32
A191: %,V18600200 | B191: Def Debit-Maint and Jobng WIP | C191: 18600200 | D191: 12900.33 | F191: 0 | H191: 1950
A192: %,NDEF_DEB_MNT_JOB_WIP | B192: Maintenance and Jobbing WIP | D192: 12900.33 | F192: 0 | H192: 1950
A193: %,FACCOUNT,TNI_ACCOUNT_FERC,XBYYYYY01,NDEFERRED_DEBITS_MISC | B193: Miscellaneous Deferred Debits | D193: 2668119.75 | F193: -35.93 | H193: -52309.32
A194: %,FACCOUNT,TNI_ACCOUNT_FERC,XBYYYYY01,NRESEARCH_&_DEV_EXP | B194: Research & Development Expense | D194: 0 | F194: 0 | H194: 0
A195: %,FACCOUNT,TNI_ACCOUNT_FERC,XBYYYYY01,NREACQ_DEBT_LOSS | B195: Unamort Loss Reacquired Debt | D195: 0 | F195: 0 | H195: 0
A196: %,V19005000 | B196: ADIT-Other-Noncurr-Fed | C196: 19005000 | D196: 7171636 | F196: -267573 | H196: -258448
A197: %,V19005100 | B197: ADIT Reg Liability NC - Fed | C197: 19005100 | D197: 15112 | F197: -550 | H197: -1100
A198: %,V19005400 | B198: ADIT FIT Gross Up | C198: 19005400 | D198: 6589593 | F198: -24540 | H198: -49080
A199: %,V19006000 | B199: ADIT-Other-Noncurr-State | C199: 19006000 | D199: 696227 | F199: -65061 | H199: -170852
A200: %,V19006100 | B200: ADIT Reg Liability NC - State | C200: 19006100 | D200: 3554 | F200: 0 | H200: 0
A201: %,V19006400 | B201: ADIT SIT Gross Up | C201: 19006400 | D201: 2238038 | F201: -2444 | H201: -4887
A202: %,FACCOUNT,TNI_ACCOUNT_FERC,XBYYYYY01,NACCUM_DEFD_INC_TAX | B202: Accum Deferred Income Taxes | D202: 16714160 | F202: -360168 | H202: -484367
A203: %,V19100100 | B203: Unrecov Purchs Gas Costs-Com | C203: 19100100 | D203: 5310224.1 | F203: -1368888.62 | H203: -1853345.93
A204: %,V19100400 | B204: End User Exchange | C204: 19100400 | D204: -1028651.75 | F204: -1150683.02 | H204: -3077033.97
A205: %,V19100800 | B205: Unrecov Purch Gas Cst-Unbill | C205: 19100800 | D205: -6456771.72 | F205: 4235436.17 | H205: -468059.99
A206: %,FACCOUNT,TNI_ACCOUNT_FERC,XBYYYYY01,NPURCH_GAS_COST_UNREC | B206: Unrecovered Purchase Gas Costs | D206: -2175199.37 | F206: 1715864.53 | H206: -5398439.89
A207: xx | B207: Total Deferred Debits | D207: =D158+D159+D173+D178+D187+D193+D194+D195+D202+D206 -> 24348583.79 | F207: =F158+F159+F173+F178+F187+F193+F194+F195+F202+F206 -> 1198818.73 | H207: =H158+H159+H173+H178+H187+H193+H194+H195+H202+H206 -> -6478074.29
B209: Total Assets and Other Debits | D209: =D74+D87+D155+D207 -> 610351847.4 | F209: =F74+F87+F155+F207 -> -4735006.15 | H209: =H74+H87+H155+H207 -> -7016052.23
B212: CAPITALIZATION and LIABILITIES
B214: Proprietary Capital
A215: %,V20100000 | B215: Common Stock-Beg Balance | C215: 20100000 | D215: 23806200 | F215: 0 | H215: 0
A216: %,R,FACCOUNT,TNI_ACCOUNT_FERC,XBYYYYY01,NCOMMON_STOCK_FERC | B216: Common Stock FERC | D216: 23806200 | F216: 0 | H216: 0
A217: %,R,FACCOUNT,TNI_ACCOUNT_FERC,XBYYYYY01,NPREFERRED_STOCK_FERC | B217: Preferred Stock Issued | D217: 0 | F217: 0 | H217: 0
A219: %,R,FACCOUNT,TNI_ACCOUNT_FERC,XBYYYYY01,NCOMMON_STOCK_SUBSCR | B219: Common Stock Subscribed | D219: 0 | F219: 0 | H219: 0
A220: %,R,FACCOUNT,TNI_ACCOUNT_FERC,XBYYYYY01,NPREF_STOCK_SUBSCR | B220: Preferred Stock Subscribed | D220: 0 | F220: 0 | H220: 0
A222: xx | B222: Capital Stock Subscribed | D222: =D219+D220 -> 0 | F222: =F219+F220 -> 0 | H222: =H219+H220 -> 0
... 161 more rows

Sheet March22
A1: %,LACTUALS | B1: %,ATT,FDESCR,UDESCR | C1: %,AFT,FACCOUNT | D1: %,LACTUALS,UPOSTED_TRAN_AMT,SBAL,FBOOK_CODE,VR | F1: %,LACTUALS,UPOSTED_TRAN_AMT,SPER,FBOOK_CODE,VR | H1: %,LACTUALS,UPOSTED_TRAN_AMT,SYTD,FBOOK_CODE,VR
B3: Columbia Gas of Kentucky Inc
B4: Balance Sheet-FERC
B5: Regulatory View - FERC Account
B6: As of March 31, 2022
F8: Change from | H8: Change from
D9: Current Month | F9: Prior Month | H9: Prior Year-End
B10: Assets and Other Debits
B13: Utility Plant
A15: %,V10100000 | B15: Plant In Service-Beg Bal | C15: 10100000 | D15: 623970195.9 | F15: 0 | H15: 0
A16: %,V10100001 | B16: Plant In Service-Additions | C16: 10100001 | D16: 9812109.73 | F16: 4708521.76 | H16: 9812109.73
A17: %,V10100002 | B17: Plant In Service-Retirements | C17: 10100002 | D17: -1642478.41 | F17: -607877.47 | H17: -1642478.41
A18: %,V10140000 | B18: Cloud Plant In Svc-Beg Bal | C18: 10140000 | D18: 1654282.04 | F18: 0 | H18: 0
A19: %,V10140001 | B19: Cloud Plant in Svc-Additions | C19: 10140001 | D19: -25707.94 | F19: -7859.7 | H19: -25707.94
A20: %,FACCOUNT,TNI_ACCOUNT_FERC,XBYYYYY01,NPLANT_IN_SERV_FERC | B20: Plant in Service | D20: 633768401.3 | F20: 4092784.59 | H20: 8143923.38
A21: %,V10110000 | B21: Capital Leases-Beg Bal | C21: 10110000 | D21: 400000 | F21: 0 | H21: 0
A22: %,V10112000 | B22: Right of Use Asset-Beg Bal | C22: 10112000 | D22: 316999.8 | F22: 0 | H22: 0
A23: %,V10112001 | B23: Right of Use Asset-Additions | C23: 10112001 | D23: 14738.62 | F23: 0 | H23: 14738.62
A24: %,V10112002 | B24: Right of Use Asset-Retirements | C24: 10112002 | D24: -99318.56 | F24: -33030.55 | H24: -99318.56
A25: %,V10112004 | B25: Right of Use Asset-Amort | C25: 10112004 | D25: 19446.79 | F25: 9272.99 | H25: 19446.79
A26: %,FACCOUNT,TNI_ACCOUNT_FERC,XBYYYYY01,NPLANT_CAP_LEASE | B26: Property Under Capital Lease | D26: 651866.65 | F26: -23757.56 | H26: -65133.15
A27: %,FACCOUNT,TNI_ACCOUNT_FERC,XBYYYYY01,NPLANT_PURCH_SOLD | B27: Plant Purchased or Sold | D27: 0 | F27: 0 | H27: 0
A28: %,FACCOUNT,TNI_ACCOUNT_FERC,XBYYYYY01,NPLANT_EXPERIMENT | B28: Experimental Plant Unclass | D28: 0 | F28: 0 | H28: 0
A29: %,FACCOUNT,TNI_ACCOUNT_FERC,XBYYYYY01,NPLANT_GAS_LEASE_OTH | B29: Gas Plant Leased to Others | D29: 0 | F29: 0 | H29: 0
A30: %,FACCOUNT,TNI_ACCOUNT_FERC,XBYYYYY01,NPLANT_FUTURE_USE | B30: Plant Held for Future Use | D30: 0 | F30: 0 | H30: 0
A31: %,V10600000 | B31: Comp Constr Not Class Beg Bal | C31: 10600000 | D31: 29697192.39 | F31: 0 | H31: 0
A32: %,V10600003 | B32: Comp Const not Class Other | C32: 10600003 | D32: 2025419.63 | F32: 343591.71 | H32: 2025419.63
A33: %,FACCOUNT,TNI_ACCOUNT_FERC,XBYYYYY01,NPLANT_CONST_UNCLASS | B33: Completed Const Not Classified | D33: 31722612.02 | F33: 343591.71 | H33: 2025419.63
A34: %,V11401000 | B34: Tang Plant Acq Adj-BegBal | C34: 11401000 | D34: -777092 | F34: 0 | H34: 0
A35: %,FACCOUNT,TNI_ACCOUNT_FERC,XBYYYYY01,NPLANT_ACQ_ADJ_FERC | B35: Plant Acquisitions_Adjustments | D35: -777092 | F35: 0 | H35: 0
A36: %,V10700000 | B36: CWIP-Beg Balance | C36: 10700000 | D36: 18115095.37 | F36: 0 | H36: 0
A37: %,V10700001 | B37: CWIP-Additions | C37: 10700001 | D37: 18732727.45 | F37: 7920482.53 | H37: 18732727.45
A38: %,V10700003 | B38: CWIP-Other Changes | C38: 10700003 | D38: -11837529.36 | F38: -5052113.47 | H38: -11837529.36
A39: %,V10740000 | B39: Cloud CWIP-Beg Balance | C39: 10740000 | D39: 43514.5 | F39: 0 | H39: 0
A40: %,V10740001 | B40: Cloud CWIP-Additions | C40: 10740001 | D40: 31953.75 | F40: 44319.53 | H40: 31953.75
A41: %,V10740003 | B41: Cloud CWIP-Oth Changes | C41: 10740003 | D41: 25707.94 | F41: 7859.7 | H41: 25707.94
A42: %,FACCOUNT,TNI_ACCOUNT_FERC,XBYYYYY01,NCWIP_FERC | B42: CWIP | D42: 25111469.65 | F42: 2920548.29 | H42: 6952859.78
B44: Total Utility Plant | D44: =D20+D26+D27+D28+D29+D30+D33+D35+D42 -> 690477257.7 | F44: =F20+F26+F27+F28+F29+F30+F33+F35+F42 -> 7333167.03 | H44: =H20+H26+H27+H28+H29+H30+H33+H35+H42 -> 17057069.64
A46: %,V10800000 | B46: Accum Deprec Plant -Beg Bal | C46: 10800000 | D46: -167156914.3 | F46: 0 | H46: 0
A47: %,V10800001 | B47: Accum Deprec Plant-Additions | C47: 10800001 | D47: -4116686.75 | F47: -1376639.73 | H47: -4116686.75
A48: %,V10800002 | B48: Accum Deprec Plant-Retiremnt | C48: 10800002 | D48: 1447524.26 | F48: 593361.95 | H48: 1447524.26
A49: %,V10800003 | B49: Accum Deprec Plant-Other Chg | C49: 10800003 | D49: 2176807.63 | F49: 895303.01 | H49: 2176807.63
A50: %,V10800010 | B50: Retirement WIP-Beg Bal | C50: 10800010 | D50: 711717.34 | F50: 0 | H50: 0
A51: %,V10800011 | B51: Retirement WIP-Additions | C51: 10800011 | D51: 2183553.99 | F51: 943689.91 | H51: 2183553.99
A52: %,V10800013 | B52: Retirement WIP-Other Changes | C52: 10800013 | D52: -2186542.63 | F52: -897956.21 | H52: -2186542.63
A53: %,V10800100 | B53: Accum Deprec Cap Lease-Beg Bal | C53: 10800100 | D53: -185123.97 | F53: 0 | H53: 0
A54: %,V10800101 | B54: Accum Deprec Cap Lease-Add | C54: 10800101 | D54: -9917.37 | F54: -3305.79 | H54: -9917.37
A55: %,FACCOUNT,TNI_ACCOUNT_FERC,XBYYYYY01,NACCUM_DEPR_PLANT | B55: Accum Prov - Depreciation | D55: -167135581.8 | F55: 154453.14 | H55: -505260.87
A56: %,V11100000 | B56: Accum Amortization-Beg Bal | C56: 11100000 | D56: -6439440.05 | F56: 0 | H56: 0
A57: %,V11100001 | B57: Accum Amortization-Additions | C57: 11100001 | D57: -555059.81 | F57: -191016.23 | H57: -555059.81
A58: %,V11100002 | B58: Accum Amortization-Retiremnt | C58: 11100002 | D58: 194954.15 | F58: 14515.52 | H58: 194954.15
A59: %,V11140000 | B59: Cloud Accum Amortiz-BegBal | C59: 11140000 | D59: -297630.53 | F59: 0 | H59: 0
A60: %,V11140001 | B60: Cloud Accum Amortiz-Additions | C60: 11140001 | D60: -84655.53 | F60: -28173.15 | H60: -84655.53
A61: %,FACCOUNT,TNI_ACCOUNT_FERC,XBYYYYY01,NACCUM_AMORT_PLANT | B61: Accum_Amort_Plant | D61: -7181831.77 | F61: -204673.86 | H61: -444761.19
A62: %,V11501000 | B62: Tang Acc Amort Plnt Acq Adj-BB | C62: 11501000 | D62: 157398.63 | F62: 0 | H62: 0
A63: %,V11501010 | B63: Tang Acc Amor Plnt Acq Adj-ADD | C63: 11501010 | D63: 6475.77 | F63: 2158.59 | H63: 6475.77
A64: %,FACCOUNT,TNI_ACCOUNT_FERC,XBYYYYY01,NACCUM_ACQ_ADJ_FERC | B64: Accum Amort Plant Acq_Adj | D64: 163874.4 | F64: 2158.59 | H64: 6475.77
B66: Accum Prov - Amort and Depr | D66: =D55+D61+D64 -> -174153539.1 | F66: =F55+F61+F64 -> -48062.13 | H66: =H55+H61+H64 -> -943546.29
A67: xx | B67: Net Utility Plant | D67: =D44+D66 -> 516323718.5 | F67: =F44+F66 -> 7285104.9 | H67: =H44+H66 -> 16113523.35
A68: %,FACCOUNT,TNI_ACCOUNT_FERC,XBYYYYY01,NUTIL_PLANT_ADJ | B68: Other Plant Adjustments | D68: 0 | F68: 0 | H68: 0
A70: %,FACCOUNT,TNI_ACCOUNT_FERC,XBYYYYY01,NGAS_STORED_BASE | B70: Gas Store Underground | D70: 0 | F70: 0 | H70: 0
A71: %,FACCOUNT,TNI_ACCOUNT_FERC,XBYYYYY01,NGAS_SYS_BAL | B71: System Balancing Gas | D71: 0 | F71: 0 | H71: 0
A73: xx | B73: Gas Store Undergrd_SysBal | D73: =D70+D71 -> 0 | F73: =F70+F71 -> 0 | H73: =H70+H71 -> 0
A74: xx | B74: Total Utility Plant | D74: =D67+D68+D73 -> 516323718.5 | F74: =F67+F68+F73 -> 7285104.9 | H74: =H67+H68+H73 -> 16113523.35
B76: Other Property and Investments
A77: %,FACCOUNT,TNI_ACCOUNT_FERC,XBYYYYY01,NNONUTILITY_PROPERTY | B77: Non Utility Other Property | D77: 0 | F77: 0 | H77: 0
A78: %,FACCOUNT,TNI_ACCOUNT_FERC,XBYYYYY01,NACC_DEPR_OTH_PLANT | B78: Accum Prov - Deprec Oth Plant | D78: 0 | F78: 0 | H78: 0
A79: %,FACCOUNT,TNI_ACCOUNT_FERC,XBYYYYY01,NUNCONSOL_AFFIL_FERC | B79: Investments in Associated Cos | D79: 0 | F79: 0 | H79: 0
A80: %,V12310000 | B80: Inv Sub Co-Common Stock | C80: 12310000 | D80: 174261 | F80: 0 | H80: 0
A81: %,V12310001 | B81: Inv Sub Co-PL | C81: 12310001 | D81: 565904.34 | F81: -478.28 | H81: -268.77
A82: %,V12310003 | B82: Inv Sub Co-Distrib | C82: 12310003 | D82: -740291.27 | F82: -740291.27 | H82: -740291.27
A83: %,FACCOUNT,TNI_ACCOUNT_FERC,XBYYYYY01,NCONSOL_AFFIL_FERC | B83: Investments in Subsidiary Cos | D83: -125.93 | F83: -740769.55 | H83: -740560.04
A84: %,FACCOUNT,TNI_ACCOUNT_FERC,XBYYYYY01,NOTHER_INVESTMENTS | B84: Other Investments | D84: 0 | F84: 0 | H84: 0
A85: %,FACCOUNT,TNI_ACCOUNT_FERC,XBYYYYY01,NSINK_FUND | B85: Sinking Fund | D85: 0 | F85: 0 | H85: 0
A86: %,V12800000 | B86: Funds Held in Trust | C86: 12800000 | D86: 2555897.81 | F86: 28794.67 | H86: 86384.01
A87: %,FACCOUNT,TNI_ACCOUNT_FERC,XBYYYYY01,NOTHER_FUND_SPEC | B87: Other Special Funds | D87: 2555897.81 | F87: 28794.67 | H87: 86384.01
A88: xx | B88: Total Other Property and Investments | D88: =D77+D78+D79+D83+D84+D85+D87 -> 2555771.88 | F88: =F77+F78+F79+F83+F84+F85+F87 -> -711974.88 | H88: =H77+H78+H79+H83+H84+H85+H87 -> -654176.03
B90: Current and Accrued Assets
A91: %,V13100000 | B91: Cash | C91: 13100000 | D91: 1045119.17 | F91: 174187.68 | H91: 755669.76
A92: %,FACCOUNT,TNI_ACCOUNT_FERC,XBYYYYY01,NCASH_FERC | B92: Cash | D92: 1045119.17 | F92: 174187.68 | H92: 755669.76
A93: %,FACCOUNT,TNI_ACCOUNT_FERC,XBYYYYY01,NSPECIAL_DEPOSITS | B93: Special Deposits | D93: 0 | F93: 0 | H93: 0
A94: %,V13500000 | B94: Working Funds | C94: 13500000 | D94: 212.64 | F94: 0 | H94: 0
A95: %,FACCOUNT,TNI_ACCOUNT_FERC,XBYYYYY01,NWORKING_FUNDS | B95: Working Funds | D95: 212.64 | F95: 0 | H95: 0
A96: %,V13600001 | B96: Temp Cash Inv-Money Pool | C96: 13600001 | D96: 978680.75 | F96: 978680.75 | H96: 978680.75
A97: %,FACCOUNT,TNI_ACCOUNT_FERC,XBYYYYY01,NTEMP_CASH_FERC | B97: Temp Cash Investments | D97: 978680.75 | F97: 978680.75 | H97: 978680.75
A98: %,FACCOUNT,TNI_ACCOUNT_FERC,XBYYYYY01,NNOTE_RECEIVABLE | B98: Notes Receivable | D98: 0 | F98: 0 | H98: 0
A99: %,V14200160 | B99: Cust AR-Credit Balances | C99: 14200160 | D99: 1896372.42 | F99: -564875.37 | H99: -6711251.44
A100: %,V14200220 | B100: Cust AR-CAB | C100: 14200220 | D100: 10799885.63 | F100: -4032339.13 | H100: 8217218.24
A101: %,V14200250 | B101: Cust AR-GMB | C101: 14200250 | D101: 275664.28 | F101: -172339.55 | H101: -16990.55
A102: %,V14200260 | B102: Cust AR-Cust Premise Work | C102: 14200260 | D102: 123886.92 | F102: -20723.15 | H102: -24595.7
A103: %,FACCOUNT,TNI_ACCOUNT_FERC,XBYYYYY01,NCUSTOMER_AR_FERC | B103: Customer Accounts Receivable | D103: 13095809.25 | F103: -4790277.2 | H103: 1464380.55
A104: %,V14300001 | B104: Misc Accts Rec-Other | C104: 14300001 | D104: 1750012.71 | F104: 18675.68 | H104: 20760.78
A105: %,V14300018 | B105: Other AR-Billed OSS | C105: 14300018 | D105: 773199.99 | F105: 487403.75 | H105: 715725
A106: %,V14300220 | B106: Other AR-GMB Estimate | C106: 14300220 | D106: 6630.07 | F106: -3890.8 | H106: -3768.97
A107: %,V14300240 | B107: Other AR-GTS | C107: 14300240 | D107: 1404431.11 | F107: -341631.67 | H107: 89845.37
A108: %,V14300270 | B108: Other AR-Retail Service | C108: 14300270 | D108: 20141.64 | F108: 1534.2 | H108: 6270.74
A109: %,V14300290 | B109: Other AR-CNR | C109: 14300290 | D109: 587839.11 | F109: 37299.29 | H109: 84774.98
A110: %,V14300330 | B110: Other AR Choice Trans-Columbia | C110: 14300330 | D110: -93629.05 | F110: -30021.53 | H110: 1725425.17
A111: %,V14300350 | B111: Other AR Choice Trans-Purchase | C111: 14300350 | D111: 1507697.29 | F111: -744114.43 | H111: 223709.48
A112: %,V14300395 | B112: Other AR-CPG Non-Transit Srvcs | C112: 14300395 | D112: 50545.36 | F112: -1316 | H112: 181.34
A113: %,V14311111 | B113: Other AR-Curr-MA Project | C113: 14311111 | D113: 4686.29 | F113: 0 | H113: 0
A114: %,FACCOUNT,TNI_ACCOUNT_FERC,XBYYYYY01,NOTHER_AR_UNAFFIL | B114: Other Accounts Receivable | D114: 6011554.52 | F114: -576061.51 | H114: 2862923.89
A115: %,V14400000 | B115: Acc Prov for Uncol-Beg Bal | C115: 14400000 | D115: -407748.76 | F115: 0 | H115: 0
A116: %,V14400100 | B116: Acc Prov for Uncol-Reserve | C116: 14400100 | D116: -353788.62 | F116: -114351.52 | H116: -353788.62
A117: %,V14400150 | B117: Acc Prov for Uncol-Charge-Offs | C117: 14400150 | D117: 147075.13 | F117: 54538.59 | H117: 147075.13
A118: %,V14400200 | B118: Acc Prov for Uncol-Recoveries | C118: 14400200 | D118: -88853.51 | F118: -21410.39 | H118: -88853.51
A119: %,V14400600 | B119: Accm Prov Uncoll-Unbilled | C119: 14400600 | D119: -92888.34 | F119: 28147.93 | H119: 48640.43
A120: %,V14400700 | B120: Accm Prov Uncoll-Misc | C120: 14400700 | D120: -401312.87 | F120: 0 | H120: 0
A121: %,FACCOUNT,TNI_ACCOUNT_FERC,XBYYYYY01,NRESERVE_AR | B121: Accum Prov Uncollectible - Cr | D121: -1197516.97 | F121: -53075.39 | H121: -246926.57
A122: %,FACCOUNT,TNI_ACCOUNT_FERC,XBYYYYY01,NNOTE_REC_AFFIL | B122: NR from Associated Cos | D122: 0 | F122: 0 | H122: 0
A123: %,V14600000 | B123: AR Assoc Co-Mech | C123: 14600000 | D123: 5618.09 | F123: -1111.64 | H123: -35665.78
A124: %,V14600002 | B124: AR Assoc Co-Misc | C124: 14600002 | D124: 28200.87 | F124: -91318.74 | H124: 9270.87
A125: %,V14610000 | B125: Money Pool Deposits | C125: 14610000 | D125: 10164151.36 | F125: 10164151.36 | H125: 10164151.36
A126: %,V14610010 | B126: Money Pool-Intrst Receivable | C126: 14610010 | D126: 120.66 | F126: 120.66 | H126: 120.66
A127: %,V14620000 | B127: Foreign Cash | C127: 14620000 | D127: -604229.32 | F127: -26759.3 | H127: -9042.35
A128: %,FACCOUNT,TNI_ACCOUNT_FERC,XBYYYYY01,NAR_AFFILIATE | B128: AR from Associated Cos | D128: 9593861.66 | F128: 10045082.34 | H128: 10128834.76
A129: %,FACCOUNT,TNI_ACCOUNT_FERC,XBYYYYY01,NFUEL_STOCK | B129: Fuel Stock | D129: 0 | F129: 0 | H129: 0
A130: %,FACCOUNT,TNI_ACCOUNT_FERC,XBYYYYY01,NFUEL_STK_EXP_UNDISTR | B130: Fuel Stock Expenses Undistrib | D130: 0 | F130: 0 | H130: 0
A131: %,FACCOUNT,TNI_ACCOUNT_FERC,XBYYYYY01,NRESIDUALS | B131: Residuals & Extracted Products | D131: 0 | F131: 0 | H131: 0
A132: %,V15400000 | B132: Plant Materials-Oth Supplies | C132: 15400000 | D132: 326376.35 | F132: 14707.5 | H132: 15059.69
A133: %,FACCOUNT,TNI_ACCOUNT_FERC,XBYYYYY01,NMATERIALS_AND_SUPPLY | B133: Plant Materials & Supplies | D133: 326376.35 | F133: 14707.5 | H133: 15059.69
A134: %,FACCOUNT,TNI_ACCOUNT_FERC,XBYYYYY01,NMERCHANDISE | B134: Merchandise | D134: 0 | F134: 0 | H134: 0
A135: %,FACCOUNT,TNI_ACCOUNT_FERC,XBYYYYY01,NALLOWANCES | B135: Allowances | D135: 0 | F135: 0 | H135: 0
A136: %,FACCOUNT,TNI_ACCOUNT_FERC,XBYYYYY01,NSTORES_EXP | B136: Stores Exp Undistributed | D136: 0 | F136: 0 | H136: 0
A137: %,V16411000 | B137: Gas Stored-Current-LIFO | C137: 16411000 | D137: 1883670.69 | F137: -4120809.33 | H137: -40062598.81
A138: %,FACCOUNT,TNI_ACCOUNT_FERC,XBYYYYY01,NGAS_STORED_UNDRGRND | B138: Gas Stored Underground - Curr | D138: 1883670.69 | F138: -4120809.33 | H138: -40062598.81
A139: %,FACCOUNT,TNI_ACCOUNT_FERC,XBYYYYY01,NLNG_STORED_HELD | B139: LNG Stored & Held for Process | D139: 0 | F139: 0 | H139: 0
A140: %,V16500000 | B140: Other Misc Prepayments | C140: 16500000 | D140: -58361.88 | F140: -1441.25 | H140: -3814.62
A141: %,V16500010 | B141: Prepaid-Medical LTD | C141: 16500010 | D141: 1822.17 | F141: -524.27 | H141: -1323.47
A142: %,V16500030 | B142: Prepaid Payroll | C142: 16500030 | D142: 0 | F142: 0 | H142: -44940.59
A143: %,V16503600 | B143: Prepaid Taxes - Other | C143: 16503600 | D143: 57272.12 | F143: -22634.77 | H143: -67904.31
A144: %,V16520000 | B144: Prepaid-Insurance Affiliate | C144: 16520000 | D144: 334958.34 | F144: -70602.56 | H144: 247.62
A145: %,V16521000 | B145: Prepaid-Insurance NonAffil | C145: 16521000 | D145: 575621.56 | F145: -140197.32 | H145: -316347.98
A146: %,V16591000 | B146: Prepaid-NC Cloud Cost Incurred | C146: 16591000 | D146: 0.15 | F146: 0.02 | H146: 0.04
A147: %,FACCOUNT,TNI_ACCOUNT_FERC,XBYYYYY01,NPREPAYMENTS_FERC | B147: Prepayments | D147: 911312.46 | F147: -235400.15 | H147: -434083.31
A148: %,FACCOUNT,TNI_ACCOUNT_FERC,XBYYYYY01,NINT_DIV_REC | B148: Interest & Dividends Rec | D148: 0 | F148: 0 | H148: 0
A149: %,FACCOUNT,TNI_ACCOUNT_FERC,XBYYYYY01,NRENT_REC | B149: Rent Receivable | D149: 0 | F149: 0 | H149: 0
A150: %,V17300000 | B150: AR Accrued Revenues | C150: 17300000 | D150: 11494758.29 | F150: -4260627.14 | H150: -3422007.17
A151: %,V17302000 | B151: AR Accrd Rev Unbill Exch Gas | C151: 17302000 | D151: 195203.66 | F151: 63802.83 | H151: 101625.6
A152: %,FACCOUNT,TNI_ACCOUNT_FERC,XBYYYYY01,NACCRUED_REVENUES | B152: Accrued Utility Revenues | D152: 11689961.95 | F152: -4196824.31 | H152: -3320381.57
A153: %,V17401000 | B153: Misc Assets-Exch Gas Receiv | C153: 17401000 | D153: 4807633.56 | F153: -1398420.9 | H153: 837063.88
A154: %,V17403200 | B154: Misc Assets-Property Tax | C154: 17403200 | D154: 5256034.16 | F154: -565670.42 | H154: -1697011.26
A155: %,V17406000 | B155: Misc Assets-Storage | C155: 17406000 | D155: 12698637.32 | F155: -1871674.74 | H155: 12698637.32
A156: %,FACCOUNT,TNI_ACCOUNT_FERC,XBYYYYY01,NOTHER_CURRENT_ASSETS | B156: Misc Current & Accrued Assets | D156: 22762305.04 | F156: -3835766.06 | H156: 11838689.94
A157: %,FACCOUNT,TNI_ACCOUNT_FERC,XBYYYYY01,NDERIV_ASSET | B157: Derivative Instrument Assets | D157: 0 | F157: 0 | H157: 0
A158: %,FACCOUNT,TNI_ACCOUNT_FERC,XBYYYYY01,NDERIV_HEDGE | B158: Derivative Assets - Hedging | D158: 0 | F158: 0 | H158: 0
A159: xx | B159: Total Current and Accrued Assets | D159: =D92+D93+D95+D97+D98+D103+D114+D121+D122+D128+D129+D130+D131+D133+D134+D135+D136+D138+D139+D147+D148+D149+D152+D156+D157+D158 -> 67101347.51 | F159: =F92+F93+F95+F97+F98+F103+F114+F121+F122+F128+F129+F130+F131+F133+F134+F135+F136+F138+F139+F147+F148+F149+F152+F156+F157+F158 -> -6595555.68 | H159: =H92+H93+H95+H97+H98+H103+H114+H121+H122+H128+H129+H130+H131+H133+H134+H135+H136+H138+H139+H147+H148+H149+H152+H156+H157+H158 -> -16019750.92
B161: Deferred Debits
A162: %,FACCOUNT,TNI_ACCOUNT_FERC,XBYYYYY01,NUNAMORTIZED_DEBT_EXP | B162: Unamortized Debt Expense | D162: 0 | F162: 0 | H162: 0
A163: %,FACCOUNT,TNI_ACCOUNT_FERC,XBYYYYY01,NEXTRAORD_PROP_LOSS | B163: Extraordinary Property Loss | D163: 0 | F163: 0 | H163: 0
A164: %,V18230200 | B164: Reg Asset Cr Bal Transf | C164: 18230200 | D164: 30784 | F164: -231610.27 | H164: 30784
A165: %,V18230250 | B165: Reg Asset Rate Case Current | C165: 18230250 | D165: 185185.44 | F165: 0 | H165: 0
A166: %,V18230350 | B166: Reg Asset DSM Expenses-GAS | C166: 18230350 | D166: 0 | F166: 0 | H166: -6590
A167: %,V18230440 | B167: Reg Asset GTI Funding | C167: 18230440 | D167: 57338.94 | F167: -6098.32 | H167: -65043.13
A168: %,V18230450 | B168: Reg Asset EAP | C168: 18230450 | D168: -30784 | F168: 231610.27 | H168: -68897.47
A169: %,V18233420 | B169: Reg Asset-Prf Base Rt Adj PBRA | C169: 18233420 | D169: 3926740.38 | F169: 2736647.73 | H169: 2329771.85
A170: %,V18233560 | B170: Reg Asset COVID Costs CURRENT | C170: 18233560 | D170: 11318.04 | F170: 0 | H170: 0
A171: %,V18235114 | B171: NC Reg Asset FAS 158 OPEB | C171: 18235114 | D171: 955846.77 | F171: -10769.41 | H171: -32308.23
A172: %,V18235115 | B172: NC Reg Asset FAS158 Pension | C172: 18235115 | D172: 3051378.25 | F172: -10386.25 | H172: -31158.75
A173: %,V18235440 | B173: NC Reg Asset Rate Case Non-Cur | C173: 18235440 | D173: 327832.22 | F173: -15432.12 | H173: -42538.56
A174: %,V18235450 | B174: NC Reg Asset Pen NQulfd FAS158 | C174: 18235450 | D174: 7927 | F174: 0 | H174: 0
A175: %,V18235506 | B175: NC Reg Asset Def Depr Cap Lse | C175: 18235506 | D175: 19969.11 | F175: 25.87 | H175: 108.54
A176: %,V18235530 | B176: NC Reg Asset COVID Costs | C176: 18235530 | D176: 19806.56 | F176: -943.17 | H176: -2829.39
A177: %,FACCOUNT,TNI_ACCOUNT_FERC,XBYYYYY01,NOTHER_REG_ASSET | B177: Other Regulatory Asset | D177: 8563342.71 | F177: 2693044.33 | H177: 2111298.86
A179: %,V18320000 | B179: Oth Prelim Survey B Bal | C179: 18320000 | D179: 1232417.64 | F179: 0 | H179: 0
A180: %,V18320001 | B180: Oth Prelim Survey Additions | C180: 18320001 | D180: 159253.52 | F180: 120874.82 | H180: 159253.52
A181: %,NPRELIM_SURVEY_OTH | B181: Preliminary Survey Other | D181: 1391671.16 | F181: 120874.82 | H181: 159253.52
A182: %,FACCOUNT,TNI_ACCOUNT_FERC,XBYYYYY01,NPRELIM_SURVEY | B182: Preliminary Surveys | D182: 1391671.16 | F182: 120874.82 | H182: 159253.52
A184: %,V18400100 | B184: Building Clearing | C184: 18400100 | D184: 568.16 | F184: 568.16 | H184: 568.16
A185: %,V18400200 | B185: Car Clearing | C185: 18400200 | D185: -927.75 | F185: -949.19 | H185: -927.75
A186: %,V18400250 | B186: Truck Clearing | C186: 18400250 | D186: 0 | F186: -4.24 | H186: 0
A187: %,V18400400 | B187: General Tool Clearing | C187: 18400400 | D187: -0.06 | F187: 0.02 | H187: -0.06
A188: %,NCLEARING_OTHER | B188: Clearing Accounts Other | D188: -359.65 | F188: -385.25 | H188: -359.65
A189: %,V18400275 | B189: Clearing-Fleet | C189: 18400275 | D189: 383.09 | F189: 0 | H189: 383.09
A190: %,NCLEARING_FLEET | B190: Clearing Fleet | D190: 383.09 | F190: 0 | H190: 383.09
A191: %,NCLEARING_GENERAL | B191: Clearing Accounts General | D191: 0 | F191: 0 | H191: 0
A192: %,FACCOUNT,TNI_ACCOUNT_FERC,XBYYYYY01,NCLEARING_ACCOUNTS | B192: Clearing Accounts | D192: 23.44 | F192: -385.25 | H192: 23.44
A194: %,V18600400 | B194: DefDebitCusAdv_DEPPST12-31-99 | C194: 18600400 | D194: 2655219.42 | F194: 0 | H194: -54259.32
A195: %,NDEF_DEB_MISC_OTH | B195: Def Deb Miscellaneous Other | D195: 2655219.42 | F195: 0 | H195: -54259.32
A196: %,V18600200 | B196: Def Debit-Maint and Jobng WIP | C196: 18600200 | D196: 138367.73 | F196: 125467.4 | H196: 127417.4
A197: %,NDEF_DEB_MNT_JOB_WIP | B197: Maintenance and Jobbing WIP | D197: 138367.73 | F197: 125467.4 | H197: 127417.4
A198: %,FACCOUNT,TNI_ACCOUNT_FERC,XBYYYYY01,NDEFERRED_DEBITS_MISC | B198: Miscellaneous Deferred Debits | D198: 2793587.15 | F198: 125467.4 | H198: 73158.08
A199: %,FACCOUNT,TNI_ACCOUNT_FERC,XBYYYYY01,NRESEARCH_&_DEV_EXP | B199: Research & Development Expense | D199: 0 | F199: 0 | H199: 0
A200: %,FACCOUNT,TNI_ACCOUNT_FERC,XBYYYYY01,NREACQ_DEBT_LOSS | B200: Unamort Loss Reacquired Debt | D200: 0 | F200: 0 | H200: 0
A201: %,V19005000 | B201: ADIT-Other-Noncurr-Fed | C201: 19005000 | D201: 7166405 | F201: -5231 | H201: -263679
A202: %,V19005100 | B202: ADIT Reg Liability NC - Fed | C202: 19005100 | D202: 14561 | F202: -551 | H202: -1651
A203: %,V19005400 | B203: ADIT FIT Gross Up | C203: 19005400 | D203: 6565053 | F203: -24540 | H203: -73620
A204: %,V19006000 | B204: ADIT-Other-Noncurr-State | C204: 19006000 | D204: 695300 | F204: -927 | H204: -171779
A205: %,V19006100 | B205: ADIT Reg Liability NC - State | C205: 19006100 | D205: 3554 | F205: 0 | H205: 0
A206: %,V19006400 | B206: ADIT SIT Gross Up | C206: 19006400 | D206: 2235595 | F206: -2443 | H206: -7330
A207: %,FACCOUNT,TNI_ACCOUNT_FERC,XBYYYYY01,NACCUM_DEFD_INC_TAX | B207: Accum Deferred Income Taxes | D207: 16680468 | F207: -33692 | H207: -518059
A208: %,V19100100 | B208: Unrecov Purchs Gas Costs-Com | C208: 19100100 | D208: 2934125.88 | F208: -2376098.22 | H208: -4229444.15
A209: %,V19100400 | B209: End User Exchange | C209: 19100400 | D209: -704466.85 | F209: 324184.9 | H209: -2752849.07
A210: %,V19100800 | B210: Unrecov Purch Gas Cst-Unbill | C210: 19100800 | D210: -4152812.56 | F210: 2303959.16 | H210: 1835899.17
A211: %,FACCOUNT,TNI_ACCOUNT_FERC,XBYYYYY01,NPURCH_GAS_COST_UNREC | B211: Unrecovered Purchase Gas Costs | D211: -1923153.53 | F211: 252045.84 | H211: -5146394.05
A212: xx | B212: Total Deferred Debits | D212: =D162+D163+D177+D182+D192+D198+D199+D200+D207+D211 -> 27505938.93 | F212: =F162+F163+F177+F182+F192+F198+F199+F200+F207+F211 -> 3157355.14 | H212: =H162+H163+H177+H182+H192+H198+H199+H200+H207+H211 -> -3320719.15
B214: Total Assets and Other Debits | D214: =D74+D88+D159+D212 -> 613486776.8 | F214: =F74+F88+F159+F212 -> 3134929.48 | H214: =H74+H88+H159+H212 -> -3881122.75
B217: CAPITALIZATION and LIABILITIES
B219: Proprietary Capital
A220: %,V20100000 | B220: Common Stock-Beg Balance | C220: 20100000 | D220: 23806200 | F220: 0 | H220: 0
... 169 more rows

Sheet April22
A1: %,LACTUALS | B1: %,ATT,FDESCR,UDESCR | C1: %,AFT,FACCOUNT | D1: %,LACTUALS,UPOSTED_TRAN_AMT,SBAL,FBOOK_CODE,VR | F1: %,LACTUALS,UPOSTED_TRAN_AMT,SPER,FBOOK_CODE,VR | H1: %,LACTUALS,UPOSTED_TRAN_AMT,SYTD,FBOOK_CODE,VR
B3: Columbia Gas of Kentucky Inc
B4: Balance Sheet-FERC
B5: Regulatory View - FERC Account
B6: As of April 30,2022
F8: Change from | H8: Change from
D9: Current Month | F9: Prior Month | H9: Prior Year-End
B10: Assets and Other Debits
B13: Utility Plant
A15: %,V10100000 | B15: Plant In Service-Beg Bal | C15: 10100000 | D15: 623970195.9 | F15: 0 | H15: 0
A16: %,V10100001 | B16: Plant In Service-Additions | C16: 10100001 | D16: 20225973.52 | F16: 10413863.79 | H16: 20225973.52
A17: %,V10100002 | B17: Plant In Service-Retirements | C17: 10100002 | D17: -2537696.46 | F17: -895218.05 | H17: -2537696.46
A18: %,V10140000 | B18: Cloud Plant In Svc-Beg Bal | C18: 10140000 | D18: 1654282.04 | F18: 0 | H18: 0
A19: %,V10140001 | B19: Cloud Plant in Svc-Additions | C19: 10140001 | D19: -13295.52 | F19: 12412.42 | H19: -13295.52
A20: %,FACCOUNT,TNI_ACCOUNT_FERC,XBYYYYY01,NPLANT_IN_SERV_FERC | B20: Plant in Service | D20: 643299459.5 | F20: 9531058.16 | H20: 17674981.54
A21: %,V10110000 | B21: Capital Leases-Beg Bal | C21: 10110000 | D21: 400000 | F21: 0 | H21: 0
A22: %,V10112000 | B22: Right of Use Asset-Beg Bal | C22: 10112000 | D22: 316999.8 | F22: 0 | H22: 0
A23: %,V10112001 | B23: Right of Use Asset-Additions | C23: 10112001 | D23: 14738.62 | F23: 0 | H23: 14738.62
A24: %,V10112002 | B24: Right of Use Asset-Retirements | C24: 10112002 | D24: -142263.96 | F24: -42945.4 | H24: -142263.96
A25: %,V10112004 | B25: Right of Use Asset-Amort | C25: 10112004 | D25: 41148.98 | F25: 21702.19 | H25: 41148.98
A26: %,FACCOUNT,TNI_ACCOUNT_FERC,XBYYYYY01,NPLANT_CAP_LEASE | B26: Property Under Capital Lease | D26: 630623.44 | F26: -21243.21 | H26: -86376.36
A27: %,FACCOUNT,TNI_ACCOUNT_FERC,XBYYYYY01,NPLANT_PURCH_SOLD | B27: Plant Purchased or Sold | D27: 0 | F27: 0 | H27: 0
A28: %,FACCOUNT,TNI_ACCOUNT_FERC,XBYYYYY01,NPLANT_EXPERIMENT | B28: Experimental Plant Unclass | D28: 0 | F28: 0 | H28: 0
A29: %,FACCOUNT,TNI_ACCOUNT_FERC,XBYYYYY01,NPLANT_GAS_LEASE_OTH | B29: Gas Plant Leased to Others | D29: 0 | F29: 0 | H29: 0
A30: %,FACCOUNT,TNI_ACCOUNT_FERC,XBYYYYY01,NPLANT_FUTURE_USE | B30: Plant Held for Future Use | D30: 0 | F30: 0 | H30: 0
A31: %,V10600000 | B31: Comp Constr Not Class Beg Bal | C31: 10600000 | D31: 29697192.39 | F31: 0 | H31: 0
A32: %,V10600003 | B32: Comp Const not Class Other | C32: 10600003 | D32: -3740698.39 | F32: -5766118.02 | H32: -3740698.39
A33: %,FACCOUNT,TNI_ACCOUNT_FERC,XBYYYYY01,NPLANT_CONST_UNCLASS | B33: Completed Const Not Classified | D33: 25956494 | F33: -5766118.02 | H33: -3740698.39
A34: %,V11401000 | B34: Tang Plant Acq Adj-BegBal | C34: 11401000 | D34: -777092 | F34: 0 | H34: 0
A35: %,FACCOUNT,TNI_ACCOUNT_FERC,XBYYYYY01,NPLANT_ACQ_ADJ_FERC | B35: Plant Acquisitions_Adjustments | D35: -777092 | F35: 0 | H35: 0
A36: %,V10700000 | B36: CWIP-Beg Balance | C36: 10700000 | D36: 18115095.37 | F36: 0 | H36: 0
A37: %,V10700001 | B37: CWIP-Additions | C37: 10700001 | D37: 25520305.91 | F37: 6787578.46 | H37: 25520305.91
A38: %,V10700003 | B38: CWIP-Other Changes | C38: 10700003 | D38: -16485275.13 | F38: -4647745.77 | H38: -16485275.13
A39: %,V10740000 | B39: Cloud CWIP-Beg Balance | C39: 10740000 | D39: 43514.5 | F39: 0 | H39: 0
A40: %,V10740001 | B40: Cloud CWIP-Additions | C40: 10740001 | D40: 160066.65 | F40: 128112.9 | H40: 160066.65
A41: %,V10740003 | B41: Cloud CWIP-Oth Changes | C41: 10740003 | D41: 13295.52 | F41: -12412.42 | H41: 13295.52
A42: %,FACCOUNT,TNI_ACCOUNT_FERC,XBYYYYY01,NCWIP_FERC | B42: CWIP | D42: 27367002.82 | F42: 2255533.17 | H42: 9208392.95
B44: Total Utility Plant | D44: =D20+D26+D27+D28+D29+D30+D33+D35+D42 -> 696476487.8 | F44: =F20+F26+F27+F28+F29+F30+F33+F35+F42 -> 5999230.1 | H44: =H20+H26+H27+H28+H29+H30+H33+H35+H42 -> 23056299.74
A46: %,V10800000 | B46: Accum Deprec Plant -Beg Bal | C46: 10800000 | D46: -167156914.3 | F46: 0 | H46: 0
A47: %,V10800001 | B47: Accum Deprec Plant-Additions | C47: 10800001 | D47: -5520349.13 | F47: -1403662.38 | H47: -5520349.13
A48: %,V10800002 | B48: Accum Deprec Plant-Retiremnt | C48: 10800002 | D48: 2323166.21 | F48: 875641.95 | H48: 2323166.21
A49: %,V10800003 | B49: Accum Deprec Plant-Other Chg | C49: 10800003 | D49: 2914234.63 | F49: 737427 | H49: 2914234.63
A50: %,V10800010 | B50: Retirement WIP-Beg Bal | C50: 10800010 | D50: 711717.34 | F50: 0 | H50: 0
A51: %,V10800011 | B51: Retirement WIP-Additions | C51: 10800011 | D51: 2956055.29 | F51: 772501.3 | H51: 2956055.29
A52: %,V10800013 | B52: Retirement WIP-Other Changes | C52: 10800013 | D52: -2924327.11 | F52: -737784.48 | H52: -2924327.11
A53: %,V10800100 | B53: Accum Deprec Cap Lease-Beg Bal | C53: 10800100 | D53: -185123.97 | F53: 0 | H53: 0
A54: %,V10800101 | B54: Accum Deprec Cap Lease-Add | C54: 10800101 | D54: -13223.15 | F54: -3305.78 | H54: -13223.15
A55: %,FACCOUNT,TNI_ACCOUNT_FERC,XBYYYYY01,NACCUM_DEPR_PLANT | B55: Accum Prov - Depreciation | D55: -166894764.2 | F55: 240817.61 | H55: -264443.26
A56: %,V11100000 | B56: Accum Amortization-Beg Bal | C56: 11100000 | D56: -6439440.05 | F56: 0 | H56: 0
A57: %,V11100001 | B57: Accum Amortization-Additions | C57: 11100001 | D57: -800863.72 | F57: -245803.91 | H57: -800863.72
A58: %,V11100002 | B58: Accum Amortization-Retiremnt | C58: 11100002 | D58: 214530.25 | F58: 19576.1 | H58: 214530.25
A59: %,V11140000 | B59: Cloud Accum Amortiz-BegBal | C59: 11140000 | D59: -297630.53 | F59: 0 | H59: 0
A60: %,V11140001 | B60: Cloud Accum Amortiz-Additions | C60: 11140001 | D60: -112874.87 | F60: -28219.34 | H60: -112874.87
A61: %,FACCOUNT,TNI_ACCOUNT_FERC,XBYYYYY01,NACCUM_AMORT_PLANT | B61: Accum_Amort_Plant | D61: -7436278.92 | F61: -254447.15 | H61: -699208.34
A62: %,V11501000 | B62: Tang Acc Amort Plnt Acq Adj-BB | C62: 11501000 | D62: 157398.63 | F62: 0 | H62: 0
A63: %,V11501010 | B63: Tang Acc Amor Plnt Acq Adj-ADD | C63: 11501010 | D63: 8634.36 | F63: 2158.59 | H63: 8634.36
A64: %,FACCOUNT,TNI_ACCOUNT_FERC,XBYYYYY01,NACCUM_ACQ_ADJ_FERC | B64: Accum Amort Plant Acq_Adj | D64: 166032.99 | F64: 2158.59 | H64: 8634.36
B66: Accum Prov - Amort and Depr | D66: =D55+D61+D64 -> -174165010.1 | F66: =F55+F61+F64 -> -11470.95 | H66: =H55+H61+H64 -> -955017.24
A67: xx | B67: Net Utility Plant | D67: =D44+D66 -> 522311477.7 | F67: =F44+F66 -> 5987759.15 | H67: =H44+H66 -> 22101282.5
A68: %,FACCOUNT,TNI_ACCOUNT_FERC,XBYYYYY01,NUTIL_PLANT_ADJ | B68: Other Plant Adjustments | D68: 0 | F68: 0 | H68: 0
A70: %,FACCOUNT,TNI_ACCOUNT_FERC,XBYYYYY01,NGAS_STORED_BASE | B70: Gas Store Underground | D70: 0 | F70: 0 | H70: 0
A71: %,FACCOUNT,TNI_ACCOUNT_FERC,XBYYYYY01,NGAS_SYS_BAL | B71: System Balancing Gas | D71: 0 | F71: 0 | H71: 0
A73: xx | B73: Gas Store Undergrd_SysBal | D73: =D70+D71 -> 0 | F73: =F70+F71 -> 0 | H73: =H70+H71 -> 0
A74: xx | B74: Total Utility Plant | D74: =D67+D68+D73 -> 522311477.7 | F74: =F67+F68+F73 -> 5987759.15 | H74: =H67+H68+H73 -> 22101282.5
B76: Other Property and Investments
A77: %,FACCOUNT,TNI_ACCOUNT_FERC,XBYYYYY01,NNONUTILITY_PROPERTY | B77: Non Utility Other Property | D77: 0 | F77: 0 | H77: 0
A78: %,FACCOUNT,TNI_ACCOUNT_FERC,XBYYYYY01,NACC_DEPR_OTH_PLANT | B78: Accum Prov - Deprec Oth Plant | D78: 0 | F78: 0 | H78: 0
A79: %,FACCOUNT,TNI_ACCOUNT_FERC,XBYYYYY01,NUNCONSOL_AFFIL_FERC | B79: Investments in Associated Cos | D79: 0 | F79: 0 | H79: 0
A80: %,V12310000 | B80: Inv Sub Co-Common Stock | C80: 12310000 | D80: 174261 | F80: 0 | H80: 0
A81: %,V12310001 | B81: Inv Sub Co-PL | C81: 12310001 | D81: 565904.34 | F81: 0 | H81: -268.77
A82: %,V12310003 | B82: Inv Sub Co-Distrib | C82: 12310003 | D82: -740459.54 | F82: -168.27 | H82: -740459.54
A83: %,FACCOUNT,TNI_ACCOUNT_FERC,XBYYYYY01,NCONSOL_AFFIL_FERC | B83: Investments in Subsidiary Cos | D83: -294.2 | F83: -168.27 | H83: -740728.31
A84: %,FACCOUNT,TNI_ACCOUNT_FERC,XBYYYYY01,NOTHER_INVESTMENTS | B84: Other Investments | D84: 0 | F84: 0 | H84: 0
A85: %,FACCOUNT,TNI_ACCOUNT_FERC,XBYYYYY01,NSINK_FUND | B85: Sinking Fund | D85: 0 | F85: 0 | H85: 0
A86: %,V12800000 | B86: Funds Held in Trust | C86: 12800000 | D86: 2584692.48 | F86: 28794.67 | H86: 115178.68
A87: %,FACCOUNT,TNI_ACCOUNT_FERC,XBYYYYY01,NOTHER_FUND_SPEC | B87: Other Special Funds | D87: 2584692.48 | F87: 28794.67 | H87: 115178.68
A88: xx | B88: Total Other Property and Investments | D88: =D77+D78+D79+D83+D84+D85+D87 -> 2584398.28 | F88: =F77+F78+F79+F83+F84+F85+F87 -> 28626.4 | H88: =H77+H78+H79+H83+H84+H85+H87 -> -625549.63
B90: Current and Accrued Assets
A91: %,V13100000 | B91: Cash | C91: 13100000 | D91: 526844.4 | F91: -518274.77 | H91: 237394.99
A92: %,FACCOUNT,TNI_ACCOUNT_FERC,XBYYYYY01,NCASH_FERC | B92: Cash | D92: 526844.4 | F92: -518274.77 | H92: 237394.99
A93: %,FACCOUNT,TNI_ACCOUNT_FERC,XBYYYYY01,NSPECIAL_DEPOSITS | B93: Special Deposits | D93: 0 | F93: 0 | H93: 0
A94: %,V13500000 | B94: Working Funds | C94: 13500000 | D94: 212.64 | F94: 0 | H94: 0
A95: %,FACCOUNT,TNI_ACCOUNT_FERC,XBYYYYY01,NWORKING_FUNDS | B95: Working Funds | D95: 212.64 | F95: 0 | H95: 0
A96: %,V13600001 | B96: Temp Cash Inv-Money Pool | C96: 13600001 | D96: 407537.07 | F96: -571143.68 | H96: 407537.07
A97: %,FACCOUNT,TNI_ACCOUNT_FERC,XBYYYYY01,NTEMP_CASH_FERC | B97: Temp Cash Investments | D97: 407537.07 | F97: -571143.68 | H97: 407537.07
A98: %,FACCOUNT,TNI_ACCOUNT_FERC,XBYYYYY01,NNOTE_RECEIVABLE | B98: Notes Receivable | D98: 0 | F98: 0 | H98: 0
A99: %,V14200160 | B99: Cust AR-Credit Balances | C99: 14200160 | D99: 1271484.07 | F99: -624888.35 | H99: -7336139.79
A100: %,V14200220 | B100: Cust AR-CAB | C100: 14200220 | D100: 10312252.02 | F100: -487633.61 | H100: 7729584.63
A101: %,V14200250 | B101: Cust AR-GMB | C101: 14200250 | D101: 155207.91 | F101: -120456.37 | H101: -137446.92
A102: %,V14200260 | B102: Cust AR-Cust Premise Work | C102: 14200260 | D102: 156271.59 | F102: 32384.67 | H102: 7788.97
A103: %,FACCOUNT,TNI_ACCOUNT_FERC,XBYYYYY01,NCUSTOMER_AR_FERC | B103: Customer Accounts Receivable | D103: 11895215.59 | F103: -1200593.66 | H103: 263786.89
A104: %,V14300001 | B104: Misc Accts Rec-Other | C104: 14300001 | D104: 1749952.32 | F104: -60.39 | H104: 20700.39
A105: %,V14300018 | B105: Other AR-Billed OSS | C105: 14300018 | D105: 480642.99 | F105: -292557 | H105: 423168
A106: %,V14300220 | B106: Other AR-GMB Estimate | C106: 14300220 | D106: 5148.75 | F106: -1481.32 | H106: -5250.29
A107: %,V14300240 | B107: Other AR-GTS | C107: 14300240 | D107: 1562855.92 | F107: 158424.81 | H107: 248270.18
A108: %,V14300270 | B108: Other AR-Retail Service | C108: 14300270 | D108: 1523.4 | F108: -18618.24 | H108: -12347.5
A109: %,V14300290 | B109: Other AR-CNR | C109: 14300290 | D109: 604287.01 | F109: 16447.9 | H109: 101222.88
A110: %,V14300330 | B110: Other AR Choice Trans-Columbia | C110: 14300330 | D110: 2359.18 | F110: 95988.23 | H110: 1821413.4
A111: %,V14300350 | B111: Other AR Choice Trans-Purchase | C111: 14300350 | D111: 1415272.97 | F111: -92424.32 | H111: 131285.16
A112: %,V14300395 | B112: Other AR-CPG Non-Transit Srvcs | C112: 14300395 | D112: 50545.36 | F112: 0 | H112: 181.34
A113: %,V14311111 | B113: Other AR-Curr-MA Project | C113: 14311111 | D113: 4686.29 | F113: 0 | H113: 0
A114: %,FACCOUNT,TNI_ACCOUNT_FERC,XBYYYYY01,NOTHER_AR_UNAFFIL | B114: Other Accounts Receivable | D114: 5877274.19 | F114: -134280.33 | H114: 2728643.56
A115: %,V14400000 | B115: Acc Prov for Uncol-Beg Bal | C115: 14400000 | D115: -407748.76 | F115: 0 | H115: 0
A116: %,V14400100 | B116: Acc Prov for Uncol-Reserve | C116: 14400100 | D116: -516382.37 | F116: -162593.75 | H116: -516382.37
A117: %,V14400150 | B117: Acc Prov for Uncol-Charge-Offs | C117: 14400150 | D117: 244594.6 | F117: 97519.47 | H117: 244594.6
A118: %,V14400200 | B118: Acc Prov for Uncol-Recoveries | C118: 14400200 | D118: -108906.87 | F118: -20053.36 | H118: -108906.87
A119: %,V14400600 | B119: Accm Prov Uncoll-Unbilled | C119: 14400600 | D119: -51458.78 | F119: 41429.56 | H119: 90069.99
A120: %,V14400700 | B120: Accm Prov Uncoll-Misc | C120: 14400700 | D120: -401312.87 | F120: 0 | H120: 0
A121: %,FACCOUNT,TNI_ACCOUNT_FERC,XBYYYYY01,NRESERVE_AR | B121: Accum Prov Uncollectible - Cr | D121: -1241215.05 | F121: -43698.08 | H121: -290624.65
A122: %,FACCOUNT,TNI_ACCOUNT_FERC,XBYYYYY01,NNOTE_REC_AFFIL | B122: NR from Associated Cos | D122: 0 | F122: 0 | H122: 0
A123: %,V14600000 | B123: AR Assoc Co-Mech | C123: 14600000 | D123: 198985.3 | F123: 193367.21 | H123: 157701.43
A124: %,V14600002 | B124: AR Assoc Co-Misc | C124: 14600002 | D124: 12555.28 | F124: -15645.59 | H124: -6374.72
A125: %,V14610000 | B125: Money Pool Deposits | C125: 14610000 | D125: 16904526.2 | F125: 6740374.84 | H125: 16904526.2
A126: %,V14610010 | B126: Money Pool-Intrst Receivable | C126: 14610010 | D126: 4631 | F126: 4510.34 | H126: 4631
A127: %,V14620000 | B127: Foreign Cash | C127: 14620000 | D127: -604229.32 | F127: 0 | H127: -9042.35
A128: %,FACCOUNT,TNI_ACCOUNT_FERC,XBYYYYY01,NAR_AFFILIATE | B128: AR from Associated Cos | D128: 16516468.46 | F128: 6922606.8 | H128: 17051441.56
A129: %,FACCOUNT,TNI_ACCOUNT_FERC,XBYYYYY01,NFUEL_STOCK | B129: Fuel Stock | D129: 0 | F129: 0 | H129: 0
A130: %,FACCOUNT,TNI_ACCOUNT_FERC,XBYYYYY01,NFUEL_STK_EXP_UNDISTR | B130: Fuel Stock Expenses Undistrib | D130: 0 | F130: 0 | H130: 0
A131: %,FACCOUNT,TNI_ACCOUNT_FERC,XBYYYYY01,NRESIDUALS | B131: Residuals & Extracted Products | D131: 0 | F131: 0 | H131: 0
A132: %,V15400000 | B132: Plant Materials-Oth Supplies | C132: 15400000 | D132: 326579.87 | F132: 203.52 | H132: 15263.21
A133: %,FACCOUNT,TNI_ACCOUNT_FERC,XBYYYYY01,NMATERIALS_AND_SUPPLY | B133: Plant Materials & Supplies | D133: 326579.87 | F133: 203.52 | H133: 15263.21
A134: %,FACCOUNT,TNI_ACCOUNT_FERC,XBYYYYY01,NMERCHANDISE | B134: Merchandise | D134: 0 | F134: 0 | H134: 0
A135: %,FACCOUNT,TNI_ACCOUNT_FERC,XBYYYYY01,NALLOWANCES | B135: Allowances | D135: 0 | F135: 0 | H135: 0
A136: %,FACCOUNT,TNI_ACCOUNT_FERC,XBYYYYY01,NSTORES_EXP | B136: Stores Exp Undistributed | D136: 0 | F136: 0 | H136: 0
A137: %,V16411000 | B137: Gas Stored-Current-LIFO | C137: 16411000 | D137: 3837025.3 | F137: 1953354.61 | H137: -38109244.2
A138: %,FACCOUNT,TNI_ACCOUNT_FERC,XBYYYYY01,NGAS_STORED_UNDRGRND | B138: Gas Stored Underground - Curr | D138: 3837025.3 | F138: 1953354.61 | H138: -38109244.2
A139: %,FACCOUNT,TNI_ACCOUNT_FERC,XBYYYYY01,NLNG_STORED_HELD | B139: LNG Stored & Held for Process | D139: 0 | F139: 0 | H139: 0
A140: %,V16500000 | B140: Other Misc Prepayments | C140: 16500000 | D140: -59589.15 | F140: -1227.27 | H140: -5041.89
A141: %,V16500010 | B141: Prepaid-Medical LTD | C141: 16500010 | D141: 1572.83 | F141: -249.34 | H141: -1572.81
A142: %,V16500030 | B142: Prepaid Payroll | C142: 16500030 | D142: 0 | F142: 0 | H142: -44940.59
A143: %,V16503600 | B143: Prepaid Taxes - Other | C143: 16503600 | D143: 34637.35 | F143: -22634.77 | H143: -90539.08
A144: %,V16520000 | B144: Prepaid-Insurance Affiliate | C144: 16520000 | D144: 260422.7 | F144: -74535.64 | H144: -74288.02
A145: %,V16521000 | B145: Prepaid-Insurance NonAffil | C145: 16521000 | D145: 428081.93 | F145: -147539.63 | H145: -463887.61
A146: %,V16591000 | B146: Prepaid-NC Cloud Cost Incurred | C146: 16591000 | D146: 0.15 | F146: 0 | H146: 0.04
A147: %,FACCOUNT,TNI_ACCOUNT_FERC,XBYYYYY01,NPREPAYMENTS_FERC | B147: Prepayments | D147: 665125.81 | F147: -246186.65 | H147: -680269.96
A148: %,FACCOUNT,TNI_ACCOUNT_FERC,XBYYYYY01,NINT_DIV_REC | B148: Interest & Dividends Rec | D148: 0 | F148: 0 | H148: 0
A149: %,FACCOUNT,TNI_ACCOUNT_FERC,XBYYYYY01,NRENT_REC | B149: Rent Receivable | D149: 0 | F149: 0 | H149: 0
A150: %,V17300000 | B150: AR Accrued Revenues | C150: 17300000 | D150: 7360312.51 | F150: -4134445.78 | H150: -7556452.95
A151: %,V17302000 | B151: AR Accrd Rev Unbill Exch Gas | C151: 17302000 | D151: 262540.44 | F151: 67336.78 | H151: 168962.38
A152: %,FACCOUNT,TNI_ACCOUNT_FERC,XBYYYYY01,NACCRUED_REVENUES | B152: Accrued Utility Revenues | D152: 7622852.95 | F152: -4067109 | H152: -7387490.57
A153: %,V17401000 | B153: Misc Assets-Exch Gas Receiv | C153: 17401000 | D153: 3997961.34 | F153: -809672.22 | H153: 27391.66
A154: %,V17403200 | B154: Misc Assets-Property Tax | C154: 17403200 | D154: 4690363.74 | F154: -565670.42 | H154: -2262681.68
A155: %,V17406000 | B155: Misc Assets-Storage | C155: 17406000 | D155: 6665978.64 | F155: -6032658.68 | H155: 6665978.64
A156: %,FACCOUNT,TNI_ACCOUNT_FERC,XBYYYYY01,NOTHER_CURRENT_ASSETS | B156: Misc Current & Accrued Assets | D156: 15354303.72 | F156: -7408001.32 | H156: 4430688.62
A157: %,FACCOUNT,TNI_ACCOUNT_FERC,XBYYYYY01,NDERIV_ASSET | B157: Derivative Instrument Assets | D157: 0 | F157: 0 | H157: 0
A158: %,FACCOUNT,TNI_ACCOUNT_FERC,XBYYYYY01,NDERIV_HEDGE | B158: Derivative Assets - Hedging | D158: 0 | F158: 0 | H158: 0
A159: xx | B159: Total Current and Accrued Assets | D159: =D92+D93+D95+D97+D98+D103+D114+D121+D122+D128+D129+D130+D131+D133+D134+D135+D136+D138+D139+D147+D148+D149+D152+D156+D157+D158 -> 61788224.95 | F159: =F92+F93+F95+F97+F98+F103+F114+F121+F122+F128+F129+F130+F131+F133+F134+F135+F136+F138+F139+F147+F148+F149+F152+F156+F157+F158 -> -5313122.56 | H159: =H92+H93+H95+H97+H98+H103+H114+H121+H122+H128+H129+H130+H131+H133+H134+H135+H136+H138+H139+H147+H148+H149+H152+H156+H157+H158 -> -21332873.48
B161: Deferred Debits
A162: %,FACCOUNT,TNI_ACCOUNT_FERC,XBYYYYY01,NUNAMORTIZED_DEBT_EXP | B162: Unamortized Debt Expense | D162: 0 | F162: 0 | H162: 0
A163: %,FACCOUNT,TNI_ACCOUNT_FERC,XBYYYYY01,NEXTRAORD_PROP_LOSS | B163: Extraordinary Property Loss | D163: 0 | F163: 0 | H163: 0
A164: %,V18230200 | B164: Reg Asset Cr Bal Transf | C164: 18230200 | D164: 253127.55 | F164: 222343.55 | H164: 253127.55
A165: %,V18230250 | B165: Reg Asset Rate Case Current | C165: 18230250 | D165: 185185.44 | F165: 0 | H165: 0
A166: %,V18230350 | B166: Reg Asset DSM Expenses-GAS | C166: 18230350 | D166: 0 | F166: 0 | H166: -6590
A167: %,V18230440 | B167: Reg Asset GTI Funding | C167: 18230440 | D167: 60147.69 | F167: 2808.75 | H167: -62234.38
A168: %,V18230450 | B168: Reg Asset EAP | C168: 18230450 | D168: -227343.76 | F168: -196559.76 | H168: -265457.23
A169: %,V18233420 | B169: Reg Asset-Prf Base Rt Adj PBRA | C169: 18233420 | D169: 3988860.48 | F169: 62120.1 | H169: 2391891.95
A170: %,V18233560 | B170: Reg Asset COVID Costs CURRENT | C170: 18233560 | D170: 11318.04 | F170: 0 | H170: 0
A171: %,V18235114 | B171: NC Reg Asset FAS 158 OPEB | C171: 18235114 | D171: 945077.36 | F171: -10769.41 | H171: -43077.64
A172: %,V18235115 | B172: NC Reg Asset FAS158 Pension | C172: 18235115 | D172: 3040992 | F172: -10386.25 | H172: -41545
A173: %,V18235440 | B173: NC Reg Asset Rate Case Non-Cur | C173: 18235440 | D173: 312400.1 | F173: -15432.12 | H173: -57970.68
A174: %,V18235450 | B174: NC Reg Asset Pen NQulfd FAS158 | C174: 18235450 | D174: 7927 | F174: 0 | H174: 0
A175: %,V18235506 | B175: NC Reg Asset Def Depr Cap Lse | C175: 18235506 | D175: 19984.63 | F175: 15.52 | H175: 124.06
A176: %,V18235530 | B176: NC Reg Asset COVID Costs | C176: 18235530 | D176: 18863.39 | F176: -943.17 | H176: -3772.56
A177: %,FACCOUNT,TNI_ACCOUNT_FERC,XBYYYYY01,NOTHER_REG_ASSET | B177: Other Regulatory Asset | D177: 8616539.92 | F177: 53197.21 | H177: 2164496.07
A179: %,V18320000 | B179: Oth Prelim Survey B Bal | C179: 18320000 | D179: 1232417.64 | F179: 0 | H179: 0
A180: %,V18320001 | B180: Oth Prelim Survey Additions | C180: 18320001 | D180: 240121.35 | F180: 80867.83 | H180: 240121.35
A181: %,NPRELIM_SURVEY_OTH | B181: Preliminary Survey Other | D181: 1472538.99 | F181: 80867.83 | H181: 240121.35
A182: %,FACCOUNT,TNI_ACCOUNT_FERC,XBYYYYY01,NPRELIM_SURVEY | B182: Preliminary Surveys | D182: 1472538.99 | F182: 80867.83 | H182: 240121.35
A184: %,V18400100 | B184: Building Clearing | C184: 18400100 | D184: 568.16 | F184: 0 | H184: 568.16
A185: %,V18400200 | B185: Car Clearing | C185: 18400200 | D185: 0.03 | F185: 927.78 | H185: 0.03
A186: %,V18400250 | B186: Truck Clearing | C186: 18400250 | D186: 0.02 | F186: 0.02 | H186: 0.02
A187: %,V18400400 | B187: General Tool Clearing | C187: 18400400 | D187: -0.03 | F187: 0.03 | H187: -0.03
A188: %,NCLEARING_OTHER | B188: Clearing Accounts Other | D188: 568.18 | F188: 927.83 | H188: 568.18
A189: %,V18400275 | B189: Clearing-Fleet | C189: 18400275 | D189: -1441.86 | F189: -1824.95 | H189: -1441.86
A190: %,NCLEARING_FLEET | B190: Clearing Fleet | D190: -1441.86 | F190: -1824.95 | H190: -1441.86
A191: %,NCLEARING_GENERAL | B191: Clearing Accounts General | D191: 0 | F191: 0 | H191: 0
A192: %,FACCOUNT,TNI_ACCOUNT_FERC,XBYYYYY01,NCLEARING_ACCOUNTS | B192: Clearing Accounts | D192: -873.68 | F192: -897.12 | H192: -873.68
A194: %,V18600400 | B194: DefDebitCusAdv_DEPPST12-31-99 | C194: 18600400 | D194: 2657064.59 | F194: 1845.17 | H194: -52414.15
A195: %,NDEF_DEB_MISC_OTH | B195: Def Deb Miscellaneous Other | D195: 2657064.59 | F195: 1845.17 | H195: -52414.15
A196: %,V18600200 | B196: Def Debit-Maint and Jobng WIP | C196: 18600200 | D196: 138367.73 | F196: 0 | H196: 127417.4
A197: %,NDEF_DEB_MNT_JOB_WIP | B197: Maintenance and Jobbing WIP | D197: 138367.73 | F197: 0 | H197: 127417.4
A198: %,FACCOUNT,TNI_ACCOUNT_FERC,XBYYYYY01,NDEFERRED_DEBITS_MISC | B198: Miscellaneous Deferred Debits | D198: 2795432.32 | F198: 1845.17 | H198: 75003.25
A199: %,FACCOUNT,TNI_ACCOUNT_FERC,XBYYYYY01,NRESEARCH_&_DEV_EXP | B199: Research & Development Expense | D199: 0 | F199: 0 | H199: 0
A200: %,FACCOUNT,TNI_ACCOUNT_FERC,XBYYYYY01,NREACQ_DEBT_LOSS | B200: Unamort Loss Reacquired Debt | D200: 0 | F200: 0 | H200: 0
A201: %,V19005000 | B201: ADIT-Other-Noncurr-Fed | C201: 19005000 | D201: 7169701 | F201: 3296 | H201: -260383
A202: %,V19005100 | B202: ADIT Reg Liability NC - Fed | C202: 19005100 | D202: 14011 | F202: -550 | H202: -2201
A203: %,V19005400 | B203: ADIT FIT Gross Up | C203: 19005400 | D203: 6540513 | F203: -24540 | H203: -98160
A204: %,V19006000 | B204: ADIT-Other-Noncurr-State | C204: 19006000 | D204: 696097 | F204: 797 | H204: -170982
A205: %,V19006100 | B205: ADIT Reg Liability NC - State | C205: 19006100 | D205: 3554 | F205: 0 | H205: 0
A206: %,V19006400 | B206: ADIT SIT Gross Up | C206: 19006400 | D206: 2233152 | F206: -2443 | H206: -9773
A207: %,FACCOUNT,TNI_ACCOUNT_FERC,XBYYYYY01,NACCUM_DEFD_INC_TAX | B207: Accum Deferred Income Taxes | D207: 16657028 | F207: -23440 | H207: -541499
A208: %,V19100100 | B208: Unrecov Purchs Gas Costs-Com | C208: 19100100 | D208: 11255099.93 | F208: 8320974.05 | H208: 4091529.9
A209: %,V19100400 | B209: End User Exchange | C209: 19100400 | D209: -346336.13 | F209: 358130.72 | H209: -2394718.35
A210: %,V19100800 | B210: Unrecov Purch Gas Cst-Unbill | C210: 19100800 | D210: -1980468.8 | F210: 2172343.76 | H210: 4008242.93
A211: %,FACCOUNT,TNI_ACCOUNT_FERC,XBYYYYY01,NPURCH_GAS_COST_UNREC | B211: Unrecovered Purchase Gas Costs | D211: 8928295 | F211: 10851448.53 | H211: 5705054.48
A212: xx | B212: Total Deferred Debits | D212: =D162+D163+D177+D182+D192+D198+D199+D200+D207+D211 -> 38468960.55 | F212: =F162+F163+F177+F182+F192+F198+F199+F200+F207+F211 -> 10963021.62 | H212: =H162+H163+H177+H182+H192+H198+H199+H200+H207+H211 -> 7642302.47
B214: Total Assets and Other Debits | D214: =D74+D88+D159+D212 -> 625153061.5 | F214: =F74+F88+F159+F212 -> 11666284.61 | H214: =H74+H88+H159+H212 -> 7785161.86
B217: CAPITALIZATION and LIABILITIES
B219: Proprietary Capital
A220: %,V20100000 | B220: Common Stock-Beg Balance | C220: 20100000 | D220: 23806200 | F220: 0 | H220: 0
... 169 more rows

Sheet May22
A1: %,LACTUALS | B1: %,ATT,FDESCR,UDESCR | C1: %,AFT,FACCOUNT | D1: %,LACTUALS,UPOSTED_TRAN_AMT,SBAL,FBOOK_CODE,VR | F1: %,LACTUALS,UPOSTED_TRAN_AMT,SPER,FBOOK_CODE,VR | H1: %,LACTUALS,UPOSTED_TRAN_AMT,SYTD,FBOOK_CODE,VR
B3: Columbia Gas of Kentucky Inc
B4: Balance Sheet-FERC
B5: Regulatory View - FERC Account
B6: As of May 31, 2022
F8: Change from | H8: Change from
D9: Current Month | F9: Prior Month | H9: Prior Year-End
B10: Assets and Other Debits
B13: Utility Plant
A15: %,V10100000 | B15: Plant In Service-Beg Bal | C15: 10100000 | D15: 623970195.9 | F15: 0 | H15: 0
A16: %,V10100001 | B16: Plant In Service-Additions | C16: 10100001 | D16: 25641421.66 | F16: 5415448.14 | H16: 25641421.66
A17: %,V10100002 | B17: Plant In Service-Retirements | C17: 10100002 | D17: -3515803.52 | F17: -978107.06 | H17: -3515803.52
A18: %,V10140000 | B18: Cloud Plant In Svc-Beg Bal | C18: 10140000 | D18: 1654282.04 | F18: 0 | H18: 0
A19: %,V10140001 | B19: Cloud Plant in Svc-Additions | C19: 10140001 | D19: -32865.68 | F19: -19570.16 | H19: -32865.68
A20: %,FACCOUNT,TNI_ACCOUNT_FERC,XBYYYYY01,NPLANT_IN_SERV_FERC | B20: Plant in Service | D20: 647717230.4 | F20: 4417770.92 | H20: 22092752.46
A21: %,V10110000 | B21: Capital Leases-Beg Bal | C21: 10110000 | D21: 400000 | F21: 0 | H21: 0
A22: %,V10112000 | B22: Right of Use Asset-Beg Bal | C22: 10112000 | D22: 316999.8 | F22: 0 | H22: 0
A23: %,V10112001 | B23: Right of Use Asset-Additions | C23: 10112001 | D23: 14738.62 | F23: 0 | H23: 14738.62
A24: %,V10112002 | B24: Right of Use Asset-Retirements | C24: 10112002 | D24: -155956.37 | F24: -13692.41 | H24: -155956.37
A25: %,V10112004 | B25: Right of Use Asset-Amort | C25: 10112004 | D25: 36891.45 | F25: -4257.53 | H25: 36891.45
A26: %,FACCOUNT,TNI_ACCOUNT_FERC,XBYYYYY01,NPLANT_CAP_LEASE | B26: Property Under Capital Lease | D26: 612673.5 | F26: -17949.94 | H26: -104326.3
A27: %,FACCOUNT,TNI_ACCOUNT_FERC,XBYYYYY01,NPLANT_PURCH_SOLD | B27: Plant Purchased or Sold | D27: 0 | F27: 0 | H27: 0
A28: %,FACCOUNT,TNI_ACCOUNT_FERC,XBYYYYY01,NPLANT_EXPERIMENT | B28: Experimental Plant Unclass | D28: 0 | F28: 0 | H28: 0
A29: %,FACCOUNT,TNI_ACCOUNT_FERC,XBYYYYY01,NPLANT_GAS_LEASE_OTH | B29: Gas Plant Leased to Others | D29: 0 | F29: 0 | H29: 0
A30: %,FACCOUNT,TNI_ACCOUNT_FERC,XBYYYYY01,NPLANT_FUTURE_USE | B30: Plant Held for Future Use | D30: 0 | F30: 0 | H30: 0
A31: %,V10600000 | B31: Comp Constr Not Class Beg Bal | C31: 10600000 | D31: 29697192.39 | F31: 0 | H31: 0
A32: %,V10600003 | B32: Comp Const not Class Other | C32: 10600003 | D32: -3560980.67 | F32: 179717.72 | H32: -3560980.67
A33: %,FACCOUNT,TNI_ACCOUNT_FERC,XBYYYYY01,NPLANT_CONST_UNCLASS | B33: Completed Const Not Classified | D33: 26136211.72 | F33: 179717.72 | H33: -3560980.67
A34: %,V11401000 | B34: Tang Plant Acq Adj-BegBal | C34: 11401000 | D34: -777092 | F34: 0 | H34: 0
A35: %,FACCOUNT,TNI_ACCOUNT_FERC,XBYYYYY01,NPLANT_ACQ_ADJ_FERC | B35: Plant Acquisitions_Adjustments | D35: -777092 | F35: 0 | H35: 0
A36: %,V10700000 | B36: CWIP-Beg Balance | C36: 10700000 | D36: 18115095.37 | F36: 0 | H36: 0
A37: %,V10700001 | B37: CWIP-Additions | C37: 10700001 | D37: 31599595.43 | F37: 6079289.52 | H37: 31599595.43
A38: %,V10700003 | B38: CWIP-Other Changes | C38: 10700003 | D38: -22080440.99 | F38: -5595165.86 | H38: -22080440.99
A39: %,V10740000 | B39: Cloud CWIP-Beg Balance | C39: 10740000 | D39: 43514.5 | F39: 0 | H39: 0
A40: %,V10740001 | B40: Cloud CWIP-Additions | C40: 10740001 | D40: 147048.98 | F40: -13017.67 | H40: 147048.98
A41: %,V10740003 | B41: Cloud CWIP-Oth Changes | C41: 10740003 | D41: 32865.68 | F41: 19570.16 | H41: 32865.68
A42: %,FACCOUNT,TNI_ACCOUNT_FERC,XBYYYYY01,NCWIP_FERC | B42: CWIP | D42: 27857678.97 | F42: 490676.15 | H42: 9699069.1
B44: Total Utility Plant | D44: =D20+D26+D27+D28+D29+D30+D33+D35+D42 -> 701546702.6 | F44: =F20+F26+F27+F28+F29+F30+F33+F35+F42 -> 5070214.85 | H44: =H20+H26+H27+H28+H29+H30+H33+H35+H42 -> 28126514.59
A46: %,V10800000 | B46: Accum Deprec Plant -Beg Bal | C46: 10800000 | D46: -167156914.3 | F46: 0 | H46: 0
A47: %,V10800001 | B47: Accum Deprec Plant-Additions | C47: 10800001 | D47: -6905313.64 | F47: -1384964.51 | H47: -6905313.64
A48: %,V10800002 | B48: Accum Deprec Plant-Retiremnt | C48: 10800002 | D48: 3275311.57 | F48: 952145.36 | H48: 3275311.57
A49: %,V10800003 | B49: Accum Deprec Plant-Other Chg | C49: 10800003 | D49: 4073687.94 | F49: 1159453.31 | H49: 4073687.94
A50: %,V10800010 | B50: Retirement WIP-Beg Bal | C50: 10800010 | D50: 711717.34 | F50: 0 | H50: 0
A51: %,V10800011 | B51: Retirement WIP-Additions | C51: 10800011 | D51: 4754525.62 | F51: 1798470.33 | H51: 4754525.62
A52: %,V10800013 | B52: Retirement WIP-Other Changes | C52: 10800013 | D52: -4084039.47 | F52: -1159712.36 | H52: -4084039.47
A53: %,V10800100 | B53: Accum Deprec Cap Lease-Beg Bal | C53: 10800100 | D53: -185123.97 | F53: 0 | H53: 0
A54: %,V10800101 | B54: Accum Deprec Cap Lease-Add | C54: 10800101 | D54: -16528.93 | F54: -3305.78 | H54: -16528.93
A55: %,FACCOUNT,TNI_ACCOUNT_FERC,XBYYYYY01,NACCUM_DEPR_PLANT | B55: Accum Prov - Depreciation | D55: -165532677.8 | F55: 1362086.35 | H55: 1097643.09
A56: %,V11100000 | B56: Accum Amortization-Beg Bal | C56: 11100000 | D56: -6439440.05 | F56: 0 | H56: 0
A57: %,V11100001 | B57: Accum Amortization-Additions | C57: 11100001 | D57: -1049749.92 | F57: -248886.2 | H57: -1049749.92
A58: %,V11100002 | B58: Accum Amortization-Retiremnt | C58: 11100002 | D58: 240491.95 | F58: 25961.7 | H58: 240491.95
A59: %,V11140000 | B59: Cloud Accum Amortiz-BegBal | C59: 11140000 | D59: -297630.53 | F59: 0 | H59: 0
A60: %,V11140001 | B60: Cloud Accum Amortiz-Additions | C60: 11140001 | D60: -141017.07 | F60: -28142.2 | H60: -141017.07
A61: %,FACCOUNT,TNI_ACCOUNT_FERC,XBYYYYY01,NACCUM_AMORT_PLANT | B61: Accum_Amort_Plant | D61: -7687345.62 | F61: -251066.7 | H61: -950275.04
A62: %,V11501000 | B62: Tang Acc Amort Plnt Acq Adj-BB | C62: 11501000 | D62: 157398.63 | F62: 0 | H62: 0
A63: %,V11501010 | B63: Tang Acc Amor Plnt Acq Adj-ADD | C63: 11501010 | D63: 10792.95 | F63: 2158.59 | H63: 10792.95
A64: %,FACCOUNT,TNI_ACCOUNT_FERC,XBYYYYY01,NACCUM_ACQ_ADJ_FERC | B64: Accum Amort Plant Acq_Adj | D64: 168191.58 | F64: 2158.59 | H64: 10792.95
B66: Accum Prov - Amort and Depr | D66: =D55+D61+D64 -> -173051831.8 | F66: =F55+F61+F64 -> 1113178.24 | H66: =H55+H61+H64 -> 158161
A67: xx | B67: Net Utility Plant | D67: =D44+D66 -> 528494870.8 | F67: =F44+F66 -> 6183393.09 | H67: =H44+H66 -> 28284675.59
A68: %,FACCOUNT,TNI_ACCOUNT_FERC,XBYYYYY01,NUTIL_PLANT_ADJ | B68: Other Plant Adjustments | D68: 0 | F68: 0 | H68: 0
A70: %,FACCOUNT,TNI_ACCOUNT_FERC,XBYYYYY01,NGAS_STORED_BASE | B70: Gas Store Underground | D70: 0 | F70: 0 | H70: 0
A71: %,FACCOUNT,TNI_ACCOUNT_FERC,XBYYYYY01,NGAS_SYS_BAL | B71: System Balancing Gas | D71: 0 | F71: 0 | H71: 0
A73: xx | B73: Gas Store Undergrd_SysBal | D73: =D70+D71 -> 0 | F73: =F70+F71 -> 0 | H73: =H70+H71 -> 0
A74: xx | B74: Total Utility Plant | D74: =D67+D68+D73 -> 528494870.8 | F74: =F67+F68+F73 -> 6183393.09 | H74: =H67+H68+H73 -> 28284675.59
B76: Other Property and Investments
A77: %,FACCOUNT,TNI_ACCOUNT_FERC,XBYYYYY01,NNONUTILITY_PROPERTY | B77: Non Utility Other Property | D77: 0 | F77: 0 | H77: 0
A78: %,FACCOUNT,TNI_ACCOUNT_FERC,XBYYYYY01,NACC_DEPR_OTH_PLANT | B78: Accum Prov - Deprec Oth Plant | D78: 0 | F78: 0 | H78: 0
A79: %,FACCOUNT,TNI_ACCOUNT_FERC,XBYYYYY01,NUNCONSOL_AFFIL_FERC | B79: Investments in Associated Cos | D79: 0 | F79: 0 | H79: 0
A80: %,V12310000 | B80: Inv Sub Co-Common Stock | C80: 12310000 | D80: 174261 | F80: 0 | H80: 0
A81: %,V12310001 | B81: Inv Sub Co-PL | C81: 12310001 | D81: 565904.34 | F81: 0 | H81: -268.77
A82: %,V12310003 | B82: Inv Sub Co-Distrib | C82: 12310003 | D82: -740459.54 | F82: 0 | H82: -740459.54
A83: %,FACCOUNT,TNI_ACCOUNT_FERC,XBYYYYY01,NCONSOL_AFFIL_FERC | B83: Investments in Subsidiary Cos | D83: -294.2 | F83: 0 | H83: -740728.31
A84: %,FACCOUNT,TNI_ACCOUNT_FERC,XBYYYYY01,NOTHER_INVESTMENTS | B84: Other Investments | D84: 0 | F84: 0 | H84: 0
A85: %,FACCOUNT,TNI_ACCOUNT_FERC,XBYYYYY01,NSINK_FUND | B85: Sinking Fund | D85: 0 | F85: 0 | H85: 0
A86: %,V12800000 | B86: Funds Held in Trust | C86: 12800000 | D86: 2613487.15 | F86: 28794.67 | H86: 143973.35
A87: %,FACCOUNT,TNI_ACCOUNT_FERC,XBYYYYY01,NOTHER_FUND_SPEC | B87: Other Special Funds | D87: 2613487.15 | F87: 28794.67 | H87: 143973.35
A88: xx | B88: Total Other Property and Investments | D88: =D77+D78+D79+D83+D84+D85+D87 -> 2613192.95 | F88: =F77+F78+F79+F83+F84+F85+F87 -> 28794.67 | H88: =H77+H78+H79+H83+H84+H85+H87 -> -596754.96
B90: Current and Accrued Assets
A91: %,V13100000 | B91: Cash | C91: 13100000 | D91: 466577.16 | F91: -60267.24 | H91: 177127.75
A92: %,FACCOUNT,TNI_ACCOUNT_FERC,XBYYYYY01,NCASH_FERC | B92: Cash | D92: 466577.16 | F92: -60267.24 | H92: 177127.75
A93: %,FACCOUNT,TNI_ACCOUNT_FERC,XBYYYYY01,NSPECIAL_DEPOSITS | B93: Special Deposits | D93: 0 | F93: 0 | H93: 0
A94: %,V13500000 | B94: Working Funds | C94: 13500000 | D94: 212.64 | F94: 0 | H94: 0
A95: %,FACCOUNT,TNI_ACCOUNT_FERC,XBYYYYY01,NWORKING_FUNDS | B95: Working Funds | D95: 212.64 | F95: 0 | H95: 0
A96: %,V13600001 | B96: Temp Cash Inv-Money Pool | C96: 13600001 | D96: 247676.52 | F96: -159860.55 | H96: 247676.52
A97: %,FACCOUNT,TNI_ACCOUNT_FERC,XBYYYYY01,NTEMP_CASH_FERC | B97: Temp Cash Investments | D97: 247676.52 | F97: -159860.55 | H97: 247676.52
A98: %,FACCOUNT,TNI_ACCOUNT_FERC,XBYYYYY01,NNOTE_RECEIVABLE | B98: Notes Receivable | D98: 0 | F98: 0 | H98: 0
A99: %,V14200160 | B99: Cust AR-Credit Balances | C99: 14200160 | D99: 2181279.05 | F99: 909794.98 | H99: -6426344.81
A100: %,V14200220 | B100: Cust AR-CAB | C100: 14200220 | D100: 4414026.78 | F100: -5898225.24 | H100: 1831359.39
A101: %,V14200250 | B101: Cust AR-GMB | C101: 14200250 | D101: 74520.38 | F101: -80687.53 | H101: -218134.45
A102: %,V14200260 | B102: Cust AR-Cust Premise Work | C102: 14200260 | D102: 124149.18 | F102: -32122.41 | H102: -24333.44
A103: %,FACCOUNT,TNI_ACCOUNT_FERC,XBYYYYY01,NCUSTOMER_AR_FERC | B103: Customer Accounts Receivable | D103: 6793975.39 | F103: -5101240.2 | H103: -4837453.31
A104: %,V14300001 | B104: Misc Accts Rec-Other | C104: 14300001 | D104: 1751952.01 | F104: 1999.69 | H104: 22700.08
A105: %,V14300018 | B105: Other AR-Billed OSS | C105: 14300018 | D105: 3889.99 | F105: -476753 | H105: -53585
A106: %,V14300220 | B106: Other AR-GMB Estimate | C106: 14300220 | D106: 2275.52 | F106: -2873.23 | H106: -8123.52
A107: %,V14300240 | B107: Other AR-GTS | C107: 14300240 | D107: 1288443.11 | F107: -274412.81 | H107: -26142.63
A108: %,V14300270 | B108: Other AR-Retail Service | C108: 14300270 | D108: 1530.45 | F108: 7.05 | H108: -12340.45
A109: %,V14300290 | B109: Other AR-CNR | C109: 14300290 | D109: 632917.54 | F109: 28630.53 | H109: 129853.41
A110: %,V14300330 | B110: Other AR Choice Trans-Columbia | C110: 14300330 | D110: -391211.78 | F110: -393570.96 | H110: 1427842.44
A111: %,V14300350 | B111: Other AR Choice Trans-Purchase | C111: 14300350 | D111: 701754.68 | F111: -713518.29 | H111: -582233.13
A112: %,V14300395 | B112: Other AR-CPG Non-Transit Srvcs | C112: 14300395 | D112: 50545.36 | F112: 0 | H112: 181.34
A113: %,V14311111 | B113: Other AR-Curr-MA Project | C113: 14311111 | D113: 4686.29 | F113: 0 | H113: 0
A114: %,FACCOUNT,TNI_ACCOUNT_FERC,XBYYYYY01,NOTHER_AR_UNAFFIL | B114: Other Accounts Receivable | D114: 4046783.17 | F114: -1830491.02 | H114: 898152.54
A115: %,V14400000 | B115: Acc Prov for Uncol-Beg Bal | C115: 14400000 | D115: -407748.76 | F115: 0 | H115: 0
A116: %,V14400100 | B116: Acc Prov for Uncol-Reserve | C116: 14400100 | D116: -569491.97 | F116: -53109.6 | H116: -569491.97
A117: %,V14400150 | B117: Acc Prov for Uncol-Charge-Offs | C117: 14400150 | D117: 420920.29 | F117: 176325.69 | H117: 420920.29
A118: %,V14400200 | B118: Acc Prov for Uncol-Recoveries | C118: 14400200 | D118: -145451.66 | F118: -36544.79 | H118: -145451.66
A119: %,V14400600 | B119: Accm Prov Uncoll-Unbilled | C119: 14400600 | D119: -38184.99 | F119: 13273.79 | H119: 103343.78
A120: %,V14400700 | B120: Accm Prov Uncoll-Misc | C120: 14400700 | D120: -401312.87 | F120: 0 | H120: 0
A121: %,FACCOUNT,TNI_ACCOUNT_FERC,XBYYYYY01,NRESERVE_AR | B121: Accum Prov Uncollectible - Cr | D121: -1141269.96 | F121: 99945.09 | H121: -190679.56
A122: %,FACCOUNT,TNI_ACCOUNT_FERC,XBYYYYY01,NNOTE_REC_AFFIL | B122: NR from Associated Cos | D122: 0 | F122: 0 | H122: 0
A123: %,V14600000 | B123: AR Assoc Co-Mech | C123: 14600000 | D123: 168206.17 | F123: -30779.13 | H123: 126922.3
A124: %,V14600002 | B124: AR Assoc Co-Misc | C124: 14600002 | D124: 12555.27 | F124: -0.01 | H124: -6374.73
A125: %,V14610000 | B125: Money Pool Deposits | C125: 14610000 | D125: 9542836.91 | F125: -7361689.29 | H125: 9542836.91
A126: %,V14610010 | B126: Money Pool-Intrst Receivable | C126: 14610010 | D126: 13892.85 | F126: 9261.85 | H126: 13892.85
A127: %,V14620000 | B127: Foreign Cash | C127: 14620000 | D127: -604229.32 | F127: 0 | H127: -9042.35
A128: %,FACCOUNT,TNI_ACCOUNT_FERC,XBYYYYY01,NAR_AFFILIATE | B128: AR from Associated Cos | D128: 9133261.88 | F128: -7383206.58 | H128: 9668234.98
A129: %,FACCOUNT,TNI_ACCOUNT_FERC,XBYYYYY01,NFUEL_STOCK | B129: Fuel Stock | D129: 0 | F129: 0 | H129: 0
A130: %,FACCOUNT,TNI_ACCOUNT_FERC,XBYYYYY01,NFUEL_STK_EXP_UNDISTR | B130: Fuel Stock Expenses Undistrib | D130: 0 | F130: 0 | H130: 0
A131: %,FACCOUNT,TNI_ACCOUNT_FERC,XBYYYYY01,NRESIDUALS | B131: Residuals & Extracted Products | D131: 0 | F131: 0 | H131: 0
A132: %,V15400000 | B132: Plant Materials-Oth Supplies | C132: 15400000 | D132: 326579.87 | F132: 0 | H132: 15263.21
A133: %,FACCOUNT,TNI_ACCOUNT_FERC,XBYYYYY01,NMATERIALS_AND_SUPPLY | B133: Plant Materials & Supplies | D133: 326579.87 | F133: 0 | H133: 15263.21
A134: %,FACCOUNT,TNI_ACCOUNT_FERC,XBYYYYY01,NMERCHANDISE | B134: Merchandise | D134: 0 | F134: 0 | H134: 0
A135: %,FACCOUNT,TNI_ACCOUNT_FERC,XBYYYYY01,NALLOWANCES | B135: Allowances | D135: 0 | F135: 0 | H135: 0
A136: %,FACCOUNT,TNI_ACCOUNT_FERC,XBYYYYY01,NSTORES_EXP | B136: Stores Exp Undistributed | D136: 0 | F136: 0 | H136: 0
A137: %,V16411000 | B137: Gas Stored-Current-LIFO | C137: 16411000 | D137: 8323369.68 | F137: 4486344.38 | H137: -33622899.82
A138: %,FACCOUNT,TNI_ACCOUNT_FERC,XBYYYYY01,NGAS_STORED_UNDRGRND | B138: Gas Stored Underground - Curr | D138: 8323369.68 | F138: 4486344.38 | H138: -33622899.82
A139: %,FACCOUNT,TNI_ACCOUNT_FERC,XBYYYYY01,NLNG_STORED_HELD | B139: LNG Stored & Held for Process | D139: 0 | F139: 0 | H139: 0
A140: %,V16500000 | B140: Other Misc Prepayments | C140: 16500000 | D140: -60537.82 | F140: -948.67 | H140: -5990.56
A141: %,V16500010 | B141: Prepaid-Medical LTD | C141: 16500010 | D141: 1059.23 | F141: -513.6 | H141: -2086.41
A142: %,V16500030 | B142: Prepaid Payroll | C142: 16500030 | D142: 0 | F142: 0 | H142: -44940.59
A143: %,V16503600 | B143: Prepaid Taxes - Other | C143: 16503600 | D143: 12002.58 | F143: -22634.77 | H143: -113173.85
A144: %,V16520000 | B144: Prepaid-Insurance Affiliate | C144: 16520000 | D144: 188765.64 | F144: -71657.06 | H144: -145945.08
A145: %,V16521000 | B145: Prepaid-Insurance NonAffil | C145: 16521000 | D145: 298583.26 | F145: -129498.67 | H145: -593386.28
A146: %,V16591000 | B146: Prepaid-NC Cloud Cost Incurred | C146: 16591000 | D146: 0.15 | F146: 0 | H146: 0.04
A147: %,FACCOUNT,TNI_ACCOUNT_FERC,XBYYYYY01,NPREPAYMENTS_FERC | B147: Prepayments | D147: 439873.04 | F147: -225252.77 | H147: -905522.73
A148: %,FACCOUNT,TNI_ACCOUNT_FERC,XBYYYYY01,NINT_DIV_REC | B148: Interest & Dividends Rec | D148: 0 | F148: 0 | H148: 0
A149: %,FACCOUNT,TNI_ACCOUNT_FERC,XBYYYYY01,NRENT_REC | B149: Rent Receivable | D149: 0 | F149: 0 | H149: 0
A150: %,V17300000 | B150: AR Accrued Revenues | C150: 17300000 | D150: 5874668.09 | F150: -1485644.42 | H150: -9042097.37
A151: %,V17302000 | B151: AR Accrd Rev Unbill Exch Gas | C151: 17302000 | D151: 292290.11 | F151: 29749.67 | H151: 198712.05
A152: %,FACCOUNT,TNI_ACCOUNT_FERC,XBYYYYY01,NACCRUED_REVENUES | B152: Accrued Utility Revenues | D152: 6166958.2 | F152: -1455894.75 | H152: -8843385.32
A153: %,V17401000 | B153: Misc Assets-Exch Gas Receiv | C153: 17401000 | D153: 3752157.36 | F153: -245803.98 | H153: -218412.32
A154: %,V17403200 | B154: Misc Assets-Property Tax | C154: 17403200 | D154: 3009913.15 | F154: -1680450.59 | H154: -3943132.27
A155: %,V17406000 | B155: Misc Assets-Storage | C155: 17406000 | D155: 6332718.74 | F155: -333259.9 | H155: 6332718.74
A156: %,FACCOUNT,TNI_ACCOUNT_FERC,XBYYYYY01,NOTHER_CURRENT_ASSETS | B156: Misc Current & Accrued Assets | D156: 13094789.25 | F156: -2259514.47 | H156: 2171174.15
A157: %,FACCOUNT,TNI_ACCOUNT_FERC,XBYYYYY01,NDERIV_ASSET | B157: Derivative Instrument Assets | D157: 0 | F157: 0 | H157: 0
A158: %,FACCOUNT,TNI_ACCOUNT_FERC,XBYYYYY01,NDERIV_HEDGE | B158: Derivative Assets - Hedging | D158: 0 | F158: 0 | H158: 0
A159: xx | B159: Total Current and Accrued Assets | D159: =D92+D93+D95+D97+D98+D103+D114+D121+D122+D128+D129+D130+D131+D133+D134+D135+D136+D138+D139+D147+D148+D149+D152+D156+D157+D158 -> 47898786.84 | F159: =F92+F93+F95+F97+F98+F103+F114+F121+F122+F128+F129+F130+F131+F133+F134+F135+F136+F138+F139+F147+F148+F149+F152+F156+F157+F158 -> -13889438.11 | H159: =H92+H93+H95+H97+H98+H103+H114+H121+H122+H128+H129+H130+H131+H133+H134+H135+H136+H138+H139+H147+H148+H149+H152+H156+H157+H158 -> -35222311.59
B161: Deferred Debits
A162: %,FACCOUNT,TNI_ACCOUNT_FERC,XBYYYYY01,NUNAMORTIZED_DEBT_EXP | B162: Unamortized Debt Expense | D162: 0 | F162: 0 | H162: 0
A163: %,FACCOUNT,TNI_ACCOUNT_FERC,XBYYYYY01,NEXTRAORD_PROP_LOSS | B163: Extraordinary Property Loss | D163: 0 | F163: 0 | H163: 0
A164: %,V18230200 | B164: Reg Asset Cr Bal Transf | C164: 18230200 | D164: 357181.03 | F164: 104053.48 | H164: 357181.03
A165: %,V18230250 | B165: Reg Asset Rate Case Current | C165: 18230250 | D165: 185185.44 | F165: 0 | H165: 0
A166: %,V18230350 | B166: Reg Asset DSM Expenses-GAS | C166: 18230350 | D166: 0 | F166: 0 | H166: -6590
A167: %,V18230440 | B167: Reg Asset GTI Funding | C167: 18230440 | D167: 71370.19 | F167: 11222.5 | H167: -51011.88
A168: %,V18230450 | B168: Reg Asset EAP | C168: 18230450 | D168: -288836.02 | F168: -61492.26 | H168: -326949.49
A169: %,V18233420 | B169: Reg Asset-Prf Base Rt Adj PBRA | C169: 18233420 | D169: 4074308.46 | F169: 85447.98 | H169: 2477339.93
A170: %,V18233560 | B170: Reg Asset COVID Costs CURRENT | C170: 18233560 | D170: 11318.04 | F170: 0 | H170: 0
A171: %,V18235114 | B171: NC Reg Asset FAS 158 OPEB | C171: 18235114 | D171: 934307.95 | F171: -10769.41 | H171: -53847.05
A172: %,V18235115 | B172: NC Reg Asset FAS158 Pension | C172: 18235115 | D172: 3030605.75 | F172: -10386.25 | H172: -51931.25
A173: %,V18235440 | B173: NC Reg Asset Rate Case Non-Cur | C173: 18235440 | D173: 296967.98 | F173: -15432.12 | H173: -73402.8
A174: %,V18235450 | B174: NC Reg Asset Pen NQulfd FAS158 | C174: 18235450 | D174: 7927 | F174: 0 | H174: 0
A175: %,V18235506 | B175: NC Reg Asset Def Depr Cap Lse | C175: 18235506 | D175: 19989.76 | F175: 5.13 | H175: 129.19
A176: %,V18235530 | B176: NC Reg Asset COVID Costs | C176: 18235530 | D176: 17920.22 | F176: -943.17 | H176: -4715.73
A177: %,FACCOUNT,TNI_ACCOUNT_FERC,XBYYYYY01,NOTHER_REG_ASSET | B177: Other Regulatory Asset | D177: 8718245.8 | F177: 101705.88 | H177: 2266201.95
A179: %,V18320000 | B179: Oth Prelim Survey B Bal | C179: 18320000 | D179: 1232417.64 | F179: 0 | H179: 0
A180: %,V18320001 | B180: Oth Prelim Survey Additions | C180: 18320001 | D180: 481721.85 | F180: 241600.5 | H180: 481721.85
A181: %,NPRELIM_SURVEY_OTH | B181: Preliminary Survey Other | D181: 1714139.49 | F181: 241600.5 | H181: 481721.85
A182: %,FACCOUNT,TNI_ACCOUNT_FERC,XBYYYYY01,NPRELIM_SURVEY | B182: Preliminary Surveys | D182: 1714139.49 | F182: 241600.5 | H182: 481721.85
A184: %,V18400100 | B184: Building Clearing | C184: 18400100 | D184: 568.16 | F184: 0 | H184: 568.16
A185: %,V18400200 | B185: Car Clearing | C185: 18400200 | D185: 0.09 | F185: 0.06 | H185: 0.09
A186: %,V18400250 | B186: Truck Clearing | C186: 18400250 | D186: 0.06 | F186: 0.04 | H186: 0.06
A187: %,V18400400 | B187: General Tool Clearing | C187: 18400400 | D187: -0.08 | F187: -0.05 | H187: -0.08
A188: %,NCLEARING_OTHER | B188: Clearing Accounts Other | D188: 568.23 | F188: 0.05 | H188: 568.23
A189: %,V18400275 | B189: Clearing-Fleet | C189: 18400275 | D189: -1090.62 | F189: 351.24 | H189: -1090.62
A190: %,NCLEARING_FLEET | B190: Clearing Fleet | D190: -1090.62 | F190: 351.24 | H190: -1090.62
A191: %,NCLEARING_GENERAL | B191: Clearing Accounts General | D191: 0 | F191: 0 | H191: 0
A192: %,FACCOUNT,TNI_ACCOUNT_FERC,XBYYYYY01,NCLEARING_ACCOUNTS | B192: Clearing Accounts | D192: -522.39 | F192: 351.29 | H192: -522.39
A194: %,V18600400 | B194: DefDebitCusAdv_DEPPST12-31-99 | C194: 18600400 | D194: 2655265.64 | F194: -1798.95 | H194: -54213.1
A195: %,NDEF_DEB_MISC_OTH | B195: Def Deb Miscellaneous Other | D195: 2655265.64 | F195: -1798.95 | H195: -54213.1
A196: %,V18600200 | B196: Def Debit-Maint and Jobng WIP | C196: 18600200 | D196: 138595.44 | F196: 227.71 | H196: 127645.11
A197: %,NDEF_DEB_MNT_JOB_WIP | B197: Maintenance and Jobbing WIP | D197: 138595.44 | F197: 227.71 | H197: 127645.11
A198: %,FACCOUNT,TNI_ACCOUNT_FERC,XBYYYYY01,NDEFERRED_DEBITS_MISC | B198: Miscellaneous Deferred Debits | D198: 2793861.08 | F198: -1571.24 | H198: 73432.01
A199: %,FACCOUNT,TNI_ACCOUNT_FERC,XBYYYYY01,NRESEARCH_&_DEV_EXP | B199: Research & Development Expense | D199: 0 | F199: 0 | H199: 0
A200: %,FACCOUNT,TNI_ACCOUNT_FERC,XBYYYYY01,NREACQ_DEBT_LOSS | B200: Unamort Loss Reacquired Debt | D200: 0 | F200: 0 | H200: 0
A201: %,V19005000 | B201: ADIT-Other-Noncurr-Fed | C201: 19005000 | D201: 7152596 | F201: -17105 | H201: -277488
A202: %,V19005100 | B202: ADIT Reg Liability NC - Fed | C202: 19005100 | D202: 13461 | F202: -550 | H202: -2751
A203: %,V19005400 | B203: ADIT FIT Gross Up | C203: 19005400 | D203: 6515973 | F203: -24540 | H203: -122700
A204: %,V19006000 | B204: ADIT-Other-Noncurr-State | C204: 19006000 | D204: 690958 | F204: -5139 | H204: -176121
A205: %,V19006100 | B205: ADIT Reg Liability NC - State | C205: 19006100 | D205: 3554 | F205: 0 | H205: 0
A206: %,V19006400 | B206: ADIT SIT Gross Up | C206: 19006400 | D206: 2230708 | F206: -2444 | H206: -12217
A207: %,FACCOUNT,TNI_ACCOUNT_FERC,XBYYYYY01,NACCUM_DEFD_INC_TAX | B207: Accum Deferred Income Taxes | D207: 16607250 | F207: -49778 | H207: -591277
A208: %,V19100100 | B208: Unrecov Purchs Gas Costs-Com | C208: 19100100 | D208: 19424605.53 | F208: 8169505.6 | H208: 12261035.5
A209: %,V19100400 | B209: End User Exchange | C209: 19100400 | D209: -326167.91 | F209: 20168.22 | H209: -2374550.13
A210: %,V19100800 | B210: Unrecov Purch Gas Cst-Unbill | C210: 19100800 | D210: -1361284.26 | F210: 619184.54 | H210: 4627427.47
A211: %,FACCOUNT,TNI_ACCOUNT_FERC,XBYYYYY01,NPURCH_GAS_COST_UNREC | B211: Unrecovered Purchase Gas Costs | D211: 17737153.36 | F211: 8808858.36 | H211: 14513912.84
A212: xx | B212: Total Deferred Debits | D212: =D162+D163+D177+D182+D192+D198+D199+D200+D207+D211 -> 47570127.34 | F212: =F162+F163+F177+F182+F192+F198+F199+F200+F207+F211 -> 9101166.79 | H212: =H162+H163+H177+H182+H192+H198+H199+H200+H207+H211 -> 16743469.26
B214: Total Assets and Other Debits | D214: =D74+D88+D159+D212 -> 626576977.9 | F214: =F74+F88+F159+F212 -> 1423916.44 | H214: =H74+H88+H159+H212 -> 9209078.3
B217: CAPITALIZATION and LIABILITIES
B219: Proprietary Capital
A220: %,V20100000 | B220: Common Stock-Beg Balance | C220: 20100000 | D220: 23806200 | F220: 0 | H220: 0
... 169 more rows

Sheet Jun22
A1: %,LACTUALS | B1: %,ATT,FDESCR,UDESCR | C1: %,AFT,FACCOUNT | D1: %,LACTUALS,UPOSTED_TRAN_AMT,SBAL,FBOOK_CODE,VR | F1: %,LACTUALS,UPOSTED_TRAN_AMT,SPER,FBOOK_CODE,VR | H1: %,LACTUALS,UPOSTED_TRAN_AMT,SYTD,FBOOK_CODE,VR
B3: Columbia Gas of Kentucky Inc
B4: Balance Sheet-FERC
B5: Regulatory View - FERC Account
B6: As of June 30, 2022
F8: Change from | H8: Change from
D9: Current Month | F9: Prior Month | H9: Prior Year-End
B10: Assets and Other Debits
B13: Utility Plant
A15: %,V10100000 | B15: Plant In Service-Beg Bal | C15: 10100000 | D15: 623970195.9 | F15: 0 | H15: 0
A16: %,V10100001 | B16: Plant In Service-Additions | C16: 10100001 | D16: 30380683.39 | F16: 4739261.73 | H16: 30380683.39
A17: %,V10100002 | B17: Plant In Service-Retirements | C17: 10100002 | D17: -4873753.51 | F17: -1357949.99 | H17: -4873753.51
A18: %,V10140000 | B18: Cloud Plant In Svc-Beg Bal | C18: 10140000 | D18: 1654282.04 | F18: 0 | H18: 0
A19: %,V10140001 | B19: Cloud Plant in Svc-Additions | C19: 10140001 | D19: -30382.08 | F19: 2483.6 | H19: -30382.08
A20: %,FACCOUNT,TNI_ACCOUNT_FERC,XBYYYYY01,NPLANT_IN_SERV_FERC | B20: Plant in Service | D20: 651101025.8 | F20: 3383795.34 | H20: 25476547.8
A21: %,V10110000 | B21: Capital Leases-Beg Bal | C21: 10110000 | D21: 400000 | F21: 0 | H21: 0
A22: %,V10112000 | B22: Right of Use Asset-Beg Bal | C22: 10112000 | D22: 316999.8 | F22: 0 | H22: 0
A23: %,V10112001 | B23: Right of Use Asset-Additions | C23: 10112001 | D23: 14738.62 | F23: 0 | H23: 14738.62
A24: %,V10112002 | B24: Right of Use Asset-Retirements | C24: 10112002 | D24: -185818.76 | F24: -29862.39 | H24: -185818.76
A25: %,V10112004 | B25: Right of Use Asset-Amort | C25: 10112004 | D25: 49824.54 | F25: 12933.09 | H25: 49824.54
A26: %,FACCOUNT,TNI_ACCOUNT_FERC,XBYYYYY01,NPLANT_CAP_LEASE | B26: Property Under Capital Lease | D26: 595744.2 | F26: -16929.3 | H26: -121255.6
A27: %,FACCOUNT,TNI_ACCOUNT_FERC,XBYYYYY01,NPLANT_PURCH_SOLD | B27: Plant Purchased or Sold | D27: 0 | F27: 0 | H27: 0
A28: %,FACCOUNT,TNI_ACCOUNT_FERC,XBYYYYY01,NPLANT_EXPERIMENT | B28: Experimental Plant Unclass | D28: 0 | F28: 0 | H28: 0
A29: %,FACCOUNT,TNI_ACCOUNT_FERC,XBYYYYY01,NPLANT_GAS_LEASE_OTH | B29: Gas Plant Leased to Others | D29: 0 | F29: 0 | H29: 0
A30: %,FACCOUNT,TNI_ACCOUNT_FERC,XBYYYYY01,NPLANT_FUTURE_USE | B30: Plant Held for Future Use | D30: 0 | F30: 0 | H30: 0
A31: %,V10600000 | B31: Comp Constr Not Class Beg Bal | C31: 10600000 | D31: 29697192.39 | F31: 0 | H31: 0
A32: %,V10600003 | B32: Comp Const not Class Other | C32: 10600003 | D32: -3451022 | F32: 109958.67 | H32: -3451022
A33: %,FACCOUNT,TNI_ACCOUNT_FERC,XBYYYYY01,NPLANT_CONST_UNCLASS | B33: Completed Const Not Classified | D33: 26246170.39 | F33: 109958.67 | H33: -3451022
A34: %,V11401000 | B34: Tang Plant Acq Adj-BegBal | C34: 11401000 | D34: -777092 | F34: 0 | H34: 0
A35: %,FACCOUNT,TNI_ACCOUNT_FERC,XBYYYYY01,NPLANT_ACQ_ADJ_FERC | B35: Plant Acquisitions_Adjustments | D35: -777092 | F35: 0 | H35: 0
A36: %,V10700000 | B36: CWIP-Beg Balance | C36: 10700000 | D36: 18115095.37 | F36: 0 | H36: 0
A37: %,V10700001 | B37: CWIP-Additions | C37: 10700001 | D37: 39128224.52 | F37: 7528629.09 | H37: 39128224.52
A38: %,V10700003 | B38: CWIP-Other Changes | C38: 10700003 | D38: -26929661.39 | F38: -4849220.4 | H38: -26929661.39
A39: %,V10740000 | B39: Cloud CWIP-Beg Balance | C39: 10740000 | D39: 43514.5 | F39: 0 | H39: 0
A40: %,V10740001 | B40: Cloud CWIP-Additions | C40: 10740001 | D40: 179312.25 | F40: 32263.27 | H40: 179312.25
A41: %,V10740003 | B41: Cloud CWIP-Oth Changes | C41: 10740003 | D41: 30382.08 | F41: -2483.6 | H41: 30382.08
A42: %,FACCOUNT,TNI_ACCOUNT_FERC,XBYYYYY01,NCWIP_FERC | B42: CWIP | D42: 30566867.33 | F42: 2709188.36 | H42: 12408257.46
B44: Total Utility Plant | D44: =D20+D26+D27+D28+D29+D30+D33+D35+D42 -> 707732715.7 | F44: =F20+F26+F27+F28+F29+F30+F33+F35+F42 -> 6186013.07 | H44: =H20+H26+H27+H28+H29+H30+H33+H35+H42 -> 34312527.66
A46: %,V10800000 | B46: Accum Deprec Plant -Beg Bal | C46: 10800000 | D46: -167156914.3 | F46: 0 | H46: 0
A47: %,V10800001 | B47: Accum Deprec Plant-Additions | C47: 10800001 | D47: -8306626.36 | F47: -1401312.72 | H47: -8306626.36
A48: %,V10800002 | B48: Accum Deprec Plant-Retiremnt | C48: 10800002 | D48: 4440104.14 | F48: 1164792.57 | H48: 4440104.14
A49: %,V10800003 | B49: Accum Deprec Plant-Other Chg | C49: 10800003 | D49: 5181699.97 | F49: 1108012.03 | H49: 5181699.97
A50: %,V10800010 | B50: Retirement WIP-Beg Bal | C50: 10800010 | D50: 711717.34 | F50: 0 | H50: 0
A51: %,V10800011 | B51: Retirement WIP-Additions | C51: 10800011 | D51: 6680808.93 | F51: 1926283.31 | H51: 6680808.93
A52: %,V10800013 | B52: Retirement WIP-Other Changes | C52: 10800013 | D52: -5192945.36 | F52: -1108905.89 | H52: -5192945.36
A53: %,V10800100 | B53: Accum Deprec Cap Lease-Beg Bal | C53: 10800100 | D53: -185123.97 | F53: 0 | H53: 0
A54: %,V10800101 | B54: Accum Deprec Cap Lease-Add | C54: 10800101 | D54: -19834.72 | F54: -3305.79 | H54: -19834.72
A55: %,FACCOUNT,TNI_ACCOUNT_FERC,XBYYYYY01,NACCUM_DEPR_PLANT | B55: Accum Prov - Depreciation | D55: -163847114.3 | F55: 1685563.51 | H55: 2783206.6
A56: %,V11100000 | B56: Accum Amortization-Beg Bal | C56: 11100000 | D56: -6439440.05 | F56: 0 | H56: 0
A57: %,V11100001 | B57: Accum Amortization-Additions | C57: 11100001 | D57: -1401305.03 | F57: -351555.11 | H57: -1401305.03
A58: %,V11100002 | B58: Accum Amortization-Retiremnt | C58: 11100002 | D58: 433649.37 | F58: 193157.42 | H58: 433649.37
A59: %,V11140000 | B59: Cloud Accum Amortiz-BegBal | C59: 11140000 | D59: -297630.53 | F59: 0 | H59: 0
A60: %,V11140001 | B60: Cloud Accum Amortiz-Additions | C60: 11140001 | D60: -168976.37 | F60: -27959.3 | H60: -168976.37
A61: %,FACCOUNT,TNI_ACCOUNT_FERC,XBYYYYY01,NACCUM_AMORT_PLANT | B61: Accum_Amort_Plant | D61: -7873702.61 | F61: -186356.99 | H61: -1136632.03
A62: %,V11501000 | B62: Tang Acc Amort Plnt Acq Adj-BB | C62: 11501000 | D62: 157398.63 | F62: 0 | H62: 0
A63: %,V11501010 | B63: Tang Acc Amor Plnt Acq Adj-ADD | C63: 11501010 | D63: 12951.54 | F63: 2158.59 | H63: 12951.54
A64: %,FACCOUNT,TNI_ACCOUNT_FERC,XBYYYYY01,NACCUM_ACQ_ADJ_FERC | B64: Accum Amort Plant Acq_Adj | D64: 170350.17 | F64: 2158.59 | H64: 12951.54
B66: Accum Prov - Amort and Depr | D66: =D55+D61+D64 -> -171550466.7 | F66: =F55+F61+F64 -> 1501365.11 | H66: =H55+H61+H64 -> 1659526.11
A67: xx | B67: Net Utility Plant | D67: =D44+D66 -> 536182248.9 | F67: =F44+F66 -> 7687378.18 | H67: =H44+H66 -> 35972053.77
A68: %,FACCOUNT,TNI_ACCOUNT_FERC,XBYYYYY01,NUTIL_PLANT_ADJ | B68: Other Plant Adjustments | D68: 0 | F68: 0 | H68: 0
A70: %,FACCOUNT,TNI_ACCOUNT_FERC,XBYYYYY01,NGAS_STORED_BASE | B70: Gas Store Underground | D70: 0 | F70: 0 | H70: 0
A71: %,FACCOUNT,TNI_ACCOUNT_FERC,XBYYYYY01,NGAS_SYS_BAL | B71: System Balancing Gas | D71: 0 | F71: 0 | H71: 0
A73: xx | B73: Gas Store Undergrd_SysBal | D73: =D70+D71 -> 0 | F73: =F70+F71 -> 0 | H73: =H70+H71 -> 0
A74: xx | B74: Total Utility Plant | D74: =D67+D68+D73 -> 536182248.9 | F74: =F67+F68+F73 -> 7687378.18 | H74: =H67+H68+H73 -> 35972053.77
B76: Other Property and Investments
A77: %,FACCOUNT,TNI_ACCOUNT_FERC,XBYYYYY01,NNONUTILITY_PROPERTY | B77: Non Utility Other Property | D77: 0 | F77: 0 | H77: 0
A78: %,FACCOUNT,TNI_ACCOUNT_FERC,XBYYYYY01,NACC_DEPR_OTH_PLANT | B78: Accum Prov - Deprec Oth Plant | D78: 0 | F78: 0 | H78: 0
A79: %,FACCOUNT,TNI_ACCOUNT_FERC,XBYYYYY01,NUNCONSOL_AFFIL_FERC | B79: Investments in Associated Cos | D79: 0 | F79: 0 | H79: 0
A80: %,V12310000 | B80: Inv Sub Co-Common Stock | C80: 12310000 | D80: 174261 | F80: 0 | H80: 0
A81: %,V12310001 | B81: Inv Sub Co-PL | C81: 12310001 | D81: 565904.34 | F81: 0 | H81: -268.77
A82: %,V12310003 | B82: Inv Sub Co-Distrib | C82: 12310003 | D82: -740459.54 | F82: 0 | H82: -740459.54
A83: %,FACCOUNT,TNI_ACCOUNT_FERC,XBYYYYY01,NCONSOL_AFFIL_FERC | B83: Investments in Subsidiary Cos | D83: -294.2 | F83: 0 | H83: -740728.31
A84: %,FACCOUNT,TNI_ACCOUNT_FERC,XBYYYYY01,NOTHER_INVESTMENTS | B84: Other Investments | D84: 0 | F84: 0 | H84: 0
A85: %,FACCOUNT,TNI_ACCOUNT_FERC,XBYYYYY01,NSINK_FUND | B85: Sinking Fund | D85: 0 | F85: 0 | H85: 0
A86: %,V12800000 | B86: Funds Held in Trust | C86: 12800000 | D86: 711378.17 | F86: -1902108.98 | H86: -1758135.63
A87: %,FACCOUNT,TNI_ACCOUNT_FERC,XBYYYYY01,NOTHER_FUND_SPEC | B87: Other Special Funds | D87: 711378.17 | F87: -1902108.98 | H87: -1758135.63
A88: xx | B88: Total Other Property and Investments | D88: =D77+D78+D79+D83+D84+D85+D87 -> 711083.97 | F88: =F77+F78+F79+F83+F84+F85+F87 -> -1902108.98 | H88: =H77+H78+H79+H83+H84+H85+H87 -> -2498863.94
B90: Current and Accrued Assets
A91: %,V13100000 | B91: Cash | C91: 13100000 | D91: 619100.02 | F91: 152522.86 | H91: 329650.61
A92: %,FACCOUNT,TNI_ACCOUNT_FERC,XBYYYYY01,NCASH_FERC | B92: Cash | D92: 619100.02 | F92: 152522.86 | H92: 329650.61
A93: %,FACCOUNT,TNI_ACCOUNT_FERC,XBYYYYY01,NSPECIAL_DEPOSITS | B93: Special Deposits | D93: 0 | F93: 0 | H93: 0
A94: %,V13500000 | B94: Working Funds | C94: 13500000 | D94: 212.64 | F94: 0 | H94: 0
A95: %,FACCOUNT,TNI_ACCOUNT_FERC,XBYYYYY01,NWORKING_FUNDS | B95: Working Funds | D95: 212.64 | F95: 0 | H95: 0
A96: %,V13600001 | B96: Temp Cash Inv-Money Pool | C96: 13600001 | D96: 140087.78 | F96: -107588.74 | H96: 140087.78
A97: %,FACCOUNT,TNI_ACCOUNT_FERC,XBYYYYY01,NTEMP_CASH_FERC | B97: Temp Cash Investments | D97: 140087.78 | F97: -107588.74 | H97: 140087.78
A98: %,FACCOUNT,TNI_ACCOUNT_FERC,XBYYYYY01,NNOTE_RECEIVABLE | B98: Notes Receivable | D98: 0 | F98: 0 | H98: 0
A99: %,V14200160 | B99: Cust AR-Credit Balances | C99: 14200160 | D99: 4674939.77 | F99: 2493660.72 | H99: -3932684.09
A100: %,V14200220 | B100: Cust AR-CAB | C100: 14200220 | D100: 701120.8 | F100: -3712905.98 | H100: -1881546.59
A101: %,V14200250 | B101: Cust AR-GMB | C101: 14200250 | D101: 54490.89 | F101: -20029.49 | H101: -238163.94
A102: %,V14200260 | B102: Cust AR-Cust Premise Work | C102: 14200260 | D102: 136962.04 | F102: 12812.86 | H102: -11520.58
A103: %,FACCOUNT,TNI_ACCOUNT_FERC,XBYYYYY01,NCUSTOMER_AR_FERC | B103: Customer Accounts Receivable | D103: 5567513.5 | F103: -1226461.89 | H103: -6063915.2
A104: %,V14300001 | B104: Misc Accts Rec-Other | C104: 14300001 | D104: 1748030.48 | F104: -3921.53 | H104: 18778.55
A105: %,V14300018 | B105: Other AR-Billed OSS | C105: 14300018 | D105: -0.01 | F105: -3890 | H105: -57475
A106: %,V14300220 | B106: Other AR-GMB Estimate | C106: 14300220 | D106: 1379.68 | F106: -895.84 | H106: -9019.36
A107: %,V14300240 | B107: Other AR-GTS | C107: 14300240 | D107: 760272.16 | F107: -528170.95 | H107: -554313.58
A108: %,V14300270 | B108: Other AR-Retail Service | C108: 14300270 | D108: 1528.7 | F108: -1.75 | H108: -12342.2
A109: %,V14300290 | B109: Other AR-CNR | C109: 14300290 | D109: 670595.19 | F109: 37677.65 | H109: 167531.06
A110: %,V14300330 | B110: Other AR Choice Trans-Columbia | C110: 14300330 | D110: -1012129.43 | F110: -620917.65 | H110: 806924.79
A111: %,V14300350 | B111: Other AR Choice Trans-Purchase | C111: 14300350 | D111: 532187.05 | F111: -169567.63 | H111: -751800.76
A112: %,V14300395 | B112: Other AR-CPG Non-Transit Srvcs | C112: 14300395 | D112: 52390.81 | F112: 1845.45 | H112: 2026.79
A113: %,V14311111 | B113: Other AR-Curr-MA Project | C113: 14311111 | D113: 4686.29 | F113: 0 | H113: 0
A114: %,FACCOUNT,TNI_ACCOUNT_FERC,XBYYYYY01,NOTHER_AR_UNAFFIL | B114: Other Accounts Receivable | D114: 2758940.92 | F114: -1287842.25 | H114: -389689.71
A115: %,V14400000 | B115: Acc Prov for Uncol-Beg Bal | C115: 14400000 | D115: -407748.76 | F115: 0 | H115: 0
A116: %,V14400100 | B116: Acc Prov for Uncol-Reserve | C116: 14400100 | D116: -625212.41 | F116: -55720.44 | H116: -625212.41
A117: %,V14400150 | B117: Acc Prov for Uncol-Charge-Offs | C117: 14400150 | D117: 626968.42 | F117: 206048.13 | H117: 626968.42
A118: %,V14400200 | B118: Acc Prov for Uncol-Recoveries | C118: 14400200 | D118: -170617.9 | F118: -25166.24 | H118: -170617.9
A119: %,V14400600 | B119: Accm Prov Uncoll-Unbilled | C119: 14400600 | D119: -32464.55 | F119: 5720.44 | H119: 109064.22
A120: %,V14400700 | B120: Accm Prov Uncoll-Misc | C120: 14400700 | D120: -401312.87 | F120: 0 | H120: 0
A121: %,FACCOUNT,TNI_ACCOUNT_FERC,XBYYYYY01,NRESERVE_AR | B121: Accum Prov Uncollectible - Cr | D121: -1010388.07 | F121: 130881.89 | H121: -59797.67
A122: %,FACCOUNT,TNI_ACCOUNT_FERC,XBYYYYY01,NNOTE_REC_AFFIL | B122: NR from Associated Cos | D122: 0 | F122: 0 | H122: 0
A123: %,V14600000 | B123: AR Assoc Co-Mech | C123: 14600000 | D123: 148074.62 | F123: -20131.55 | H123: 106790.75
A124: %,V14600002 | B124: AR Assoc Co-Misc | C124: 14600002 | D124: 12555.26 | F124: -0.01 | H124: -6374.74
A125: %,V14610000 | B125: Money Pool Deposits | C125: 14610000 | D125: 6525669.17 | F125: -3017167.74 | H125: 6525669.17
A126: %,V14610010 | B126: Money Pool-Intrst Receivable | C126: 14610010 | D126: 4731.52 | F126: -9161.33 | H126: 4731.52
A127: %,V14620000 | B127: Foreign Cash | C127: 14620000 | D127: -604229.32 | F127: 0 | H127: -9042.35
A128: %,FACCOUNT,TNI_ACCOUNT_FERC,XBYYYYY01,NAR_AFFILIATE | B128: AR from Associated Cos | D128: 6086801.25 | F128: -3046460.63 | H128: 6621774.35
A129: %,FACCOUNT,TNI_ACCOUNT_FERC,XBYYYYY01,NFUEL_STOCK | B129: Fuel Stock | D129: 0 | F129: 0 | H129: 0
A130: %,FACCOUNT,TNI_ACCOUNT_FERC,XBYYYYY01,NFUEL_STK_EXP_UNDISTR | B130: Fuel Stock Expenses Undistrib | D130: 0 | F130: 0 | H130: 0
A131: %,FACCOUNT,TNI_ACCOUNT_FERC,XBYYYYY01,NRESIDUALS | B131: Residuals & Extracted Products | D131: 0 | F131: 0 | H131: 0
A132: %,V15400000 | B132: Plant Materials-Oth Supplies | C132: 15400000 | D132: 327409.93 | F132: 830.06 | H132: 16093.27
A133: %,FACCOUNT,TNI_ACCOUNT_FERC,XBYYYYY01,NMATERIALS_AND_SUPPLY | B133: Plant Materials & Supplies | D133: 327409.93 | F133: 830.06 | H133: 16093.27
A134: %,FACCOUNT,TNI_ACCOUNT_FERC,XBYYYYY01,NMERCHANDISE | B134: Merchandise | D134: 0 | F134: 0 | H134: 0
A135: %,FACCOUNT,TNI_ACCOUNT_FERC,XBYYYYY01,NALLOWANCES | B135: Allowances | D135: 0 | F135: 0 | H135: 0
A136: %,FACCOUNT,TNI_ACCOUNT_FERC,XBYYYYY01,NSTORES_EXP | B136: Stores Exp Undistributed | D136: 0 | F136: 0 | H136: 0
A137: %,V16411000 | B137: Gas Stored-Current-LIFO | C137: 16411000 | D137: 25677826.35 | F137: 17354456.67 | H137: -16268443.15
A138: %,FACCOUNT,TNI_ACCOUNT_FERC,XBYYYYY01,NGAS_STORED_UNDRGRND | B138: Gas Stored Underground - Curr | D138: 25677826.35 | F138: 17354456.67 | H138: -16268443.15
A139: %,FACCOUNT,TNI_ACCOUNT_FERC,XBYYYYY01,NLNG_STORED_HELD | B139: LNG Stored & Held for Process | D139: 0 | F139: 0 | H139: 0
A140: %,V16500000 | B140: Other Misc Prepayments | C140: 16500000 | D140: -61397.88 | F140: -860.06 | H140: -6850.62
A141: %,V16500010 | B141: Prepaid-Medical LTD | C141: 16500010 | D141: 534.94 | F141: -524.29 | H141: -2610.7
A142: %,V16500030 | B142: Prepaid Payroll | C142: 16500030 | D142: 348816.93 | F142: 348816.93 | H142: 303876.34
A143: %,V16503600 | B143: Prepaid Taxes - Other | C143: 16503600 | D143: -10632.19 | F143: -22634.77 | H143: -135808.62
A144: %,V16520000 | B144: Prepaid-Insurance Affiliate | C144: 16520000 | D144: 114230.06 | F144: -74535.58 | H144: -220480.66
A145: %,V16521000 | B145: Prepaid-Insurance NonAffil | C145: 16521000 | D145: 826473.21 | F145: 527889.95 | H145: -65496.33
A146: %,V16591000 | B146: Prepaid-NC Cloud Cost Incurred | C146: 16591000 | D146: 0.13 | F146: -0.02 | H146: 0.02
A147: %,FACCOUNT,TNI_ACCOUNT_FERC,XBYYYYY01,NPREPAYMENTS_FERC | B147: Prepayments | D147: 1218025.2 | F147: 778152.16 | H147: -127370.57
A148: %,FACCOUNT,TNI_ACCOUNT_FERC,XBYYYYY01,NINT_DIV_REC | B148: Interest & Dividends Rec | D148: 0 | F148: 0 | H148: 0
A149: %,FACCOUNT,TNI_ACCOUNT_FERC,XBYYYYY01,NRENT_REC | B149: Rent Receivable | D149: 0 | F149: 0 | H149: 0
A150: %,V17300000 | B150: AR Accrued Revenues | C150: 17300000 | D150: 5209161.92 | F150: -665506.17 | H150: -9707603.54
A151: %,V17302000 | B151: AR Accrd Rev Unbill Exch Gas | C151: 17302000 | D151: 223441.07 | F151: -68849.04 | H151: 129863.01
A152: %,FACCOUNT,TNI_ACCOUNT_FERC,XBYYYYY01,NACCRUED_REVENUES | B152: Accrued Utility Revenues | D152: 5432602.99 | F152: -734355.21 | H152: -9577740.53
A153: %,V17401000 | B153: Misc Assets-Exch Gas Receiv | C153: 17401000 | D153: 4118738.61 | F153: 366581.25 | H153: 148168.93
A154: %,V17403200 | B154: Misc Assets-Property Tax | C154: 17403200 | D154: 3358996.74 | F154: 349083.59 | H154: -3594048.68
A155: %,V17406000 | B155: Misc Assets-Storage | C155: 17406000 | D155: 918172.1 | F155: -5414546.64 | H155: 918172.1
A156: %,FACCOUNT,TNI_ACCOUNT_FERC,XBYYYYY01,NOTHER_CURRENT_ASSETS | B156: Misc Current & Accrued Assets | D156: 8395907.45 | F156: -4698881.8 | H156: -2527707.65
A157: %,FACCOUNT,TNI_ACCOUNT_FERC,XBYYYYY01,NDERIV_ASSET | B157: Derivative Instrument Assets | D157: 0 | F157: 0 | H157: 0
A158: %,FACCOUNT,TNI_ACCOUNT_FERC,XBYYYYY01,NDERIV_HEDGE | B158: Derivative Assets - Hedging | D158: 0 | F158: 0 | H158: 0
A159: xx | B159: Total Current and Accrued Assets | D159: =D92+D93+D95+D97+D98+D103+D114+D121+D122+D128+D129+D130+D131+D133+D134+D135+D136+D138+D139+D147+D148+D149+D152+D156+D157+D158 -> 55214039.96 | F159: =F92+F93+F95+F97+F98+F103+F114+F121+F122+F128+F129+F130+F131+F133+F134+F135+F136+F138+F139+F147+F148+F149+F152+F156+F157+F158 -> 7315253.12 | H159: =H92+H93+H95+H97+H98+H103+H114+H121+H122+H128+H129+H130+H131+H133+H134+H135+H136+H138+H139+H147+H148+H149+H152+H156+H157+H158 -> -27907058.47
B161: Deferred Debits
A162: %,FACCOUNT,TNI_ACCOUNT_FERC,XBYYYYY01,NUNAMORTIZED_DEBT_EXP | B162: Unamortized Debt Expense | D162: 0 | F162: 0 | H162: 0
A163: %,FACCOUNT,TNI_ACCOUNT_FERC,XBYYYYY01,NEXTRAORD_PROP_LOSS | B163: Extraordinary Property Loss | D163: 0 | F163: 0 | H163: 0
A164: %,V18230200 | B164: Reg Asset Cr Bal Transf | C164: 18230200 | D164: 370346.76 | F164: 13165.73 | H164: 370346.76
A165: %,V18230250 | B165: Reg Asset Rate Case Current | C165: 18230250 | D165: 185185.44 | F165: 0 | H165: 0
A166: %,V18230350 | B166: Reg Asset DSM Expenses-GAS | C166: 18230350 | D166: 0 | F166: 0 | H166: -6590
A167: %,V18230440 | B167: Reg Asset GTI Funding | C167: 18230440 | D167: 85917.08 | F167: 14546.89 | H167: -36464.99
A168: %,V18230450 | B168: Reg Asset EAP | C168: 18230450 | D168: -342066.05 | F168: -53230.03 | H168: -380179.52
A169: %,V18233420 | B169: Reg Asset-Prf Base Rt Adj PBRA | C169: 18233420 | D169: 4203509.41 | F169: 129200.95 | H169: 2606540.88
A170: %,V18233560 | B170: Reg Asset COVID Costs CURRENT | C170: 18233560 | D170: 11318.04 | F170: 0 | H170: 0
A171: %,V18235114 | B171: NC Reg Asset FAS 158 OPEB | C171: 18235114 | D171: 923538.54 | F171: -10769.41 | H171: -64616.46
A172: %,V18235115 | B172: NC Reg Asset FAS158 Pension | C172: 18235115 | D172: 4639665.71 | F172: 1609059.96 | H172: 1557128.71
A173: %,V18235440 | B173: NC Reg Asset Rate Case Non-Cur | C173: 18235440 | D173: 281535.86 | F173: -15432.12 | H173: -88834.92
A174: %,V18235450 | B174: NC Reg Asset Pen NQulfd FAS158 | C174: 18235450 | D174: 7927 | F174: 0 | H174: 0
A175: %,V18235506 | B175: NC Reg Asset Def Depr Cap Lse | C175: 18235506 | D175: 19984.49 | F175: -5.27 | H175: 123.92
A176: %,V18235530 | B176: NC Reg Asset COVID Costs | C176: 18235530 | D176: 16977.05 | F176: -943.17 | H176: -5658.9
A177: %,FACCOUNT,TNI_ACCOUNT_FERC,XBYYYYY01,NOTHER_REG_ASSET | B177: Other Regulatory Asset | D177: 10403839.33 | F177: 1685593.53 | H177: 3951795.48
A179: %,V18320000 | B179: Oth Prelim Survey B Bal | C179: 18320000 | D179: 1232417.64 | F179: 0 | H179: 0
A180: %,V18320001 | B180: Oth Prelim Survey Additions | C180: 18320001 | D180: 564036.35 | F180: 82314.5 | H180: 564036.35
A181: %,NPRELIM_SURVEY_OTH | B181: Preliminary Survey Other | D181: 1796453.99 | F181: 82314.5 | H181: 564036.35
A182: %,FACCOUNT,TNI_ACCOUNT_FERC,XBYYYYY01,NPRELIM_SURVEY | B182: Preliminary Surveys | D182: 1796453.99 | F182: 82314.5 | H182: 564036.35
A184: %,V18400100 | B184: Building Clearing | C184: 18400100 | D184: 568.16 | F184: 0 | H184: 568.16
A185: %,V18400200 | B185: Car Clearing | C185: 18400200 | D185: -0.08 | F185: -0.17 | H185: -0.08
A186: %,V18400250 | B186: Truck Clearing | C186: 18400250 | D186: 0.23 | F186: 0.17 | H186: 0.23
A187: %,V18400400 | B187: General Tool Clearing | C187: 18400400 | D187: -0.01 | F187: 0.07 | H187: -0.01
A188: %,NCLEARING_OTHER | B188: Clearing Accounts Other | D188: 568.3 | F188: 0.07 | H188: 568.3
A189: %,V18400275 | B189: Clearing-Fleet | C189: 18400275 | D189: -1090.62 | F189: 0 | H189: -1090.62
A190: %,NCLEARING_FLEET | B190: Clearing Fleet | D190: -1090.62 | F190: 0 | H190: -1090.62
A191: %,NCLEARING_GENERAL | B191: Clearing Accounts General | D191: 0 | F191: 0 | H191: 0
A192: %,FACCOUNT,TNI_ACCOUNT_FERC,XBYYYYY01,NCLEARING_ACCOUNTS | B192: Clearing Accounts | D192: -522.32 | F192: 0.07 | H192: -522.32
A194: %,V18600400 | B194: DefDebitCusAdv_DEPPST12-31-99 | C194: 18600400 | D194: 2649745.46 | F194: -5520.18 | H194: -59733.28
A195: %,NDEF_DEB_MISC_OTH | B195: Def Deb Miscellaneous Other | D195: 2649745.46 | F195: -5520.18 | H195: -59733.28
A196: %,V18600200 | B196: Def Debit-Maint and Jobng WIP | C196: 18600200 | D196: 191610.13 | F196: 53014.69 | H196: 180659.8
A197: %,NDEF_DEB_MNT_JOB_WIP | B197: Maintenance and Jobbing WIP | D197: 191610.13 | F197: 53014.69 | H197: 180659.8
A198: %,FACCOUNT,TNI_ACCOUNT_FERC,XBYYYYY01,NDEFERRED_DEBITS_MISC | B198: Miscellaneous Deferred Debits | D198: 2841355.59 | F198: 47494.51 | H198: 120926.52
A199: %,FACCOUNT,TNI_ACCOUNT_FERC,XBYYYYY01,NRESEARCH_&_DEV_EXP | B199: Research & Development Expense | D199: 0 | F199: 0 | H199: 0
A200: %,FACCOUNT,TNI_ACCOUNT_FERC,XBYYYYY01,NREACQ_DEBT_LOSS | B200: Unamort Loss Reacquired Debt | D200: 0 | F200: 0 | H200: 0
A201: %,V19005000 | B201: ADIT-Other-Noncurr-Fed | C201: 19005000 | D201: 7137629 | F201: -14967 | H201: -292455
A202: %,V19005100 | B202: ADIT Reg Liability NC - Fed | C202: 19005100 | D202: 12911 | F202: -550 | H202: -3301
A203: %,V19005400 | B203: ADIT FIT Gross Up | C203: 19005400 | D203: 6491433 | F203: -24540 | H203: -147240
A204: %,V19006000 | B204: ADIT-Other-Noncurr-State | C204: 19006000 | D204: 686240 | F204: -4718 | H204: -180839
A205: %,V19006100 | B205: ADIT Reg Liability NC - State | C205: 19006100 | D205: 3554 | F205: 0 | H205: 0
A206: %,V19006400 | B206: ADIT SIT Gross Up | C206: 19006400 | D206: 2228265 | F206: -2443 | H206: -14660
A207: %,FACCOUNT,TNI_ACCOUNT_FERC,XBYYYYY01,NACCUM_DEFD_INC_TAX | B207: Accum Deferred Income Taxes | D207: 16560032 | F207: -47218 | H207: -638495
A208: %,V19100100 | B208: Unrecov Purchs Gas Costs-Com | C208: 19100100 | D208: 21793993.73 | F208: 2369388.2 | H208: 14630423.7
A209: %,V19100400 | B209: End User Exchange | C209: 19100400 | D209: 2015805.1 | F209: 2341973.01 | H209: -32577.12
A210: %,V19100800 | B210: Unrecov Purch Gas Cst-Unbill | C210: 19100800 | D210: -974783.5 | F210: 386500.76 | H210: 5013928.23
A211: %,FACCOUNT,TNI_ACCOUNT_FERC,XBYYYYY01,NPURCH_GAS_COST_UNREC | B211: Unrecovered Purchase Gas Costs | D211: 22835015.33 | F211: 5097861.97 | H211: 19611774.81
A212: xx | B212: Total Deferred Debits | D212: =D162+D163+D177+D182+D192+D198+D199+D200+D207+D211 -> 54436173.92 | F212: =F162+F163+F177+F182+F192+F198+F199+F200+F207+F211 -> 6866046.58 | H212: =H162+H163+H177+H182+H192+H198+H199+H200+H207+H211 -> 23609515.84
B214: Total Assets and Other Debits | D214: =D74+D88+D159+D212 -> 646543546.8 | F214: =F74+F88+F159+F212 -> 19966568.9 | H214: =H74+H88+H159+H212 -> 29175647.2
B217: CAPITALIZATION and LIABILITIES
B219: Proprietary Capital
A220: %,V20100000 | B220: Common Stock-Beg Balance | C220: 20100000 | D220: 23806200 | F220: 0 | H220: 0
... 170 more rows

Sheet July22
A1: %,LACTUALS | B1: %,ATT,FDESCR,UDESCR | C1: %,AFT,FACCOUNT | D1: %,LACTUALS,UPOSTED_TRAN_AMT,SBAL,FBOOK_CODE,VR | F1: %,LACTUALS,UPOSTED_TRAN_AMT,SPER,FBOOK_CODE,VR | H1: %,LACTUALS,UPOSTED_TRAN_AMT,SYTD,FBOOK_CODE,VR
B3: Columbia Gas of Kentucky Inc
B4: Balance Sheet-FERC
B5: Regulatory View - FERC Account
B6: As of July 31, 2022
F8: Change from | H8: Change from
D9: Current Month | F9: Prior Month | H9: Prior Year-End
B10: Assets and Other Debits
B13: Utility Plant
A15: %,V10100000 | B15: Plant In Service-Beg Bal | C15: 10100000 | D15: 623970195.9 | F15: 0 | H15: 0
A16: %,V10100001 | B16: Plant In Service-Additions | C16: 10100001 | D16: 35851697.94 | F16: 5471014.55 | H16: 35851697.94
A17: %,V10100002 | B17: Plant In Service-Retirements | C17: 10100002 | D17: -5752088.71 | F17: -878335.2 | H17: -5752088.71
A18: %,V10140000 | B18: Cloud Plant In Svc-Beg Bal | C18: 10140000 | D18: 1654282.04 | F18: 0 | H18: 0
A19: %,V10140001 | B19: Cloud Plant in Svc-Additions | C19: 10140001 | D19: -26426.42 | F19: 3955.66 | H19: -26426.42
A20: %,FACCOUNT,TNI_ACCOUNT_FERC,XBYYYYY01,NPLANT_IN_SERV_FERC | B20: Plant in Service | D20: 655697660.8 | F20: 4596635.01 | H20: 30073182.81
A21: %,V10110000 | B21: Capital Leases-Beg Bal | C21: 10110000 | D21: 400000 | F21: 0 | H21: 0
A22: %,V10112000 | B22: Right of Use Asset-Beg Bal | C22: 10112000 | D22: 316999.8 | F22: 0 | H22: 0
A23: %,V10112001 | B23: Right of Use Asset-Additions | C23: 10112001 | D23: 14738.62 | F23: 0 | H23: 14738.62
A24: %,V10112002 | B24: Right of Use Asset-Retirements | C24: 10112002 | D24: -204444.38 | F24: -18625.62 | H24: -204444.38
A25: %,V10112004 | B25: Right of Use Asset-Amort | C25: 10112004 | D25: 53823.75 | F25: 3999.21 | H25: 53823.75
A26: %,FACCOUNT,TNI_ACCOUNT_FERC,XBYYYYY01,NPLANT_CAP_LEASE | B26: Property Under Capital Lease | D26: 581117.79 | F26: -14626.41 | H26: -135882.01
A27: %,FACCOUNT,TNI_ACCOUNT_FERC,XBYYYYY01,NPLANT_PURCH_SOLD | B27: Plant Purchased or Sold | D27: 0 | F27: 0 | H27: 0
A28: %,FACCOUNT,TNI_ACCOUNT_FERC,XBYYYYY01,NPLANT_EXPERIMENT | B28: Experimental Plant Unclass | D28: 0 | F28: 0 | H28: 0
A29: %,FACCOUNT,TNI_ACCOUNT_FERC,XBYYYYY01,NPLANT_GAS_LEASE_OTH | B29: Gas Plant Leased to Others | D29: 0 | F29: 0 | H29: 0
A30: %,FACCOUNT,TNI_ACCOUNT_FERC,XBYYYYY01,NPLANT_FUTURE_USE | B30: Plant Held for Future Use | D30: 0 | F30: 0 | H30: 0
A31: %,V10600000 | B31: Comp Constr Not Class Beg Bal | C31: 10600000 | D31: 29697192.39 | F31: 0 | H31: 0
A32: %,V10600003 | B32: Comp Const not Class Other | C32: 10600003 | D32: -6116163.67 | F32: -2665141.67 | H32: -6116163.67
A33: %,FACCOUNT,TNI_ACCOUNT_FERC,XBYYYYY01,NPLANT_CONST_UNCLASS | B33: Completed Const Not Classified | D33: 23581028.72 | F33: -2665141.67 | H33: -6116163.67
A34: %,V11401000 | B34: Tang Plant Acq Adj-BegBal | C34: 11401000 | D34: -777092 | F34: 0 | H34: 0
A35: %,FACCOUNT,TNI_ACCOUNT_FERC,XBYYYYY01,NPLANT_ACQ_ADJ_FERC | B35: Plant Acquisitions_Adjustments | D35: -777092 | F35: 0 | H35: 0
A36: %,V10700000 | B36: CWIP-Beg Balance | C36: 10700000 | D36: 18115095.37 | F36: 0 | H36: 0
A37: %,V10700001 | B37: CWIP-Additions | C37: 10700001 | D37: 44138611.84 | F37: 5010387.32 | H37: 44138611.84
A38: %,V10700003 | B38: CWIP-Other Changes | C38: 10700003 | D38: -29735534.27 | F38: -2805872.88 | H38: -29735534.27
A39: %,V10740000 | B39: Cloud CWIP-Beg Balance | C39: 10740000 | D39: 43514.5 | F39: 0 | H39: 0
A40: %,V10740001 | B40: Cloud CWIP-Additions | C40: 10740001 | D40: 215099.99 | F40: 35787.74 | H40: 215099.99
A41: %,V10740003 | B41: Cloud CWIP-Oth Changes | C41: 10740003 | D41: 26426.42 | F41: -3955.66 | H41: 26426.42
A42: %,FACCOUNT,TNI_ACCOUNT_FERC,XBYYYYY01,NCWIP_FERC | B42: CWIP | D42: 32803213.85 | F42: 2236346.52 | H42: 14644603.98
B44: Total Utility Plant | D44: =D20+D26+D27+D28+D29+D30+D33+D35+D42 -> 711885929.1 | F44: =F20+F26+F27+F28+F29+F30+F33+F35+F42 -> 4153213.45 | H44: =H20+H26+H27+H28+H29+H30+H33+H35+H42 -> 38465741.11
A46: %,V10800000 | B46: Accum Deprec Plant -Beg Bal | C46: 10800000 | D46: -167156914.3 | F46: 0 | H46: 0
A47: %,V10800001 | B47: Accum Deprec Plant-Additions | C47: 10800001 | D47: -9705795.9 | F47: -1399169.54 | H47: -9705795.9
A48: %,V10800002 | B48: Accum Deprec Plant-Retiremnt | C48: 10800002 | D48: 5284388.55 | F48: 844284.41 | H48: 5284388.55
A49: %,V10800003 | B49: Accum Deprec Plant-Other Chg | C49: 10800003 | D49: 5991223.1 | F49: 809523.13 | H49: 5991223.1
A50: %,V10800010 | B50: Retirement WIP-Beg Bal | C50: 10800010 | D50: 711717.34 | F50: 0 | H50: 0
A51: %,V10800011 | B51: Retirement WIP-Additions | C51: 10800011 | D51: 7541354.34 | F51: 860545.41 | H51: 7541354.34
A52: %,V10800013 | B52: Retirement WIP-Other Changes | C52: 10800013 | D52: -6002651.44 | F52: -809706.08 | H52: -6002651.44
A53: %,V10800100 | B53: Accum Deprec Cap Lease-Beg Bal | C53: 10800100 | D53: -185123.97 | F53: 0 | H53: 0
A54: %,V10800101 | B54: Accum Deprec Cap Lease-Add | C54: 10800101 | D54: -23140.5 | F54: -3305.78 | H54: -23140.5
A55: %,FACCOUNT,TNI_ACCOUNT_FERC,XBYYYYY01,NACCUM_DEPR_PLANT | B55: Accum Prov - Depreciation | D55: -163544942.7 | F55: 302171.55 | H55: 3085378.15
A56: %,V11100000 | B56: Accum Amortization-Beg Bal | C56: 11100000 | D56: -6439440.05 | F56: 0 | H56: 0
A57: %,V11100001 | B57: Accum Amortization-Additions | C57: 11100001 | D57: -1598636.11 | F57: -197331.08 | H57: -1598636.11
A58: %,V11100002 | B58: Accum Amortization-Retiremnt | C58: 11100002 | D58: 467700.16 | F58: 34050.79 | H58: 467700.16
A59: %,V11140000 | B59: Cloud Accum Amortiz-BegBal | C59: 11140000 | D59: -297630.53 | F59: 0 | H59: 0
A60: %,V11140001 | B60: Cloud Accum Amortiz-Additions | C60: 11140001 | D60: -197044.53 | F60: -28068.16 | H60: -197044.53
A61: %,FACCOUNT,TNI_ACCOUNT_FERC,XBYYYYY01,NACCUM_AMORT_PLANT | B61: Accum_Amort_Plant | D61: -8065051.06 | F61: -191348.45 | H61: -1327980.48
A62: %,V11501000 | B62: Tang Acc Amort Plnt Acq Adj-BB | C62: 11501000 | D62: 157398.63 | F62: 0 | H62: 0
A63: %,V11501010 | B63: Tang Acc Amor Plnt Acq Adj-ADD | C63: 11501010 | D63: 15110.13 | F63: 2158.59 | H63: 15110.13
A64: %,FACCOUNT,TNI_ACCOUNT_FERC,XBYYYYY01,NACCUM_ACQ_ADJ_FERC | B64: Accum Amort Plant Acq_Adj | D64: 172508.76 | F64: 2158.59 | H64: 15110.13
B66: Accum Prov - Amort and Depr | D66: =D55+D61+D64 -> -171437485 | F66: =F55+F61+F64 -> 112981.69 | H66: =H55+H61+H64 -> 1772507.8
A67: xx | B67: Net Utility Plant | D67: =D44+D66 -> 540448444.1 | F67: =F44+F66 -> 4266195.14 | H67: =H44+H66 -> 40238248.91
A68: %,FACCOUNT,TNI_ACCOUNT_FERC,XBYYYYY01,NUTIL_PLANT_ADJ | B68: Other Plant Adjustments | D68: 0 | F68: 0 | H68: 0
A70: %,FACCOUNT,TNI_ACCOUNT_FERC,XBYYYYY01,NGAS_STORED_BASE | B70: Gas Store Underground | D70: 0 | F70: 0 | H70: 0
A71: %,FACCOUNT,TNI_ACCOUNT_FERC,XBYYYYY01,NGAS_SYS_BAL | B71: System Balancing Gas | D71: 0 | F71: 0 | H71: 0
A73: xx | B73: Gas Store Undergrd_SysBal | D73: =D70+D71 -> 0 | F73: =F70+F71 -> 0 | H73: =H70+H71 -> 0
A74: xx | B74: Total Utility Plant | D74: =D67+D68+D73 -> 540448444.1 | F74: =F67+F68+F73 -> 4266195.14 | H74: =H67+H68+H73 -> 40238248.91
B76: Other Property and Investments
A77: %,FACCOUNT,TNI_ACCOUNT_FERC,XBYYYYY01,NNONUTILITY_PROPERTY | B77: Non Utility Other Property | D77: 0 | F77: 0 | H77: 0
A78: %,FACCOUNT,TNI_ACCOUNT_FERC,XBYYYYY01,NACC_DEPR_OTH_PLANT | B78: Accum Prov - Deprec Oth Plant | D78: 0 | F78: 0 | H78: 0
A79: %,FACCOUNT,TNI_ACCOUNT_FERC,XBYYYYY01,NUNCONSOL_AFFIL_FERC | B79: Investments in Associated Cos | D79: 0 | F79: 0 | H79: 0
A80: %,V12310000 | B80: Inv Sub Co-Common Stock | C80: 12310000 | D80: 174261 | F80: 0 | H80: 0
A81: %,V12310001 | B81: Inv Sub Co-PL | C81: 12310001 | D81: 565904.34 | F81: 0 | H81: -268.77
A82: %,V12310003 | B82: Inv Sub Co-Distrib | C82: 12310003 | D82: -740459.54 | F82: 0 | H82: -740459.54
A83: %,FACCOUNT,TNI_ACCOUNT_FERC,XBYYYYY01,NCONSOL_AFFIL_FERC | B83: Investments in Subsidiary Cos | D83: -294.2 | F83: 0 | H83: -740728.31
A84: %,FACCOUNT,TNI_ACCOUNT_FERC,XBYYYYY01,NOTHER_INVESTMENTS | B84: Other Investments | D84: 0 | F84: 0 | H84: 0
A85: %,FACCOUNT,TNI_ACCOUNT_FERC,XBYYYYY01,NSINK_FUND | B85: Sinking Fund | D85: 0 | F85: 0 | H85: 0
A86: %,V12800000 | B86: Funds Held in Trust | C86: 12800000 | D86: 719838.69 | F86: 8460.52 | H86: -1749675.11
A87: %,FACCOUNT,TNI_ACCOUNT_FERC,XBYYYYY01,NOTHER_FUND_SPEC | B87: Other Special Funds | D87: 719838.69 | F87: 8460.52 | H87: -1749675.11
A88: xx | B88: Total Other Property and Investments | D88: =D77+D78+D79+D83+D84+D85+D87 -> 719544.49 | F88: =F77+F78+F79+F83+F84+F85+F87 -> 8460.52 | H88: =H77+H78+H79+H83+H84+H85+H87 -> -2490403.42
B90: Current and Accrued Assets
A91: %,V13100000 | B91: Cash | C91: 13100000 | D91: 380508.37 | F91: -238591.65 | H91: 91058.96
A92: %,FACCOUNT,TNI_ACCOUNT_FERC,XBYYYYY01,NCASH_FERC | B92: Cash | D92: 380508.37 | F92: -238591.65 | H92: 91058.96
A93: %,FACCOUNT,TNI_ACCOUNT_FERC,XBYYYYY01,NSPECIAL_DEPOSITS | B93: Special Deposits | D93: 0 | F93: 0 | H93: 0
A94: %,V13500000 | B94: Working Funds | C94: 13500000 | D94: 212.64 | F94: 0 | H94: 0
A95: %,FACCOUNT,TNI_ACCOUNT_FERC,XBYYYYY01,NWORKING_FUNDS | B95: Working Funds | D95: 212.64 | F95: 0 | H95: 0
A96: %,V13600001 | B96: Temp Cash Inv-Money Pool | C96: 13600001 | D96: 0 | F96: -140087.78 | H96: 0
A97: %,FACCOUNT,TNI_ACCOUNT_FERC,XBYYYYY01,NTEMP_CASH_FERC | B97: Temp Cash Investments | D97: 0 | F97: -140087.78 | H97: 0
A98: %,FACCOUNT,TNI_ACCOUNT_FERC,XBYYYYY01,NNOTE_RECEIVABLE | B98: Notes Receivable | D98: 0 | F98: 0 | H98: 0
A99: %,V14200160 | B99: Cust AR-Credit Balances | C99: 14200160 | D99: 7444166.46 | F99: 2769226.69 | H99: -1163457.4
A100: %,V14200220 | B100: Cust AR-CAB | C100: 14200220 | D100: -2090443.7 | F100: -2791564.5 | H100: -4673111.09
A101: %,V14200250 | B101: Cust AR-GMB | C101: 14200250 | D101: 39897.46 | F101: -14593.43 | H101: -252757.37
A102: %,V14200260 | B102: Cust AR-Cust Premise Work | C102: 14200260 | D102: 118526.01 | F102: -18436.03 | H102: -29956.61
A103: %,FACCOUNT,TNI_ACCOUNT_FERC,XBYYYYY01,NCUSTOMER_AR_FERC | B103: Customer Accounts Receivable | D103: 5512146.23 | F103: -55367.27 | H103: -6119282.47
A104: %,V14300001 | B104: Misc Accts Rec-Other | C104: 14300001 | D104: 1747972.61 | F104: -57.87 | H104: 18720.68
A105: %,V14300018 | B105: Other AR-Billed OSS | C105: 14300018 | D105: 1719856.99 | F105: 1719857 | H105: 1662382
A106: %,V14300220 | B106: Other AR-GMB Estimate | C106: 14300220 | D106: 1367.17 | F106: -12.51 | H106: -9031.87
A107: %,V14300240 | B107: Other AR-GTS | C107: 14300240 | D107: 774062.69 | F107: 13790.53 | H107: -540523.05
A108: %,V14300270 | B108: Other AR-Retail Service | C108: 14300270 | D108: 1518.25 | F108: -10.45 | H108: -12352.65
A109: %,V14300290 | B109: Other AR-CNR | C109: 14300290 | D109: 692336.33 | F109: 21741.14 | H109: 189272.2
A110: %,V14300330 | B110: Other AR Choice Trans-Columbia | C110: 14300330 | D110: -1524662.59 | F110: -512533.16 | H110: 294391.63
A111: %,V14300350 | B111: Other AR Choice Trans-Purchase | C111: 14300350 | D111: 512037.41 | F111: -20149.64 | H111: -771950.4
A112: %,V14300395 | B112: Other AR-CPG Non-Transit Srvcs | C112: 14300395 | D112: 59948.35 | F112: 7557.54 | H112: 9584.33
A113: %,V14311111 | B113: Other AR-Curr-MA Project | C113: 14311111 | D113: 4686.29 | F113: 0 | H113: 0
A114: %,FACCOUNT,TNI_ACCOUNT_FERC,XBYYYYY01,NOTHER_AR_UNAFFIL | B114: Other Accounts Receivable | D114: 3989123.5 | F114: 1230182.58 | H114: 840492.87
A115: %,V14400000 | B115: Acc Prov for Uncol-Beg Bal | C115: 14400000 | D115: -407748.76 | F115: 0 | H115: 0
A116: %,V14400100 | B116: Acc Prov for Uncol-Reserve | C116: 14400100 | D116: -682091.61 | F116: -56879.2 | H116: -682091.61
A117: %,V14400150 | B117: Acc Prov for Uncol-Charge-Offs | C117: 14400150 | D117: 861241.16 | F117: 234272.74 | H117: 861241.16
A118: %,V14400200 | B118: Acc Prov for Uncol-Recoveries | C118: 14400200 | D118: -184293.51 | F118: -13675.61 | H118: -184293.51
A119: %,V14400600 | B119: Accm Prov Uncoll-Unbilled | C119: 14400600 | D119: -31323.39 | F119: 1141.16 | H119: 110205.38
A120: %,V14400700 | B120: Accm Prov Uncoll-Misc | C120: 14400700 | D120: -401312.87 | F120: 0 | H120: 0
A121: %,FACCOUNT,TNI_ACCOUNT_FERC,XBYYYYY01,NRESERVE_AR | B121: Accum Prov Uncollectible - Cr | D121: -845528.98 | F121: 164859.09 | H121: 105061.42
A122: %,FACCOUNT,TNI_ACCOUNT_FERC,XBYYYYY01,NNOTE_REC_AFFIL | B122: NR from Associated Cos | D122: 0 | F122: 0 | H122: 0
A123: %,V14600000 | B123: AR Assoc Co-Mech | C123: 14600000 | D123: 13223.82 | F123: -134850.8 | H123: -28060.05
A124: %,V14600002 | B124: AR Assoc Co-Misc | C124: 14600002 | D124: 12555.25 | F124: -0.01 | H124: -6374.75
A125: %,V14610000 | B125: Money Pool Deposits | C125: 14610000 | D125: 0 | F125: -6525669.17 | H125: 0
A126: %,V14610010 | B126: Money Pool-Intrst Receivable | C126: 14610010 | D126: 9394.23 | F126: 4662.71 | H126: 9394.23
A127: %,V14620000 | B127: Foreign Cash | C127: 14620000 | D127: -604229.32 | F127: 0 | H127: -9042.35
A128: %,FACCOUNT,TNI_ACCOUNT_FERC,XBYYYYY01,NAR_AFFILIATE | B128: AR from Associated Cos | D128: -569056.02 | F128: -6655857.27 | H128: -34082.92
A129: %,FACCOUNT,TNI_ACCOUNT_FERC,XBYYYYY01,NFUEL_STOCK | B129: Fuel Stock | D129: 0 | F129: 0 | H129: 0
A130: %,FACCOUNT,TNI_ACCOUNT_FERC,XBYYYYY01,NFUEL_STK_EXP_UNDISTR | B130: Fuel Stock Expenses Undistrib | D130: 0 | F130: 0 | H130: 0
A131: %,FACCOUNT,TNI_ACCOUNT_FERC,XBYYYYY01,NRESIDUALS | B131: Residuals & Extracted Products | D131: 0 | F131: 0 | H131: 0
A132: %,V15400000 | B132: Plant Materials-Oth Supplies | C132: 15400000 | D132: 327791.45 | F132: 381.52 | H132: 16474.79
A133: %,FACCOUNT,TNI_ACCOUNT_FERC,XBYYYYY01,NMATERIALS_AND_SUPPLY | B133: Plant Materials & Supplies | D133: 327791.45 | F133: 381.52 | H133: 16474.79
A134: %,FACCOUNT,TNI_ACCOUNT_FERC,XBYYYYY01,NMERCHANDISE | B134: Merchandise | D134: 0 | F134: 0 | H134: 0
A135: %,FACCOUNT,TNI_ACCOUNT_FERC,XBYYYYY01,NALLOWANCES | B135: Allowances | D135: 0 | F135: 0 | H135: 0
A136: %,FACCOUNT,TNI_ACCOUNT_FERC,XBYYYYY01,NSTORES_EXP | B136: Stores Exp Undistributed | D136: 0 | F136: 0 | H136: 0
A137: %,V16411000 | B137: Gas Stored-Current-LIFO | C137: 16411000 | D137: 37635021.96 | F137: 11957195.61 | H137: -4311247.54
A138: %,FACCOUNT,TNI_ACCOUNT_FERC,XBYYYYY01,NGAS_STORED_UNDRGRND | B138: Gas Stored Underground - Curr | D138: 37635021.96 | F138: 11957195.61 | H138: -4311247.54
A139: %,FACCOUNT,TNI_ACCOUNT_FERC,XBYYYYY01,NLNG_STORED_HELD | B139: LNG Stored & Held for Process | D139: 0 | F139: 0 | H139: 0
A140: %,V16500000 | B140: Other Misc Prepayments | C140: 16500000 | D140: -62062.5 | F140: -664.62 | H140: -7515.24
A141: %,V16500010 | B141: Prepaid-Medical LTD | C141: 16500010 | D141: 4270.92 | F141: 3735.98 | H141: 1125.28
A142: %,V16500030 | B142: Prepaid Payroll | C142: 16500030 | D142: 0 | F142: -348816.93 | H142: -44940.59
A143: %,V16503600 | B143: Prepaid Taxes - Other | C143: 16503600 | D143: 192514.67 | F143: 203146.86 | H143: 67338.24
A144: %,V16520000 | B144: Prepaid-Insurance Affiliate | C144: 16520000 | D144: 706531.31 | F144: 592301.25 | H144: 371820.59
A145: %,V16521000 | B145: Prepaid-Insurance NonAffil | C145: 16521000 | D145: 1363882.62 | F145: 537409.41 | H145: 471913.08
A146: %,V16591000 | B146: Prepaid-NC Cloud Cost Incurred | C146: 16591000 | D146: 0.13 | F146: 0 | H146: 0.02
A147: %,FACCOUNT,TNI_ACCOUNT_FERC,XBYYYYY01,NPREPAYMENTS_FERC | B147: Prepayments | D147: 2205137.15 | F147: 987111.95 | H147: 859741.38
A148: %,FACCOUNT,TNI_ACCOUNT_FERC,XBYYYYY01,NINT_DIV_REC | B148: Interest & Dividends Rec | D148: 0 | F148: 0 | H148: 0
A149: %,FACCOUNT,TNI_ACCOUNT_FERC,XBYYYYY01,NRENT_REC | B149: Rent Receivable | D149: 0 | F149: 0 | H149: 0
A150: %,V17300000 | B150: AR Accrued Revenues | C150: 17300000 | D150: 5227651.62 | F150: 18489.7 | H150: -9689113.84
A151: %,V17302000 | B151: AR Accrd Rev Unbill Exch Gas | C151: 17302000 | D151: 350674.34 | F151: 127233.27 | H151: 257096.28
A152: %,FACCOUNT,TNI_ACCOUNT_FERC,XBYYYYY01,NACCRUED_REVENUES | B152: Accrued Utility Revenues | D152: 5578325.96 | F152: 145722.97 | H152: -9432017.56
A153: %,V17401000 | B153: Misc Assets-Exch Gas Receiv | C153: 17401000 | D153: 4683862.47 | F153: 565123.86 | H153: 713292.79
A154: %,V17403200 | B154: Misc Assets-Property Tax | C154: 17403200 | D154: 2826646.74 | F154: -532350 | H154: -4126398.68
A155: %,V17406000 | B155: Misc Assets-Storage | C155: 17406000 | D155: -375712.01 | F155: -1293884.11 | H155: -375712.01
A156: %,FACCOUNT,TNI_ACCOUNT_FERC,XBYYYYY01,NOTHER_CURRENT_ASSETS | B156: Misc Current & Accrued Assets | D156: 7134797.2 | F156: -1261110.25 | H156: -3788817.9
A157: %,FACCOUNT,TNI_ACCOUNT_FERC,XBYYYYY01,NDERIV_ASSET | B157: Derivative Instrument Assets | D157: 0 | F157: 0 | H157: 0
A158: %,FACCOUNT,TNI_ACCOUNT_FERC,XBYYYYY01,NDERIV_HEDGE | B158: Derivative Assets - Hedging | D158: 0 | F158: 0 | H158: 0
A159: xx | B159: Total Current and Accrued Assets | D159: =D92+D93+D95+D97+D98+D103+D114+D121+D122+D128+D129+D130+D131+D133+D134+D135+D136+D138+D139+D147+D148+D149+D152+D156+D157+D158 -> 61348479.46 | F159: =F92+F93+F95+F97+F98+F103+F114+F121+F122+F128+F129+F130+F131+F133+F134+F135+F136+F138+F139+F147+F148+F149+F152+F156+F157+F158 -> 6134439.5 | H159: =H92+H93+H95+H97+H98+H103+H114+H121+H122+H128+H129+H130+H131+H133+H134+H135+H136+H138+H139+H147+H148+H149+H152+H156+H157+H158 -> -21772618.97
B161: Deferred Debits
A162: %,FACCOUNT,TNI_ACCOUNT_FERC,XBYYYYY01,NUNAMORTIZED_DEBT_EXP | B162: Unamortized Debt Expense | D162: 0 | F162: 0 | H162: 0
A163: %,FACCOUNT,TNI_ACCOUNT_FERC,XBYYYYY01,NEXTRAORD_PROP_LOSS | B163: Extraordinary Property Loss | D163: 0 | F163: 0 | H163: 0
A164: %,V18230200 | B164: Reg Asset Cr Bal Transf | C164: 18230200 | D164: 432992.61 | F164: 62645.85 | H164: 432992.61
A165: %,V18230250 | B165: Reg Asset Rate Case Current | C165: 18230250 | D165: 185185.44 | F165: 0 | H165: 0
A166: %,V18230350 | B166: Reg Asset DSM Expenses-GAS | C166: 18230350 | D166: 0 | F166: 0 | H166: -6590
A167: %,V18230440 | B167: Reg Asset GTI Funding | C167: 18230440 | D167: 101680.2 | F167: 15763.12 | H167: -20701.87
A168: %,V18230450 | B168: Reg Asset EAP | C168: 18230450 | D168: -387570.86 | F168: -45504.81 | H168: -425684.33
A169: %,V18233420 | B169: Reg Asset-Prf Base Rt Adj PBRA | C169: 18233420 | D169: 4404992.04 | F169: 201482.63 | H169: 2808023.51
A170: %,V18233560 | B170: Reg Asset COVID Costs CURRENT | C170: 18233560 | D170: 11318.04 | F170: 0 | H170: 0
A171: %,V18235114 | B171: NC Reg Asset FAS 158 OPEB | C171: 18235114 | D171: 912769.13 | F171: -10769.41 | H171: -75385.87
A172: %,V18235115 | B172: NC Reg Asset FAS158 Pension | C172: 18235115 | D172: 4611895.17 | F172: -27770.54 | H172: 1529358.17
A173: %,V18235440 | B173: NC Reg Asset Rate Case Non-Cur | C173: 18235440 | D173: 262346.04 | F173: -19189.82 | H173: -108024.74
A174: %,V18235450 | B174: NC Reg Asset Pen NQulfd FAS158 | C174: 18235450 | D174: 7927 | F174: 0 | H174: 0
A175: %,V18235506 | B175: NC Reg Asset Def Depr Cap Lse | C175: 18235506 | D175: 19968.75 | F175: -15.74 | H175: 108.18
A176: %,V18235530 | B176: NC Reg Asset COVID Costs | C176: 18235530 | D176: 16033.88 | F176: -943.17 | H176: -6602.07
A177: %,FACCOUNT,TNI_ACCOUNT_FERC,XBYYYYY01,NOTHER_REG_ASSET | B177: Other Regulatory Asset | D177: 10579537.44 | F177: 175698.11 | H177: 4127493.59
A179: %,V18320000 | B179: Oth Prelim Survey B Bal | C179: 18320000 | D179: 1232417.64 | F179: 0 | H179: 0
A180: %,V18320001 | B180: Oth Prelim Survey Additions | C180: 18320001 | D180: 539398.8 | F180: -24637.55 | H180: 539398.8
A181: %,NPRELIM_SURVEY_OTH | B181: Preliminary Survey Other | D181: 1771816.44 | F181: -24637.55 | H181: 539398.8
A182: %,FACCOUNT,TNI_ACCOUNT_FERC,XBYYYYY01,NPRELIM_SURVEY | B182: Preliminary Surveys | D182: 1771816.44 | F182: -24637.55 | H182: 539398.8
A184: %,V18400100 | B184: Building Clearing | C184: 18400100 | D184: 568.16 | F184: 0 | H184: 568.16
A185: %,V18400200 | B185: Car Clearing | C185: 18400200 | D185: -0.01 | F185: 0.07 | H185: -0.01
A186: %,V18400250 | B186: Truck Clearing | C186: 18400250 | D186: -0.31 | F186: -0.54 | H186: -0.31
A187: %,V18400400 | B187: General Tool Clearing | C187: 18400400 | D187: 0 | F187: 0.01 | H187: 0
A188: %,NCLEARING_OTHER | B188: Clearing Accounts Other | D188: 567.84 | F188: -0.46 | H188: 567.84
A189: %,V18400275 | B189: Clearing-Fleet | C189: 18400275 | D189: -1030.49 | F189: 60.13 | H189: -1030.49
A190: %,NCLEARING_FLEET | B190: Clearing Fleet | D190: -1030.49 | F190: 60.13 | H190: -1030.49
A191: %,NCLEARING_GENERAL | B191: Clearing Accounts General | D191: 0 | F191: 0 | H191: 0
A192: %,FACCOUNT,TNI_ACCOUNT_FERC,XBYYYYY01,NCLEARING_ACCOUNTS | B192: Clearing Accounts | D192: -462.65 | F192: 59.67 | H192: -462.65
A194: %,V18600400 | B194: DefDebitCusAdv_DEPPST12-31-99 | C194: 18600400 | D194: 2649745.46 | F194: 0 | H194: -59733.28
A195: %,NDEF_DEB_MISC_OTH | B195: Def Deb Miscellaneous Other | D195: 2649745.46 | F195: 0 | H195: -59733.28
A196: %,V18600200 | B196: Def Debit-Maint and Jobng WIP | C196: 18600200 | D196: 207700.59 | F196: 16090.46 | H196: 196750.26
A197: %,NDEF_DEB_MNT_JOB_WIP | B197: Maintenance and Jobbing WIP | D197: 207700.59 | F197: 16090.46 | H197: 196750.26
A198: %,FACCOUNT,TNI_ACCOUNT_FERC,XBYYYYY01,NDEFERRED_DEBITS_MISC | B198: Miscellaneous Deferred Debits | D198: 2857446.05 | F198: 16090.46 | H198: 137016.98
A199: %,FACCOUNT,TNI_ACCOUNT_FERC,XBYYYYY01,NRESEARCH_&_DEV_EXP | B199: Research & Development Expense | D199: 0 | F199: 0 | H199: 0
A200: %,FACCOUNT,TNI_ACCOUNT_FERC,XBYYYYY01,NREACQ_DEBT_LOSS | B200: Unamort Loss Reacquired Debt | D200: 0 | F200: 0 | H200: 0
A201: %,V19005000 | B201: ADIT-Other-Noncurr-Fed | C201: 19005000 | D201: 7116126 | F201: -21503 | H201: -313958
A202: %,V19005100 | B202: ADIT Reg Liability NC - Fed | C202: 19005100 | D202: 12361 | F202: -550 | H202: -3851
A203: %,V19005400 | B203: ADIT FIT Gross Up | C203: 19005400 | D203: 6466893 | F203: -24540 | H203: -171780
A204: %,V19006000 | B204: ADIT-Other-Noncurr-State | C204: 19006000 | D204: 679382 | F204: -6858 | H204: -187697
A205: %,V19006100 | B205: ADIT Reg Liability NC - State | C205: 19006100 | D205: 3554 | F205: 0 | H205: 0
A206: %,V19006400 | B206: ADIT SIT Gross Up | C206: 19006400 | D206: 2225822 | F206: -2443 | H206: -17103
A207: %,FACCOUNT,TNI_ACCOUNT_FERC,XBYYYYY01,NACCUM_DEFD_INC_TAX | B207: Accum Deferred Income Taxes | D207: 16504138 | F207: -55894 | H207: -694389
A208: %,V19100100 | B208: Unrecov Purchs Gas Costs-Com | C208: 19100100 | D208: 18976532.32 | F208: -2817461.41 | H208: 11812962.29
A209: %,V19100400 | B209: End User Exchange | C209: 19100400 | D209: 2682592.57 | F209: 666787.47 | H209: 634210.35
A210: %,V19100800 | B210: Unrecov Purch Gas Cst-Unbill | C210: 19100800 | D210: -993756.11 | F210: -18972.61 | H210: 4994955.62
A211: %,FACCOUNT,TNI_ACCOUNT_FERC,XBYYYYY01,NPURCH_GAS_COST_UNREC | B211: Unrecovered Purchase Gas Costs | D211: 20665368.78 | F211: -2169646.55 | H211: 17442128.26
A212: xx | B212: Total Deferred Debits | D212: =D162+D163+D177+D182+D192+D198+D199+D200+D207+D211 -> 52377844.06 | F212: =F162+F163+F177+F182+F192+F198+F199+F200+F207+F211 -> -2058329.86 | H212: =H162+H163+H177+H182+H192+H198+H199+H200+H207+H211 -> 21551185.98
B214: Total Assets and Other Debits | D214: =D74+D88+D159+D212 -> 654894312.1 | F214: =F74+F88+F159+F212 -> 8350765.3 | H214: =H74+H88+H159+H212 -> 37526412.5
B217: CAPITALIZATION and LIABILITIES
B219: Proprietary Capital
A220: %,V20100000 | B220: Common Stock-Beg Balance | C220: 20100000 | D220: 23806200 | F220: 0 | H220: 0
... 170 more rows

Sheet Aug22
A1: %,LACTUALS | B1: %,ATT,FDESCR,UDESCR | C1: %,AFT,FACCOUNT | D1: %,LACTUALS,UPOSTED_TRAN_AMT,SBAL,FBOOK_CODE,VR | F1: %,LACTUALS,UPOSTED_TRAN_AMT,SPER,FBOOK_CODE,VR | H1: %,LACTUALS,UPOSTED_TRAN_AMT,SYTD,FBOOK_CODE,VR
B3: Columbia Gas of Kentucky Inc
B4: Balance Sheet-FERC
B5: Regulatory View - FERC Account
B6: As of August 31, 2022
F8: Change from | H8: Change from
D9: Current Month | F9: Prior Month | H9: Prior Year-End
B10: Assets and Other Debits
B13: Utility Plant
A15: %,V10100000 | B15: Plant In Service-Beg Bal | C15: 10100000 | D15: 623970195.9 | F15: 0 | H15: 0
A16: %,V10100001 | B16: Plant In Service-Additions | C16: 10100001 | D16: 39637448.16 | F16: 3785750.22 | H16: 39637448.16
A17: %,V10100002 | B17: Plant In Service-Retirements | C17: 10100002 | D17: -6538596.54 | F17: -786507.83 | H17: -6538596.54
A18: %,V10140000 | B18: Cloud Plant In Svc-Beg Bal | C18: 10140000 | D18: 1654282.04 | F18: 0 | H18: 0
A19: %,V10140001 | B19: Cloud Plant in Svc-Additions | C19: 10140001 | D19: -26853 | F19: -426.58 | H19: -26853
A20: %,FACCOUNT,TNI_ACCOUNT_FERC,XBYYYYY01,NPLANT_IN_SERV_FERC | B20: Plant in Service | D20: 658696476.6 | F20: 2998815.81 | H20: 33071998.62
A21: %,V10110000 | B21: Capital Leases-Beg Bal | C21: 10110000 | D21: 400000 | F21: 0 | H21: 0
A22: %,V10112000 | B22: Right of Use Asset-Beg Bal | C22: 10112000 | D22: 316999.8 | F22: 0 | H22: 0
A23: %,V10112001 | B23: Right of Use Asset-Additions | C23: 10112001 | D23: 14738.62 | F23: 0 | H23: 14738.62
A24: %,V10112002 | B24: Right of Use Asset-Retirements | C24: 10112002 | D24: -299443.63 | F24: -94999.25 | H24: -299443.63
A25: %,V10112004 | B25: Right of Use Asset-Amort | C25: 10112004 | D25: 135612.49 | F25: 81788.74 | H25: 135612.49
A26: %,FACCOUNT,TNI_ACCOUNT_FERC,XBYYYYY01,NPLANT_CAP_LEASE | B26: Property Under Capital Lease | D26: 567907.28 | F26: -13210.51 | H26: -149092.52
A27: %,FACCOUNT,TNI_ACCOUNT_FERC,XBYYYYY01,NPLANT_PURCH_SOLD | B27: Plant Purchased or Sold | D27: 0 | F27: 0 | H27: 0
A28: %,FACCOUNT,TNI_ACCOUNT_FERC,XBYYYYY01,NPLANT_EXPERIMENT | B28: Experimental Plant Unclass | D28: 0 | F28: 0 | H28: 0
A29: %,FACCOUNT,TNI_ACCOUNT_FERC,XBYYYYY01,NPLANT_GAS_LEASE_OTH | B29: Gas Plant Leased to Others | D29: 0 | F29: 0 | H29: 0
A30: %,FACCOUNT,TNI_ACCOUNT_FERC,XBYYYYY01,NPLANT_FUTURE_USE | B30: Plant Held for Future Use | D30: 0 | F30: 0 | H30: 0
A31: %,V10600000 | B31: Comp Constr Not Class Beg Bal | C31: 10600000 | D31: 29697192.39 | F31: 0 | H31: 0
A32: %,V10600003 | B32: Comp Const not Class Other | C32: 10600003 | D32: -4627120.05 | F32: 1489043.62 | H32: -4627120.05
A33: %,FACCOUNT,TNI_ACCOUNT_FERC,XBYYYYY01,NPLANT_CONST_UNCLASS | B33: Completed Const Not Classified | D33: 25070072.34 | F33: 1489043.62 | H33: -4627120.05
A34: %,V11401000 | B34: Tang Plant Acq Adj-BegBal | C34: 11401000 | D34: -777092 | F34: 0 | H34: 0
A35: %,FACCOUNT,TNI_ACCOUNT_FERC,XBYYYYY01,NPLANT_ACQ_ADJ_FERC | B35: Plant Acquisitions_Adjustments | D35: -777092 | F35: 0 | H35: 0
A36: %,V10700000 | B36: CWIP-Beg Balance | C36: 10700000 | D36: 18115095.37 | F36: 0 | H36: 0
A37: %,V10700001 | B37: CWIP-Additions | C37: 10700001 | D37: 52492926.81 | F37: 8354314.97 | H37: 52492926.81
A38: %,V10700003 | B38: CWIP-Other Changes | C38: 10700003 | D38: -35010328.11 | F38: -5274793.84 | H38: -35010328.11
A39: %,V10740000 | B39: Cloud CWIP-Beg Balance | C39: 10740000 | D39: 43514.5 | F39: 0 | H39: 0
A40: %,V10740001 | B40: Cloud CWIP-Additions | C40: 10740001 | D40: 248613.55 | F40: 33513.56 | H40: 248613.55
A41: %,V10740003 | B41: Cloud CWIP-Oth Changes | C41: 10740003 | D41: 26853 | F41: 426.58 | H41: 26853
A42: %,FACCOUNT,TNI_ACCOUNT_FERC,XBYYYYY01,NCWIP_FERC | B42: CWIP | D42: 35916675.12 | F42: 3113461.27 | H42: 17758065.25
B44: Total Utility Plant | D44: =D20+D26+D27+D28+D29+D30+D33+D35+D42 -> 719474039.3 | F44: =F20+F26+F27+F28+F29+F30+F33+F35+F42 -> 7588110.19 | H44: =H20+H26+H27+H28+H29+H30+H33+H35+H42 -> 46053851.3
A46: %,V10800000 | B46: Accum Deprec Plant -Beg Bal | C46: 10800000 | D46: -167156914.3 | F46: 0 | H46: 0
A47: %,V10800001 | B47: Accum Deprec Plant-Additions | C47: 10800001 | D47: -11140644.88 | F47: -1434848.98 | H47: -11140644.88
A48: %,V10800002 | B48: Accum Deprec Plant-Retiremnt | C48: 10800002 | D48: 6070896.38 | F48: 786507.83 | H48: 6070896.38
A49: %,V10800003 | B49: Accum Deprec Plant-Other Chg | C49: 10800003 | D49: 7125253.52 | F49: 1134030.42 | H49: 7125253.52
A50: %,V10800010 | B50: Retirement WIP-Beg Bal | C50: 10800010 | D50: 711717.34 | F50: 0 | H50: 0
A51: %,V10800011 | B51: Retirement WIP-Additions | C51: 10800011 | D51: 9263956.12 | F51: 1722601.78 | H51: 9263956.12
A52: %,V10800013 | B52: Retirement WIP-Other Changes | C52: 10800013 | D52: -7137215.13 | F52: -1134563.69 | H52: -7137215.13
A53: %,V10800100 | B53: Accum Deprec Cap Lease-Beg Bal | C53: 10800100 | D53: -185123.97 | F53: 0 | H53: 0
A54: %,V10800101 | B54: Accum Deprec Cap Lease-Add | C54: 10800101 | D54: -26446.29 | F54: -3305.79 | H54: -26446.29
A55: %,FACCOUNT,TNI_ACCOUNT_FERC,XBYYYYY01,NACCUM_DEPR_PLANT | B55: Accum Prov - Depreciation | D55: -162474521.2 | F55: 1070421.57 | H55: 4155799.72
A56: %,V11100000 | B56: Accum Amortization-Beg Bal | C56: 11100000 | D56: -6439440.05 | F56: 0 | H56: 0
A57: %,V11100001 | B57: Accum Amortization-Additions | C57: 11100001 | D57: -1836103.72 | F57: -237467.61 | H57: -1836103.72
A58: %,V11100002 | B58: Accum Amortization-Retiremnt | C58: 11100002 | D58: 467700.16 | F58: 0 | H58: 467700.16
A59: %,V11140000 | B59: Cloud Accum Amortiz-BegBal | C59: 11140000 | D59: -297630.53 | F59: 0 | H59: 0
A60: %,V11140001 | B60: Cloud Accum Amortiz-Additions | C60: 11140001 | D60: -225091.16 | F60: -28046.63 | H60: -225091.16
A61: %,FACCOUNT,TNI_ACCOUNT_FERC,XBYYYYY01,NACCUM_AMORT_PLANT | B61: Accum_Amort_Plant | D61: -8330565.3 | F61: -265514.24 | H61: -1593494.72
A62: %,V11501000 | B62: Tang Acc Amort Plnt Acq Adj-BB | C62: 11501000 | D62: 157398.63 | F62: 0 | H62: 0
A63: %,V11501010 | B63: Tang Acc Amor Plnt Acq Adj-ADD | C63: 11501010 | D63: 17268.72 | F63: 2158.59 | H63: 17268.72
A64: %,FACCOUNT,TNI_ACCOUNT_FERC,XBYYYYY01,NACCUM_ACQ_ADJ_FERC | B64: Accum Amort Plant Acq_Adj | D64: 174667.35 | F64: 2158.59 | H64: 17268.72
B66: Accum Prov - Amort and Depr | D66: =D55+D61+D64 -> -170630419.1 | F66: =F55+F61+F64 -> 807065.92 | H66: =H55+H61+H64 -> 2579573.72
A67: xx | B67: Net Utility Plant | D67: =D44+D66 -> 548843620.2 | F67: =F44+F66 -> 8395176.11 | H67: =H44+H66 -> 48633425.02
A68: %,FACCOUNT,TNI_ACCOUNT_FERC,XBYYYYY01,NUTIL_PLANT_ADJ | B68: Other Plant Adjustments | D68: 0 | F68: 0 | H68: 0
A70: %,FACCOUNT,TNI_ACCOUNT_FERC,XBYYYYY01,NGAS_STORED_BASE | B70: Gas Store Underground | D70: 0 | F70: 0 | H70: 0
A71: %,FACCOUNT,TNI_ACCOUNT_FERC,XBYYYYY01,NGAS_SYS_BAL | B71: System Balancing Gas | D71: 0 | F71: 0 | H71: 0
A73: xx | B73: Gas Store Undergrd_SysBal | D73: =D70+D71 -> 0 | F73: =F70+F71 -> 0 | H73: =H70+H71 -> 0
A74: xx | B74: Total Utility Plant | D74: =D67+D68+D73 -> 548843620.2 | F74: =F67+F68+F73 -> 8395176.11 | H74: =H67+H68+H73 -> 48633425.02
B76: Other Property and Investments
A77: %,FACCOUNT,TNI_ACCOUNT_FERC,XBYYYYY01,NNONUTILITY_PROPERTY | B77: Non Utility Other Property | D77: 0 | F77: 0 | H77: 0
A78: %,FACCOUNT,TNI_ACCOUNT_FERC,XBYYYYY01,NACC_DEPR_OTH_PLANT | B78: Accum Prov - Deprec Oth Plant | D78: 0 | F78: 0 | H78: 0
A79: %,FACCOUNT,TNI_ACCOUNT_FERC,XBYYYYY01,NUNCONSOL_AFFIL_FERC | B79: Investments in Associated Cos | D79: 0 | F79: 0 | H79: 0
A80: %,V12310000 | B80: Inv Sub Co-Common Stock | C80: 12310000 | D80: 174261 | F80: 0 | H80: 0
A81: %,V12310001 | B81: Inv Sub Co-PL | C81: 12310001 | D81: 565904.34 | F81: 0 | H81: -268.77
A82: %,V12310003 | B82: Inv Sub Co-Distrib | C82: 12310003 | D82: -740459.54 | F82: 0 | H82: -740459.54
A83: %,FACCOUNT,TNI_ACCOUNT_FERC,XBYYYYY01,NCONSOL_AFFIL_FERC | B83: Investments in Subsidiary Cos | D83: -294.2 | F83: 0 | H83: -740728.31
A84: %,FACCOUNT,TNI_ACCOUNT_FERC,XBYYYYY01,NOTHER_INVESTMENTS | B84: Other Investments | D84: 0 | F84: 0 | H84: 0
A85: %,FACCOUNT,TNI_ACCOUNT_FERC,XBYYYYY01,NSINK_FUND | B85: Sinking Fund | D85: 0 | F85: 0 | H85: 0
A86: %,V12800000 | B86: Funds Held in Trust | C86: 12800000 | D86: 728299.21 | F86: 8460.52 | H86: -1741214.59
A87: %,FACCOUNT,TNI_ACCOUNT_FERC,XBYYYYY01,NOTHER_FUND_SPEC | B87: Other Special Funds | D87: 728299.21 | F87: 8460.52 | H87: -1741214.59
A88: xx | B88: Total Other Property and Investments | D88: =D77+D78+D79+D83+D84+D85+D87 -> 728005.01 | F88: =F77+F78+F79+F83+F84+F85+F87 -> 8460.52 | H88: =H77+H78+H79+H83+H84+H85+H87 -> -2481942.9
B90: Current and Accrued Assets
A91: %,V13100000 | B91: Cash | C91: 13100000 | D91: 594741.3 | F91: 214232.93 | H91: 305291.89
A92: %,FACCOUNT,TNI_ACCOUNT_FERC,XBYYYYY01,NCASH_FERC | B92: Cash | D92: 594741.3 | F92: 214232.93 | H92: 305291.89
A93: %,FACCOUNT,TNI_ACCOUNT_FERC,XBYYYYY01,NSPECIAL_DEPOSITS | B93: Special Deposits | D93: 0 | F93: 0 | H93: 0
A94: %,V13500000 | B94: Working Funds | C94: 13500000 | D94: 212.64 | F94: 0 | H94: 0
A95: %,FACCOUNT,TNI_ACCOUNT_FERC,XBYYYYY01,NWORKING_FUNDS | B95: Working Funds | D95: 212.64 | F95: 0 | H95: 0
A96: %,FACCOUNT,TNI_ACCOUNT_FERC,XBYYYYY01,NTEMP_CASH_FERC | B96: Temp Cash Investments | D96: 0 | F96: 0 | H96: 0
A97: %,FACCOUNT,TNI_ACCOUNT_FERC,XBYYYYY01,NNOTE_RECEIVABLE | B97: Notes Receivable | D97: 0 | F97: 0 | H97: 0
A98: %,V14200160 | B98: Cust AR-Credit Balances | C98: 14200160 | D98: 11442044.17 | F98: 3997877.71 | H98: 2834420.31
A99: %,V14200220 | B99: Cust AR-CAB | C99: 14200220 | D99: -6259071.18 | F99: -4168627.48 | H99: -8841738.57
A100: %,V14200250 | B100: Cust AR-GMB | C100: 14200250 | D100: 144708.04 | F100: 104810.58 | H100: -147946.79
A101: %,V14200260 | B101: Cust AR-Cust Premise Work | C101: 14200260 | D101: 138293.58 | F101: 19767.57 | H101: -10189.04
A102: %,FACCOUNT,TNI_ACCOUNT_FERC,XBYYYYY01,NCUSTOMER_AR_FERC | B102: Customer Accounts Receivable | D102: 5465974.61 | F102: -46171.62 | H102: -6165454.09
A103: %,V14300001 | B103: Misc Accts Rec-Other | C103: 14300001 | D103: 1748015.9 | F103: 43.29 | H103: 18763.97
A104: %,V14300018 | B104: Other AR-Billed OSS | C104: 14300018 | D104: 254297.49 | F104: -1465559.5 | H104: 196822.5
A105: %,V14300220 | B105: Other AR-GMB Estimate | C105: 14300220 | D105: 1594.31 | F105: 227.14 | H105: -8804.73
A106: %,V14300240 | B106: Other AR-GTS | C106: 14300240 | D106: 648209.77 | F106: -125852.92 | H106: -666375.97
A107: %,V14300270 | B107: Other AR-Retail Service | C107: 14300270 | D107: 3042.9 | F107: 1524.65 | H107: -10828
A108: %,V14300290 | B108: Other AR-CNR | C108: 14300290 | D108: 697582.67 | F108: 5246.34 | H108: 194518.54
A109: %,V14300330 | B109: Other AR Choice Trans-Columbia | C109: 14300330 | D109: -2352014.18 | F109: -827351.59 | H109: -532959.96
A110: %,V14300350 | B110: Other AR Choice Trans-Purchase | C110: 14300350 | D110: 427281.76 | F110: -84755.65 | H110: -856706.05
A111: %,V14300395 | B111: Other AR-CPG Non-Transit Srvcs | C111: 14300395 | D111: 73297.35 | F111: 13349 | H111: 22933.33
A112: %,V14311111 | B112: Other AR-Curr-MA Project | C112: 14311111 | D112: 4686.29 | F112: 0 | H112: 0
A113: %,FACCOUNT,TNI_ACCOUNT_FERC,XBYYYYY01,NOTHER_AR_UNAFFIL | B113: Other Accounts Receivable | D113: 1505994.26 | F113: -2483129.24 | H113: -1642636.37
A114: %,V14400000 | B114: Acc Prov for Uncol-Beg Bal | C114: 14400000 | D114: -407748.76 | F114: 0 | H114: 0
A115: %,V14400100 | B115: Acc Prov for Uncol-Reserve | C115: 14400100 | D115: -749638.63 | F115: -67547.02 | H115: -749638.63
A116: %,V14400150 | B116: Acc Prov for Uncol-Charge-Offs | C116: 14400150 | D116: 1100337.8 | F116: 239096.64 | H116: 1100337.8
A117: %,V14400200 | B117: Acc Prov for Uncol-Recoveries | C117: 14400200 | D117: -211727.88 | F117: -27434.37 | H117: -211727.88
A118: %,V14400600 | B118: Accm Prov Uncoll-Unbilled | C118: 14400600 | D118: -29331.04 | F118: 1992.35 | H118: 112197.73
A119: %,V14400700 | B119: Accm Prov Uncoll-Misc | C119: 14400700 | D119: -401312.87 | F119: 0 | H119: 0
A120: %,FACCOUNT,TNI_ACCOUNT_FERC,XBYYYYY01,NRESERVE_AR | B120: Accum Prov Uncollectible - Cr | D120: -699421.38 | F120: 146107.6 | H120: 251169.02
A121: %,FACCOUNT,TNI_ACCOUNT_FERC,XBYYYYY01,NNOTE_REC_AFFIL | B121: NR from Associated Cos | D121: 0 | F121: 0 | H121: 0
A122: %,V14600000 | B122: AR Assoc Co-Mech | C122: 14600000 | D122: 14251.49 | F122: 1027.67 | H122: -27032.38
A123: %,V14600002 | B123: AR Assoc Co-Misc | C123: 14600002 | D123: 12555.24 | F123: -0.01 | H123: -6374.76
A124: %,V14610010 | B124: Money Pool-Intrst Receivable | C124: 14610010 | D124: 0 | F124: -9394.23 | H124: 0
A125: %,V14620000 | B125: Foreign Cash | C125: 14620000 | D125: -604229.32 | F125: 0 | H125: -9042.35
A126: %,FACCOUNT,TNI_ACCOUNT_FERC,XBYYYYY01,NAR_AFFILIATE | B126: AR from Associated Cos | D126: -577422.59 | F126: -8366.57 | H126: -42449.49
A127: %,FACCOUNT,TNI_ACCOUNT_FERC,XBYYYYY01,NFUEL_STOCK | B127: Fuel Stock | D127: 0 | F127: 0 | H127: 0
A128: %,FACCOUNT,TNI_ACCOUNT_FERC,XBYYYYY01,NFUEL_STK_EXP_UNDISTR | B128: Fuel Stock Expenses Undistrib | D128: 0 | F128: 0 | H128: 0
A129: %,FACCOUNT,TNI_ACCOUNT_FERC,XBYYYYY01,NRESIDUALS | B129: Residuals & Extracted Products | D129: 0 | F129: 0 | H129: 0
A130: %,V15400000 | B130: Plant Materials-Oth Supplies | C130: 15400000 | D130: 327791.45 | F130: 0 | H130: 16474.79
A131: %,FACCOUNT,TNI_ACCOUNT_FERC,XBYYYYY01,NMATERIALS_AND_SUPPLY | B131: Plant Materials & Supplies | D131: 327791.45 | F131: 0 | H131: 16474.79
A132: %,FACCOUNT,TNI_ACCOUNT_FERC,XBYYYYY01,NMERCHANDISE | B132: Merchandise | D132: 0 | F132: 0 | H132: 0
A133: %,FACCOUNT,TNI_ACCOUNT_FERC,XBYYYYY01,NALLOWANCES | B133: Allowances | D133: 0 | F133: 0 | H133: 0
A134: %,FACCOUNT,TNI_ACCOUNT_FERC,XBYYYYY01,NSTORES_EXP | B134: Stores Exp Undistributed | D134: 0 | F134: 0 | H134: 0
A135: %,V16411000 | B135: Gas Stored-Current-LIFO | C135: 16411000 | D135: 47034141.38 | F135: 9399119.42 | H135: 5087871.88
A136: %,FACCOUNT,TNI_ACCOUNT_FERC,XBYYYYY01,NGAS_STORED_UNDRGRND | B136: Gas Stored Underground - Curr | D136: 47034141.38 | F136: 9399119.42 | H136: 5087871.88
A137: %,FACCOUNT,TNI_ACCOUNT_FERC,XBYYYYY01,NLNG_STORED_HELD | B137: LNG Stored & Held for Process | D137: 0 | F137: 0 | H137: 0
A138: %,V16500000 | B138: Other Misc Prepayments | C138: 16500000 | D138: -62606.1 | F138: -543.6 | H138: -8058.84
A139: %,V16500010 | B139: Prepaid-Medical LTD | C139: 16500010 | D139: 3931.28 | F139: -339.64 | H139: 785.64
A140: %,V16500030 | B140: Prepaid Payroll | C140: 16500030 | D140: 0 | F140: 0 | H140: -44940.59
A141: %,V16503600 | B141: Prepaid Taxes - Other | C141: 16503600 | D141: 169879.9 | F141: -22634.77 | H141: 44703.47
A142: %,V16520000 | B142: Prepaid-Insurance Affiliate | C142: 16520000 | D142: 631707.27 | F142: -74824.04 | H142: 296996.55
A143: %,V16521000 | B143: Prepaid-Insurance NonAffil | C143: 16521000 | D143: 1211886.26 | F143: -151996.36 | H143: 319916.72
A144: %,V16591000 | B144: Prepaid-NC Cloud Cost Incurred | C144: 16591000 | D144: 0.13 | F144: 0 | H144: 0.02
A145: %,FACCOUNT,TNI_ACCOUNT_FERC,XBYYYYY01,NPREPAYMENTS_FERC | B145: Prepayments | D145: 1954798.74 | F145: -250338.41 | H145: 609402.97
A146: %,FACCOUNT,TNI_ACCOUNT_FERC,XBYYYYY01,NINT_DIV_REC | B146: Interest & Dividends Rec | D146: 0 | F146: 0 | H146: 0
A147: %,FACCOUNT,TNI_ACCOUNT_FERC,XBYYYYY01,NRENT_REC | B147: Rent Receivable | D147: 0 | F147: 0 | H147: 0
A148: %,V17300000 | B148: AR Accrued Revenues | C148: 17300000 | D148: 5338055.28 | F148: 110403.66 | H148: -9578710.18
A149: %,V17302000 | B149: AR Accrd Rev Unbill Exch Gas | C149: 17302000 | D149: 447721.68 | F149: 97047.34 | H149: 354143.62
A150: %,FACCOUNT,TNI_ACCOUNT_FERC,XBYYYYY01,NACCRUED_REVENUES | B150: Accrued Utility Revenues | D150: 5785776.96 | F150: 207451 | H150: -9224566.56
A151: %,V17401000 | B151: Misc Assets-Exch Gas Receiv | C151: 17401000 | D151: 4429739.04 | F151: -254123.43 | H151: 459169.36
A152: %,V17403200 | B152: Misc Assets-Property Tax | C152: 17403200 | D152: 2294296.74 | F152: -532350 | H152: -4658748.68
A153: %,V17406000 | B153: Misc Assets-Storage | C153: 17406000 | D153: 0 | F153: 375712.01 | H153: 0
A154: %,FACCOUNT,TNI_ACCOUNT_FERC,XBYYYYY01,NOTHER_CURRENT_ASSETS | B154: Misc Current & Accrued Assets | D154: 6724035.78 | F154: -410761.42 | H154: -4199579.32
A155: %,FACCOUNT,TNI_ACCOUNT_FERC,XBYYYYY01,NDERIV_ASSET | B155: Derivative Instrument Assets | D155: 0 | F155: 0 | H155: 0
A156: %,FACCOUNT,TNI_ACCOUNT_FERC,XBYYYYY01,NDERIV_HEDGE | B156: Derivative Assets - Hedging | D156: 0 | F156: 0 | H156: 0
A157: xx | B157: Total Current and Accrued Assets | D157: =D92+D93+D95+D96+D97+D102+D113+D120+D121+D126+D127+D128+D129+D131+D132+D133+D134+D136+D137+D145+D146+D147+D150+D154+D155+D156 -> 68116623.15 | F157: =F92+F93+F95+F96+F97+F102+F113+F120+F121+F126+F127+F128+F129+F131+F132+F133+F134+F136+F137+F145+F146+F147+F150+F154+F155+F156 -> 6768143.69 | H157: =H92+H93+H95+H96+H97+H102+H113+H120+H121+H126+H127+H128+H129+H131+H132+H133+H134+H136+H137+H145+H146+H147+H150+H154+H155+H156 -> -15004475.28
B159: Deferred Debits
A160: %,FACCOUNT,TNI_ACCOUNT_FERC,XBYYYYY01,NUNAMORTIZED_DEBT_EXP | B160: Unamortized Debt Expense | D160: 0 | F160: 0 | H160: 0
A161: %,FACCOUNT,TNI_ACCOUNT_FERC,XBYYYYY01,NEXTRAORD_PROP_LOSS | B161: Extraordinary Property Loss | D161: 0 | F161: 0 | H161: 0
A162: %,V18230200 | B162: Reg Asset Cr Bal Transf | C162: 18230200 | D162: 488077.65 | F162: 55085.04 | H162: 488077.65
A163: %,V18230250 | B163: Reg Asset Rate Case Current | C163: 18230250 | D163: 185185.44 | F163: 0 | H163: 0
A164: %,V18230350 | B164: Reg Asset DSM Expenses-GAS | C164: 18230350 | D164: 0 | F164: 0 | H164: -6590
A165: %,V18230440 | B165: Reg Asset GTI Funding | C165: 18230440 | D165: 115765.12 | F165: 14084.92 | H165: -6616.95
A166: %,V18230450 | B166: Reg Asset EAP | C166: 18230450 | D166: -407753.91 | F166: -20183.05 | H166: -445867.38
A167: %,V18233420 | B167: Reg Asset-Prf Base Rt Adj PBRA | C167: 18233420 | D167: 4503546.79 | F167: 98554.75 | H167: 2906578.26
A168: %,V18233560 | B168: Reg Asset COVID Costs CURRENT | C168: 18233560 | D168: 11318.04 | F168: 0 | H168: 0
A169: %,V18235114 | B169: NC Reg Asset FAS 158 OPEB | C169: 18235114 | D169: 901999.72 | F169: -10769.41 | H169: -86155.28
A170: %,V18235115 | B170: NC Reg Asset FAS158 Pension | C170: 18235115 | D170: 4584124.63 | F170: -27770.54 | H170: 1501587.63
A171: %,V18235440 | B171: NC Reg Asset Rate Case Non-Cur | C171: 18235440 | D171: 246913.92 | F171: -15432.12 | H171: -123456.86
A172: %,V18235450 | B172: NC Reg Asset Pen NQulfd FAS158 | C172: 18235450 | D172: 7927 | F172: 0 | H172: 0
A173: %,V18235506 | B173: NC Reg Asset Def Depr Cap Lse | C173: 18235506 | D173: 19942.55 | F173: -26.2 | H173: 81.98
A174: %,V18235530 | B174: NC Reg Asset COVID Costs | C174: 18235530 | D174: 15090.71 | F174: -943.17 | H174: -7545.24
A175: %,FACCOUNT,TNI_ACCOUNT_FERC,XBYYYYY01,NOTHER_REG_ASSET | B175: Other Regulatory Asset | D175: 10672137.66 | F175: 92600.22 | H175: 4220093.81
A177: %,V18320000 | B177: Oth Prelim Survey B Bal | C177: 18320000 | D177: 1232417.64 | F177: 0 | H177: 0
A178: %,V18320001 | B178: Oth Prelim Survey Additions | C178: 18320001 | D178: 980423.92 | F178: 441025.12 | H178: 980423.92
A179: %,NPRELIM_SURVEY_OTH | B179: Preliminary Survey Other | D179: 2212841.56 | F179: 441025.12 | H179: 980423.92
A180: %,FACCOUNT,TNI_ACCOUNT_FERC,XBYYYYY01,NPRELIM_SURVEY | B180: Preliminary Surveys | D180: 2212841.56 | F180: 441025.12 | H180: 980423.92
A182: %,V18400050 | B182: Cash Clearing | C182: 18400050 | D182: -1428.57 | F182: -1428.57 | H182: -1428.57
A183: %,V18400100 | B183: Building Clearing | C183: 18400100 | D183: 568.16 | F183: 0 | H183: 568.16
A184: %,V18400200 | B184: Car Clearing | C184: 18400200 | D184: 0 | F184: 0.01 | H184: 0
A185: %,V18400250 | B185: Truck Clearing | C185: 18400250 | D185: -0.13 | F185: 0.18 | H185: -0.13
A186: %,V18400400 | B186: General Tool Clearing | C186: 18400400 | D186: -0.02 | F186: -0.02 | H186: -0.02
A187: %,NCLEARING_OTHER | B187: Clearing Accounts Other | D187: -860.56 | F187: -1428.4 | H187: -860.56
A188: %,V18400275 | B188: Clearing-Fleet | C188: 18400275 | D188: -664.1 | F188: 366.39 | H188: -664.1
A189: %,NCLEARING_FLEET | B189: Clearing Fleet | D189: -664.1 | F189: 366.39 | H189: -664.1
A190: %,NCLEARING_GENERAL | B190: Clearing Accounts General | D190: 0 | F190: 0 | H190: 0
A191: %,FACCOUNT,TNI_ACCOUNT_FERC,XBYYYYY01,NCLEARING_ACCOUNTS | B191: Clearing Accounts | D191: -1524.66 | F191: -1062.01 | H191: -1524.66
A193: %,V18600400 | B193: DefDebitCusAdv_DEPPST12-31-99 | C193: 18600400 | D193: 2669538.93 | F193: 19793.47 | H193: -39939.81
A194: %,NDEF_DEB_MISC_OTH | B194: Def Deb Miscellaneous Other | D194: 2669538.93 | F194: 19793.47 | H194: -39939.81
A195: %,V18600200 | B195: Def Debit-Maint and Jobng WIP | C195: 18600200 | D195: 298366.52 | F195: 90665.93 | H195: 287416.19
A196: %,NDEF_DEB_MNT_JOB_WIP | B196: Maintenance and Jobbing WIP | D196: 298366.52 | F196: 90665.93 | H196: 287416.19
A197: %,FACCOUNT,TNI_ACCOUNT_FERC,XBYYYYY01,NDEFERRED_DEBITS_MISC | B197: Miscellaneous Deferred Debits | D197: 2967905.45 | F197: 110459.4 | H197: 247476.38
A198: %,FACCOUNT,TNI_ACCOUNT_FERC,XBYYYYY01,NRESEARCH_&_DEV_EXP | B198: Research & Development Expense | D198: 0 | F198: 0 | H198: 0
A199: %,FACCOUNT,TNI_ACCOUNT_FERC,XBYYYYY01,NREACQ_DEBT_LOSS | B199: Unamort Loss Reacquired Debt | D199: 0 | F199: 0 | H199: 0
A200: %,V19005000 | B200: ADIT-Other-Noncurr-Fed | C200: 19005000 | D200: 7095863 | F200: -20263 | H200: -334221
A201: %,V19005100 | B201: ADIT Reg Liability NC - Fed | C201: 19005100 | D201: 11811 | F201: -550 | H201: -4401
A202: %,V19005400 | B202: ADIT FIT Gross Up | C202: 19005400 | D202: 6442353 | F202: -24540 | H202: -196320
A203: %,V19006000 | B203: ADIT-Other-Noncurr-State | C203: 19006000 | D203: 749065 | F203: 69683 | H203: -118014
A204: %,V19006100 | B204: ADIT Reg Liability NC - State | C204: 19006100 | D204: 3554 | F204: 0 | H204: 0
A205: %,V19006400 | B205: ADIT SIT Gross Up | C205: 19006400 | D205: 2223378 | F205: -2444 | H205: -19547
A206: %,FACCOUNT,TNI_ACCOUNT_FERC,XBYYYYY01,NACCUM_DEFD_INC_TAX | B206: Accum Deferred Income Taxes | D206: 16526024 | F206: 21886 | H206: -672503
A207: %,V19100100 | B207: Unrecov Purchs Gas Costs-Com | C207: 19100100 | D207: 22642337.12 | F207: 3665804.8 | H207: 15478767.09
A208: %,V19100400 | B208: End User Exchange | C208: 19100400 | D208: 4112979.33 | F208: 1430386.76 | H208: 2064597.11
A209: %,V19100800 | B209: Unrecov Purch Gas Cst-Unbill | C209: 19100800 | D209: -1093417.48 | F209: -99661.37 | H209: 4895294.25
A210: %,FACCOUNT,TNI_ACCOUNT_FERC,XBYYYYY01,NPURCH_GAS_COST_UNREC | B210: Unrecovered Purchase Gas Costs | D210: 25661898.97 | F210: 4996530.19 | H210: 22438658.45
A211: xx | B211: Total Deferred Debits | D211: =D160+D161+D175+D180+D191+D197+D198+D199+D206+D210 -> 58039282.98 | F211: =F160+F161+F175+F180+F191+F197+F198+F199+F206+F210 -> 5661438.92 | H211: =H160+H161+H175+H180+H191+H197+H198+H199+H206+H210 -> 27212624.9
B213: Total Assets and Other Debits | D213: =D74+D88+D157+D211 -> 675727531.3 | F213: =F74+F88+F157+F211 -> 20833219.24 | H213: =H74+H88+H157+H211 -> 58359631.74
B216: CAPITALIZATION and LIABILITIES
B218: Proprietary Capital
A219: %,V20100000 | B219: Common Stock-Beg Balance | C219: 20100000 | D219: 23806200 | F219: 0 | H219: 0
A220: %,R,FACCOUNT,TNI_ACCOUNT_FERC,XBYYYYY01,NCOMMON_STOCK_FERC | B220: Common Stock FERC | D220: 23806200 | F220: 0 | H220: 0
... 168 more rows

Sheet Sep22
A1: %,LACTUALS | B1: %,ATT,FDESCR,UDESCR | C1: %,AFT,FACCOUNT | D1: %,LACTUALS,UPOSTED_TRAN_AMT,SBAL,FBOOK_CODE,VR | F1: %,LACTUALS,UPOSTED_TRAN_AMT,SPER,FBOOK_CODE,VR | H1: %,LACTUALS,UPOSTED_TRAN_AMT,SYTD,FBOOK_CODE,VR
B3: Columbia Gas of Kentucky Inc
B4: Balance Sheet-FERC
B5: Regulatory View - FERC Account
B6: As of September 30, 2022
F8: Change from | H8: Change from
D9: Current Month | F9: Prior Month | H9: Prior Year-End
B10: Assets and Other Debits
B13: Utility Plant
A15: %,V10100000 | B15: Plant In Service-Beg Bal | C15: 10100000 | D15: 623970195.9 | F15: 0 | H15: 0
A16: %,V10100001 | B16: Plant In Service-Additions | C16: 10100001 | D16: 43502220.39 | F16: 3864772.23 | H16: 43502220.39
A17: %,V10100002 | B17: Plant In Service-Retirements | C17: 10100002 | D17: -8068652.77 | F17: -1530056.23 | H17: -8068652.77
A18: %,V10140000 | B18: Cloud Plant In Svc-Beg Bal | C18: 10140000 | D18: 1654282.04 | F18: 0 | H18: 0
A19: %,V10140001 | B19: Cloud Plant in Svc-Additions | C19: 10140001 | D19: -26067.82 | F19: 785.18 | H19: -26067.82
A20: %,FACCOUNT,TNI_ACCOUNT_FERC,XBYYYYY01,NPLANT_IN_SERV_FERC | B20: Plant in Service | D20: 661031977.8 | F20: 2335501.18 | H20: 35407499.8
A21: %,V10110000 | B21: Capital Leases-Beg Bal | C21: 10110000 | D21: 400000 | F21: 0 | H21: 0
A22: %,V10112000 | B22: Right of Use Asset-Beg Bal | C22: 10112000 | D22: 316999.8 | F22: 0 | H22: 0
A23: %,V10112001 | B23: Right of Use Asset-Additions | C23: 10112001 | D23: 14738.62 | F23: 0 | H23: 14738.62
A24: %,V10112002 | B24: Right of Use Asset-Retirements | C24: 10112002 | D24: -368617.6 | F24: -69173.97 | H24: -368617.6
A25: %,V10112004 | B25: Right of Use Asset-Amort | C25: 10112004 | D25: 193542 | F25: 57929.51 | H25: 193542
A26: %,FACCOUNT,TNI_ACCOUNT_FERC,XBYYYYY01,NPLANT_CAP_LEASE | B26: Property Under Capital Lease | D26: 556662.82 | F26: -11244.46 | H26: -160336.98
A27: %,FACCOUNT,TNI_ACCOUNT_FERC,XBYYYYY01,NPLANT_PURCH_SOLD | B27: Plant Purchased or Sold | D27: 0 | F27: 0 | H27: 0
A28: %,FACCOUNT,TNI_ACCOUNT_FERC,XBYYYYY01,NPLANT_EXPERIMENT | B28: Experimental Plant Unclass | D28: 0 | F28: 0 | H28: 0
A29: %,FACCOUNT,TNI_ACCOUNT_FERC,XBYYYYY01,NPLANT_GAS_LEASE_OTH | B29: Gas Plant Leased to Others | D29: 0 | F29: 0 | H29: 0
A30: %,FACCOUNT,TNI_ACCOUNT_FERC,XBYYYYY01,NPLANT_FUTURE_USE | B30: Plant Held for Future Use | D30: 0 | F30: 0 | H30: 0
A31: %,V10600000 | B31: Comp Constr Not Class Beg Bal | C31: 10600000 | D31: 29697192.39 | F31: 0 | H31: 0
A32: %,V10600003 | B32: Comp Const not Class Other | C32: 10600003 | D32: -427287.27 | F32: 4199832.78 | H32: -427287.27
A33: %,FACCOUNT,TNI_ACCOUNT_FERC,XBYYYYY01,NPLANT_CONST_UNCLASS | B33: Completed Const Not Classified | D33: 29269905.12 | F33: 4199832.78 | H33: -427287.27
A34: %,V11401000 | B34: Tang Plant Acq Adj-BegBal | C34: 11401000 | D34: -777092 | F34: 0 | H34: 0
A35: %,FACCOUNT,TNI_ACCOUNT_FERC,XBYYYYY01,NPLANT_ACQ_ADJ_FERC | B35: Plant Acquisitions_Adjustments | D35: -777092 | F35: 0 | H35: 0
A36: %,V10700000 | B36: CWIP-Beg Balance | C36: 10700000 | D36: 18115095.37 | F36: 0 | H36: 0
A37: %,V10700001 | B37: CWIP-Additions | C37: 10700001 | D37: 59522479.33 | F37: 7029552.52 | H37: 59522479.33
A38: %,V10700003 | B38: CWIP-Other Changes | C38: 10700003 | D38: -43074933.12 | F38: -8064605.01 | H38: -43074933.12
A39: %,V10740000 | B39: Cloud CWIP-Beg Balance | C39: 10740000 | D39: 43514.5 | F39: 0 | H39: 0
A40: %,V10740001 | B40: Cloud CWIP-Additions | C40: 10740001 | D40: 303232.32 | F40: 54618.77 | H40: 303232.32
A41: %,V10740003 | B41: Cloud CWIP-Oth Changes | C41: 10740003 | D41: 26067.82 | F41: -785.18 | H41: 26067.82
A42: %,FACCOUNT,TNI_ACCOUNT_FERC,XBYYYYY01,NCWIP_FERC | B42: CWIP | D42: 34935456.22 | F42: -981218.9 | H42: 16776846.35
B44: Total Utility Plant | D44: =D20+D26+D27+D28+D29+D30+D33+D35+D42 -> 725016909.9 | F44: =F20+F26+F27+F28+F29+F30+F33+F35+F42 -> 5542870.6 | H44: =H20+H26+H27+H28+H29+H30+H33+H35+H42 -> 51596721.9
A46: %,V10800000 | B46: Accum Deprec Plant -Beg Bal | C46: 10800000 | D46: -167156914.3 | F46: 0 | H46: 0
A47: %,V10800001 | B47: Accum Deprec Plant-Additions | C47: 10800001 | D47: -12626921.48 | F47: -1486276.6 | H47: -12626921.48
A48: %,V10800002 | B48: Accum Deprec Plant-Retiremnt | C48: 10800002 | D48: 7238586.98 | F48: 1167690.6 | H48: 7238586.98
A49: %,V10800003 | B49: Accum Deprec Plant-Other Chg | C49: 10800003 | D49: 8536749.26 | F49: 1411495.74 | H49: 8536749.26
A50: %,V10800010 | B50: Retirement WIP-Beg Bal | C50: 10800010 | D50: 711717.34 | F50: 0 | H50: 0
A51: %,V10800011 | B51: Retirement WIP-Additions | C51: 10800011 | D51: 11014620.55 | F51: 1750664.43 | H51: 11014620.55
A52: %,V10800013 | B52: Retirement WIP-Other Changes | C52: 10800013 | D52: -8550641.97 | F52: -1413426.84 | H52: -8550641.97
A53: %,V10800100 | B53: Accum Deprec Cap Lease-Beg Bal | C53: 10800100 | D53: -185123.97 | F53: 0 | H53: 0
A54: %,V10800101 | B54: Accum Deprec Cap Lease-Add | C54: 10800101 | D54: -29752.07 | F54: -3305.78 | H54: -29752.07
A55: %,FACCOUNT,TNI_ACCOUNT_FERC,XBYYYYY01,NACCUM_DEPR_PLANT | B55: Accum Prov - Depreciation | D55: -161047679.6 | F55: 1426841.55 | H55: 5582641.27
A56: %,V11100000 | B56: Accum Amortization-Beg Bal | C56: 11100000 | D56: -6439440.05 | F56: 0 | H56: 0
A57: %,V11100001 | B57: Accum Amortization-Additions | C57: 11100001 | D57: -2035116.06 | F57: -199012.34 | H57: -2035116.06
A58: %,V11100002 | B58: Accum Amortization-Retiremnt | C58: 11100002 | D58: 830065.79 | F58: 362365.63 | H58: 830065.79
A59: %,V11140000 | B59: Cloud Accum Amortiz-BegBal | C59: 11140000 | D59: -297630.53 | F59: 0 | H59: 0
A60: %,V11140001 | B60: Cloud Accum Amortiz-Additions | C60: 11140001 | D60: -253138.67 | F60: -28047.51 | H60: -253138.67
A61: %,FACCOUNT,TNI_ACCOUNT_FERC,XBYYYYY01,NACCUM_AMORT_PLANT | B61: Accum_Amort_Plant | D61: -8195259.52 | F61: 135305.78 | H61: -1458188.94
A62: %,V11501000 | B62: Tang Acc Amort Plnt Acq Adj-BB | C62: 11501000 | D62: 157398.63 | F62: 0 | H62: 0
A63: %,V11501010 | B63: Tang Acc Amor Plnt Acq Adj-ADD | C63: 11501010 | D63: 19427.31 | F63: 2158.59 | H63: 19427.31
A64: %,FACCOUNT,TNI_ACCOUNT_FERC,XBYYYYY01,NACCUM_ACQ_ADJ_FERC | B64: Accum Amort Plant Acq_Adj | D64: 176825.94 | F64: 2158.59 | H64: 19427.31
B66: Accum Prov - Amort and Depr | D66: =D55+D61+D64 -> -169066113.2 | F66: =F55+F61+F64 -> 1564305.92 | H66: =H55+H61+H64 -> 4143879.64
A67: xx | B67: Net Utility Plant | D67: =D44+D66 -> 555950796.7 | F67: =F44+F66 -> 7107176.52 | H67: =H44+H66 -> 55740601.54
A68: %,FACCOUNT,TNI_ACCOUNT_FERC,XBYYYYY01,NUTIL_PLANT_ADJ | B68: Other Plant Adjustments | D68: 0 | F68: 0 | H68: 0
A70: %,FACCOUNT,TNI_ACCOUNT_FERC,XBYYYYY01,NGAS_STORED_BASE | B70: Gas Store Underground | D70: 0 | F70: 0 | H70: 0
A71: %,FACCOUNT,TNI_ACCOUNT_FERC,XBYYYYY01,NGAS_SYS_BAL | B71: System Balancing Gas | D71: 0 | F71: 0 | H71: 0
A73: xx | B73: Gas Store Undergrd_SysBal | D73: =D70+D71 -> 0 | F73: =F70+F71 -> 0 | H73: =H70+H71 -> 0
A74: xx | B74: Total Utility Plant | D74: =D67+D68+D73 -> 555950796.7 | F74: =F67+F68+F73 -> 7107176.52 | H74: =H67+H68+H73 -> 55740601.54
B76: Other Property and Investments
A77: %,FACCOUNT,TNI_ACCOUNT_FERC,XBYYYYY01,NNONUTILITY_PROPERTY | B77: Non Utility Other Property | D77: 0 | F77: 0 | H77: 0
A78: %,FACCOUNT,TNI_ACCOUNT_FERC,XBYYYYY01,NACC_DEPR_OTH_PLANT | B78: Accum Prov - Deprec Oth Plant | D78: 0 | F78: 0 | H78: 0
A79: %,FACCOUNT,TNI_ACCOUNT_FERC,XBYYYYY01,NUNCONSOL_AFFIL_FERC | B79: Investments in Associated Cos | D79: 0 | F79: 0 | H79: 0
A80: %,V12310000 | B80: Inv Sub Co-Common Stock | C80: 12310000 | D80: 174261 | F80: 0 | H80: 0
A81: %,V12310001 | B81: Inv Sub Co-PL | C81: 12310001 | D81: 565904.34 | F81: 0 | H81: -268.77
A82: %,V12310003 | B82: Inv Sub Co-Distrib | C82: 12310003 | D82: -740459.54 | F82: 0 | H82: -740459.54
A83: %,FACCOUNT,TNI_ACCOUNT_FERC,XBYYYYY01,NCONSOL_AFFIL_FERC | B83: Investments in Subsidiary Cos | D83: -294.2 | F83: 0 | H83: -740728.31
A84: %,FACCOUNT,TNI_ACCOUNT_FERC,XBYYYYY01,NOTHER_INVESTMENTS | B84: Other Investments | D84: 0 | F84: 0 | H84: 0
A85: %,FACCOUNT,TNI_ACCOUNT_FERC,XBYYYYY01,NSINK_FUND | B85: Sinking Fund | D85: 0 | F85: 0 | H85: 0
A86: %,V12800000 | B86: Funds Held in Trust | C86: 12800000 | D86: 736759.73 | F86: 8460.52 | H86: -1732754.07
A87: %,FACCOUNT,TNI_ACCOUNT_FERC,XBYYYYY01,NOTHER_FUND_SPEC | B87: Other Special Funds | D87: 736759.73 | F87: 8460.52 | H87: -1732754.07
A88: xx | B88: Total Other Property and Investments | D88: =D77+D78+D79+D83+D84+D85+D87 -> 736465.53 | F88: =F77+F78+F79+F83+F84+F85+F87 -> 8460.52 | H88: =H77+H78+H79+H83+H84+H85+H87 -> -2473482.38
B90: Current and Accrued Assets
A91: %,V13100000 | B91: Cash | C91: 13100000 | D91: 697824.64 | F91: 103083.34 | H91: 408375.23
A92: %,FACCOUNT,TNI_ACCOUNT_FERC,XBYYYYY01,NCASH_FERC | B92: Cash | D92: 697824.64 | F92: 103083.34 | H92: 408375.23
A93: %,FACCOUNT,TNI_ACCOUNT_FERC,XBYYYYY01,NSPECIAL_DEPOSITS | B93: Special Deposits | D93: 0 | F93: 0 | H93: 0
A94: %,V13500000 | B94: Working Funds | C94: 13500000 | D94: 4468.71 | F94: 4256.07 | H94: 4256.07
A95: %,FACCOUNT,TNI_ACCOUNT_FERC,XBYYYYY01,NWORKING_FUNDS | B95: Working Funds | D95: 4468.71 | F95: 4256.07 | H95: 4256.07
A96: %,FACCOUNT,TNI_ACCOUNT_FERC,XBYYYYY01,NTEMP_CASH_FERC | B96: Temp Cash Investments | D96: 0 | F96: 0 | H96: 0
A97: %,FACCOUNT,TNI_ACCOUNT_FERC,XBYYYYY01,NNOTE_RECEIVABLE | B97: Notes Receivable | D97: 0 | F97: 0 | H97: 0
A98: %,V14200160 | B98: Cust AR-Credit Balances | C98: 14200160 | D98: 14678586.48 | F98: 3236542.31 | H98: 6070962.62
A99: %,V14200220 | B99: Cust AR-CAB | C99: 14200220 | D99: -9033782.64 | F99: -2774711.46 | H99: -11616450.03
A100: %,V14200250 | B100: Cust AR-GMB | C100: 14200250 | D100: 206455.81 | F100: 61747.77 | H100: -86199.02
A101: %,V14200260 | B101: Cust AR-Cust Premise Work | C101: 14200260 | D101: 188312.99 | F101: 50019.41 | H101: 39830.37
A102: %,FACCOUNT,TNI_ACCOUNT_FERC,XBYYYYY01,NCUSTOMER_AR_FERC | B102: Customer Accounts Receivable | D102: 6039572.64 | F102: 573598.03 | H102: -5591856.06
A103: %,V14300001 | B103: Misc Accts Rec-Other | C103: 14300001 | D103: 1736020.83 | F103: -11995.07 | H103: 6768.9
A104: %,V14300018 | B104: Other AR-Billed OSS | C104: 14300018 | D104: 36498.99 | F104: -217798.5 | H104: -20976
A105: %,V14300220 | B105: Other AR-GMB Estimate | C105: 14300220 | D105: 1872.79 | F105: 278.48 | H105: -8526.25
A106: %,V14300240 | B106: Other AR-GTS | C106: 14300240 | D106: 740630.96 | F106: 92421.19 | H106: -573954.78
A107: %,V14300270 | B107: Other AR-Retail Service | C107: 14300270 | D107: 3047.3 | F107: 4.4 | H107: -10823.6
A108: %,V14300290 | B108: Other AR-CNR | C108: 14300290 | D108: 574693.34 | F108: -122889.33 | H108: 71629.21
A109: %,V14300330 | B109: Other AR Choice Trans-Columbia | C109: 14300330 | D109: -2940322.92 | F109: -588308.74 | H109: -1121268.7
A110: %,V14300350 | B110: Other AR Choice Trans-Purchase | C110: 14300350 | D110: 422284.41 | F110: -4997.35 | H110: -861703.4
A111: %,V14300395 | B111: Other AR-CPG Non-Transit Srvcs | C111: 14300395 | D111: 82542.14 | F111: 9244.79 | H111: 32178.12
A112: %,V14311111 | B112: Other AR-Curr-MA Project | C112: 14311111 | D112: 4686.29 | F112: 0 | H112: 0
A113: %,FACCOUNT,TNI_ACCOUNT_FERC,XBYYYYY01,NOTHER_AR_UNAFFIL | B113: Other Accounts Receivable | D113: 661954.13 | F113: -844040.13 | H113: -2486676.5
A114: %,V14400000 | B114: Acc Prov for Uncol-Beg Bal | C114: 14400000 | D114: -407748.76 | F114: 0 | H114: 0
A115: %,V14400100 | B115: Acc Prov for Uncol-Reserve | C115: 14400100 | D115: -780817.04 | F115: -31178.41 | H115: -780817.04
A116: %,V14400150 | B116: Acc Prov for Uncol-Charge-Offs | C116: 14400150 | D116: 1259277.92 | F116: 158940.12 | H116: 1259277.92
A117: %,V14400200 | B117: Acc Prov for Uncol-Recoveries | C117: 14400200 | D117: -276236.03 | F117: -64508.15 | H117: -276236.03
A118: %,V14400600 | B118: Accm Prov Uncoll-Unbilled | C118: 14400600 | D118: -30020.23 | F118: -689.19 | H118: 111508.54
A119: %,V14400700 | B119: Accm Prov Uncoll-Misc | C119: 14400700 | D119: -401312.87 | F119: 0 | H119: 0
A120: %,FACCOUNT,TNI_ACCOUNT_FERC,XBYYYYY01,NRESERVE_AR | B120: Accum Prov Uncollectible - Cr | D120: -636857.01 | F120: 62564.37 | H120: 313733.39
A121: %,FACCOUNT,TNI_ACCOUNT_FERC,XBYYYYY01,NNOTE_REC_AFFIL | B121: NR from Associated Cos | D121: 0 | F121: 0 | H121: 0
A122: %,V14600000 | B122: AR Assoc Co-Mech | C122: 14600000 | D122: -13523.42 | F122: -27774.91 | H122: -54807.29
A123: %,V14600002 | B123: AR Assoc Co-Misc | C123: 14600002 | D123: 12555.23 | F123: -0.01 | H123: -6374.77
A124: %,V14620000 | B124: Foreign Cash | C124: 14620000 | D124: -599752.25 | F124: 4477.07 | H124: -4565.28
A125: %,FACCOUNT,TNI_ACCOUNT_FERC,XBYYYYY01,NAR_AFFILIATE | B125: AR from Associated Cos | D125: -600720.44 | F125: -23297.85 | H125: -65747.34
A126: %,FACCOUNT,TNI_ACCOUNT_FERC,XBYYYYY01,NFUEL_STOCK | B126: Fuel Stock | D126: 0 | F126: 0 | H126: 0
A127: %,FACCOUNT,TNI_ACCOUNT_FERC,XBYYYYY01,NFUEL_STK_EXP_UNDISTR | B127: Fuel Stock Expenses Undistrib | D127: 0 | F127: 0 | H127: 0
A128: %,FACCOUNT,TNI_ACCOUNT_FERC,XBYYYYY01,NRESIDUALS | B128: Residuals & Extracted Products | D128: 0 | F128: 0 | H128: 0
A129: %,V15400000 | B129: Plant Materials-Oth Supplies | C129: 15400000 | D129: 327791.45 | F129: 0 | H129: 16474.79
A130: %,V15420000 | B130: FabShop LP OH Build Ahead | C130: 15420000 | D130: 305.06 | F130: 305.06 | H130: 305.06
A131: %,FACCOUNT,TNI_ACCOUNT_FERC,XBYYYYY01,NMATERIALS_AND_SUPPLY | B131: Plant Materials & Supplies | D131: 328096.51 | F131: 305.06 | H131: 16779.85
A132: %,FACCOUNT,TNI_ACCOUNT_FERC,XBYYYYY01,NMERCHANDISE | B132: Merchandise | D132: 0 | F132: 0 | H132: 0
A133: %,FACCOUNT,TNI_ACCOUNT_FERC,XBYYYYY01,NALLOWANCES | B133: Allowances | D133: 0 | F133: 0 | H133: 0
A134: %,FACCOUNT,TNI_ACCOUNT_FERC,XBYYYYY01,NSTORES_EXP | B134: Stores Exp Undistributed | D134: 0 | F134: 0 | H134: 0
A135: %,V16411000 | B135: Gas Stored-Current-LIFO | C135: 16411000 | D135: 56007379.69 | F135: 8973238.31 | H135: 14061110.19
A136: %,FACCOUNT,TNI_ACCOUNT_FERC,XBYYYYY01,NGAS_STORED_UNDRGRND | B136: Gas Stored Underground - Curr | D136: 56007379.69 | F136: 8973238.31 | H136: 14061110.19
A137: %,FACCOUNT,TNI_ACCOUNT_FERC,XBYYYYY01,NLNG_STORED_HELD | B137: LNG Stored & Held for Process | D137: 0 | F137: 0 | H137: 0
A138: %,V16500000 | B138: Other Misc Prepayments | C138: 16500000 | D138: -63149.73 | F138: -543.63 | H138: -8602.47
A139: %,V16500010 | B139: Prepaid-Medical LTD | C139: 16500010 | D139: 3591.64 | F139: -339.64 | H139: 446
A140: %,V16500030 | B140: Prepaid Payroll | C140: 16500030 | D140: 0 | F140: 0 | H140: -44940.59
A141: %,V16503600 | B141: Prepaid Taxes - Other | C141: 16503600 | D141: 147245.13 | F141: -22634.77 | H141: 22068.7
A142: %,V16520000 | B142: Prepaid-Insurance Affiliate | C142: 16520000 | D142: 556883.23 | F142: -74824.04 | H142: 222172.51
A143: %,V16521000 | B143: Prepaid-Insurance NonAffil | C143: 16521000 | D143: 1067666.06 | F143: -144220.2 | H143: 175696.52
A144: %,V16591000 | B144: Prepaid-NC Cloud Cost Incurred | C144: 16591000 | D144: 0.13 | F144: 0 | H144: 0.02
A145: %,FACCOUNT,TNI_ACCOUNT_FERC,XBYYYYY01,NPREPAYMENTS_FERC | B145: Prepayments | D145: 1712236.46 | F145: -242562.28 | H145: 366840.69
A146: %,FACCOUNT,TNI_ACCOUNT_FERC,XBYYYYY01,NINT_DIV_REC | B146: Interest & Dividends Rec | D146: 0 | F146: 0 | H146: 0
A147: %,FACCOUNT,TNI_ACCOUNT_FERC,XBYYYYY01,NRENT_REC | B147: Rent Receivable | D147: 0 | F147: 0 | H147: 0
A148: %,V17300000 | B148: AR Accrued Revenues | C148: 17300000 | D148: 6097993.67 | F148: 759938.39 | H148: -8818771.79
A149: %,V17302000 | B149: AR Accrd Rev Unbill Exch Gas | C149: 17302000 | D149: 584041.74 | F149: 136320.06 | H149: 490463.68
A150: %,FACCOUNT,TNI_ACCOUNT_FERC,XBYYYYY01,NACCRUED_REVENUES | B150: Accrued Utility Revenues | D150: 6682035.41 | F150: 896258.45 | H150: -8328308.11
A151: %,V17401000 | B151: Misc Assets-Exch Gas Receiv | C151: 17401000 | D151: 5537747.24 | F151: 1108008.2 | H151: 1567177.56
A152: %,V17403200 | B152: Misc Assets-Property Tax | C152: 17403200 | D152: 1761946.74 | F152: -532350 | H152: -5191098.68
A153: %,FACCOUNT,TNI_ACCOUNT_FERC,XBYYYYY01,NOTHER_CURRENT_ASSETS | B153: Misc Current & Accrued Assets | D153: 7299693.98 | F153: 575658.2 | H153: -3623921.12
A154: %,FACCOUNT,TNI_ACCOUNT_FERC,XBYYYYY01,NDERIV_ASSET | B154: Derivative Instrument Assets | D154: 0 | F154: 0 | H154: 0
A155: %,FACCOUNT,TNI_ACCOUNT_FERC,XBYYYYY01,NDERIV_HEDGE | B155: Derivative Assets - Hedging | D155: 0 | F155: 0 | H155: 0
A156: xx | B156: Total Current and Accrued Assets | D156: =D92+D93+D95+D96+D97+D102+D113+D120+D121+D125+D126+D127+D128+D131+D132+D133+D134+D136+D137+D145+D146+D147+D150+D153+D154+D155 -> 78195684.72 | F156: =F92+F93+F95+F96+F97+F102+F113+F120+F121+F125+F126+F127+F128+F131+F132+F133+F134+F136+F137+F145+F146+F147+F150+F153+F154+F155 -> 10079061.57 | H156: =H92+H93+H95+H96+H97+H102+H113+H120+H121+H125+H126+H127+H128+H131+H132+H133+H134+H136+H137+H145+H146+H147+H150+H153+H154+H155 -> -4925413.71
B158: Deferred Debits
A159: %,FACCOUNT,TNI_ACCOUNT_FERC,XBYYYYY01,NUNAMORTIZED_DEBT_EXP | B159: Unamortized Debt Expense | D159: 0 | F159: 0 | H159: 0
A160: %,FACCOUNT,TNI_ACCOUNT_FERC,XBYYYYY01,NEXTRAORD_PROP_LOSS | B160: Extraordinary Property Loss | D160: 0 | F160: 0 | H160: 0
A161: %,V18230200 | B161: Reg Asset Cr Bal Transf | C161: 18230200 | D161: 518883.12 | F161: 30805.47 | H161: 518883.12
A162: %,V18230250 | B162: Reg Asset Rate Case Current | C162: 18230250 | D162: 185185.44 | F162: 0 | H162: 0
A163: %,V18230350 | B163: Reg Asset DSM Expenses-GAS | C163: 18230350 | D163: 0 | F163: 0 | H163: -6590
A164: %,V18230440 | B164: Reg Asset GTI Funding | C164: 18230440 | D164: 128153.21 | F164: 12388.09 | H164: 5771.14
A165: %,V18230450 | B165: Reg Asset EAP | C165: 18230450 | D165: -443436.99 | F165: -35683.08 | H165: -481550.46
A166: %,V18233420 | B166: Reg Asset-Prf Base Rt Adj PBRA | C166: 18233420 | D166: 4822434.85 | F166: 318888.06 | H166: 3225466.32
A167: %,V18233560 | B167: Reg Asset COVID Costs CURRENT | C167: 18233560 | D167: 11318.04 | F167: 0 | H167: 0
A168: %,V18235114 | B168: NC Reg Asset FAS 158 OPEB | C168: 18235114 | D168: 891230.31 | F168: -10769.41 | H168: -96924.69
A169: %,V18235115 | B169: NC Reg Asset FAS158 Pension | C169: 18235115 | D169: 4427386.09 | F169: -156738.54 | H169: 1344849.09
A170: %,V18235440 | B170: NC Reg Asset Rate Case Non-Cur | C170: 18235440 | D170: 231476.91 | F170: -15437.01 | H170: -138893.87
A171: %,V18235450 | B171: NC Reg Asset Pen NQulfd FAS158 | C171: 18235450 | D171: 7927 | F171: 0 | H171: 0
A172: %,V18235506 | B172: NC Reg Asset Def Depr Cap Lse | C172: 18235506 | D172: 19905.83 | F172: -36.72 | H172: 45.26
A173: %,V18235530 | B173: NC Reg Asset COVID Costs | C173: 18235530 | D173: 14147.54 | F173: -943.17 | H173: -8488.41
A174: %,FACCOUNT,TNI_ACCOUNT_FERC,XBYYYYY01,NOTHER_REG_ASSET | B174: Other Regulatory Asset | D174: 10814611.35 | F174: 142473.69 | H174: 4362567.5
A176: %,V18320000 | B176: Oth Prelim Survey B Bal | C176: 18320000 | D176: 1232417.64 | F176: 0 | H176: 0
A177: %,V18320001 | B177: Oth Prelim Survey Additions | C177: 18320001 | D177: 1099123.64 | F177: 118699.72 | H177: 1099123.64
A178: %,NPRELIM_SURVEY_OTH | B178: Preliminary Survey Other | D178: 2331541.28 | F178: 118699.72 | H178: 1099123.64
A179: %,FACCOUNT,TNI_ACCOUNT_FERC,XBYYYYY01,NPRELIM_SURVEY | B179: Preliminary Surveys | D179: 2331541.28 | F179: 118699.72 | H179: 1099123.64
A181: %,V18400050 | B181: Cash Clearing | C181: 18400050 | D181: -31498.57 | F181: -30070 | H181: -31498.57
A182: %,V18400100 | B182: Building Clearing | C182: 18400100 | D182: 568.16 | F182: 0 | H182: 568.16
A183: %,V18400200 | B183: Car Clearing | C183: 18400200 | D183: 0.04 | F183: 0.04 | H183: 0.04
A184: %,V18400250 | B184: Truck Clearing | C184: 18400250 | D184: 0.05 | F184: 0.18 | H184: 0.05
A185: %,V18400400 | B185: General Tool Clearing | C185: 18400400 | D185: 0.04 | F185: 0.06 | H185: 0.04
A186: %,NCLEARING_OTHER | B186: Clearing Accounts Other | D186: -30930.28 | F186: -30069.72 | H186: -30930.28
A187: %,V18400275 | B187: Clearing-Fleet | C187: 18400275 | D187: -664.1 | F187: 0 | H187: -664.1
A188: %,NCLEARING_FLEET | B188: Clearing Fleet | D188: -664.1 | F188: 0 | H188: -664.1
A189: %,NCLEARING_GENERAL | B189: Clearing Accounts General | D189: 0 | F189: 0 | H189: 0
A190: %,FACCOUNT,TNI_ACCOUNT_FERC,XBYYYYY01,NCLEARING_ACCOUNTS | B190: Clearing Accounts | D190: -31594.38 | F190: -30069.72 | H190: -31594.38
A192: %,V18600400 | B192: DefDebitCusAdv_DEPPST12-31-99 | C192: 18600400 | D192: 2665842.49 | F192: -3696.44 | H192: -43636.25
A193: %,NDEF_DEB_MISC_OTH | B193: Def Deb Miscellaneous Other | D193: 2665842.49 | F193: -3696.44 | H193: -43636.25
A194: %,V18600200 | B194: Def Debit-Maint and Jobng WIP | C194: 18600200 | D194: 199647.64 | F194: -98718.88 | H194: 188697.31
A195: %,NDEF_DEB_MNT_JOB_WIP | B195: Maintenance and Jobbing WIP | D195: 199647.64 | F195: -98718.88 | H195: 188697.31
A196: %,FACCOUNT,TNI_ACCOUNT_FERC,XBYYYYY01,NDEFERRED_DEBITS_MISC | B196: Miscellaneous Deferred Debits | D196: 2865490.13 | F196: -102415.32 | H196: 145061.06
A197: %,FACCOUNT,TNI_ACCOUNT_FERC,XBYYYYY01,NRESEARCH_&_DEV_EXP | B197: Research & Development Expense | D197: 0 | F197: 0 | H197: 0
A198: %,FACCOUNT,TNI_ACCOUNT_FERC,XBYYYYY01,NREACQ_DEBT_LOSS | B198: Unamort Loss Reacquired Debt | D198: 0 | F198: 0 | H198: 0
A199: %,V19005000 | B199: ADIT-Other-Noncurr-Fed | C199: 19005000 | D199: 7140333 | F199: 44470 | H199: -289751
A200: %,V19005100 | B200: ADIT Reg Liability NC - Fed | C200: 19005100 | D200: 11260 | F200: -551 | H200: -4952
A201: %,V19005400 | B201: ADIT FIT Gross Up | C201: 19005400 | D201: 6417813 | F201: -24540 | H201: -220860
A202: %,V19006000 | B202: ADIT-Other-Noncurr-State | C202: 19006000 | D202: 885853 | F202: 136788 | H202: 18774
A203: %,V19006100 | B203: ADIT Reg Liability NC - State | C203: 19006100 | D203: 3554 | F203: 0 | H203: 0
A204: %,V19006400 | B204: ADIT SIT Gross Up | C204: 19006400 | D204: 2220935 | F204: -2443 | H204: -21990
A205: %,FACCOUNT,TNI_ACCOUNT_FERC,XBYYYYY01,NACCUM_DEFD_INC_TAX | B205: Accum Deferred Income Taxes | D205: 16679748 | F205: 153724 | H205: -518779
A206: %,V19100100 | B206: Unrecov Purchs Gas Costs-Com | C206: 19100100 | D206: 24023571.4 | F206: 1381234.28 | H206: 16860001.37
A207: %,V19100400 | B207: End User Exchange | C207: 19100400 | D207: 5280108.63 | F207: 1167129.3 | H207: 3231726.41
A208: %,V19100800 | B208: Unrecov Purch Gas Cst-Unbill | C208: 19100800 | D208: -1571673.43 | F208: -478255.95 | H208: 4417038.3
A209: %,FACCOUNT,TNI_ACCOUNT_FERC,XBYYYYY01,NPURCH_GAS_COST_UNREC | B209: Unrecovered Purchase Gas Costs | D209: 27732006.6 | F209: 2070107.63 | H209: 24508766.08
A210: xx | B210: Total Deferred Debits | D210: =D159+D160+D174+D179+D190+D196+D197+D198+D205+D209 -> 60391802.98 | F210: =F159+F160+F174+F179+F190+F196+F197+F198+F205+F209 -> 2352520 | H210: =H159+H160+H174+H179+H190+H196+H197+H198+H205+H209 -> 29565144.9
B212: Total Assets and Other Debits | D212: =D74+D88+D156+D210 -> 695274750 | F212: =F74+F88+F156+F210 -> 19547218.61 | H212: =H74+H88+H156+H210 -> 77906850.35
B215: CAPITALIZATION and LIABILITIES
B217: Proprietary Capital
A218: %,V20100000 | B218: Common Stock-Beg Balance | C218: 20100000 | D218: 23806200 | F218: 0 | H218: 0
A219: %,R,FACCOUNT,TNI_ACCOUNT_FERC,XBYYYYY01,NCOMMON_STOCK_FERC | B219: Common Stock FERC | D219: 23806200 | F219: 0 | H219: 0
A220: %,R,FACCOUNT,TNI_ACCOUNT_FERC,XBYYYYY01,NPREFERRED_STOCK_FERC | B220: Preferred Stock Issued | D220: 0 | F220: 0 | H220: 0
... 167 more rows

Sheet Oct22
A1: %,LACTUALS | B1: %,ATT,FDESCR,UDESCR | C1: %,AFT,FACCOUNT | D1: %,LACTUALS,UPOSTED_TRAN_AMT,SBAL,FBOOK_CODE,VR | F1: %,LACTUALS,UPOSTED_TRAN_AMT,SPER,FBOOK_CODE,VR | H1: %,LACTUALS,UPOSTED_TRAN_AMT,SYTD,FBOOK_CODE,VR
B3: Columbia Gas of Kentucky Inc
B4: Balance Sheet-FERC
B5: Regulatory View - FERC Account
B6: As of October 31, 2022
F8: Change from | H8: Change from
D9: Current Month | F9: Prior Month | H9: Prior Year-End
B10: Assets and Other Debits
B13: Utility Plant
A15: %,V10100000 | B15: Plant In Service-Beg Bal | C15: 10100000 | D15: 623970195.9 | F15: 0 | H15: 0
A16: %,V10100001 | B16: Plant In Service-Additions | C16: 10100001 | D16: 45748520.2 | F16: 2246299.81 | H16: 45748520.2
A17: %,V10100002 | B17: Plant In Service-Retirements | C17: 10100002 | D17: -9328851.15 | F17: -1260198.38 | H17: -9328851.15
A18: %,V10140000 | B18: Cloud Plant In Svc-Beg Bal | C18: 10140000 | D18: 1654282.04 | F18: 0 | H18: 0
A19: %,V10140001 | B19: Cloud Plant in Svc-Additions | C19: 10140001 | D19: 14582.62 | F19: 40650.44 | H19: 14582.62
A20: %,FACCOUNT,TNI_ACCOUNT_FERC,XBYYYYY01,NPLANT_IN_SERV_FERC | B20: Plant in Service | D20: 662058729.6 | F20: 1026751.87 | H20: 36434251.67
A21: %,V10110000 | B21: Capital Leases-Beg Bal | C21: 10110000 | D21: 400000 | F21: 0 | H21: 0
A22: %,V10112000 | B22: Right of Use Asset-Beg Bal | C22: 10112000 | D22: 316999.8 | F22: 0 | H22: 0
A23: %,V10112001 | B23: Right of Use Asset-Additions | C23: 10112001 | D23: 14738.62 | F23: 0 | H23: 14738.62
A24: %,V10112002 | B24: Right of Use Asset-Retirements | C24: 10112002 | D24: -368617.6 | F24: 0 | H24: -368617.6
A25: %,V10112004 | B25: Right of Use Asset-Amort | C25: 10112004 | D25: 187649.69 | F25: -5892.31 | H25: 187649.69
A26: %,FACCOUNT,TNI_ACCOUNT_FERC,XBYYYYY01,NPLANT_CAP_LEASE | B26: Property Under Capital Lease | D26: 550770.51 | F26: -5892.31 | H26: -166229.29
A27: %,FACCOUNT,TNI_ACCOUNT_FERC,XBYYYYY01,NPLANT_PURCH_SOLD | B27: Plant Purchased or Sold | D27: 0 | F27: 0 | H27: 0
A28: %,FACCOUNT,TNI_ACCOUNT_FERC,XBYYYYY01,NPLANT_EXPERIMENT | B28: Experimental Plant Unclass | D28: 0 | F28: 0 | H28: 0
A29: %,FACCOUNT,TNI_ACCOUNT_FERC,XBYYYYY01,NPLANT_GAS_LEASE_OTH | B29: Gas Plant Leased to Others | D29: 0 | F29: 0 | H29: 0
A30: %,FACCOUNT,TNI_ACCOUNT_FERC,XBYYYYY01,NPLANT_FUTURE_USE | B30: Plant Held for Future Use | D30: 0 | F30: 0 | H30: 0
A31: %,V10600000 | B31: Comp Constr Not Class Beg Bal | C31: 10600000 | D31: 29697192.39 | F31: 0 | H31: 0
A32: %,V10600003 | B32: Comp Const not Class Other | C32: 10600003 | D32: 5669055.83 | F32: 6096343.1 | H32: 5669055.83
A33: %,FACCOUNT,TNI_ACCOUNT_FERC,XBYYYYY01,NPLANT_CONST_UNCLASS | B33: Completed Const Not Classified | D33: 35366248.22 | F33: 6096343.1 | H33: 5669055.83
A34: %,V11401000 | B34: Tang Plant Acq Adj-BegBal | C34: 11401000 | D34: -777092 | F34: 0 | H34: 0
A35: %,FACCOUNT,TNI_ACCOUNT_FERC,XBYYYYY01,NPLANT_ACQ_ADJ_FERC | B35: Plant Acquisitions_Adjustments | D35: -777092 | F35: 0 | H35: 0
A36: %,V10700000 | B36: CWIP-Beg Balance | C36: 10700000 | D36: 18115095.37 | F36: 0 | H36: 0
A37: %,V10700001 | B37: CWIP-Additions | C37: 10700001 | D37: 66800081.74 | F37: 7277602.41 | H37: 66800081.74
A38: %,V10700003 | B38: CWIP-Other Changes | C38: 10700003 | D38: -51417576.03 | F38: -8342642.91 | H38: -51417576.03
A39: %,V10740000 | B39: Cloud CWIP-Beg Balance | C39: 10740000 | D39: 43514.5 | F39: 0 | H39: 0
A40: %,V10740001 | B40: Cloud CWIP-Additions | C40: 10740001 | D40: 372858.22 | F40: 69625.9 | H40: 372858.22
A41: %,V10740003 | B41: Cloud CWIP-Oth Changes | C41: 10740003 | D41: -14582.62 | F41: -40650.44 | H41: -14582.62
A42: %,FACCOUNT,TNI_ACCOUNT_FERC,XBYYYYY01,NCWIP_FERC | B42: CWIP | D42: 33899391.18 | F42: -1036065.04 | H42: 15740781.31
B44: Total Utility Plant | D44: =D20+D26+D27+D28+D29+D30+D33+D35+D42 -> 731098047.5 | F44: =F20+F26+F27+F28+F29+F30+F33+F35+F42 -> 6081137.62 | H44: =H20+H26+H27+H28+H29+H30+H33+H35+H42 -> 57677859.52
A46: %,V10800000 | B46: Accum Deprec Plant -Beg Bal | C46: 10800000 | D46: -167156914.3 | F46: 0 | H46: 0
A47: %,V10800001 | B47: Accum Deprec Plant-Additions | C47: 10800001 | D47: -14093642.44 | F47: -1466720.96 | H47: -14093642.44
A48: %,V10800002 | B48: Accum Deprec Plant-Retiremnt | C48: 10800002 | D48: 8416691.69 | F48: 1178104.71 | H48: 8416691.69
A49: %,V10800003 | B49: Accum Deprec Plant-Other Chg | C49: 10800003 | D49: 10337422.07 | F49: 1800672.81 | H49: 10337422.07
A50: %,V10800010 | B50: Retirement WIP-Beg Bal | C50: 10800010 | D50: 711717.34 | F50: 0 | H50: 0
A51: %,V10800011 | B51: Retirement WIP-Additions | C51: 10800011 | D51: 12826378.06 | F51: 1811757.51 | H51: 12826378.06
A52: %,V10800013 | B52: Retirement WIP-Other Changes | C52: 10800013 | D52: -10351676.88 | F52: -1801034.91 | H52: -10351676.88
A53: %,V10800100 | B53: Accum Deprec Cap Lease-Beg Bal | C53: 10800100 | D53: -185123.97 | F53: 0 | H53: 0
A54: %,V10800101 | B54: Accum Deprec Cap Lease-Add | C54: 10800101 | D54: -33057.85 | F54: -3305.78 | H54: -33057.85
A55: %,FACCOUNT,TNI_ACCOUNT_FERC,XBYYYYY01,NACCUM_DEPR_PLANT | B55: Accum Prov - Depreciation | D55: -159528206.2 | F55: 1519473.38 | H55: 7102114.65
A56: %,V11100000 | B56: Accum Amortization-Beg Bal | C56: 11100000 | D56: -6439440.05 | F56: 0 | H56: 0
A57: %,V11100001 | B57: Accum Amortization-Additions | C57: 11100001 | D57: -2235190.38 | F57: -200074.32 | H57: -2235190.38
A58: %,V11100002 | B58: Accum Amortization-Retiremnt | C58: 11100002 | D58: 912159.46 | F58: 82093.67 | H58: 912159.46
A59: %,V11140000 | B59: Cloud Accum Amortiz-BegBal | C59: 11140000 | D59: -297630.53 | F59: 0 | H59: 0
A60: %,V11140001 | B60: Cloud Accum Amortiz-Additions | C60: 11140001 | D60: -281535.3 | F60: -28396.63 | H60: -281535.3
A61: %,FACCOUNT,TNI_ACCOUNT_FERC,XBYYYYY01,NACCUM_AMORT_PLANT | B61: Accum_Amort_Plant | D61: -8341636.8 | F61: -146377.28 | H61: -1604566.22
A62: %,V11501000 | B62: Tang Acc Amort Plnt Acq Adj-BB | C62: 11501000 | D62: 157398.63 | F62: 0 | H62: 0
A63: %,V11501010 | B63: Tang Acc Amor Plnt Acq Adj-ADD | C63: 11501010 | D63: 21585.9 | F63: 2158.59 | H63: 21585.9
A64: %,FACCOUNT,TNI_ACCOUNT_FERC,XBYYYYY01,NACCUM_ACQ_ADJ_FERC | B64: Accum Amort Plant Acq_Adj | D64: 178984.53 | F64: 2158.59 | H64: 21585.9
B66: Accum Prov - Amort and Depr | D66: =D55+D61+D64 -> -167690858.5 | F66: =F55+F61+F64 -> 1375254.69 | H66: =H55+H61+H64 -> 5519134.33
A67: xx | B67: Net Utility Plant | D67: =D44+D66 -> 563407189 | F67: =F44+F66 -> 7456392.31 | H67: =H44+H66 -> 63196993.85
A68: %,FACCOUNT,TNI_ACCOUNT_FERC,XBYYYYY01,NUTIL_PLANT_ADJ | B68: Other Plant Adjustments | D68: 0 | F68: 0 | H68: 0
A70: %,FACCOUNT,TNI_ACCOUNT_FERC,XBYYYYY01,NGAS_STORED_BASE | B70: Gas Store Underground | D70: 0 | F70: 0 | H70: 0
A71: %,FACCOUNT,TNI_ACCOUNT_FERC,XBYYYYY01,NGAS_SYS_BAL | B71: System Balancing Gas | D71: 0 | F71: 0 | H71: 0
A73: xx | B73: Gas Store Undergrd_SysBal | D73: =D70+D71 -> 0 | F73: =F70+F71 -> 0 | H73: =H70+H71 -> 0
A74: xx | B74: Total Utility Plant | D74: =D67+D68+D73 -> 563407189 | F74: =F67+F68+F73 -> 7456392.31 | H74: =H67+H68+H73 -> 63196993.85
B76: Other Property and Investments
A77: %,FACCOUNT,TNI_ACCOUNT_FERC,XBYYYYY01,NNONUTILITY_PROPERTY | B77: Non Utility Other Property | D77: 0 | F77: 0 | H77: 0
A78: %,FACCOUNT,TNI_ACCOUNT_FERC,XBYYYYY01,NACC_DEPR_OTH_PLANT | B78: Accum Prov - Deprec Oth Plant | D78: 0 | F78: 0 | H78: 0
A79: %,FACCOUNT,TNI_ACCOUNT_FERC,XBYYYYY01,NUNCONSOL_AFFIL_FERC | B79: Investments in Associated Cos | D79: 0 | F79: 0 | H79: 0
A80: %,V12310000 | B80: Inv Sub Co-Common Stock | C80: 12310000 | D80: 174261 | F80: 0 | H80: 0
A81: %,V12310001 | B81: Inv Sub Co-PL | C81: 12310001 | D81: 565904.34 | F81: 0 | H81: -268.77
A82: %,V12310003 | B82: Inv Sub Co-Distrib | C82: 12310003 | D82: -740459.54 | F82: 0 | H82: -740459.54
A83: %,FACCOUNT,TNI_ACCOUNT_FERC,XBYYYYY01,NCONSOL_AFFIL_FERC | B83: Investments in Subsidiary Cos | D83: -294.2 | F83: 0 | H83: -740728.31
A84: %,FACCOUNT,TNI_ACCOUNT_FERC,XBYYYYY01,NOTHER_INVESTMENTS | B84: Other Investments | D84: 0 | F84: 0 | H84: 0
A85: %,FACCOUNT,TNI_ACCOUNT_FERC,XBYYYYY01,NSINK_FUND | B85: Sinking Fund | D85: 0 | F85: 0 | H85: 0
A86: %,V12800000 | B86: Funds Held in Trust | C86: 12800000 | D86: 745220.25 | F86: 8460.52 | H86: -1724293.55
A87: %,FACCOUNT,TNI_ACCOUNT_FERC,XBYYYYY01,NOTHER_FUND_SPEC | B87: Other Special Funds | D87: 745220.25 | F87: 8460.52 | H87: -1724293.55
A88: xx | B88: Total Other Property and Investments | D88: =D77+D78+D79+D83+D84+D85+D87 -> 744926.05 | F88: =F77+F78+F79+F83+F84+F85+F87 -> 8460.52 | H88: =H77+H78+H79+H83+H84+H85+H87 -> -2465021.86
B90: Current and Accrued Assets
A91: %,V13100000 | B91: Cash | C91: 13100000 | D91: 722799.25 | F91: 24974.61 | H91: 433349.84
A92: %,FACCOUNT,TNI_ACCOUNT_FERC,XBYYYYY01,NCASH_FERC | B92: Cash | D92: 722799.25 | F92: 24974.61 | H92: 433349.84
A93: %,FACCOUNT,TNI_ACCOUNT_FERC,XBYYYYY01,NSPECIAL_DEPOSITS | B93: Special Deposits | D93: 0 | F93: 0 | H93: 0
A94: %,V13500000 | B94: Working Funds | C94: 13500000 | D94: 4468.71 | F94: 0 | H94: 4256.07
A95: %,FACCOUNT,TNI_ACCOUNT_FERC,XBYYYYY01,NWORKING_FUNDS | B95: Working Funds | D95: 4468.71 | F95: 0 | H95: 4256.07
A96: %,FACCOUNT,TNI_ACCOUNT_FERC,XBYYYYY01,NTEMP_CASH_FERC | B96: Temp Cash Investments | D96: 0 | F96: 0 | H96: 0
A97: %,FACCOUNT,TNI_ACCOUNT_FERC,XBYYYYY01,NNOTE_RECEIVABLE | B97: Notes Receivable | D97: 0 | F97: 0 | H97: 0
A98: %,V14200160 | B98: Cust AR-Credit Balances | C98: 14200160 | D98: 17104823.89 | F98: 2426237.41 | H98: 8497200.03
A99: %,V14200220 | B99: Cust AR-CAB | C99: 14200220 | D99: -9969143.31 | F99: -935360.67 | H99: -12551810.7
A100: %,V14200250 | B100: Cust AR-GMB | C100: 14200250 | D100: 148004.04 | F100: -58451.77 | H100: -144650.79
A101: %,V14200260 | B101: Cust AR-Cust Premise Work | C101: 14200260 | D101: 212816.27 | F101: 24503.28 | H101: 64333.65
A102: %,FACCOUNT,TNI_ACCOUNT_FERC,XBYYYYY01,NCUSTOMER_AR_FERC | B102: Customer Accounts Receivable | D102: 7496500.89 | F102: 1456928.25 | H102: -4134927.81
A103: %,V14300001 | B103: Misc Accts Rec-Other | C103: 14300001 | D103: 1736092.15 | F103: 71.32 | H103: 6840.22
A104: %,V14300018 | B104: Other AR-Billed OSS | C104: 14300018 | D104: 418137.99 | F104: 381639 | H104: 360663
A105: %,V14300220 | B105: Other AR-GMB Estimate | C105: 14300220 | D105: 3252.3 | F105: 1379.51 | H105: -7146.74
A106: %,V14300240 | B106: Other AR-GTS | C106: 14300240 | D106: 1022655.1 | F106: 282024.14 | H106: -291930.64
A107: %,V14300270 | B107: Other AR-Retail Service | C107: 14300270 | D107: 3043.9 | F107: -3.4 | H107: -10827
A108: %,V14300290 | B108: Other AR-CNR | C108: 14300290 | D108: 570385.11 | F108: -4308.23 | H108: 67320.98
A109: %,V14300330 | B109: Other AR Choice Trans-Columbia | C109: 14300330 | D109: -3300759.94 | F109: -360437.02 | H109: -1481705.72
A110: %,V14300350 | B110: Other AR Choice Trans-Purchase | C110: 14300350 | D110: 532941.32 | F110: 110656.91 | H110: -751046.49
A111: %,V14300395 | B111: Other AR-CPG Non-Transit Srvcs | C111: 14300395 | D111: 78788.73 | F111: -3753.41 | H111: 28424.71
A112: %,V14311111 | B112: Other AR-Curr-MA Project | C112: 14311111 | D112: 4686.29 | F112: 0 | H112: 0
A113: %,FACCOUNT,TNI_ACCOUNT_FERC,XBYYYYY01,NOTHER_AR_UNAFFIL | B113: Other Accounts Receivable | D113: 1069222.95 | F113: 407268.82 | H113: -2079407.68
A114: %,V14400000 | B114: Acc Prov for Uncol-Beg Bal | C114: 14400000 | D114: -407748.76 | F114: 0 | H114: 0
A115: %,V14400100 | B115: Acc Prov for Uncol-Reserve | C115: 14400100 | D115: -800166.32 | F115: -19349.28 | H115: -800166.32
A116: %,V14400150 | B116: Acc Prov for Uncol-Charge-Offs | C116: 14400150 | D116: 1339977.36 | F116: 80699.44 | H116: 1339977.36
A117: %,V14400200 | B117: Acc Prov for Uncol-Recoveries | C117: 14400200 | D117: -397519.44 | F117: -121283.41 | H117: -397519.44
A118: %,V14400600 | B118: Accm Prov Uncoll-Unbilled | C118: 14400600 | D118: -44972.37 | F118: -14952.14 | H118: 96556.4
A119: %,V14400700 | B119: Accm Prov Uncoll-Misc | C119: 14400700 | D119: -401312.87 | F119: 0 | H119: 0
A120: %,FACCOUNT,TNI_ACCOUNT_FERC,XBYYYYY01,NRESERVE_AR | B120: Accum Prov Uncollectible - Cr | D120: -711742.4 | F120: -74885.39 | H120: 238848
A121: %,FACCOUNT,TNI_ACCOUNT_FERC,XBYYYYY01,NNOTE_REC_AFFIL | B121: NR from Associated Cos | D121: 0 | F121: 0 | H121: 0
A122: %,V14600000 | B122: AR Assoc Co-Mech | C122: 14600000 | D122: 210960 | F122: 224483.42 | H122: 169676.13
A123: %,V14600002 | B123: AR Assoc Co-Misc | C123: 14600002 | D123: 12555.22 | F123: -0.01 | H123: -6374.78
A124: %,V14620000 | B124: Foreign Cash | C124: 14620000 | D124: -604229.32 | F124: -4477.07 | H124: -9042.35
A125: %,FACCOUNT,TNI_ACCOUNT_FERC,XBYYYYY01,NAR_AFFILIATE | B125: AR from Associated Cos | D125: -380714.1 | F125: 220006.34 | H125: 154259
A126: %,FACCOUNT,TNI_ACCOUNT_FERC,XBYYYYY01,NFUEL_STOCK | B126: Fuel Stock | D126: 0 | F126: 0 | H126: 0
A127: %,FACCOUNT,TNI_ACCOUNT_FERC,XBYYYYY01,NFUEL_STK_EXP_UNDISTR | B127: Fuel Stock Expenses Undistrib | D127: 0 | F127: 0 | H127: 0
A128: %,FACCOUNT,TNI_ACCOUNT_FERC,XBYYYYY01,NRESIDUALS | B128: Residuals & Extracted Products | D128: 0 | F128: 0 | H128: 0
A129: %,V15400000 | B129: Plant Materials-Oth Supplies | C129: 15400000 | D129: 327791.45 | F129: 0 | H129: 16474.79
A130: %,V15420000 | B130: FabShop LP OH Build Ahead | C130: 15420000 | D130: 305.06 | F130: 0 | H130: 305.06
A131: %,FACCOUNT,TNI_ACCOUNT_FERC,XBYYYYY01,NMATERIALS_AND_SUPPLY | B131: Plant Materials & Supplies | D131: 328096.51 | F131: 0 | H131: 16779.85
A132: %,FACCOUNT,TNI_ACCOUNT_FERC,XBYYYYY01,NMERCHANDISE | B132: Merchandise | D132: 0 | F132: 0 | H132: 0
A133: %,FACCOUNT,TNI_ACCOUNT_FERC,XBYYYYY01,NALLOWANCES | B133: Allowances | D133: 0 | F133: 0 | H133: 0
A134: %,FACCOUNT,TNI_ACCOUNT_FERC,XBYYYYY01,NSTORES_EXP | B134: Stores Exp Undistributed | D134: 0 | F134: 0 | H134: 0
A135: %,V16411000 | B135: Gas Stored-Current-LIFO | C135: 16411000 | D135: 57678363 | F135: 1670983.31 | H135: 15732093.5
A136: %,FACCOUNT,TNI_ACCOUNT_FERC,XBYYYYY01,NGAS_STORED_UNDRGRND | B136: Gas Stored Underground - Curr | D136: 57678363 | F136: 1670983.31 | H136: 15732093.5
A137: %,FACCOUNT,TNI_ACCOUNT_FERC,XBYYYYY01,NLNG_STORED_HELD | B137: LNG Stored & Held for Process | D137: 0 | F137: 0 | H137: 0
A138: %,V16500000 | B138: Other Misc Prepayments | C138: 16500000 | D138: -63245.2 | F138: -95.47 | H138: -8697.94
A139: %,V16500010 | B139: Prepaid-Medical LTD | C139: 16500010 | D139: 3252 | F139: -339.64 | H139: 106.36
A140: %,V16500030 | B140: Prepaid Payroll | C140: 16500030 | D140: 0 | F140: 0 | H140: -44940.59
A141: %,V16503600 | B141: Prepaid Taxes - Other | C141: 16503600 | D141: 124610.36 | F141: -22634.77 | H141: -566.07
A142: %,V16520000 | B142: Prepaid-Insurance Affiliate | C142: 16520000 | D142: 482059.21 | F142: -74824.02 | H142: 147348.49
A143: %,V16521000 | B143: Prepaid-Insurance NonAffil | C143: 16521000 | D143: 922407.03 | F143: -145259.03 | H143: 30437.49
A144: %,V16591000 | B144: Prepaid-NC Cloud Cost Incurred | C144: 16591000 | D144: 0.13 | F144: 0 | H144: 0.02
A145: %,FACCOUNT,TNI_ACCOUNT_FERC,XBYYYYY01,NPREPAYMENTS_FERC | B145: Prepayments | D145: 1469083.53 | F145: -243152.93 | H145: 123687.76
A146: %,FACCOUNT,TNI_ACCOUNT_FERC,XBYYYYY01,NINT_DIV_REC | B146: Interest & Dividends Rec | D146: 0 | F146: 0 | H146: 0
A147: %,FACCOUNT,TNI_ACCOUNT_FERC,XBYYYYY01,NRENT_REC | B147: Rent Receivable | D147: 0 | F147: 0 | H147: 0
A148: %,V17300000 | B148: AR Accrued Revenues | C148: 17300000 | D148: 9099715.45 | F148: 3001721.78 | H148: -5817050.01
A149: %,V17302000 | B149: AR Accrd Rev Unbill Exch Gas | C149: 17302000 | D149: 834839.71 | F149: 250797.97 | H149: 741261.65
A150: %,FACCOUNT,TNI_ACCOUNT_FERC,XBYYYYY01,NACCRUED_REVENUES | B150: Accrued Utility Revenues | D150: 9934555.16 | F150: 3252519.75 | H150: -5075788.36
A151: %,V17401000 | B151: Misc Assets-Exch Gas Receiv | C151: 17401000 | D151: 5239713.24 | F151: -298034 | H151: 1269143.56
A152: %,V17403200 | B152: Misc Assets-Property Tax | C152: 17403200 | D152: 1229596.74 | F152: -532350 | H152: -5723448.68
A153: %,FACCOUNT,TNI_ACCOUNT_FERC,XBYYYYY01,NOTHER_CURRENT_ASSETS | B153: Misc Current & Accrued Assets | D153: 6469309.98 | F153: -830384 | H153: -4454305.12
A154: %,FACCOUNT,TNI_ACCOUNT_FERC,XBYYYYY01,NDERIV_ASSET | B154: Derivative Instrument Assets | D154: 0 | F154: 0 | H154: 0
A155: %,FACCOUNT,TNI_ACCOUNT_FERC,XBYYYYY01,NDERIV_HEDGE | B155: Derivative Assets - Hedging | D155: 0 | F155: 0 | H155: 0
A156: xx | B156: Total Current and Accrued Assets | D156: =D92+D93+D95+D96+D97+D102+D113+D120+D121+D125+D126+D127+D128+D131+D132+D133+D134+D136+D137+D145+D146+D147+D150+D153+D154+D155 -> 84079943.48 | F156: =F92+F93+F95+F96+F97+F102+F113+F120+F121+F125+F126+F127+F128+F131+F132+F133+F134+F136+F137+F145+F146+F147+F150+F153+F154+F155 -> 5884258.76 | H156: =H92+H93+H95+H96+H97+H102+H113+H120+H121+H125+H126+H127+H128+H131+H132+H133+H134+H136+H137+H145+H146+H147+H150+H153+H154+H155 -> 958845.05
B158: Deferred Debits
A159: %,FACCOUNT,TNI_ACCOUNT_FERC,XBYYYYY01,NUNAMORTIZED_DEBT_EXP | B159: Unamortized Debt Expense | D159: 0 | F159: 0 | H159: 0
A160: %,FACCOUNT,TNI_ACCOUNT_FERC,XBYYYYY01,NEXTRAORD_PROP_LOSS | B160: Extraordinary Property Loss | D160: 0 | F160: 0 | H160: 0
A161: %,V18230200 | B161: Reg Asset Cr Bal Transf | C161: 18230200 | D161: 552757.39 | F161: 33874.27 | H161: 552757.39
A162: %,V18230250 | B162: Reg Asset Rate Case Current | C162: 18230250 | D162: 185185.44 | F162: 0 | H162: 0
A163: %,V18230350 | B163: Reg Asset DSM Expenses-GAS | C163: 18230350 | D163: 0 | F163: 0 | H163: -6590
A164: %,V18230440 | B164: Reg Asset GTI Funding | C164: 18230440 | D164: 133048.57 | F164: 4895.36 | H164: 10666.5
A165: %,V18230450 | B165: Reg Asset EAP | C165: 18230450 | D165: -479151.31 | F165: -35714.32 | H165: -517264.78
A166: %,V18233420 | B166: Reg Asset-Prf Base Rt Adj PBRA | C166: 18233420 | D166: 4900411.44 | F166: 77976.59 | H166: 3303442.91
A167: %,V18233560 | B167: Reg Asset COVID Costs CURRENT | C167: 18233560 | D167: 11318.04 | F167: 0 | H167: 0
A168: %,V18235114 | B168: NC Reg Asset FAS 158 OPEB | C168: 18235114 | D168: 880460.9 | F168: -10769.41 | H168: -107694.1
A169: %,V18235115 | B169: NC Reg Asset FAS158 Pension | C169: 18235115 | D169: 4399615.55 | F169: -27770.54 | H169: 1317078.55
A170: %,V18235440 | B170: NC Reg Asset Rate Case Non-Cur | C170: 18235440 | D170: 216044.79 | F170: -15432.12 | H170: -154325.99
A171: %,V18235450 | B171: NC Reg Asset Pen NQulfd FAS158 | C171: 18235450 | D171: 7927 | F171: 0 | H171: 0
A172: %,V18235506 | B172: NC Reg Asset Def Depr Cap Lse | C172: 18235506 | D172: 19858.56 | F172: -47.27 | H172: -2.01
A173: %,V18235530 | B173: NC Reg Asset COVID Costs | C173: 18235530 | D173: 13204.37 | F173: -943.17 | H173: -9431.58
A174: %,FACCOUNT,TNI_ACCOUNT_FERC,XBYYYYY01,NOTHER_REG_ASSET | B174: Other Regulatory Asset | D174: 10840680.74 | F174: 26069.39 | H174: 4388636.89
A176: %,V18320000 | B176: Oth Prelim Survey B Bal | C176: 18320000 | D176: 1232417.64 | F176: 0 | H176: 0
A177: %,V18320001 | B177: Oth Prelim Survey Additions | C177: 18320001 | D177: 862598.36 | F177: -236525.28 | H177: 862598.36
A178: %,NPRELIM_SURVEY_OTH | B178: Preliminary Survey Other | D178: 2095016 | F178: -236525.28 | H178: 862598.36
A179: %,FACCOUNT,TNI_ACCOUNT_FERC,XBYYYYY01,NPRELIM_SURVEY | B179: Preliminary Surveys | D179: 2095016 | F179: -236525.28 | H179: 862598.36
A181: %,V18400050 | B181: Cash Clearing | C181: 18400050 | D181: -1428.57 | F181: 30070 | H181: -1428.57
A182: %,V18400100 | B182: Building Clearing | C182: 18400100 | D182: 568.16 | F182: 0 | H182: 568.16
A183: %,V18400200 | B183: Car Clearing | C183: 18400200 | D183: -0.03 | F183: -0.07 | H183: -0.03
A184: %,V18400250 | B184: Truck Clearing | C184: 18400250 | D184: 21.04 | F184: 20.99 | H184: 21.04
A185: %,V18400400 | B185: General Tool Clearing | C185: 18400400 | D185: -0.05 | F185: -0.09 | H185: -0.05
A186: %,NCLEARING_OTHER | B186: Clearing Accounts Other | D186: -839.45 | F186: 30090.83 | H186: -839.45
A187: %,V18400275 | B187: Clearing-Fleet | C187: 18400275 | D187: -664.1 | F187: 0 | H187: -664.1
A188: %,NCLEARING_FLEET | B188: Clearing Fleet | D188: -664.1 | F188: 0 | H188: -664.1
A189: %,NCLEARING_GENERAL | B189: Clearing Accounts General | D189: 0 | F189: 0 | H189: 0
A190: %,FACCOUNT,TNI_ACCOUNT_FERC,XBYYYYY01,NCLEARING_ACCOUNTS | B190: Clearing Accounts | D190: -1503.55 | F190: 30090.83 | H190: -1503.55
A192: %,V18600400 | B192: DefDebitCusAdv_DEPPST12-31-99 | C192: 18600400 | D192: 2660237.25 | F192: -5605.24 | H192: -49241.49
A193: %,NDEF_DEB_MISC_OTH | B193: Def Deb Miscellaneous Other | D193: 2660237.25 | F193: -5605.24 | H193: -49241.49
A194: %,V18600200 | B194: Def Debit-Maint and Jobng WIP | C194: 18600200 | D194: 98703.89 | F194: -100943.75 | H194: 87753.56
A195: %,NDEF_DEB_MNT_JOB_WIP | B195: Maintenance and Jobbing WIP | D195: 98703.89 | F195: -100943.75 | H195: 87753.56
A196: %,FACCOUNT,TNI_ACCOUNT_FERC,XBYYYYY01,NDEFERRED_DEBITS_MISC | B196: Miscellaneous Deferred Debits | D196: 2758941.14 | F196: -106548.99 | H196: 38512.07
A197: %,FACCOUNT,TNI_ACCOUNT_FERC,XBYYYYY01,NRESEARCH_&_DEV_EXP | B197: Research & Development Expense | D197: 0 | F197: 0 | H197: 0
A198: %,FACCOUNT,TNI_ACCOUNT_FERC,XBYYYYY01,NREACQ_DEBT_LOSS | B198: Unamort Loss Reacquired Debt | D198: 0 | F198: 0 | H198: 0
A199: %,V19005000 | B199: ADIT-Other-Noncurr-Fed | C199: 19005000 | D199: 7146101 | F199: 5768 | H199: -283983
A200: %,V19005100 | B200: ADIT Reg Liability NC - Fed | C200: 19005100 | D200: 10710 | F200: -550 | H200: -5502
A201: %,V19005400 | B201: ADIT FIT Gross Up | C201: 19005400 | D201: 6393273 | F201: -24540 | H201: -245400
A202: %,V19006000 | B202: ADIT-Other-Noncurr-State | C202: 19006000 | D202: 899348 | F202: 13495 | H202: 32269
A203: %,V19006100 | B203: ADIT Reg Liability NC - State | C203: 19006100 | D203: 3554 | F203: 0 | H203: 0
A204: %,V19006400 | B204: ADIT SIT Gross Up | C204: 19006400 | D204: 2218492 | F204: -2443 | H204: -24433
A205: %,FACCOUNT,TNI_ACCOUNT_FERC,XBYYYYY01,NACCUM_DEFD_INC_TAX | B205: Accum Deferred Income Taxes | D205: 16671478 | F205: -8270 | H205: -527049
A206: %,V19100100 | B206: Unrecov Purchs Gas Costs-Com | C206: 19100100 | D206: 25239170.31 | F206: 1215598.91 | H206: 18075600.28
A207: %,V19100400 | B207: End User Exchange | C207: 19100400 | D207: 3346355.36 | F207: -1933753.27 | H207: 1297973.14
A208: %,V19100800 | B208: Unrecov Purch Gas Cst-Unbill | C208: 19100800 | D208: -3445098.79 | F208: -1873425.36 | H208: 2543612.94
A209: %,FACCOUNT,TNI_ACCOUNT_FERC,XBYYYYY01,NPURCH_GAS_COST_UNREC | B209: Unrecovered Purchase Gas Costs | D209: 25140426.88 | F209: -2591579.72 | H209: 21917186.36
A210: xx | B210: Total Deferred Debits | D210: =D159+D160+D174+D179+D190+D196+D197+D198+D205+D209 -> 57505039.21 | F210: =F159+F160+F174+F179+F190+F196+F197+F198+F205+F209 -> -2886763.77 | H210: =H159+H160+H174+H179+H190+H196+H197+H198+H205+H209 -> 26678381.13
B212: Total Assets and Other Debits | D212: =D74+D88+D156+D210 -> 705737097.8 | F212: =F74+F88+F156+F210 -> 10462347.82 | H212: =H74+H88+H156+H210 -> 88369198.17
B215: CAPITALIZATION and LIABILITIES
B217: Proprietary Capital
A218: %,V20100000 | B218: Common Stock-Beg Balance | C218: 20100000 | D218: 23806200 | F218: 0 | H218: 0
A219: %,R,FACCOUNT,TNI_ACCOUNT_FERC,XBYYYYY01,NCOMMON_STOCK_FERC | B219: Common Stock FERC | D219: 23806200 | F219: 0 | H219: 0
A220: %,R,FACCOUNT,TNI_ACCOUNT_FERC,XBYYYYY01,NPREFERRED_STOCK_FERC | B220: Preferred Stock Issued | D220: 0 | F220: 0 | H220: 0
... 167 more rows

Sheet Nov22
A1: %,LACTUALS | B1: %,ATT,FDESCR,UDESCR | C1: %,AFT,FACCOUNT | D1: %,LACTUALS,UPOSTED_TRAN_AMT,SBAL,FBOOK_CODE,VR | F1: %,LACTUALS,UPOSTED_TRAN_AMT,SPER,FBOOK_CODE,VR | H1: %,LACTUALS,UPOSTED_TRAN_AMT,SYTD,FBOOK_CODE,VR
B3: Columbia Gas of Kentucky Inc
B4: Balance Sheet-FERC
B5: Regulatory View - FERC Account
B6: As of November 30, 2022
F8: Change from | H8: Change from
D9: Current Month | F9: Prior Month | H9: Prior Year-End
B10: Assets and Other Debits
B13: Utility Plant
A15: %,V10100000 | B15: Plant In Service-Beg Bal | C15: 10100000 | D15: 623970195.9 | F15: 0 | H15: 0
A16: %,V10100001 | B16: Plant In Service-Additions | C16: 10100001 | D16: 49374599.17 | F16: 3626078.97 | H16: 49374599.17
A17: %,V10100002 | B17: Plant In Service-Retirements | C17: 10100002 | D17: -11058571.92 | F17: -1729720.77 | H17: -11058571.92
A18: %,V10140000 | B18: Cloud Plant In Svc-Beg Bal | C18: 10140000 | D18: 1654282.04 | F18: 0 | H18: 0
A19: %,V10140001 | B19: Cloud Plant in Svc-Additions | C19: 10140001 | D19: 69724.67 | F19: 55142.05 | H19: 69724.67
A20: %,FACCOUNT,TNI_ACCOUNT_FERC,XBYYYYY01,NPLANT_IN_SERV_FERC | B20: Plant in Service | D20: 664010229.9 | F20: 1951500.25 | H20: 38385751.92
A21: %,V10110000 | B21: Capital Leases-Beg Bal | C21: 10110000 | D21: 400000 | F21: 0 | H21: 0
A22: %,V10112000 | B22: Right of Use Asset-Beg Bal | C22: 10112000 | D22: 316999.8 | F22: 0 | H22: 0
A23: %,V10112001 | B23: Right of Use Asset-Additions | C23: 10112001 | D23: 18174.05 | F23: 3435.43 | H23: 18174.05
A24: %,V10112002 | B24: Right of Use Asset-Retirements | C24: 10112002 | D24: -368617.6 | F24: 0 | H24: -368617.6
A25: %,V10112004 | B25: Right of Use Asset-Amort | C25: 10112004 | D25: 180967.89 | F25: -6681.8 | H25: 180967.89
A26: %,FACCOUNT,TNI_ACCOUNT_FERC,XBYYYYY01,NPLANT_CAP_LEASE | B26: Property Under Capital Lease | D26: 547524.14 | F26: -3246.37 | H26: -169475.66
A27: %,FACCOUNT,TNI_ACCOUNT_FERC,XBYYYYY01,NPLANT_PURCH_SOLD | B27: Plant Purchased or Sold | D27: 0 | F27: 0 | H27: 0
A28: %,FACCOUNT,TNI_ACCOUNT_FERC,XBYYYYY01,NPLANT_EXPERIMENT | B28: Experimental Plant Unclass | D28: 0 | F28: 0 | H28: 0
A29: %,FACCOUNT,TNI_ACCOUNT_FERC,XBYYYYY01,NPLANT_GAS_LEASE_OTH | B29: Gas Plant Leased to Others | D29: 0 | F29: 0 | H29: 0
A30: %,FACCOUNT,TNI_ACCOUNT_FERC,XBYYYYY01,NPLANT_FUTURE_USE | B30: Plant Held for Future Use | D30: 0 | F30: 0 | H30: 0
A31: %,V10600000 | B31: Comp Constr Not Class Beg Bal | C31: 10600000 | D31: 29697192.39 | F31: 0 | H31: 0
A32: %,V10600003 | B32: Comp Const not Class Other | C32: 10600003 | D32: 10441900.82 | F32: 4772844.99 | H32: 10441900.82
A33: %,FACCOUNT,TNI_ACCOUNT_FERC,XBYYYYY01,NPLANT_CONST_UNCLASS | B33: Completed Const Not Classified | D33: 40139093.21 | F33: 4772844.99 | H33: 10441900.82
A34: %,V11401000 | B34: Tang Plant Acq Adj-BegBal | C34: 11401000 | D34: -777092 | F34: 0 | H34: 0
A35: %,FACCOUNT,TNI_ACCOUNT_FERC,XBYYYYY01,NPLANT_ACQ_ADJ_FERC | B35: Plant Acquisitions_Adjustments | D35: -777092 | F35: 0 | H35: 0
A36: %,V10700000 | B36: CWIP-Beg Balance | C36: 10700000 | D36: 18115095.37 | F36: 0 | H36: 0
A37: %,V10700001 | B37: CWIP-Additions | C37: 10700001 | D37: 73388811.62 | F37: 6588729.88 | H37: 73388811.62
A38: %,V10700003 | B38: CWIP-Other Changes | C38: 10700003 | D38: -59816499.99 | F38: -8398923.96 | H38: -59816499.99
A39: %,V10740000 | B39: Cloud CWIP-Beg Balance | C39: 10740000 | D39: 43514.5 | F39: 0 | H39: 0
A40: %,V10740001 | B40: Cloud CWIP-Additions | C40: 10740001 | D40: 444283.03 | F40: 71424.81 | H40: 444283.03
A41: %,V10740003 | B41: Cloud CWIP-Oth Changes | C41: 10740003 | D41: -69724.67 | F41: -55142.05 | H41: -69724.67
A42: %,FACCOUNT,TNI_ACCOUNT_FERC,XBYYYYY01,NCWIP_FERC | B42: CWIP | D42: 32105479.86 | F42: -1793911.32 | H42: 13946869.99
B44: Total Utility Plant | D44: =D20+D26+D27+D28+D29+D30+D33+D35+D42 -> 736025235.1 | F44: =F20+F26+F27+F28+F29+F30+F33+F35+F42 -> 4927187.55 | H44: =H20+H26+H27+H28+H29+H30+H33+H35+H42 -> 62605047.07
A46: %,V10800000 | B46: Accum Deprec Plant -Beg Bal | C46: 10800000 | D46: -167156914.3 | F46: 0 | H46: 0
A47: %,V10800001 | B47: Accum Deprec Plant-Additions | C47: 10800001 | D47: -15558114.19 | F47: -1464471.75 | H47: -15558114.19
A48: %,V10800002 | B48: Accum Deprec Plant-Retiremnt | C48: 10800002 | D48: 10107792.07 | F48: 1691100.38 | H48: 10107792.07
A49: %,V10800003 | B49: Accum Deprec Plant-Other Chg | C49: 10800003 | D49: 11993991.84 | F49: 1656569.77 | H49: 11993991.84
A50: %,V10800010 | B50: Retirement WIP-Beg Bal | C50: 10800010 | D50: 711717.34 | F50: 0 | H50: 0
A51: %,V10800011 | B51: Retirement WIP-Additions | C51: 10800011 | D51: 14650312.27 | F51: 1823934.21 | H51: 14650312.27
A52: %,V10800013 | B52: Retirement WIP-Other Changes | C52: 10800013 | D52: -12017638.48 | F52: -1665961.6 | H52: -12017638.48
A53: %,V10800100 | B53: Accum Deprec Cap Lease-Beg Bal | C53: 10800100 | D53: -185123.97 | F53: 0 | H53: 0
A54: %,V10800101 | B54: Accum Deprec Cap Lease-Add | C54: 10800101 | D54: -36363.64 | F54: -3305.79 | H54: -36363.64
A55: %,FACCOUNT,TNI_ACCOUNT_FERC,XBYYYYY01,NACCUM_DEPR_PLANT | B55: Accum Prov - Depreciation | D55: -157490341 | F55: 2037865.22 | H55: 9139979.87
A56: %,V11100000 | B56: Accum Amortization-Beg Bal | C56: 11100000 | D56: -6439440.05 | F56: 0 | H56: 0
A57: %,V11100001 | B57: Accum Amortization-Additions | C57: 11100001 | D57: -2449792.95 | F57: -214602.57 | H57: -2449792.95
A58: %,V11100002 | B58: Accum Amortization-Retiremnt | C58: 11100002 | D58: 950779.85 | F58: 38620.39 | H58: 950779.85
A59: %,V11140000 | B59: Cloud Accum Amortiz-BegBal | C59: 11140000 | D59: -297630.53 | F59: 0 | H59: 0
A60: %,V11140001 | B60: Cloud Accum Amortiz-Additions | C60: 11140001 | D60: -312966.88 | F60: -31431.58 | H60: -312966.88
A61: %,FACCOUNT,TNI_ACCOUNT_FERC,XBYYYYY01,NACCUM_AMORT_PLANT | B61: Accum_Amort_Plant | D61: -8549050.56 | F61: -207413.76 | H61: -1811979.98
A62: %,V11501000 | B62: Tang Acc Amort Plnt Acq Adj-BB | C62: 11501000 | D62: 157398.63 | F62: 0 | H62: 0
A63: %,V11501010 | B63: Tang Acc Amor Plnt Acq Adj-ADD | C63: 11501010 | D63: 23744.49 | F63: 2158.59 | H63: 23744.49
A64: %,FACCOUNT,TNI_ACCOUNT_FERC,XBYYYYY01,NACCUM_ACQ_ADJ_FERC | B64: Accum Amort Plant Acq_Adj | D64: 181143.12 | F64: 2158.59 | H64: 23744.49
B66: Accum Prov - Amort and Depr | D66: =D55+D61+D64 -> -165858248.5 | F66: =F55+F61+F64 -> 1832610.05 | H66: =H55+H61+H64 -> 7351744.38
A67: xx | B67: Net Utility Plant | D67: =D44+D66 -> 570166986.6 | F67: =F44+F66 -> 6759797.6 | H67: =H44+H66 -> 69956791.45
A68: %,FACCOUNT,TNI_ACCOUNT_FERC,XBYYYYY01,NUTIL_PLANT_ADJ | B68: Other Plant Adjustments | D68: 0 | F68: 0 | H68: 0
A70: %,FACCOUNT,TNI_ACCOUNT_FERC,XBYYYYY01,NGAS_STORED_BASE | B70: Gas Store Underground | D70: 0 | F70: 0 | H70: 0
A71: %,FACCOUNT,TNI_ACCOUNT_FERC,XBYYYYY01,NGAS_SYS_BAL | B71: System Balancing Gas | D71: 0 | F71: 0 | H71: 0
A73: xx | B73: Gas Store Undergrd_SysBal | D73: =D70+D71 -> 0 | F73: =F70+F71 -> 0 | H73: =H70+H71 -> 0
A74: xx | B74: Total Utility Plant | D74: =D67+D68+D73 -> 570166986.6 | F74: =F67+F68+F73 -> 6759797.6 | H74: =H67+H68+H73 -> 69956791.45
B76: Other Property and Investments
A77: %,FACCOUNT,TNI_ACCOUNT_FERC,XBYYYYY01,NNONUTILITY_PROPERTY | B77: Non Utility Other Property | D77: 0 | F77: 0 | H77: 0
A78: %,FACCOUNT,TNI_ACCOUNT_FERC,XBYYYYY01,NACC_DEPR_OTH_PLANT | B78: Accum Prov - Deprec Oth Plant | D78: 0 | F78: 0 | H78: 0
A79: %,FACCOUNT,TNI_ACCOUNT_FERC,XBYYYYY01,NUNCONSOL_AFFIL_FERC | B79: Investments in Associated Cos | D79: 0 | F79: 0 | H79: 0
A80: %,V12310000 | B80: Inv Sub Co-Common Stock | C80: 12310000 | D80: 174261 | F80: 0 | H80: 0
A81: %,V12310001 | B81: Inv Sub Co-PL | C81: 12310001 | D81: 565904.34 | F81: 0 | H81: -268.77
A82: %,V12310003 | B82: Inv Sub Co-Distrib | C82: 12310003 | D82: -740459.54 | F82: 0 | H82: -740459.54
A83: %,FACCOUNT,TNI_ACCOUNT_FERC,XBYYYYY01,NCONSOL_AFFIL_FERC | B83: Investments in Subsidiary Cos | D83: -294.2 | F83: 0 | H83: -740728.31
A84: %,FACCOUNT,TNI_ACCOUNT_FERC,XBYYYYY01,NOTHER_INVESTMENTS | B84: Other Investments | D84: 0 | F84: 0 | H84: 0
A85: %,FACCOUNT,TNI_ACCOUNT_FERC,XBYYYYY01,NSINK_FUND | B85: Sinking Fund | D85: 0 | F85: 0 | H85: 0
A86: %,V12800000 | B86: Funds Held in Trust | C86: 12800000 | D86: 753680.77 | F86: 8460.52 | H86: -1715833.03
A87: %,FACCOUNT,TNI_ACCOUNT_FERC,XBYYYYY01,NOTHER_FUND_SPEC | B87: Other Special Funds | D87: 753680.77 | F87: 8460.52 | H87: -1715833.03
A88: xx | B88: Total Other Property and Investments | D88: =D77+D78+D79+D83+D84+D85+D87 -> 753386.57 | F88: =F77+F78+F79+F83+F84+F85+F87 -> 8460.52 | H88: =H77+H78+H79+H83+H84+H85+H87 -> -2456561.34
B90: Current and Accrued Assets
A91: %,V13100000 | B91: Cash | C91: 13100000 | D91: 855861.34 | F91: 133062.09 | H91: 566411.93
A92: %,FACCOUNT,TNI_ACCOUNT_FERC,XBYYYYY01,NCASH_FERC | B92: Cash | D92: 855861.34 | F92: 133062.09 | H92: 566411.93
A93: %,FACCOUNT,TNI_ACCOUNT_FERC,XBYYYYY01,NSPECIAL_DEPOSITS | B93: Special Deposits | D93: 0 | F93: 0 | H93: 0
A94: %,V13500000 | B94: Working Funds | C94: 13500000 | D94: 4468.71 | F94: 0 | H94: 4256.07
A95: %,FACCOUNT,TNI_ACCOUNT_FERC,XBYYYYY01,NWORKING_FUNDS | B95: Working Funds | D95: 4468.71 | F95: 0 | H95: 4256.07
A96: %,FACCOUNT,TNI_ACCOUNT_FERC,XBYYYYY01,NTEMP_CASH_FERC | B96: Temp Cash Investments | D96: 0 | F96: 0 | H96: 0
A97: %,FACCOUNT,TNI_ACCOUNT_FERC,XBYYYYY01,NNOTE_RECEIVABLE | B97: Notes Receivable | D97: 0 | F97: 0 | H97: 0
A98: %,V14200160 | B98: Cust AR-Credit Balances | C98: 14200160 | D98: 17288262.73 | F98: 183438.84 | H98: 8680638.87
A99: %,V14200220 | B99: Cust AR-CAB | C99: 14200220 | D99: -8031668.39 | F99: 1937474.92 | H99: -10614335.78
A100: %,V14200250 | B100: Cust AR-GMB | C100: 14200250 | D100: 272598.71 | F100: 124594.67 | H100: -20056.12
A101: %,V14200260 | B101: Cust AR-Cust Premise Work | C101: 14200260 | D101: 219672.78 | F101: 6856.51 | H101: 71190.16
A102: %,FACCOUNT,TNI_ACCOUNT_FERC,XBYYYYY01,NCUSTOMER_AR_FERC | B102: Customer Accounts Receivable | D102: 9748865.83 | F102: 2252364.94 | H102: -1882562.87
A103: %,V14300001 | B103: Misc Accts Rec-Other | C103: 14300001 | D103: 1736057.95 | F103: -34.2 | H103: 6806.02
A104: %,V14300018 | B104: Other AR-Billed OSS | C104: 14300018 | D104: 1862238.49 | F104: 1444100.5 | H104: 1804763.5
A105: %,V14300220 | B105: Other AR-GMB Estimate | C105: 14300220 | D105: 6215.36 | F105: 2963.06 | H105: -4183.68
A106: %,V14300240 | B106: Other AR-GTS | C106: 14300240 | D106: 1234898.97 | F106: 212243.87 | H106: -79686.77
A107: %,V14300270 | B107: Other AR-Retail Service | C107: 14300270 | D107: 1513.55 | F107: -1530.35 | H107: -12357.35
A108: %,V14300290 | B108: Other AR-CNR | C108: 14300290 | D108: 566809.22 | F108: -3575.89 | H108: 63745.09
A109: %,V14300330 | B109: Other AR Choice Trans-Columbia | C109: 14300330 | D109: -3244110.15 | F109: 56649.79 | H109: -1425055.93
A110: %,V14300350 | B110: Other AR Choice Trans-Purchase | C110: 14300350 | D110: 743174.92 | F110: 210233.6 | H110: -540812.89
A111: %,V14300395 | B111: Other AR-CPG Non-Transit Srvcs | C111: 14300395 | D111: 124126.45 | F111: 45337.72 | H111: 73762.43
A112: %,V14311111 | B112: Other AR-Curr-MA Project | C112: 14311111 | D112: 4686.29 | F112: 0 | H112: 0
A113: %,FACCOUNT,TNI_ACCOUNT_FERC,XBYYYYY01,NOTHER_AR_UNAFFIL | B113: Other Accounts Receivable | D113: 3035611.05 | F113: 1966388.1 | H113: -113019.58
A114: %,V14400000 | B114: Acc Prov for Uncol-Beg Bal | C114: 14400000 | D114: -407748.76 | F114: 0 | H114: 0
A115: %,V14400100 | B115: Acc Prov for Uncol-Reserve | C115: 14400100 | D115: -744210.92 | F115: 55955.4 | H115: -744210.92
A116: %,V14400150 | B116: Acc Prov for Uncol-Charge-Offs | C116: 14400150 | D116: 1394496.62 | F116: 54519.26 | H116: 1394496.62
A117: %,V14400200 | B117: Acc Prov for Uncol-Recoveries | C117: 14400200 | D117: -525126.88 | F117: -127607.44 | H117: -525126.88
A118: %,V14400600 | B118: Accm Prov Uncoll-Unbilled | C118: 14400600 | D118: -86461.08 | F118: -41488.71 | H118: 55067.69
A119: %,V14400700 | B119: Accm Prov Uncoll-Misc | C119: 14400700 | D119: -401312.87 | F119: 0 | H119: 0
A120: %,FACCOUNT,TNI_ACCOUNT_FERC,XBYYYYY01,NRESERVE_AR | B120: Accum Prov Uncollectible - Cr | D120: -770363.89 | F120: -58621.49 | H120: 180226.51
A121: %,FACCOUNT,TNI_ACCOUNT_FERC,XBYYYYY01,NNOTE_REC_AFFIL | B121: NR from Associated Cos | D121: 0 | F121: 0 | H121: 0
A122: %,V14600000 | B122: AR Assoc Co-Mech | C122: 14600000 | D122: 145178.9 | F122: -65781.1 | H122: 103895.03
A123: %,V14600002 | B123: AR Assoc Co-Misc | C123: 14600002 | D123: 12555.21 | F123: -0.01 | H123: -6374.79
A124: %,V14620000 | B124: Foreign Cash | C124: 14620000 | D124: -604229.32 | F124: 0 | H124: -9042.35
A125: %,FACCOUNT,TNI_ACCOUNT_FERC,XBYYYYY01,NAR_AFFILIATE | B125: AR from Associated Cos | D125: -446495.21 | F125: -65781.11 | H125: 88477.89
A126: %,FACCOUNT,TNI_ACCOUNT_FERC,XBYYYYY01,NFUEL_STOCK | B126: Fuel Stock | D126: 0 | F126: 0 | H126: 0
A127: %,FACCOUNT,TNI_ACCOUNT_FERC,XBYYYYY01,NFUEL_STK_EXP_UNDISTR | B127: Fuel Stock Expenses Undistrib | D127: 0 | F127: 0 | H127: 0
A128: %,FACCOUNT,TNI_ACCOUNT_FERC,XBYYYYY01,NRESIDUALS | B128: Residuals & Extracted Products | D128: 0 | F128: 0 | H128: 0
A129: %,V15400000 | B129: Plant Materials-Oth Supplies | C129: 15400000 | D129: 328037.45 | F129: 246 | H129: 16720.79
A130: %,V15420000 | B130: FabShop LP OH Build Ahead | C130: 15420000 | D130: 305.06 | F130: 0 | H130: 305.06
A131: %,FACCOUNT,TNI_ACCOUNT_FERC,XBYYYYY01,NMATERIALS_AND_SUPPLY | B131: Plant Materials & Supplies | D131: 328342.51 | F131: 246 | H131: 17025.85
A132: %,FACCOUNT,TNI_ACCOUNT_FERC,XBYYYYY01,NMERCHANDISE | B132: Merchandise | D132: 0 | F132: 0 | H132: 0
A133: %,FACCOUNT,TNI_ACCOUNT_FERC,XBYYYYY01,NALLOWANCES | B133: Allowances | D133: 0 | F133: 0 | H133: 0
A134: %,FACCOUNT,TNI_ACCOUNT_FERC,XBYYYYY01,NSTORES_EXP | B134: Stores Exp Undistributed | D134: 0 | F134: 0 | H134: 0
A135: %,V16411000 | B135: Gas Stored-Current-LIFO | C135: 16411000 | D135: 50825423.14 | F135: -6852939.86 | H135: 8879153.64
A136: %,FACCOUNT,TNI_ACCOUNT_FERC,XBYYYYY01,NGAS_STORED_UNDRGRND | B136: Gas Stored Underground - Curr | D136: 50825423.14 | F136: -6852939.86 | H136: 8879153.64
A137: %,FACCOUNT,TNI_ACCOUNT_FERC,XBYYYYY01,NLNG_STORED_HELD | B137: LNG Stored & Held for Process | D137: 0 | F137: 0 | H137: 0
A138: %,V16500000 | B138: Other Misc Prepayments | C138: 16500000 | D138: -55131.23 | F138: 8113.97 | H138: -583.97
A139: %,V16500010 | B139: Prepaid-Medical LTD | C139: 16500010 | D139: 2912.36 | F139: -339.64 | H139: -233.28
A140: %,V16500030 | B140: Prepaid Payroll | C140: 16500030 | D140: 374814.67 | F140: 374814.67 | H140: 329874.08
A141: %,V16503600 | B141: Prepaid Taxes - Other | C141: 16503600 | D141: 101975.59 | F141: -22634.77 | H141: -23200.84
A142: %,V16520000 | B142: Prepaid-Insurance Affiliate | C142: 16520000 | D142: 416415.08 | F142: -65644.13 | H142: 81704.36
A143: %,V16521000 | B143: Prepaid-Insurance NonAffil | C143: 16521000 | D143: 1060011.65 | F143: 137604.62 | H143: 168042.11
A144: %,V16591000 | B144: Prepaid-NC Cloud Cost Incurred | C144: 16591000 | D144: 0.13 | F144: 0 | H144: 0.02
A145: %,FACCOUNT,TNI_ACCOUNT_FERC,XBYYYYY01,NPREPAYMENTS_FERC | B145: Prepayments | D145: 1900998.25 | F145: 431914.72 | H145: 555602.48
A146: %,FACCOUNT,TNI_ACCOUNT_FERC,XBYYYYY01,NINT_DIV_REC | B146: Interest & Dividends Rec | D146: 0 | F146: 0 | H146: 0
A147: %,FACCOUNT,TNI_ACCOUNT_FERC,XBYYYYY01,NRENT_REC | B147: Rent Receivable | D147: 0 | F147: 0 | H147: 0
A148: %,V17300000 | B148: AR Accrued Revenues | C148: 17300000 | D148: 17535944.82 | F148: 8436229.37 | H148: 2619179.36
A149: %,V17302000 | B149: AR Accrd Rev Unbill Exch Gas | C149: 17302000 | D149: 977335.18 | F149: 142495.47 | H149: 883757.12
A150: %,FACCOUNT,TNI_ACCOUNT_FERC,XBYYYYY01,NACCRUED_REVENUES | B150: Accrued Utility Revenues | D150: 18513280 | F150: 8578724.84 | H150: 3502936.48
A151: %,V17401000 | B151: Misc Assets-Exch Gas Receiv | C151: 17401000 | D151: 6171513.09 | F151: 931799.85 | H151: 2200943.41
A152: %,V17403200 | B152: Misc Assets-Property Tax | C152: 17403200 | D152: 697246.74 | F152: -532350 | H152: -6255798.68
A153: %,FACCOUNT,TNI_ACCOUNT_FERC,XBYYYYY01,NOTHER_CURRENT_ASSETS | B153: Misc Current & Accrued Assets | D153: 6868759.83 | F153: 399449.85 | H153: -4054855.27
A154: %,FACCOUNT,TNI_ACCOUNT_FERC,XBYYYYY01,NDERIV_ASSET | B154: Derivative Instrument Assets | D154: 0 | F154: 0 | H154: 0
A155: %,FACCOUNT,TNI_ACCOUNT_FERC,XBYYYYY01,NDERIV_HEDGE | B155: Derivative Assets - Hedging | D155: 0 | F155: 0 | H155: 0
A156: xx | B156: Total Current and Accrued Assets | D156: =D92+D93+D95+D96+D97+D102+D113+D120+D121+D125+D126+D127+D128+D131+D132+D133+D134+D136+D137+D145+D146+D147+D150+D153+D154+D155 -> 90864751.56 | F156: =F92+F93+F95+F96+F97+F102+F113+F120+F121+F125+F126+F127+F128+F131+F132+F133+F134+F136+F137+F145+F146+F147+F150+F153+F154+F155 -> 6784808.08 | H156: =H92+H93+H95+H96+H97+H102+H113+H120+H121+H125+H126+H127+H128+H131+H132+H133+H134+H136+H137+H145+H146+H147+H150+H153+H154+H155 -> 7743653.13
B158: Deferred Debits
A159: %,FACCOUNT,TNI_ACCOUNT_FERC,XBYYYYY01,NUNAMORTIZED_DEBT_EXP | B159: Unamortized Debt Expense | D159: 0 | F159: 0 | H159: 0
A160: %,FACCOUNT,TNI_ACCOUNT_FERC,XBYYYYY01,NEXTRAORD_PROP_LOSS | B160: Extraordinary Property Loss | D160: 0 | F160: 0 | H160: 0
A161: %,V18230200 | B161: Reg Asset Cr Bal Transf | C161: 18230200 | D161: 566347.27 | F161: 13589.88 | H161: 566347.27
A162: %,V18230250 | B162: Reg Asset Rate Case Current | C162: 18230250 | D162: 185185.44 | F162: 0 | H162: 0
A163: %,V18230350 | B163: Reg Asset DSM Expenses-GAS | C163: 18230350 | D163: 0 | F163: 0 | H163: -6590
A164: %,V18230440 | B164: Reg Asset GTI Funding | C164: 18230440 | D164: 127353.99 | F164: -5694.58 | H164: 4971.92
A165: %,V18230450 | B165: Reg Asset EAP | C165: 18230450 | D165: -514442.22 | F165: -35290.91 | H165: -552555.69
A166: %,V18233420 | B166: Reg Asset-Prf Base Rt Adj PBRA | C166: 18233420 | D166: 5115244.17 | F166: 214832.73 | H166: 3518275.64
A167: %,V18233560 | B167: Reg Asset COVID Costs CURRENT | C167: 18233560 | D167: 11318.04 | F167: 0 | H167: 0
A168: %,V18235114 | B168: NC Reg Asset FAS 158 OPEB | C168: 18235114 | D168: 869691.49 | F168: -10769.41 | H168: -118463.51
A169: %,V18235115 | B169: NC Reg Asset FAS158 Pension | C169: 18235115 | D169: 4371845.01 | F169: -27770.54 | H169: 1289308.01
A170: %,V18235440 | B170: NC Reg Asset Rate Case Non-Cur | C170: 18235440 | D170: 200612.67 | F170: -15432.12 | H170: -169758.11
A171: %,V18235450 | B171: NC Reg Asset Pen NQulfd FAS158 | C171: 18235450 | D171: 7927 | F171: 0 | H171: 0
A172: %,V18235506 | B172: NC Reg Asset Def Depr Cap Lse | C172: 18235506 | D172: 19800.72 | F172: -57.84 | H172: -59.85
A173: %,V18235530 | B173: NC Reg Asset COVID Costs | C173: 18235530 | D173: 12261.2 | F173: -943.17 | H173: -10374.75
A174: %,FACCOUNT,TNI_ACCOUNT_FERC,XBYYYYY01,NOTHER_REG_ASSET | B174: Other Regulatory Asset | D174: 10973144.78 | F174: 132464.04 | H174: 4521100.93
A176: %,V18320000 | B176: Oth Prelim Survey B Bal | C176: 18320000 | D176: 1232417.64 | F176: 0 | H176: 0
A177: %,V18320001 | B177: Oth Prelim Survey Additions | C177: 18320001 | D177: 858556.59 | F177: -4041.77 | H177: 858556.59
A178: %,NPRELIM_SURVEY_OTH | B178: Preliminary Survey Other | D178: 2090974.23 | F178: -4041.77 | H178: 858556.59
A179: %,FACCOUNT,TNI_ACCOUNT_FERC,XBYYYYY01,NPRELIM_SURVEY | B179: Preliminary Surveys | D179: 2090974.23 | F179: -4041.77 | H179: 858556.59
A181: %,V18400050 | B181: Cash Clearing | C181: 18400050 | D181: 0 | F181: 1428.57 | H181: 0
A182: %,V18400100 | B182: Building Clearing | C182: 18400100 | D182: 1987.68 | F182: 1419.52 | H182: 1987.68
A183: %,V18400200 | B183: Car Clearing | C183: 18400200 | D183: -0.14 | F183: -0.11 | H183: -0.14
A184: %,V18400250 | B184: Truck Clearing | C184: 18400250 | D184: -2857.1 | F184: -2878.14 | H184: -2857.1
A185: %,V18400400 | B185: General Tool Clearing | C185: 18400400 | D185: 0.03 | F185: 0.08 | H185: 0.03
A186: %,NCLEARING_OTHER | B186: Clearing Accounts Other | D186: -869.53 | F186: -30.08 | H186: -869.53
A187: %,V18400275 | B187: Clearing-Fleet | C187: 18400275 | D187: -202.74 | F187: 461.36 | H187: -202.74
A188: %,NCLEARING_FLEET | B188: Clearing Fleet | D188: -202.74 | F188: 461.36 | H188: -202.74
A189: %,NCLEARING_GENERAL | B189: Clearing Accounts General | D189: 0 | F189: 0 | H189: 0
A190: %,FACCOUNT,TNI_ACCOUNT_FERC,XBYYYYY01,NCLEARING_ACCOUNTS | B190: Clearing Accounts | D190: -1072.27 | F190: 431.28 | H190: -1072.27
A192: %,V18600400 | B192: DefDebitCusAdv_DEPPST12-31-99 | C192: 18600400 | D192: 2660237.25 | F192: 0 | H192: -49241.49
A193: %,NDEF_DEB_MISC_OTH | B193: Def Deb Miscellaneous Other | D193: 2660237.25 | F193: 0 | H193: -49241.49
A194: %,V18600200 | B194: Def Debit-Maint and Jobng WIP | C194: 18600200 | D194: 98137.79 | F194: -566.1 | H194: 87187.46
A195: %,NDEF_DEB_MNT_JOB_WIP | B195: Maintenance and Jobbing WIP | D195: 98137.79 | F195: -566.1 | H195: 87187.46
A196: %,FACCOUNT,TNI_ACCOUNT_FERC,XBYYYYY01,NDEFERRED_DEBITS_MISC | B196: Miscellaneous Deferred Debits | D196: 2758375.04 | F196: -566.1 | H196: 37945.97
A197: %,FACCOUNT,TNI_ACCOUNT_FERC,XBYYYYY01,NRESEARCH_&_DEV_EXP | B197: Research & Development Expense | D197: 0 | F197: 0 | H197: 0
A198: %,FACCOUNT,TNI_ACCOUNT_FERC,XBYYYYY01,NREACQ_DEBT_LOSS | B198: Unamort Loss Reacquired Debt | D198: 0 | F198: 0 | H198: 0
A199: %,V19005000 | B199: ADIT-Other-Noncurr-Fed | C199: 19005000 | D199: 8066611 | F199: 920510 | H199: 636527
A200: %,V19005100 | B200: ADIT Reg Liability NC - Fed | C200: 19005100 | D200: 10160 | F200: -550 | H200: -6052
A201: %,V19005400 | B201: ADIT FIT Gross Up | C201: 19005400 | D201: 6368733 | F201: -24540 | H201: -269940
A202: %,V19006000 | B202: ADIT-Other-Noncurr-State | C202: 19006000 | D202: 814207 | F202: -85141 | H202: -52872
A203: %,V19006100 | B203: ADIT Reg Liability NC - State | C203: 19006100 | D203: 3554 | F203: 0 | H203: 0
A204: %,V19006400 | B204: ADIT SIT Gross Up | C204: 19006400 | D204: 2216049 | F204: -2443 | H204: -26876
A205: %,FACCOUNT,TNI_ACCOUNT_FERC,XBYYYYY01,NACCUM_DEFD_INC_TAX | B205: Accum Deferred Income Taxes | D205: 17479314 | F205: 807836 | H205: 280787
A206: %,V19100100 | B206: Unrecov Purchs Gas Costs-Com | C206: 19100100 | D206: 28153797.68 | F206: 2914627.37 | H206: 20990227.65
A207: %,V19100400 | B207: End User Exchange | C207: 19100400 | D207: 2445217.9 | F207: -901137.46 | H207: 396835.68
A208: %,V19100800 | B208: Unrecov Purch Gas Cst-Unbill | C208: 19100800 | D208: -8837303.89 | F208: -5392205.1 | H208: -2848592.16
A209: %,FACCOUNT,TNI_ACCOUNT_FERC,XBYYYYY01,NPURCH_GAS_COST_UNREC | B209: Unrecovered Purchase Gas Costs | D209: 21761711.69 | F209: -3378715.19 | H209: 18538471.17
A210: xx | B210: Total Deferred Debits | D210: =D159+D160+D174+D179+D190+D196+D197+D198+D205+D209 -> 55062447.47 | F210: =F159+F160+F174+F179+F190+F196+F197+F198+F205+F209 -> -2442591.74 | H210: =H159+H160+H174+H179+H190+H196+H197+H198+H205+H209 -> 24235789.39
B212: Total Assets and Other Debits | D212: =D74+D88+D156+D210 -> 716847572.2 | F212: =F74+F88+F156+F210 -> 11110474.46 | H212: =H74+H88+H156+H210 -> 99479672.63
B215: CAPITALIZATION and LIABILITIES
B217: Proprietary Capital
A218: %,V20100000 | B218: Common Stock-Beg Balance | C218: 20100000 | D218: 23806200 | F218: 0 | H218: 0
A219: %,R,FACCOUNT,TNI_ACCOUNT_FERC,XBYYYYY01,NCOMMON_STOCK_FERC | B219: Common Stock FERC | D219: 23806200 | F219: 0 | H219: 0
A220: %,R,FACCOUNT,TNI_ACCOUNT_FERC,XBYYYYY01,NPREFERRED_STOCK_FERC | B220: Preferred Stock Issued | D220: 0 | F220: 0 | H220: 0
... 169 more rows

Sheet Dec22
A1: %,LACTUALS | B1: %,ATT,FDESCR,UDESCR | C1: %,AFT,FACCOUNT | D1: %,LACTUALS,UPOSTED_TRAN_AMT,SBAL,FBOOK_CODE,VR | F1: %,LACTUALS,UPOSTED_TRAN_AMT,SPER,FBOOK_CODE,VR | H1: %,LACTUALS,UPOSTED_TRAN_AMT,SYTD,FBOOK_CODE,VR
B3: Columbia Gas of Kentucky Inc
B4: Balance Sheet-FERC
B5: Regulatory View - FERC Account
B6: As of December 31, 2022
F8: Change from | H8: Change from
D9: Current Month | F9: Prior Month | H9: Prior Year-End
B10: Assets and Other Debits
B13: Utility Plant
A15: %,V10100000 | B15: Plant In Service-Beg Bal | C15: 10100000 | D15: 623970195.9 | F15: 0 | H15: 0
A16: %,V10100001 | B16: Plant In Service-Additions | C16: 10100001 | D16: 62216664.78 | F16: 12842065.61 | H16: 62216664.78
A17: %,V10100002 | B17: Plant In Service-Retirements | C17: 10100002 | D17: -14055614.56 | F17: -2997042.64 | H17: -14055614.56
A18: %,V10140000 | B18: Cloud Plant In Svc-Beg Bal | C18: 10140000 | D18: 1654282.04 | F18: 0 | H18: 0
A19: %,V10140001 | B19: Cloud Plant in Svc-Additions | C19: 10140001 | D19: 149936.12 | F19: 80211.45 | H19: 149936.12
A20: %,FACCOUNT,TNI_ACCOUNT_FERC,XBYYYYY01,NPLANT_IN_SERV_FERC | B20: Plant in Service | D20: 673935464.3 | F20: 9925234.42 | H20: 48310986.34
A21: %,V10110000 | B21: Capital Leases-Beg Bal | C21: 10110000 | D21: 400000 | F21: 0 | H21: 0
A22: %,V10112000 | B22: Right of Use Asset-Beg Bal | C22: 10112000 | D22: 316999.8 | F22: 0 | H22: 0
A23: %,V10112001 | B23: Right of Use Asset-Additions | C23: 10112001 | D23: 18174.05 | F23: 0 | H23: 18174.05
A24: %,V10112002 | B24: Right of Use Asset-Retirements | C24: 10112002 | D24: -373590.72 | F24: -4973.12 | H24: -373590.72
A25: %,V10112004 | B25: Right of Use Asset-Amort | C25: 10112004 | D25: 179753.13 | F25: -1214.76 | H25: 179753.13
A26: %,FACCOUNT,TNI_ACCOUNT_FERC,XBYYYYY01,NPLANT_CAP_LEASE | B26: Property Under Capital Lease | D26: 541336.26 | F26: -6187.88 | H26: -175663.54
A27: %,FACCOUNT,TNI_ACCOUNT_FERC,XBYYYYY01,NPLANT_PURCH_SOLD | B27: Plant Purchased or Sold | D27: 0 | F27: 0 | H27: 0
A28: %,FACCOUNT,TNI_ACCOUNT_FERC,XBYYYYY01,NPLANT_EXPERIMENT | B28: Experimental Plant Unclass | D28: 0 | F28: 0 | H28: 0
A29: %,FACCOUNT,TNI_ACCOUNT_FERC,XBYYYYY01,NPLANT_GAS_LEASE_OTH | B29: Gas Plant Leased to Others | D29: 0 | F29: 0 | H29: 0
A30: %,FACCOUNT,TNI_ACCOUNT_FERC,XBYYYYY01,NPLANT_FUTURE_USE | B30: Plant Held for Future Use | D30: 0 | F30: 0 | H30: 0
A31: %,V10600000 | B31: Comp Constr Not Class Beg Bal | C31: 10600000 | D31: 29697192.39 | F31: 0 | H31: 0
A32: %,V10600003 | B32: Comp Const not Class Other | C32: 10600003 | D32: 15389388.11 | F32: 4947487.29 | H32: 15389388.11
A33: %,FACCOUNT,TNI_ACCOUNT_FERC,XBYYYYY01,NPLANT_CONST_UNCLASS | B33: Completed Const Not Classified | D33: 45086580.5 | F33: 4947487.29 | H33: 15389388.11
A34: %,V11401000 | B34: Tang Plant Acq Adj-BegBal | C34: 11401000 | D34: -777092 | F34: 0 | H34: 0
A35: %,FACCOUNT,TNI_ACCOUNT_FERC,XBYYYYY01,NPLANT_ACQ_ADJ_FERC | B35: Plant Acquisitions_Adjustments | D35: -777092 | F35: 0 | H35: 0
A36: %,V10700000 | B36: CWIP-Beg Balance | C36: 10700000 | D36: 18115095.37 | F36: 0 | H36: 0
A37: %,V10700001 | B37: CWIP-Additions | C37: 10700001 | D37: 77211636.24 | F37: 3822824.62 | H37: 77211636.24
A38: %,V10700003 | B38: CWIP-Other Changes | C38: 10700003 | D38: -77606052.89 | F38: -17789552.9 | H38: -77606052.89
A39: %,V10740000 | B39: Cloud CWIP-Beg Balance | C39: 10740000 | D39: 43514.5 | F39: 0 | H39: 0
A40: %,V10740001 | B40: Cloud CWIP-Additions | C40: 10740001 | D40: 518087.88 | F40: 73804.85 | H40: 518087.88
A41: %,V10740003 | B41: Cloud CWIP-Oth Changes | C41: 10740003 | D41: -149936.12 | F41: -80211.45 | H41: -149936.12
A42: %,FACCOUNT,TNI_ACCOUNT_FERC,XBYYYYY01,NCWIP_FERC | B42: CWIP | D42: 18132344.98 | F42: -13973134.88 | H42: -26264.89
B44: Total Utility Plant | D44: =D20+D26+D27+D28+D29+D30+D33+D35+D42 -> 736918634 | F44: =F20+F26+F27+F28+F29+F30+F33+F35+F42 -> 893398.95 | H44: =H20+H26+H27+H28+H29+H30+H33+H35+H42 -> 63498446.02
A46: %,V10800000 | B46: Accum Deprec Plant -Beg Bal | C46: 10800000 | D46: -167156914.3 | F46: 0 | H46: 0
A47: %,V10800001 | B47: Accum Deprec Plant-Additions | C47: 10800001 | D47: -17014177.35 | F47: -1456063.16 | H47: -17014177.35
A48: %,V10800002 | B48: Accum Deprec Plant-Retiremnt | C48: 10800002 | D48: 12362532.66 | F48: 2254740.59 | H48: 12362532.66
A49: %,V10800003 | B49: Accum Deprec Plant-Other Chg | C49: 10800003 | D49: 13286202.11 | F49: 1292210.27 | H49: 13286202.11
A50: %,V10800010 | B50: Retirement WIP-Beg Bal | C50: 10800010 | D50: 711717.34 | F50: 0 | H50: 0
A51: %,V10800011 | B51: Retirement WIP-Additions | C51: 10800011 | D51: 18778968.58 | F51: 4128656.31 | H51: 18778968.58
A52: %,V10800013 | B52: Retirement WIP-Other Changes | C52: 10800013 | D52: -13325846.19 | F52: -1308207.71 | H52: -13325846.19
A53: %,V10800100 | B53: Accum Deprec Cap Lease-Beg Bal | C53: 10800100 | D53: -185123.97 | F53: 0 | H53: 0
A54: %,V10800101 | B54: Accum Deprec Cap Lease-Add | C54: 10800101 | D54: -39669.43 | F54: -3305.79 | H54: -39669.43
A55: %,FACCOUNT,TNI_ACCOUNT_FERC,XBYYYYY01,NACCUM_DEPR_PLANT | B55: Accum Prov - Depreciation | D55: -152582310.5 | F55: 4908030.51 | H55: 14048010.38
A56: %,V11100000 | B56: Accum Amortization-Beg Bal | C56: 11100000 | D56: -6439440.05 | F56: 0 | H56: 0
A57: %,V11100001 | B57: Accum Amortization-Additions | C57: 11100001 | D57: -2658704.52 | F57: -208911.57 | H57: -2658704.52
A58: %,V11100002 | B58: Accum Amortization-Retiremnt | C58: 11100002 | D58: 1693081.9 | F58: 742302.05 | H58: 1693081.9
A59: %,V11140000 | B59: Cloud Accum Amortiz-BegBal | C59: 11140000 | D59: -297630.53 | F59: 0 | H59: 0
A60: %,V11140001 | B60: Cloud Accum Amortiz-Additions | C60: 11140001 | D60: -343337.21 | F60: -30370.33 | H60: -343337.21
A61: %,FACCOUNT,TNI_ACCOUNT_FERC,XBYYYYY01,NACCUM_AMORT_PLANT | B61: Accum_Amort_Plant | D61: -8046030.41 | F61: 503020.15 | H61: -1308959.83
A62: %,V11501000 | B62: Tang Acc Amort Plnt Acq Adj-BB | C62: 11501000 | D62: 157398.63 | F62: 0 | H62: 0
A63: %,V11501010 | B63: Tang Acc Amor Plnt Acq Adj-ADD | C63: 11501010 | D63: 25903.08 | F63: 2158.59 | H63: 25903.08
A64: %,FACCOUNT,TNI_ACCOUNT_FERC,XBYYYYY01,NACCUM_ACQ_ADJ_FERC | B64: Accum Amort Plant Acq_Adj | D64: 183301.71 | F64: 2158.59 | H64: 25903.08
B66: Accum Prov - Amort and Depr | D66: =D55+D61+D64 -> -160445039.2 | F66: =F55+F61+F64 -> 5413209.25 | H66: =H55+H61+H64 -> 12764953.63
A67: xx | B67: Net Utility Plant | D67: =D44+D66 -> 576473594.8 | F67: =F44+F66 -> 6306608.2 | H67: =H44+H66 -> 76263399.65
A68: %,FACCOUNT,TNI_ACCOUNT_FERC,XBYYYYY01,NUTIL_PLANT_ADJ | B68: Other Plant Adjustments | D68: 0 | F68: 0 | H68: 0
A70: %,FACCOUNT,TNI_ACCOUNT_FERC,XBYYYYY01,NGAS_STORED_BASE | B70: Gas Store Underground | D70: 0 | F70: 0 | H70: 0
A71: %,FACCOUNT,TNI_ACCOUNT_FERC,XBYYYYY01,NGAS_SYS_BAL | B71: System Balancing Gas | D71: 0 | F71: 0 | H71: 0
A73: xx | B73: Gas Store Undergrd_SysBal | D73: =D70+D71 -> 0 | F73: =F70+F71 -> 0 | H73: =H70+H71 -> 0
A74: xx | B74: Total Utility Plant | D74: =D67+D68+D73 -> 576473594.8 | F74: =F67+F68+F73 -> 6306608.2 | H74: =H67+H68+H73 -> 76263399.65
B76: Other Property and Investments
A77: %,FACCOUNT,TNI_ACCOUNT_FERC,XBYYYYY01,NNONUTILITY_PROPERTY | B77: Non Utility Other Property | D77: 0 | F77: 0 | H77: 0
A78: %,FACCOUNT,TNI_ACCOUNT_FERC,XBYYYYY01,NACC_DEPR_OTH_PLANT | B78: Accum Prov - Deprec Oth Plant | D78: 0 | F78: 0 | H78: 0
A79: %,FACCOUNT,TNI_ACCOUNT_FERC,XBYYYYY01,NUNCONSOL_AFFIL_FERC | B79: Investments in Associated Cos | D79: 0 | F79: 0 | H79: 0
A80: %,V12310000 | B80: Inv Sub Co-Common Stock | C80: 12310000 | D80: 174261 | F80: 0 | H80: 0
A81: %,V12310001 | B81: Inv Sub Co-PL | C81: 12310001 | D81: 565904.34 | F81: 0 | H81: -268.77
A82: %,V12310003 | B82: Inv Sub Co-Distrib | C82: 12310003 | D82: -740459.54 | F82: 0 | H82: -740459.54
A83: %,FACCOUNT,TNI_ACCOUNT_FERC,XBYYYYY01,NCONSOL_AFFIL_FERC | B83: Investments in Subsidiary Cos | D83: -294.2 | F83: 0 | H83: -740728.31
A84: %,FACCOUNT,TNI_ACCOUNT_FERC,XBYYYYY01,NOTHER_INVESTMENTS | B84: Other Investments | D84: 0 | F84: 0 | H84: 0
A85: %,FACCOUNT,TNI_ACCOUNT_FERC,XBYYYYY01,NSINK_FUND | B85: Sinking Fund | D85: 0 | F85: 0 | H85: 0
A86: %,V12800000 | B86: Funds Held in Trust | C86: 12800000 | D86: 112841 | F86: -640839.77 | H86: -2356672.8
A87: %,FACCOUNT,TNI_ACCOUNT_FERC,XBYYYYY01,NOTHER_FUND_SPEC | B87: Other Special Funds | D87: 112841 | F87: -640839.77 | H87: -2356672.8
A88: xx | B88: Total Other Property and Investments | D88: =D77+D78+D79+D83+D84+D85+D87 -> 112546.8 | F88: =F77+F78+F79+F83+F84+F85+F87 -> -640839.77 | H88: =H77+H78+H79+H83+H84+H85+H87 -> -3097401.11
B90: Current and Accrued Assets
A91: %,V13100000 | B91: Cash | C91: 13100000 | D91: 818763.39 | F91: -37097.95 | H91: 529313.98
A92: %,FACCOUNT,TNI_ACCOUNT_FERC,XBYYYYY01,NCASH_FERC | B92: Cash | D92: 818763.39 | F92: -37097.95 | H92: 529313.98
A93: %,FACCOUNT,TNI_ACCOUNT_FERC,XBYYYYY01,NSPECIAL_DEPOSITS | B93: Special Deposits | D93: 0 | F93: 0 | H93: 0
A94: %,V13500000 | B94: Working Funds | C94: 13500000 | D94: 4690.04 | F94: 221.33 | H94: 4477.4
A95: %,FACCOUNT,TNI_ACCOUNT_FERC,XBYYYYY01,NWORKING_FUNDS | B95: Working Funds | D95: 4690.04 | F95: 221.33 | H95: 4477.4
A96: %,FACCOUNT,TNI_ACCOUNT_FERC,XBYYYYY01,NTEMP_CASH_FERC | B96: Temp Cash Investments | D96: 0 | F96: 0 | H96: 0
A97: %,FACCOUNT,TNI_ACCOUNT_FERC,XBYYYYY01,NNOTE_RECEIVABLE | B97: Notes Receivable | D97: 0 | F97: 0 | H97: 0
A98: %,V14200160 | B98: Cust AR-Credit Balances | C98: 14200160 | D98: 13034449.14 | F98: -4253813.59 | H98: 4426825.28
A99: %,V14200220 | B99: Cust AR-CAB | C99: 14200220 | D99: 2029317.3 | F99: 10060985.69 | H99: -553350.09
A100: %,V14200250 | B100: Cust AR-GMB | C100: 14200250 | D100: 451146.63 | F100: 178547.92 | H100: 158491.8
A101: %,V14200260 | B101: Cust AR-Cust Premise Work | C101: 14200260 | D101: 175948.9 | F101: -43723.88 | H101: 27466.28
A102: %,FACCOUNT,TNI_ACCOUNT_FERC,XBYYYYY01,NCUSTOMER_AR_FERC | B102: Customer Accounts Receivable | D102: 15690861.97 | F102: 5941996.14 | H102: 4059433.27
A103: %,V14300001 | B103: Misc Accts Rec-Other | C103: 14300001 | D103: 2465318.76 | F103: 729260.81 | H103: 736066.83
A104: %,V14300018 | B104: Other AR-Billed OSS | C104: 14300018 | D104: 918625.74 | F104: -943612.75 | H104: 861150.75
A105: %,V14300220 | B105: Other AR-GMB Estimate | C105: 14300220 | D105: 9469.98 | F105: 3254.62 | H105: -929.06
A106: %,V14300240 | B106: Other AR-GTS | C106: 14300240 | D106: 1054087.72 | F106: -180811.25 | H106: -260498.02
A107: %,V14300270 | B107: Other AR-Retail Service | C107: 14300270 | D107: 1510.2 | F107: -3.35 | H107: -12360.7
A108: %,V14300290 | B108: Other AR-CNR | C108: 14300290 | D108: 255092.57 | F108: -311716.65 | H108: -247971.56
A109: %,V14300330 | B109: Other AR Choice Trans-Columbia | C109: 14300330 | D109: -2194735.46 | F109: 1049374.69 | H109: -375681.24
A110: %,V14300350 | B110: Other AR Choice Trans-Purchase | C110: 14300350 | D110: 1332357.35 | F110: 589182.43 | H110: 48369.54
A111: %,V14300395 | B111: Other AR-CPG Non-Transit Srvcs | C111: 14300395 | D111: 183112.76 | F111: 58986.31 | H111: 132748.74
A112: %,V14311111 | B112: Other AR-Curr-MA Project | C112: 14311111 | D112: 4686.29 | F112: 0 | H112: 0
A113: %,FACCOUNT,TNI_ACCOUNT_FERC,XBYYYYY01,NOTHER_AR_UNAFFIL | B113: Other Accounts Receivable | D113: 4029525.91 | F113: 993914.86 | H113: 880895.28
A114: %,V14400000 | B114: Acc Prov for Uncol-Beg Bal | C114: 14400000 | D114: -407748.76 | F114: 0 | H114: 0
A115: %,V14400100 | B115: Acc Prov for Uncol-Reserve | C115: 14400100 | D115: -653825.03 | F115: 90385.89 | H115: -653825.03
A116: %,V14400150 | B116: Acc Prov for Uncol-Charge-Offs | C116: 14400150 | D116: 1428652.26 | F116: 34155.64 | H116: 1428652.26
A117: %,V14400200 | B117: Acc Prov for Uncol-Recoveries | C117: 14400200 | D117: -585681.69 | F117: -60554.81 | H117: -585681.69
A118: %,V14400600 | B118: Accm Prov Uncoll-Unbilled | C118: 14400600 | D118: -113782.32 | F118: -27321.24 | H118: 27746.45
A119: %,V14400700 | B119: Accm Prov Uncoll-Misc | C119: 14400700 | D119: 0 | F119: 401312.87 | H119: 401312.87
A120: %,FACCOUNT,TNI_ACCOUNT_FERC,XBYYYYY01,NRESERVE_AR | B120: Accum Prov Uncollectible - Cr | D120: -332385.54 | F120: 437978.35 | H120: 618204.86
A121: %,FACCOUNT,TNI_ACCOUNT_FERC,XBYYYYY01,NNOTE_REC_AFFIL | B121: NR from Associated Cos | D121: 0 | F121: 0 | H121: 0
A122: %,V14600000 | B122: AR Assoc Co-Mech | C122: 14600000 | D122: -5649.45 | F122: -150828.35 | H122: -46933.32
A123: %,V14600002 | B123: AR Assoc Co-Misc | C123: 14600002 | D123: 12555.2 | F123: -0.01 | H123: -6374.8
A124: %,V14620000 | B124: Foreign Cash | C124: 14620000 | D124: -604229.32 | F124: 0 | H124: -9042.35
A125: %,FACCOUNT,TNI_ACCOUNT_FERC,XBYYYYY01,NAR_AFFILIATE | B125: AR from Associated Cos | D125: -597323.57 | F125: -150828.36 | H125: -62350.47
A126: %,FACCOUNT,TNI_ACCOUNT_FERC,XBYYYYY01,NFUEL_STOCK | B126: Fuel Stock | D126: 0 | F126: 0 | H126: 0
A127: %,FACCOUNT,TNI_ACCOUNT_FERC,XBYYYYY01,NFUEL_STK_EXP_UNDISTR | B127: Fuel Stock Expenses Undistrib | D127: 0 | F127: 0 | H127: 0
A128: %,FACCOUNT,TNI_ACCOUNT_FERC,XBYYYYY01,NRESIDUALS | B128: Residuals & Extracted Products | D128: 0 | F128: 0 | H128: 0
A129: %,V15400000 | B129: Plant Materials-Oth Supplies | C129: 15400000 | D129: 328037.45 | F129: 0 | H129: 16720.79
A130: %,V15420000 | B130: FabShop LP OH Build Ahead | C130: 15420000 | D130: 305.06 | F130: 0 | H130: 305.06
A131: %,FACCOUNT,TNI_ACCOUNT_FERC,XBYYYYY01,NMATERIALS_AND_SUPPLY | B131: Plant Materials & Supplies | D131: 328342.51 | F131: 0 | H131: 17025.85
A132: %,FACCOUNT,TNI_ACCOUNT_FERC,XBYYYYY01,NMERCHANDISE | B132: Merchandise | D132: 0 | F132: 0 | H132: 0
A133: %,FACCOUNT,TNI_ACCOUNT_FERC,XBYYYYY01,NALLOWANCES | B133: Allowances | D133: 0 | F133: 0 | H133: 0
A134: %,FACCOUNT,TNI_ACCOUNT_FERC,XBYYYYY01,NSTORES_EXP | B134: Stores Exp Undistributed | D134: 0 | F134: 0 | H134: 0
A135: %,V16411000 | B135: Gas Stored-Current-LIFO | C135: 16411000 | D135: 40020363.74 | F135: -10805059.4 | H135: -1925905.76
A136: %,FACCOUNT,TNI_ACCOUNT_FERC,XBYYYYY01,NGAS_STORED_UNDRGRND | B136: Gas Stored Underground - Curr | D136: 40020363.74 | F136: -10805059.4 | H136: -1925905.76
A137: %,FACCOUNT,TNI_ACCOUNT_FERC,XBYYYYY01,NLNG_STORED_HELD | B137: LNG Stored & Held for Process | D137: 0 | F137: 0 | H137: 0
A138: %,V16500000 | B138: Other Misc Prepayments | C138: 16500000 | D138: -55249.65 | F138: -118.42 | H138: -702.39
A139: %,V16500010 | B139: Prepaid-Medical LTD | C139: 16500010 | D139: 2572.72 | F139: -339.64 | H139: -572.92
A140: %,V16500030 | B140: Prepaid Payroll | C140: 16500030 | D140: 0 | F140: -374814.67 | H140: -44940.59
A141: %,V16503600 | B141: Prepaid Taxes - Other | C141: 16503600 | D141: 112890.82 | F141: 10915.23 | H141: -12285.61
A142: %,V16520000 | B142: Prepaid-Insurance Affiliate | C142: 16520000 | D142: 341384.55 | F142: -75030.53 | H142: 6673.83
A143: %,V16521000 | B143: Prepaid-Insurance NonAffil | C143: 16521000 | D143: 913600.51 | F143: -146411.14 | H143: 21630.97
A144: %,V16591000 | B144: Prepaid-NC Cloud Cost Incurred | C144: 16591000 | D144: 0.13 | F144: 0 | H144: 0.02
A145: %,FACCOUNT,TNI_ACCOUNT_FERC,XBYYYYY01,NPREPAYMENTS_FERC | B145: Prepayments | D145: 1315199.08 | F145: -585799.17 | H145: -30196.69
A146: %,FACCOUNT,TNI_ACCOUNT_FERC,XBYYYYY01,NINT_DIV_REC | B146: Interest & Dividends Rec | D146: 0 | F146: 0 | H146: 0
A147: %,FACCOUNT,TNI_ACCOUNT_FERC,XBYYYYY01,NRENT_REC | B147: Rent Receivable | D147: 0 | F147: 0 | H147: 0
A148: %,V17300000 | B148: AR Accrued Revenues | C148: 17300000 | D148: 23554892.38 | F148: 6018947.56 | H148: 8638126.92
A149: %,V17302000 | B149: AR Accrd Rev Unbill Exch Gas | C149: 17302000 | D149: 1161592.32 | F149: 184257.14 | H149: 1068014.26
A150: %,FACCOUNT,TNI_ACCOUNT_FERC,XBYYYYY01,NACCRUED_REVENUES | B150: Accrued Utility Revenues | D150: 24716484.7 | F150: 6203204.7 | H150: 9706141.18
A151: %,V17401000 | B151: Misc Assets-Exch Gas Receiv | C151: 17401000 | D151: 7870786.32 | F151: 1699273.23 | H151: 3900216.64
A152: %,V17403200 | B152: Misc Assets-Property Tax | C152: 17403200 | D152: 7319296.74 | F152: 6622050 | H152: 366251.32
A153: %,FACCOUNT,TNI_ACCOUNT_FERC,XBYYYYY01,NOTHER_CURRENT_ASSETS | B153: Misc Current & Accrued Assets | D153: 15190083.06 | F153: 8321323.23 | H153: 4266467.96
A154: %,FACCOUNT,TNI_ACCOUNT_FERC,XBYYYYY01,NDERIV_ASSET | B154: Derivative Instrument Assets | D154: 0 | F154: 0 | H154: 0
A155: %,FACCOUNT,TNI_ACCOUNT_FERC,XBYYYYY01,NDERIV_HEDGE | B155: Derivative Assets - Hedging | D155: 0 | F155: 0 | H155: 0
A156: xx | B156: Total Current and Accrued Assets | D156: =D92+D93+D95+D96+D97+D102+D113+D120+D121+D125+D126+D127+D128+D131+D132+D133+D134+D136+D137+D145+D146+D147+D150+D153+D154+D155 -> 101184605.3 | F156: =F92+F93+F95+F96+F97+F102+F113+F120+F121+F125+F126+F127+F128+F131+F132+F133+F134+F136+F137+F145+F146+F147+F150+F153+F154+F155 -> 10319853.73 | H156: =H92+H93+H95+H96+H97+H102+H113+H120+H121+H125+H126+H127+H128+H131+H132+H133+H134+H136+H137+H145+H146+H147+H150+H153+H154+H155 -> 18063506.86
B158: Deferred Debits
A159: %,FACCOUNT,TNI_ACCOUNT_FERC,XBYYYYY01,NUNAMORTIZED_DEBT_EXP | B159: Unamortized Debt Expense | D159: 0 | F159: 0 | H159: 0
A160: %,FACCOUNT,TNI_ACCOUNT_FERC,XBYYYYY01,NEXTRAORD_PROP_LOSS | B160: Extraordinary Property Loss | D160: 0 | F160: 0 | H160: 0
A161: %,V18230200 | B161: Reg Asset Cr Bal Transf | C161: 18230200 | D161: 606483.59 | F161: 40136.32 | H161: 606483.59
A162: %,V18230250 | B162: Reg Asset Rate Case Current | C162: 18230250 | D162: 185185.44 | F162: 0 | H162: 0
A163: %,V18230350 | B163: Reg Asset DSM-EE Expenses | C163: 18230350 | D163: 0 | F163: 0 | H163: -6590
A164: %,V18230440 | B164: Reg Asset GTI Funding | C164: 18230440 | D164: 111513.21 | F164: -15840.78 | H164: -10868.86
A165: %,V18230450 | B165: Reg Asset EAP | C165: 18230450 | D165: -552146.69 | F165: -37704.47 | H165: -590260.16
A166: %,V18233420 | B166: Reg Asset-Prf Base Rt Adj PBRA | C166: 18233420 | D166: 5080276.54 | F166: -34967.63 | H166: 3483308.01
A167: %,V18233560 | B167: Reg Asset COVID Costs CURRENT | C167: 18233560 | D167: 11318.04 | F167: 0 | H167: 0
A168: %,V18235114 | B168: NC Reg Asset FAS 158 OPEB | C168: 18235114 | D168: 1512833 | F168: 643141.51 | H168: 524678
A169: %,V18235115 | B169: NC Reg Asset FAS158 Pension | C169: 18235115 | D169: 4992958 | F169: 621112.99 | H169: 1910421
A170: %,V18235440 | B170: NC Reg Asset Rate Case Non-Cur | C170: 18235440 | D170: 185180.55 | F170: -15432.12 | H170: -185190.23
A171: %,V18235450 | B171: NC Reg Asset Pen NQulfd FAS158 | C171: 18235450 | D171: 7927 | F171: 0 | H171: 0
A172: %,V18235506 | B172: NC Reg Asset Def Depr Cap Lse | C172: 18235506 | D172: 19732.26 | F172: -68.46 | H172: -128.31
A173: %,V18235530 | B173: NC Reg Asset COVID Costs | C173: 18235530 | D173: 11318.03 | F173: -943.17 | H173: -11317.92
A174: %,V18237000 | B174: NC Reg Asset Inc Tax NC Fed | C174: 18237000 | D174: 215855 | F174: 215855 | H174: 215855
A175: %,FACCOUNT,TNI_ACCOUNT_FERC,XBYYYYY01,NOTHER_REG_ASSET | B175: Other Regulatory Asset | D175: 12388433.97 | F175: 1415289.19 | H175: 5936390.12
A177: %,V18320000 | B177: Oth Prelim Survey B Bal | C177: 18320000 | D177: 1232417.64 | F177: 0 | H177: 0
A178: %,V18320001 | B178: Oth Prelim Survey Additions | C178: 18320001 | D178: 543804.98 | F178: -314751.61 | H178: 543804.98
A179: %,NPRELIM_SURVEY_OTH | B179: Preliminary Survey Other | D179: 1776222.62 | F179: -314751.61 | H179: 543804.98
A180: %,FACCOUNT,TNI_ACCOUNT_FERC,XBYYYYY01,NPRELIM_SURVEY | B180: Preliminary Surveys | D180: 1776222.62 | F180: -314751.61 | H180: 543804.98
A182: %,V18400100 | B182: Building Clearing | C182: 18400100 | D182: 0 | F182: -1987.68 | H182: 0
A183: %,V18400200 | B183: Car Clearing | C183: 18400200 | D183: 0 | F183: 0.14 | H183: 0
A184: %,V18400250 | B184: Truck Clearing | C184: 18400250 | D184: 0 | F184: 2857.1 | H184: 0
A185: %,V18400400 | B185: General Tool Clearing | C185: 18400400 | D185: 0 | F185: -0.03 | H185: 0
A186: %,NCLEARING_OTHER | B186: Clearing Accounts Other | D186: 0 | F186: 869.53 | H186: 0
A187: %,V18400275 | B187: Clearing-Fleet | C187: 18400275 | D187: 0 | F187: 202.74 | H187: 0
A188: %,NCLEARING_FLEET | B188: Clearing Fleet | D188: 0 | F188: 202.74 | H188: 0
A189: %,NCLEARING_GENERAL | B189: Clearing Accounts General | D189: 0 | F189: 0 | H189: 0
A190: %,FACCOUNT,TNI_ACCOUNT_FERC,XBYYYYY01,NCLEARING_ACCOUNTS | B190: Clearing Accounts | D190: 0 | F190: 1072.27 | H190: 0
A192: %,V18600400 | B192: DefDebitCusAdv_DEPPST12-31-99 | C192: 18600400 | D192: 2659757.67 | F192: -479.58 | H192: -49721.07
A193: %,NDEF_DEB_MISC_OTH | B193: Def Deb Miscellaneous Other | D193: 2659757.67 | F193: -479.58 | H193: -49721.07
A194: %,V18600200 | B194: Def Debit-Maint and Jobng WIP | C194: 18600200 | D194: 98137.79 | F194: 0 | H194: 87187.46
A195: %,NDEF_DEB_MNT_JOB_WIP | B195: Maintenance and Jobbing WIP | D195: 98137.79 | F195: 0 | H195: 87187.46
A196: %,FACCOUNT,TNI_ACCOUNT_FERC,XBYYYYY01,NDEFERRED_DEBITS_MISC | B196: Miscellaneous Deferred Debits | D196: 2757895.46 | F196: -479.58 | H196: 37466.39
A197: %,FACCOUNT,TNI_ACCOUNT_FERC,XBYYYYY01,NRESEARCH_&_DEV_EXP | B197: Research & Development Expense | D197: 0 | F197: 0 | H197: 0
A198: %,FACCOUNT,TNI_ACCOUNT_FERC,XBYYYYY01,NREACQ_DEBT_LOSS | B198: Unamort Loss Reacquired Debt | D198: 0 | F198: 0 | H198: 0
A199: %,V19005000 | B199: ADIT-Other-Noncurr-Fed | C199: 19005000 | D199: 9960510 | F199: 1893899 | H199: 2530426
A200: %,V19005100 | B200: ADIT Reg Liability NC - Fed | C200: 19005100 | D200: 9610 | F200: -550 | H200: -6602
A201: %,V19005400 | B201: ADIT FIT Gross Up | C201: 19005400 | D201: 6517176 | F201: 148443 | H201: -121497
A202: %,V19006000 | B202: ADIT-Other-Noncurr-State | C202: 19006000 | D202: 1609551 | F202: 795344 | H202: 742472
A203: %,V19006100 | B203: ADIT Reg Liability NC - State | C203: 19006100 | D203: 3554 | F203: 0 | H203: 0
A204: %,V19006400 | B204: ADIT SIT Gross Up | C204: 19006400 | D204: 2212475 | F204: -3574 | H204: -30450
A205: %,FACCOUNT,TNI_ACCOUNT_FERC,XBYYYYY01,NACCUM_DEFD_INC_TAX | B205: Accum Deferred Income Taxes | D205: 20312876 | F205: 2833562 | H205: 3114349
A206: %,V19100100 | B206: Unrecov Purchs Gas Costs-Com | C206: 19100100 | D206: 27253452.35 | F206: -900345.33 | H206: 20089882.32
A207: %,V19100400 | B207: End User Exchange | C207: 19100400 | D207: 2881021.27 | F207: 435803.37 | H207: 832639.05
A208: %,V19100800 | B208: Unrecov Purch Gas Cst-Unbill | C208: 19100800 | D208: -12848716.04 | F208: -4011412.15 | H208: -6860004.31
A209: %,FACCOUNT,TNI_ACCOUNT_FERC,XBYYYYY01,NPURCH_GAS_COST_UNREC | B209: Unrecovered Purchase Gas Costs | D209: 17285757.58 | F209: -4475954.11 | H209: 14062517.06
A210: xx | B210: Total Deferred Debits | D210: =D159+D160+D175+D180+D190+D196+D197+D198+D205+D209 -> 54521185.63 | F210: =F159+F160+F175+F180+F190+F196+F197+F198+F205+F209 -> -541261.84 | H210: =H159+H160+H175+H180+H190+H196+H197+H198+H205+H209 -> 23694527.55
B212: Total Assets and Other Debits | D212: =D74+D88+D156+D210 -> 732291932.5 | F212: =F74+F88+F156+F210 -> 15444360.32 | H212: =H74+H88+H156+H210 -> 114924032.9
B215: CAPITALIZATION and LIABILITIES
B217: Proprietary Capital
A218: %,V20100000 | B218: Common Stock-Beg Balance | C218: 20100000 | D218: 23806200 | F218: 0 | H218: 0
A219: %,R,FACCOUNT,TNI_ACCOUNT_FERC,XBYYYYY01,NCOMMON_STOCK_FERC | B219: Common Stock FERC | D219: 23806200 | F219: 0 | H219: 0
A220: %,R,FACCOUNT,TNI_ACCOUNT_FERC,XBYYYYY01,NPREFERRED_STOCK_FERC | B220: Preferred Stock Issued | D220: 0 | F220: 0 | H220: 0
... 169 more rows

Sheet Jan23
A1: %,LACTUALS | B1: %,ATT,FDESCR,UDESCR | C1: %,AFT,FACCOUNT | D1: %,LACTUALS,UPOSTED_TRAN_AMT,SBAL,FBOOK_CODE,VR | F1: %,LACTUALS,UPOSTED_TRAN_AMT,SPER,FBOOK_CODE,VR | H1: %,LACTUALS,UPOSTED_TRAN_AMT,SYTD,FBOOK_CODE,VR
B3: Columbia Gas of Kentucky Inc
B4: Balance Sheet-FERC
B5: Regulatory View - FERC Account
B6: As of January 31, 2023
F8: Change from | H8: Change from
D9: Current Month | F9: Prior Month | H9: Prior Year-End
B10: Assets and Other Debits
B13: Utility Plant
A15: %,V10100000 | B15: Plant In Service-Beg Bal | C15: 10100000 | D15: 672131246.1 | F15: 0 | H15: 0
A16: %,V10100001 | B16: Plant In Service-Additions | C16: 10100001 | D16: 3268918.22 | F16: 3268918.22 | H16: 3268918.22
A17: %,V10100002 | B17: Plant In Service-Retirements | C17: 10100002 | D17: -616579.65 | F17: -616579.65 | H17: -616579.65
A18: %,V10140000 | B18: Cloud Plant In Svc-Beg Bal | C18: 10140000 | D18: 1804218.16 | F18: 0 | H18: 0
A19: %,V10140001 | B19: Cloud Plant in Svc-Additions | C19: 10140001 | D19: 5760.57 | F19: 5760.57 | H19: 5760.57
A20: %,FACCOUNT,TNI_ACCOUNT_FERC,XBYYYYY01,NPLANT_IN_SERV_FERC | B20: Plant in Service | D20: 676593563.4 | F20: 2658099.14 | H20: 2658099.14
A21: %,V10110000 | B21: Capital Leases-Beg Bal | C21: 10110000 | D21: 400000 | F21: 0 | H21: 0
A22: %,V10112000 | B22: Right of Use Asset-Beg Bal | C22: 10112000 | D22: 141336.26 | F22: 0 | H22: 0
A23: %,V10112002 | B23: Right of Use Asset-Retirements | C23: 10112002 | D23: -9765.5 | F23: -9765.5 | H23: -9765.5
A24: %,V10112004 | B24: Right of Use Asset-Amort | C24: 10112004 | D24: 3944.5 | F24: 3944.5 | H24: 3944.5
A25: %,FACCOUNT,TNI_ACCOUNT_FERC,XBYYYYY01,NPLANT_CAP_LEASE | B25: Property Under Capital Lease | D25: 535515.26 | F25: -5821 | H25: -5821
A26: %,FACCOUNT,TNI_ACCOUNT_FERC,XBYYYYY01,NPLANT_PURCH_SOLD | B26: Plant Purchased or Sold | D26: 0 | F26: 0 | H26: 0
A27: %,FACCOUNT,TNI_ACCOUNT_FERC,XBYYYYY01,NPLANT_EXPERIMENT | B27: Experimental Plant Unclass | D27: 0 | F27: 0 | H27: 0
A28: %,FACCOUNT,TNI_ACCOUNT_FERC,XBYYYYY01,NPLANT_GAS_LEASE_OTH | B28: Gas Plant Leased to Others | D28: 0 | F28: 0 | H28: 0
A29: %,FACCOUNT,TNI_ACCOUNT_FERC,XBYYYYY01,NPLANT_FUTURE_USE | B29: Plant Held for Future Use | D29: 0 | F29: 0 | H29: 0
A30: %,V10600000 | B30: Comp Constr Not Class Beg Bal | C30: 10600000 | D30: 45086580.5 | F30: 0 | H30: 0
A31: %,V10600003 | B31: Comp Const not Class Other | C31: 10600003 | D31: -449350.58 | F31: -449350.58 | H31: -449350.58
A32: %,FACCOUNT,TNI_ACCOUNT_FERC,XBYYYYY01,NPLANT_CONST_UNCLASS | B32: Completed Const Not Classified | D32: 44637229.92 | F32: -449350.58 | H32: -449350.58
A33: %,V11401000 | B33: Tang Plant Acq Adj-BegBal | C33: 11401000 | D33: -777092 | F33: 0 | H33: 0
A34: %,FACCOUNT,TNI_ACCOUNT_FERC,XBYYYYY01,NPLANT_ACQ_ADJ_FERC | B34: Plant Acquisitions_Adjustments | D34: -777092 | F34: 0 | H34: 0
A35: %,V10700000 | B35: CWIP-Beg Balance | C35: 10700000 | D35: 17720678.72 | F35: 0 | H35: 0
A36: %,V10700001 | B36: CWIP-Additions | C36: 10700001 | D36: 6135201.95 | F36: 6135201.95 | H36: 6135201.95
A37: %,V10700003 | B37: CWIP-Other Changes | C37: 10700003 | D37: -2819567.64 | F37: -2819567.64 | H37: -2819567.64
A38: %,V10740000 | B38: Cloud CWIP-Beg Balance | C38: 10740000 | D38: 411666.26 | F38: 0 | H38: 0
A39: %,V10740001 | B39: Cloud CWIP-Additions | C39: 10740001 | D39: 164992.71 | F39: 164992.71 | H39: 164992.71
A40: %,V10740003 | B40: Cloud CWIP-Oth Changes | C40: 10740003 | D40: -5760.57 | F40: -5760.57 | H40: -5760.57
A41: %,FACCOUNT,TNI_ACCOUNT_FERC,XBYYYYY01,NCWIP_FERC | B41: CWIP | D41: 21607211.43 | F41: 3474866.45 | H41: 3474866.45
B43: Total Utility Plant | D43: =D20+D25+D26+D27+D28+D29+D32+D34+D41 -> 742596428 | F43: =F20+F25+F26+F27+F28+F29+F32+F34+F41 -> 5677794.01 | H43: =H20+H25+H26+H27+H28+H29+H32+H34+H41 -> 5677794.01
A45: %,V10800000 | B45: Accum Deprec Plant -Beg Bal | C45: 10800000 | D45: -158522356.8 | F45: 0 | H45: 0
A46: %,V10800001 | B46: Accum Deprec Plant-Additions | C46: 10800001 | D46: -1452547.93 | F46: -1452547.93 | H46: -1452547.93
A47: %,V10800002 | B47: Accum Deprec Plant-Retiremnt | C47: 10800002 | D47: 475423.41 | F47: 475423.41 | H47: 475423.41
A48: %,V10800003 | B48: Accum Deprec Plant-Other Chg | C48: 10800003 | D48: 597335.46 | F48: 597335.46 | H48: 597335.46
A49: %,V10800010 | B49: Retirement WIP-Beg Bal | C49: 10800010 | D49: 6164839.73 | F49: 0 | H49: 0
A50: %,V10800011 | B50: Retirement WIP-Additions | C50: 10800011 | D50: 84706.66 | F50: 84706.66 | H50: 84706.66
A51: %,V10800013 | B51: Retirement WIP-Other Changes | C51: 10800013 | D51: -597859.22 | F51: -597859.22 | H51: -597859.22
A52: %,V10800100 | B52: Accum Deprec Cap Lease-Beg Bal | C52: 10800100 | D52: -224793.4 | F52: 0 | H52: 0
A53: %,V10800101 | B53: Accum Deprec Cap Lease-Add | C53: 10800101 | D53: -3305.78 | F53: -3305.78 | H53: -3305.78
A54: %,FACCOUNT,TNI_ACCOUNT_FERC,XBYYYYY01,NACCUM_DEPR_PLANT | B54: Accum Prov - Depreciation | D54: -153478557.9 | F54: -896247.4 | H54: -896247.4
A55: %,V11100000 | B55: Accum Amortization-Beg Bal | C55: 11100000 | D55: -7405062.67 | F55: 0 | H55: 0
A56: %,V11100001 | B56: Accum Amortization-Additions | C56: 11100001 | D56: -203129.76 | F56: -203129.76 | H56: -203129.76
A57: %,V11100002 | B57: Accum Amortization-Retiremnt | C57: 11100002 | D57: 141156.24 | F57: 141156.24 | H57: 141156.24
A58: %,V11140000 | B58: Cloud Accum Amortiz-BegBal | C58: 11140000 | D58: -640967.74 | F58: 0 | H58: 0
A59: %,V11140001 | B59: Cloud Accum Amortiz-Additions | C59: 11140001 | D59: -31065.22 | F59: -31065.22 | H59: -31065.22
A60: %,FACCOUNT,TNI_ACCOUNT_FERC,XBYYYYY01,NACCUM_AMORT_PLANT | B60: Accum_Amort_Plant | D60: -8139069.15 | F60: -93038.74 | H60: -93038.74
A61: %,V11501000 | B61: Tang Acc Amort Plnt Acq Adj-BB | C61: 11501000 | D61: 183301.71 | F61: 0 | H61: 0
A62: %,V11501010 | B62: Tang Acc Amor Plnt Acq Adj-ADD | C62: 11501010 | D62: 2158.59 | F62: 2158.59 | H62: 2158.59
A63: %,FACCOUNT,TNI_ACCOUNT_FERC,XBYYYYY01,NACCUM_ACQ_ADJ_FERC | B63: Accum Amort Plant Acq_Adj | D63: 185460.3 | F63: 2158.59 | H63: 2158.59
B65: Accum Prov - Amort and Depr | D65: =D54+D60+D63 -> -161432166.8 | F65: =F54+F60+F63 -> -987127.55 | H65: =H54+H60+H63 -> -987127.55
A66: xx | B66: Net Utility Plant | D66: =D43+D65 -> 581164261.3 | F66: =F43+F65 -> 4690666.46 | H66: =H43+H65 -> 4690666.46
A67: %,FACCOUNT,TNI_ACCOUNT_FERC,XBYYYYY01,NUTIL_PLANT_ADJ | B67: Other Plant Adjustments | D67: 0 | F67: 0 | H67: 0
A69: %,FACCOUNT,TNI_ACCOUNT_FERC,XBYYYYY01,NGAS_STORED_BASE | B69: Gas Store Underground | D69: 0 | F69: 0 | H69: 0
A70: %,FACCOUNT,TNI_ACCOUNT_FERC,XBYYYYY01,NGAS_SYS_BAL | B70: System Balancing Gas | D70: 0 | F70: 0 | H70: 0
A72: xx | B72: Gas Store Undergrd_SysBal | D72: =D69+D70 -> 0 | F72: =F69+F70 -> 0 | H72: =H69+H70 -> 0
A73: xx | B73: Total Utility Plant | D73: =D66+D67+D72 -> 581164261.3 | F73: =F66+F67+F72 -> 4690666.46 | H73: =H66+H67+H72 -> 4690666.46
B75: Other Property and Investments
A76: %,FACCOUNT,TNI_ACCOUNT_FERC,XBYYYYY01,NNONUTILITY_PROPERTY | B76: Non Utility Other Property | D76: 0 | F76: 0 | H76: 0
A77: %,FACCOUNT,TNI_ACCOUNT_FERC,XBYYYYY01,NACC_DEPR_OTH_PLANT | B77: Accum Prov - Deprec Oth Plant | D77: 0 | F77: 0 | H77: 0
A78: %,FACCOUNT,TNI_ACCOUNT_FERC,XBYYYYY01,NUNCONSOL_AFFIL_FERC | B78: Investments in Associated Cos | D78: 0 | F78: 0 | H78: 0
A79: %,V12310000 | B79: Inv Sub Co-Common Stock | C79: 12310000 | D79: 174261 | F79: 0 | H79: 0
A80: %,V12310001 | B80: Inv Sub Co-PL | C80: 12310001 | D80: 565904.34 | F80: 0 | H80: 0
A81: %,V12310003 | B81: Inv Sub Co-Distrib | C81: 12310003 | D81: -740459.54 | F81: 0 | H81: 0
A82: %,FACCOUNT,TNI_ACCOUNT_FERC,XBYYYYY01,NCONSOL_AFFIL_FERC | B82: Investments in Subsidiary Cos | D82: -294.2 | F82: 0 | H82: 0
A83: %,FACCOUNT,TNI_ACCOUNT_FERC,XBYYYYY01,NOTHER_INVESTMENTS | B83: Other Investments | D83: 0 | F83: 0 | H83: 0
A84: %,FACCOUNT,TNI_ACCOUNT_FERC,XBYYYYY01,NSINK_FUND | B84: Sinking Fund | D84: 0 | F84: 0 | H84: 0
A85: %,V12800000 | B85: Funds Held in Trust | C85: 12800000 | D85: 52767.42 | F85: 4415.42 | H85: 4415.42
A86: %,FACCOUNT,TNI_ACCOUNT_FERC,XBYYYYY01,NOTHER_FUND_SPEC | B86: Other Special Funds | D86: 52767.42 | F86: 4415.42 | H86: 4415.42
A87: xx | B87: Total Other Property and Investments | D87: =D76+D77+D78+D82+D83+D84+D86 -> 52473.22 | F87: =F76+F77+F78+F82+F83+F84+F86 -> 4415.42 | H87: =H76+H77+H78+H82+H83+H84+H86 -> 4415.42
B89: Current and Accrued Assets
A90: %,V13100000 | B90: Cash | C90: 13100000 | D90: 1051136.83 | F90: 232373.44 | H90: 232373.44
A91: %,FACCOUNT,TNI_ACCOUNT_FERC,XBYYYYY01,NCASH_FERC | B91: Cash | D91: 1051136.83 | F91: 232373.44 | H91: 232373.44
A92: %,FACCOUNT,TNI_ACCOUNT_FERC,XBYYYYY01,NSPECIAL_DEPOSITS | B92: Special Deposits | D92: 0 | F92: 0 | H92: 0
A93: %,V13500000 | B93: Working Funds | C93: 13500000 | D93: 4690.04 | F93: 0 | H93: 0
A94: %,FACCOUNT,TNI_ACCOUNT_FERC,XBYYYYY01,NWORKING_FUNDS | B94: Working Funds | D94: 4690.04 | F94: 0 | H94: 0
A95: %,FACCOUNT,TNI_ACCOUNT_FERC,XBYYYYY01,NTEMP_CASH_FERC | B95: Temp Cash Investments | D95: 0 | F95: 0 | H95: 0
A96: %,FACCOUNT,TNI_ACCOUNT_FERC,XBYYYYY01,NNOTE_RECEIVABLE | B96: Notes Receivable | D96: 0 | F96: 0 | H96: 0
A97: %,V14200160 | B97: Cust AR-Credit Balances | C97: 14200160 | D97: 7362990.22 | F97: -5671458.92 | H97: -5671458.92
A98: %,V14200220 | B98: Cust AR-CAB | C98: 14200220 | D98: 9701265.21 | F98: 7671947.91 | H98: 7671947.91
A99: %,V14200250 | B99: Cust AR-GMB | C99: 14200250 | D99: 720956.09 | F99: 269809.46 | H99: 269809.46
A100: %,V14200260 | B100: Cust AR-Cust Premise Work | C100: 14200260 | D100: 125949.43 | F100: -49999.47 | H100: -49999.47
A101: %,FACCOUNT,TNI_ACCOUNT_FERC,XBYYYYY01,NCUSTOMER_AR_FERC | B101: Customer Accounts Receivable | D101: 17911160.95 | F101: 2220298.98 | H101: 2220298.98
A102: %,V14300001 | B102: Misc Accts Rec-Other | C102: 14300001 | D102: 2465379.46 | F102: 60.7 | H102: 60.7
A103: %,V14300018 | B103: Other AR-Billed OSS | C103: 14300018 | D103: 129700.24 | F103: -788925.5 | H103: -788925.5
A104: %,V14300220 | B104: Other AR-GMB Estimate | C104: 14300220 | D104: 14975.99 | F104: 5506.01 | H104: 5506.01
A105: %,V14300240 | B105: Other AR-GTS | C105: 14300240 | D105: 1189162.79 | F105: 135075.07 | H105: 135075.07
A106: %,V14300270 | B106: Other AR-Retail Service | C106: 14300270 | D106: 1517.2 | F106: 7 | H106: 7
A107: %,V14300290 | B107: Other AR-CNR | C107: 14300290 | D107: 274653.33 | F107: 19560.76 | H107: 19560.76
A108: %,V14300330 | B108: Other AR Choice Trans-Columbia | C108: 14300330 | D108: -1070116.17 | F108: 1124619.29 | H108: 1124619.29
A109: %,V14300350 | B109: Other AR Choice Trans-Purchase | C109: 14300350 | D109: 1482257.78 | F109: 149900.43 | H109: 149900.43
A110: %,V14300395 | B110: Other AR-CPG Non-Transit Srvcs | C110: 14300395 | D110: 161352.16 | F110: -21760.6 | H110: -21760.6
A111: %,V14311111 | B111: Other AR-Curr-MA Project | C111: 14311111 | D111: 4686.29 | F111: 0 | H111: 0
A112: %,FACCOUNT,TNI_ACCOUNT_FERC,XBYYYYY01,NOTHER_AR_UNAFFIL | B112: Other Accounts Receivable | D112: 4653569.07 | F112: 624043.16 | H112: 624043.16
A113: %,V14400000 | B113: Acc Prov for Uncol-Beg Bal | C113: 14400000 | D113: -218603.22 | F113: 0 | H113: 0
A114: %,V14400100 | B114: Acc Prov for Uncol-Reserve | C114: 14400100 | D114: -233806.32 | F114: -233806.32 | H114: -233806.32
A115: %,V14400150 | B115: Acc Prov for Uncol-Charge-Offs | C115: 14400150 | D115: 49432.87 | F115: 49432.87 | H115: 49432.87
A116: %,V14400200 | B116: Acc Prov for Uncol-Recoveries | C116: 14400200 | D116: -36419.91 | F116: -36419.91 | H116: -36419.91
A117: %,V14400600 | B117: Accm Prov Uncoll-Unbilled | C117: 14400600 | D117: -135400.84 | F117: -21618.52 | H117: -21618.52
A118: %,FACCOUNT,TNI_ACCOUNT_FERC,XBYYYYY01,NRESERVE_AR | B118: Accum Prov Uncollectible - Cr | D118: -574797.42 | F118: -242411.88 | H118: -242411.88
A119: %,FACCOUNT,TNI_ACCOUNT_FERC,XBYYYYY01,NNOTE_REC_AFFIL | B119: NR from Associated Cos | D119: 0 | F119: 0 | H119: 0
A120: %,V14600000 | B120: AR Assoc Co-Mech | C120: 14600000 | D120: -8626.52 | F120: -2977.07 | H120: -2977.07
A121: %,V14600002 | B121: AR Assoc Co-Misc | C121: 14600002 | D121: 12555.19 | F121: -0.01 | H121: -0.01
A122: %,V14620000 | B122: Foreign Cash | C122: 14620000 | D122: -604229.32 | F122: 0 | H122: 0
A123: %,FACCOUNT,TNI_ACCOUNT_FERC,XBYYYYY01,NAR_AFFILIATE | B123: AR from Associated Cos | D123: -600300.65 | F123: -2977.08 | H123: -2977.08
A124: %,FACCOUNT,TNI_ACCOUNT_FERC,XBYYYYY01,NFUEL_STOCK | B124: Fuel Stock | D124: 0 | F124: 0 | H124: 0
A125: %,FACCOUNT,TNI_ACCOUNT_FERC,XBYYYYY01,NFUEL_STK_EXP_UNDISTR | B125: Fuel Stock Expenses Undistrib | D125: 0 | F125: 0 | H125: 0
A126: %,FACCOUNT,TNI_ACCOUNT_FERC,XBYYYYY01,NRESIDUALS | B126: Residuals & Extracted Products | D126: 0 | F126: 0 | H126: 0
A127: %,V15400000 | B127: Plant Materials-Oth Supplies | C127: 15400000 | D127: 341431.86 | F127: 13394.41 | H127: 13394.41
A128: %,V15420000 | B128: FabShop LP OH Build Ahead | C128: 15420000 | D128: 305.06 | F128: 0 | H128: 0
A129: %,FACCOUNT,TNI_ACCOUNT_FERC,XBYYYYY01,NMATERIALS_AND_SUPPLY | B129: Plant Materials & Supplies | D129: 341736.92 | F129: 13394.41 | H129: 13394.41
A130: %,FACCOUNT,TNI_ACCOUNT_FERC,XBYYYYY01,NMERCHANDISE | B130: Merchandise | D130: 0 | F130: 0 | H130: 0
A131: %,FACCOUNT,TNI_ACCOUNT_FERC,XBYYYYY01,NALLOWANCES | B131: Allowances | D131: 0 | F131: 0 | H131: 0
A132: %,FACCOUNT,TNI_ACCOUNT_FERC,XBYYYYY01,NSTORES_EXP | B132: Stores Exp Undistributed | D132: 0 | F132: 0 | H132: 0
A133: %,V16411000 | B133: Gas Stored-Current-LIFO | C133: 16411000 | D133: 32049155.78 | F133: -7971207.96 | H133: -7971207.96
A134: %,FACCOUNT,TNI_ACCOUNT_FERC,XBYYYYY01,NGAS_STORED_UNDRGRND | B134: Gas Stored Underground - Curr | D134: 32049155.78 | F134: -7971207.96 | H134: -7971207.96
A135: %,FACCOUNT,TNI_ACCOUNT_FERC,XBYYYYY01,NLNG_STORED_HELD | B135: LNG Stored & Held for Process | D135: 0 | F135: 0 | H135: 0
A136: %,V16500000 | B136: Other Misc Prepayments | C136: 16500000 | D136: -52915.77 | F136: 2333.88 | H136: 2333.88
A137: %,V16500010 | B137: Prepaid-Medical LTD | C137: 16500010 | D137: 2233.08 | F137: -339.64 | H137: -339.64
A138: %,V16503600 | B138: Prepaid Taxes - Other | C138: 16503600 | D138: 94090.82 | F138: -18800 | H138: -18800
A139: %,V16520000 | B139: Prepaid-Insurance Affiliate | C139: 16520000 | D139: 269662.32 | F139: -71722.23 | H139: -71722.23
A140: %,V16521000 | B140: Prepaid-Insurance NonAffil | C140: 16521000 | D140: 765726.91 | F140: -147873.6 | H140: -147873.6
A141: %,V16591000 | B141: Prepaid-NC Cloud Cost Incurred | C141: 16591000 | D141: 0.13 | F141: 0 | H141: 0
A142: %,FACCOUNT,TNI_ACCOUNT_FERC,XBYYYYY01,NPREPAYMENTS_FERC | B142: Prepayments | D142: 1078797.49 | F142: -236401.59 | H142: -236401.59
A143: %,FACCOUNT,TNI_ACCOUNT_FERC,XBYYYYY01,NINT_DIV_REC | B143: Interest & Dividends Rec | D143: 0 | F143: 0 | H143: 0
A144: %,FACCOUNT,TNI_ACCOUNT_FERC,XBYYYYY01,NRENT_REC | B144: Rent Receivable | D144: 0 | F144: 0 | H144: 0
A145: %,V17300000 | B145: AR Accrued Revenues | C145: 17300000 | D145: 21037630.87 | F145: -2517261.51 | H145: -2517261.51
A146: %,V17302000 | B146: AR Accrd Rev Unbill Exch Gas | C146: 17302000 | D146: 1278534.78 | F146: 116942.46 | H146: 116942.46
A147: %,FACCOUNT,TNI_ACCOUNT_FERC,XBYYYYY01,NACCRUED_REVENUES | B147: Accrued Utility Revenues | D147: 22316165.65 | F147: -2400319.05 | H147: -2400319.05
A148: %,V17401000 | B148: Misc Assets-Exch Gas Receiv | C148: 17401000 | D148: 8452854.99 | F148: 582068.67 | H148: 582068.67
A149: %,V17403200 | B149: Misc Assets-Property Tax | C149: 17403200 | D149: 6741046.74 | F149: -578250 | H149: -578250
A150: %,FACCOUNT,TNI_ACCOUNT_FERC,XBYYYYY01,NOTHER_CURRENT_ASSETS | B150: Misc Current & Accrued Assets | D150: 15193901.73 | F150: 3818.67 | H150: 3818.67
A151: %,FACCOUNT,TNI_ACCOUNT_FERC,XBYYYYY01,NDERIV_ASSET | B151: Derivative Instrument Assets | D151: 0 | F151: 0 | H151: 0
A152: %,FACCOUNT,TNI_ACCOUNT_FERC,XBYYYYY01,NDERIV_HEDGE | B152: Derivative Assets - Hedging | D152: 0 | F152: 0 | H152: 0
A153: xx | B153: Total Current and Accrued Assets | D153: =D91+D92+D94+D95+D96+D101+D112+D118+D119+D123+D124+D125+D126+D129+D130+D131+D132+D134+D135+D142+D143+D144+D147+D150+D151+D152 -> 93425216.39 | F153: =F91+F92+F94+F95+F96+F101+F112+F118+F119+F123+F124+F125+F126+F129+F130+F131+F132+F134+F135+F142+F143+F144+F147+F150+F151+F152 -> -7759388.9 | H153: =H91+H92+H94+H95+H96+H101+H112+H118+H119+H123+H124+H125+H126+H129+H130+H131+H132+H134+H135+H142+H143+H144+H147+H150+H151+H152 -> -7759388.9
B155: Deferred Debits
A156: %,FACCOUNT,TNI_ACCOUNT_FERC,XBYYYYY01,NUNAMORTIZED_DEBT_EXP | B156: Unamortized Debt Expense | D156: 0 | F156: 0 | H156: 0
A157: %,FACCOUNT,TNI_ACCOUNT_FERC,XBYYYYY01,NEXTRAORD_PROP_LOSS | B157: Extraordinary Property Loss | D157: 0 | F157: 0 | H157: 0
A158: %,V18230200 | B158: Reg Asset Cr Bal Transf | C158: 18230200 | D158: 384645.49 | F158: -221838.1 | H158: -221838.1
A159: %,V18230250 | B159: Reg Asset Rate Case Current | C159: 18230250 | D159: 185185.44 | F159: 0 | H159: 0
